Workbook

Sheet LDC Info
AA3: Algoma Power Inc.
AA4: Atikokan Hydro Inc.
AA5: Attawapiskat Power Corporation
AA6: Bluewater Power Distribution Corp.
AA7: Brant County Power
AA8: Brantford Power Inc.
AA9: Burlington Hydro Inc.
AA10: Cambridge and North Dumfries Hydro
AA11: Canadian Niagara Power Inc. – Eastern Ontario Power/Fort Erie/Port Colborne
AA12: Centre Wellington Hydro Ltd.
N13: Version 2.0 | AA13: Chapleau Public Utilities Corporation
D14: Utility Name | E14: Orangeville Hydro Limited | AA14: COLLUS Power Corp.
AA15: Cooperative Hydro Embrun Inc.
D16: Assigned EB Number | E16: EB-2013-0160 | AA16: E.L.K. Energy Inc.
AA17: Enersource Hydro Mississauga Inc.
D18: Name of Contact and Title | E18: Jan Howard, Manager of Finance and Rates | AA18: Entegrus Powerlines Inc.
AA19: ENWIN Utilities Ltd.
D20: Phone Number | E20: 519-942-8000 | AA20: Erie Thames Powerlines Corp.
AA21: Espanola Regional Hydro Distribution Corporation
D22: Email Address | E22: jhoward@orangevillehydro.on.ca | AA22: Essex Powerlines Corporation
AA23: Festival Hydro Inc.
D24: Test Year | E24: 2014 | AA24: Fort Albany Power Corporation
AA25: Fort Frances Power Corporation
D26: Bridge Year | E26: =E24-1 -> 2013 | AA26: Greater Sudbury Hydro Inc.
AA27: Grimsby Power Inc.
D28: Last Rebasing Year | E28: 2010 | AA28: Guelph Hydro Electric Systems Inc.
AA29: Haldimand County Hydro Inc.
A30: Identify the accounting standard used for the test year
E31: CGAAP
A33: Did you update your depreciation and capitalization policies?
E34: Yes
A36: When did you update your depreciation and capitalization policies?
E37: 2012
A39: Identify the year that the applicant has adopted or is expected to adopt IFRS for financial reporting purposes
E40: 2014 or Later
A42: Identify the year that the applicant has made the required changes to capitalization and depreciation expense policies under CGAAP or ASPE
E43: 2012
A45: Are you applying for cost recovery for the test and/or future year(s) for Green Energy initiatives?
E46: No
A48: ="Is " & E14 & " an embedded distributor?" -> Is Orangeville Hydro Limited an embedded distributor? | E48: Yes
A52: Once all selections have been made above, press the following button to reveal the appropriate worksheets.
A56: To unhide all worksheets in this workbook, press the following button:
B59: Notes | AA59: Guelph Hydro Electric Systems Inc.
AA60: Halton Hills Hydro Inc.
C61: Pale green cells represent input cells. | AA61: Hearst Power Distribution Co. Ltd.
AA62: Horizon Utilities Corporation
C63: Pale blue cells represent drop-down lists. The applicant should select the appropriate item from the drop-down list. | AA63: Hydro 2000 Inc.
AA64: Hydro Hawkesbury Inc.
C65: White cells contain fixed values, automatically generated values or formulae. | AA65: Hydro One Brampton Networks Inc.
AA66: Hydro One Networks Inc.
AA67: Hydro One Remote Communities Inc.
AA68: Hydro Ottawa Limited
AA69: Innisfil Hydro Dist. Systems Limited
AA70: Kashechewan Power Corporation
AA71: Kenora Hydro Electric Corporation Ltd.
AA72: Kingston Hydro Corporation
AA73: Kitchener-Wilmot Hydro Inc.
AA74: Lakefront Utilities Inc.
AA75: Lakeland Power Distribution Ltd.
AA76: London Hydro Inc.
AA77: Midland Power Utility Corporation
AA78: Milton Hydro Distribution Inc.
AA79: Newmarket – Tay Power Distribution Ltd.
AA80: Niagara Peninsula Energy Inc.
AA81: Niagara-on-the-Lake Hydro Inc.
AA82: Norfolk Power Distribution Ltd.
AA83: North Bay Hydro Distribution Limited
AA84: Northern Ontario Wires Inc.
AA85: Oakville Hydro Distribution Inc.
AA86: Orangeville Hydro Limited
AA87: Orillia Power Distribution Corp.
AA88: Oshawa PUC Networks Inc.
AA89: Ottawa River Power Corporation
AA90: Parry Sound Power Corporation
AA91: Peterborough Distribution Inc.
AA92: PowerStream Inc.
AA93: PUC Distribution Inc.
AA94: Renfrew Hydro Inc.
AA95: Rideau St. Lawrence Distribution Inc.
AA96: St. Thomas Energy Inc.
AA97: Sioux Lookout Hydro Inc.
AA98: Thunder Bay Hydro Electricity Distribution
AA99: Tillsonburg Hydro Inc.
AA100: Toronto Hydro-Electric System Limited
AA101: Veridian Connections Inc.
AA102: Wasaga Distribution Inc.
AA103: Waterloo North Hydro Inc.
AA104: Welland Hydro Electric System Corp.
AA105: Wellington North Power Inc.
AA106: West Coast Huron Energy Inc.
AA107: Westario Power Inc.
AA108: Whitby Hydro Electric Corporation
AA109: Woodstock Hydro Services Inc.

Sheet Table of Contents
A15: 1 | B15: LDC Information Sheet | E15: 35 | F15: Appendix 2-DB: Overhead Expense (CGAAP or ASPE)
A16: 2 | B16: Index | E16: 36 | F16: Appendix 2-EA: PP&E Deferral Account (2012 IFRS Adopters)
A17: 3 | B17: Cost of Service Application Flowchart | E17: 37 | F17: Appendix 2-EB: PP&E Deferral Account (2013 IFRS Adopters)
A18: 4 | B18: List of Key References | E18: 38 | F18: Appendix 2-EC: PP&E Deferral Account (2014 IFRS Adopters)
A19: 5 | B19: Appendix 2-AA: Capital Projects Table | E19: 39 | F19: Appendix 2-ED: Account 1576 - Accounting Changes Under CGAAP (2012 Changes)
A20: 6 | B20: Appendix 2-AB: Capital Expenditures | E20: 40 | F20: Appendix 2-EE: Account 1576 - Accounting Changes Under CGAAP (2013 Changes)
A21: 7 | B21: Appendix 2-BA1: Fixed Asset Continuity Schedule (CGAAP/ASPE/USGAAP) | E21: 41 | F21: Appendix 2-FA: Renewable Generation Connection Investment Summary
A22: 8 | B22: Appendix 2-BA2: Fixed Asset Continuity Schedule (MIFRS) | E22: 42 | F22: Appendix 2-FB: Calculation of Renewable Generation Connection Direct Benefits/Provincial Amount: Renewable Enabling Improvement Investments
A23: 9 | B23: Appendix 2-BB: Service Life Comparison | E23: 43 | F23: Appendix 2-FC: Calculation of Renewable Generation Connection Direct Benefits/Provincial Amount: Renewable Expansion Investments
A24: 10 | B24: General Instructions to MIFRS Appendices | E24: 44 | F24: Appendix 2-G: Service Reliability Indicators
A25: 11 | B25: Appendix 2-CA: 2011 Depreciation and Amortization Expense (CGAAP) | E25: 45 | F25: Appendix 2-H: Other Operating Revenue
A26: 12 | B26: Appendix 2-CB: 2011 Depreciation and Amortization Expense (MIFRS) | E26: 46 | F26: Appendix 2-I: Load Forecast CDM Adjustment Work Form
A27: 13 | B27: Appendix 2-CC: 2012 Depreciation and Amortization Expense (MIFRS) | E27: 47 | F27: Appendix 2-JA: Summary of Recoverable OM&A Expenses
A28: 14 | B28: Appendix 2-CD: 2013 Depreciation and Amortization Expense (MIFRS) | E28: 48 | F28: Appendix 2-JB: Recoverable OM&A Cost Driver Table
A29: 15 | B29: Appendix 2-CE: 2014 Depreciation and Amortization Expense (MIFRS) | E29: 49 | F29: Appendix 2-JC: OMA Programs Table
A30: 16 | B30: Appendix 2-CF: 2012 Depreciation and Amortization Expense (CGAAP) | E30: 50 | F30: Appendix 2-K: Employee Costs
A31: 17 | B31: Appendix 2-CG: 2012 Depreciation and Amortization Expense (MIFRS) | E31: 51 | F31: Appendix 2-L: Recoverable OM&A Cost per Customer and per FTE
A32: 18 | B32: Appendix 2-CH: 2013 Depreciation and Amortization Expense (MIFRS) | E32: 52 | F32: Appendix 2-M: Regulatory Cost Schedule
A33: 19 | B33: Appendix 2-CI: 2014 Depreciation and Amortization Expense (MIFRS) | E33: 53 | F33: Appendix 2-N: Shared Services and Corporate Cost Allocation
A34: 20 | B34: Appendix 2-CJ: 2012 Depreciation and Amortization Expense (CGAAP) | E34: 54 | F34: Appendix 2-OA: Capital Structure and Cost of Capital
A35: 21 | B35: Appendix 2-CK: 2013 Depreciation and Amortization Expense (CGAAP) | E35: 55 | F35: Appendix 2-OB: Debt Instruments
A36: 22 | B36: Appendix 2-CL: 2013 Depreciation and Amortization Expense (MIFRS) | E36: 56 | F36: Appendix 2-P: Cost Allocation
A37: 23 | B37: Appendix 2-CM: 2014 Depreciation and Amortization Expense (MIFRS) | E37: 57 | F37: Appendix 2-Q: Cost of Serving Embedded Distributor(s)
A38: 24 | B38: General Instructions to CGAAP-ASPE Appendices | E38: 58 | F38: Appendix 2-R: Loss Factors
A39: 25 | B39: Appendix 2-CN: 2012 Depreciation and Amortization Expense (Old CGAAP) | E39: 59 | F39: Appendix 2-S: Stranded Meter Treatment
A40: 26 | B40: Appendix 2-CO: 2012 Depreciation and Amortization Expense (New CGAAP) | E40: 60 | F40: Appendix 2-TA: Account 1592, PILs and Tax Variances
A41: 27 | B41: Appendix 2-CP: 2013 Depreciation and Amortization Expense (New CGAAP) | E41: 61 | F41: Appendix 2-TB: Account 1592, HST-OVAT Input Tax Credits
A42: 28 | B42: Appendix 2-CQ: 2014 Depreciation and Amortization Expense (New CGAAP) | E42: 62 | F42: Appendix 2-U: One-Time Incremental IFRS Transition Costs
A43: 29 | B43: Appendix 2-CR: 2012 Depreciation and Amortization Expense (Old CGAAP) | E43: 63 | F43: Appendix 2-V: Revenue Reconciliation
A44: 30 | B44: Appendix 2-CS: 2013 Depreciation and Amortization Expense (Old CGAAP) | E44: 64 | F44: Appendix 2-W: Bill Impacts
A45: 31 | B45: Appendix 2-CT: 2013 Depreciation and Amortization Expense (New CGAAP) | E45: 65 | F45: Appendix 2-YA: Transition to MIFRS Summary Impacts
A46: 32 | B46: Appendix 2-CU: 2014 Depreciation and Amortization Expense (New CGAAP) | E46: 66 | F46: Appendix 2-YB: Accounting Changes under CGAAP/ASPE Summary Impacts
A47: 33 | B47: Appendix 2-CV: Depreciation and Amortization Expense (USGAAP) | E47: 67 | F47: App.2-Z: Tariff Schedule
A48: 34 | B48: Appendix 2-DA: Overhead Expense (MIFRS)
B51: Legend
B52: To be completed by MIFRS filers
B53: To be completed by CGAAP and ASPE filers
B54: To be completed by USGAAP filers
B55: To be completed by both CGAAP, ASPE and USGAAP filers

Sheet COS Flowchart
B4: Cost of Service Rate Application Schematic
B6: The Cost of Service Rate Application Schematic is a flowchart appended to Chapter 2 of the Filing Requirements as a guide for the components of an application and how demand and costs interrelate to derive the revenue requirement and then how the revenue requirement is allocated between classes and through fixed/variable splits to derive rates that will be compensatory for the annual revenue requirement, based on the the forecasted demand. There is no form to be filled out; therefore, this Schedule is not required to be filed.

Sheet List of Key References
B3: List of Key References
A5: A list of key references for understanding the Filing Requirements has been embedded in the document below. To access the list of references and associated hyperlinks doublt click the icon below.

Sheet App.2-AA_Capital Projects
G1: File Number: | H1: EB-2013-0160
G2: Exhibit: | H2: 2
G3: Tab: | H3: 5
G4: Schedule: | H4: 2
G5: Page: | H5: 3
G7: Date: | H7: 2014-02-13
A9: Appendix 2-AA
A10: Capital Projects Table
A13: Projects | B13: 2008 | C13: 2009 | D13: 2010 | E13: 2011 | F13: 2012 | G13: 2013 Bridge Year | H13: 2014 Test Year
A14: Reporting Basis | B14: CGAAP | C14: CGAAP | D14: CGAAP | E14: CGAAP | F14: CGAAP | G14: CGAAP | H14: CGAAP
A15: B05 - Townline Rebuild
A16: 1830 Poles, Towers & Fixtures | B16: 58682.42
A17: 1835 Overhead Conductors & Devices | B17: 81921.71
A18: 1850 Line Transformers | B18: 29686.08
A19: 1855 Services (Overhead & Underground) | B19: 4769.6
A20: Sub-Total | B20: 175059.81 | C20: 0 | D20: 0 | E20: 0 | F20: 0 | G20: 0 | H20: 0
A21: B11 - 2009 - Bredin Pkwy Conversion
A22: 1830 Poles, Towers & Fixtures | C22: -650.49
A23: 1840 Underground Conduit | B23: 172883.17 | C23: 63780.3
A24: 1845 Underground Conductors & Devices | B24: 29622.85 | C24: 45969.63
A25: 1850 Line Transformers | B25: 148883.2 | C25: 94119.89
A26: Sub-Total | B26: 351389.22 | C26: 203219.33 | D26: 0 | E26: 0 | F26: 0 | G26: 0 | H26: 0
A27: B22-2010 - Browns Farm Conversion
A28: 1830 Poles, Towers & Fixtures | E28: 216.79
A29: 1835 Overhead Conductors & Devices | E29: 80646
A30: 1840 Underground Conduit | D30: 196231.1 | E30: 208383.58 | F30: 36049.51
A31: 1845 Underground Conductors & Devices | D31: 30072.41 | E31: 94959.83 | F31: 35045.81
A32: 1850 Line Transformers | D32: 4750.06 | E32: 143791.34 | F32: 79123.32
A33: 1855 Services (Overhead & Underground) | E33: 4186.42 | F33: 6556.97
A34: Sub-Total | B34: 0 | C34: 0 | D34: 231053.57 | E34: 532183.96 | F34: 156775.61 | G34: 0 | H34: 0
A35: B24-2009 - 2009 COS Project - Hansen Blvd Reconstruction
A36: 1830 Poles, Towers & Fixtures | C36: 23406.51 | D36: 459.54
A37: 1835 Overhead Conductors & Devices | C37: 12573.67 | D37: 807.15
A38: 1840 Underground Conduit | C38: 3443.37 | D38: 114830.75
A39: 1845 Underground Conductors & Devices | C39: 144034.2
A40: 1850 Line Transformers | C40: 102036.47 | D40: 917.83
A41: Sub-Total | B41: 0 | C41: 285494.22 | D41: 117015.27 | E41: 0 | F41: 0 | G41: 0 | H41: 0
A42: B27-2010 - Rolling Hills Refurbishment
A43: 1840 Underground Conduit | D43: 7607
A44: 1845 Underground Conductors & Devices | D44: 106295.73
A45: 1850 Line Transformers | D45: 302.36
A46: Sub-Total | B46: 0 | C46: 0 | D46: 114205.09 | E46: 0 | F46: 0 | G46: 0 | H46: 0
A47: B29-2009 - DS#1 Removal Mill St
A48: 1830 Poles, Towers & Fixtures | B48: 11968.01 | C48: 17646.82
A49: 1835 Overhead Conductors & Devices | B49: 21709.64 | C49: 19723.82
A50: 1840 Underground Conduit | B50: 9470.28
A51: 1845 Underground Conductors & Devices | B51: 8591.5
A52: 1850 Line Transformers | B52: 32535.89 | C52: 20425.91
A53: 1855 Services (Overhead & Underground) | C53: 202.28
A54: Sub-Total | B54: 84275.32 | C54: 57998.83 | D54: 0 | E54: 0 | F54: 0 | G54: 0 | H54: 0
A55: B34-2010 - Hydro One Make Ready - Emma St
A56: 1830 Poles, Towers & Fixtures | D56: 72290.67
A57: 1835 Overhead Conductors & Devices | D57: 36061.92
A58: 1840 Underground Conduit | D58: 9854.15
A59: 1845 Underground Conductors & Devices | D59: 8547.25
A60: 1850 Line Transformers | D60: 18095.67
A61: 1855 Services (Overhead & Underground) | D61: 7933.82
A62: 1995 Capital Contribution | D62: -154432.62
A63: Sub-Total | B63: 0 | C63: 0 | D63: -1649.14 | E63: 0 | F63: 0 | G63: 0 | H63: 0
A64: B35-2010 - Wholesale Meter M5 & M26
A65: 1820 Distribution Station Equipment <50kV | D65: 111496.26
A66: 1830 Poles, Towers & Fixtures | D66: 6538.31
A67: 1835 Overhead Conductors & Devices | D67: 9928.58
A68: Sub-Total | B68: 0 | C68: 0 | D68: 127963.15 | E68: 0 | F68: 0 | G68: 0 | H68: 0
A69: B36-2011 - ORANGEVILLE MALL CONVERSION
A70: 1830 Poles, Towers & Fixtures | E70: 4674.07
A71: 1840 Underground Conduit | E71: 38722.65
A72: 1845 Underground Conductors & Devices | E72: 48729.23
A73: 1850 Line Transformers | E73: 76001.2
A74: Sub-Total | B74: 0 | C74: 0 | D74: 0 | E74: 168127.15 | F74: 0 | G74: 0 | H74: 0
A75: B42-2012 - Water & William St U/G Conversion
A76: 1840 Underground Conduit | F76: 61594.68
A77: 1845 Underground Conductors & Devices | F77: 19973.45
A78: 1850 Line Transformers | F78: 9550.34
A79: 1855 Services (Overhead & Underground) | F79: 34067.59
A80: Sub-Total | B80: 0 | C80: 0 | D80: 0 | E80: 0 | F80: 125186.06 | G80: 0 | H80: 0
A81: B47-2011 - ARMSTRONG ST RECONSTRUCTION
A82: 1830 Poles, Towers & Fixtures | E82: 8103.37
A83: 1835 Overhead Conductors & Devices | E83: 20172.57
A84: 1840 Underground Conduit | E84: 3178.64
A85: 1845 Underground Conductors & Devices | E85: 42639.98
A86: 1850 Line Transformers | E86: 19451.64
A87: 1855 Services (Overhead & Underground) | E87: 932.41
A88: Sub-Total | B88: 0 | C88: 0 | D88: 0 | E88: 94478.61 | F88: 0 | G88: 0 | H88: 0
A89: B48-2012 - Centre & Church St Conversion
A90: 1830 Poles, Towers & Fixtures | F90: 3375.81
A91: 1835 Overhead Conductors & Devices | F91: 1198.07
A92: 1840 Underground Conduit | F92: 32076.39
A93: 1845 Underground Conductors & Devices | F93: 10953.91
A94: 1850 Line Transformers | F94: 13313.63
A95: 1855 Services (Overhead & Underground) | F95: 1908.57
A96: Sub-Total | B96: 0 | C96: 0 | D96: 0 | E96: 0 | F96: 62826.38 | G96: 0 | H96: 0
A97: B50-2011 - FAULKNER/ELIZABETH ST CONVERSI
A98: 1830 Poles, Towers & Fixtures | E98: 202.74
A99: 1835 Overhead Conductors & Devices | E99: 155.11
A100: 1840 Underground Conduit | E100: 83976.4
A101: 1845 Underground Conductors & Devices | E101: 60407.78
A102: 1850 Line Transformers | E102: 714.01
A103: 1855 Services (Overhead & Underground) | E103: 7064.7
A104: Sub-Total | B104: 0 | C104: 0 | D104: 0 | E104: 152520.74 | F104: 0 | G104: 0 | H104: 0
A105: B55-2011 - Centennial Dr Pole Replacement
A106: 1830 Poles, Towers & Fixtures | F106: 22070.87
A107: 1835 Overhead Conductors & Devices | F107: 41959.43
A108: Sub-Total | B108: 0 | C108: 0 | D108: 0 | E108: 0 | F108: 64030.3 | G108: 0 | H108: 0
A109: B76-2013 - Stoney Crescent 27.6kV Conversion
A110: 1840 Underground Conduit | G110: 31329.5928
A111: 1845 Underground Conductors & Devices | G111: 12518.559
A112: 1850 Line Transformers | G112: 12159.3772
A113: Sub-Total | B113: 0 | C113: 0 | D113: 0 | E113: 0 | F113: 0 | G113: 56007.529 | H113: 0
A114: B78-2013 - First St- Fifth Ave 27kV OH-UG Conversion
A115: 1830 Poles, Towers & Fixtures | G115: 14055.1302
A116: 1835 Overhead Conductors & Devices | G116: 9400.8552
A117: 1840 Underground Conduit | G117: 54079.5928 | H117: 64955.696
A118: 1845 Underground Conductors & Devices | G118: 76471.7096 | H118: 68964.3919
A119: 1850 Line Transformers | H119: 31130.4976
A120: Sub-Total | B120: 0 | C120: 0 | D120: 0 | E120: 0 | F120: 0 | G120: 154007.2878 | H120: 165050.5855
A121: B79-2013 - Parkview Heights- Transformer Replacement
A122: 1850 Line Transformers | G122: 85237.302 | H122: 63925.5024
A123: Sub-Total | B123: 0 | C123: 0 | D123: 0 | E123: 0 | F123: 0 | G123: 85237.302 | H123: 63925.5024
A124: B80-2013 - Emma & Douglas St- Pole line Replacement
A125: 1830 Poles, Towers & Fixtures | G125: 35546.7354
A126: 1835 Overhead Conductors & Devices | G126: 12795.7354
A127: 1850 Line Transformers | G127: 3664.2758
A128: 1855 Services (Overhead & Underground) | G128: 5770.7302
A129: Sub-Total | B129: 0 | C129: 0 | D129: 0 | E129: 0 | F129: 0 | G129: 57777.4768 | H129: 0
A130: B81-2013 - West Broadway 27.6kV UG Conversion
A131: 1830 Poles, Towers & Fixtures | G131: 5297.4058
A132: 1835 Overhead Conductors & Devices | G132: 6163.5683
A133: 1840 Underground Conduit | G133: 58500
A134: 1845 Underground Conductors & Devices | G134: 58927.9835
A135: 1850 Line Transformers | G135: 15621.4383
A136: 1855 Services (Overhead & Underground) | G136: 13407.5308
A137: Sub-Total | B137: 0 | C137: 0 | D137: 0 | E137: 0 | F137: 0 | G137: 157917.9267 | H137: 0
A138: B82-2013 - Cooper-George-Parkview-Main St South Pole Line Replacement
A139: 1830 Poles, Towers & Fixtures | G139: 45975.8192
A140: 1835 Overhead Conductors & Devices | G140: 9790.4713
A141: 1850 Line Transformers | G141: 8129.5174
A142: 1855 Services (Overhead & Underground) | G142: 11792.8779
A143: Sub-Total | B143: 0 | C143: 0 | D143: 0 | E143: 0 | F143: 0 | G143: 75688.6858 | H143: 0
A144: B83-2013 - Municipal Substation - Major Service
A145: 1830 Poles, Towers & Fixtures | G145: 71134.92
A146: Sub-Total | B146: 0 | C146: 0 | D146: 0 | E146: 0 | F146: 0 | G146: 71134.92 | H146: 0
A147: B85-2013 - Bythia-Victoria-Princess 27.6kV Conversion Phase 1
A148: 1830 Poles, Towers & Fixtures | G148: 17472.196
A149: 1835 Overhead Conductors & Devices | G149: 4021.1433
A150: 1840 Underground Conduit | G150: 78200 | H150: 152465.696
A151: 1845 Underground Conductors & Devices | G151: 30303.2704 | H151: 66393.902
A152: 1850 Line Transformers | G152: 56153.9005 | H152: 123027.4495
A153: 1855 Services (Overhead & Underground) | G153: 3855.6208 | H153: 36134.8484
A154: Sub-Total | B154: 0 | C154: 0 | D154: 0 | E154: 0 | F154: 0 | G154: 190006.131 | H154: 378021.8959
A155: 2014 - B87-2014
A156: 1820 Distribution Station Equipment <50kV | H156: 89010.6976
A157: 1835 Overhead Conductors & Devices | H157: 73417.8819
A158: Sub-Total | B158: 0 | C158: 0 | D158: 0 | E158: 0 | F158: 0 | G158: 0 | H158: 162428.5795
A159: B88-2014 - 10 Third Street 27.6kV Conversion
A160: 1830 Poles, Towers & Fixtures | H160: 11762.7876
A161: 1840 Underground Conduit | H161: 14632.848
A162: 1845 Underground Conductors & Devices | H162: 10955.3303
A163: 1850 Line Transformers | H163: 15032.2448
A164: Sub-Total | B164: 0 | C164: 0 | D164: 0 | E164: 0 | F164: 0 | G164: 0 | H164: 52383.2107
A165: C01- Various General Service New Services/Service Upgrades
A166: 1830 Poles, Towers & Fixtures
A167: 1835 Overhead Conductors & Devices
A168: 1840 Underground Conduit
A169: 1845 Underground Conductors & Devices | B169: 17438.1
A170: 1850 Line Transformers | B170: 33862.82
A171: 1855 Services (Overhead & Underground)
A172: 1860 Meters
A173: 1995 Capital Contribution | B173: -6759.94
A174: Sub-Total | B174: 44540.98 | C174: 0 | D174: 0 | E174: 0 | F174: 0 | G174: 0 | H174: 0
A175: S01 - Edgewood Valley
A176: 1840 Underground Conduit | B176: 135093.72
A177: 1845 Underground Conductors & Devices | B177: 35742.45
A178: 1850 Line Transformers | B178: 32752.8
A179: 1855 Services (Overhead & Underground) | B179: 25184.46
A180: 1995 Capital Contribution | B180: -121622.49
A181: Sub-Total | B181: 107150.94 | C181: 0 | D181: 0 | E181: 0 | F181: 0 | G181: 0 | H181: 0
A182: S02 - 2009 - Orangeville Highlands
A183: 1840 Underground Conduit | C183: 76579.2
A184: 1845 Underground Conductors & Devices | C184: 40008.26
A185: 1850 Line Transformers | C185: 60777.49
A186: 1855 Services (Overhead & Underground) | C186: 49833
A187: 1995 Capital Contribution | C187: -91456
A188: Sub-Total | B188: 0 | C188: 135741.95 | D188: 0 | E188: 0 | F188: 0 | G188: 0 | H188: 0
A189: S03-2011 - EDGEWOOD VALLEY PHASE 1B
A190: 1830 Poles, Towers & Fixtures | E190: 53.14
A191: 1835 Overhead Conductors & Devices | E191: 70.63
A192: 1840 Underground Conduit | C192: 36522 | E192: 39780.61
A193: 1845 Underground Conductors & Devices | C193: 13044 | E193: 7505.41
A194: 1850 Line Transformers | C194: 32027.72 | E194: 20854.41
A195: 1855 Services (Overhead & Underground) | C195: 15652 | E195: 8707.73
A196: 1995 Capital Contribution | C196: -15469 | E196: -38677
A197: Sub-Total | B197: 0 | C197: 81776.72 | D197: 0 | E197: 38294.93 | F197: 0 | G197: 0 | H197: 0
A198: S04-2011 - BROADWAY GRANDE TOWNHOUSES
A199: 1840 Underground Conduit | E199: 23752.11
A200: 1845 Underground Conductors & Devices | E200: 20164.29
A201: 1850 Line Transformers | E201: 36345.17
A202: 1855 Services (Overhead & Underground) | E202: 403.59
A203: 1995 Capital Contribution | E203: -55214
A204: Sub-Total | B204: 0 | C204: 0 | D204: 0 | E204: 25451.16 | F204: 0 | G204: 0 | H204: 0
... 76 more rows

Sheet App.2-AB_Capital Expenditures
S1: File Number: | U1: =EBNUMBER -> EB-2013-0160
S2: Exhibit: | U2: 2
S3: Tab: | U3: 5
S4: Schedule: | U4: 2
S5: Page: | U5: 2
S7: Date: | U7: 2014-02-13
A9: Appendix 2-AB
A10: Table 2 - Capital Expenditure Summary from Chapter 5 Consolidated Distribution System Plan Filing Requirements
A12: First year of Forecast Period: | B12: =TestYear -> 2014
A13: CATEGORY | B13: Historical Period (previous plan1 & actual) | Q13: Forecast Period (planned)
B14: =E14-1 -> 2009 | E14: =H14-1 -> 2010 | H14: =K14-1 -> 2011 | K14: =N14-1 -> 2012 | N14: =Q14-1 -> 2013 | Q14: =B12 -> 2014 | R14: =Q14+1 -> 2015 | S14: =R14+1 -> 2016 | T14: 2017 | U14: 2018
B15: Plan | C15: Actual | D15: Var | E15: Plan | F15: Actual | G15: Var | H15: Plan | I15: Actual | J15: Var | K15: Plan | L15: Actual | M15: Var | N15: Plan | O15: Actual2 | P15: Var
B16: $ '000 | D16: % | E16: $ '000 | G16: % | H16: $ '000 | J16: % | K16: $ '000 | M16: % | N16: $ '000 | P16: % | Q16: $ '000
A17: System Access | C17: ='[8]Jobs by Category'!$E$16 -> 790914.14 | D17: =IF(ISERROR((C17-B17)/B17),"--",(C17-B17)/B17) -> -- | E17: 937669.2712 | F17: ='[9]Jobs by Category'!$E$14 -> 651588.99 | G17: =IF(ISERROR((F17-E17)/E17),"--",(F17-E17)/E17) -> -0.3050972128 | I17: ='[10]Jobs by Category'!$E$28 -> 281133.53 | J17: =IF(ISERROR((I17-H17)/H17),"--",(I17-H17)/H17) -> -- | L17: =#REF! ->  | M17: =IF(ISERROR((L17-K17)/K17),"--",(L17-K17)/K17) -> -- | O17: ='[11]Jobs by Category'!$E$9 -> 770354.8794 | P17: =IF(ISERROR((O17-N17)/N17),"--",(O17-N17)/N17) -> -- | Q17: ='[12]Jobs by Category'!$E$9 -> 411106.1696 | R17: ='[13]Jobs by Category'!$E$10 -> 457306.1696 | S17: ='[14]Jobs by Category'!$E$10 -> 457306.1696 | T17: ='[15]Jobs by Category'!$E$10 -> 457306.1696 | U17: ='[16]Jobs by Category'!$E$10 -> 457306.1696
A18: System Renewal | C18: ='[8]Jobs by Category'!$E$20 -> 41450.88 | D18: =IF(ISERROR((C18-B18)/B18),"--",(C18-B18)/B18) -> -- | E18: 274968 | F18: ='[9]Jobs by Category'!$E$18 -> 54227.34 | G18: =IF(ISERROR((F18-E18)/E18),"--",(F18-E18)/E18) -> -0.8027867243 | I18: ='[10]Jobs by Category'!$E$30 -> 21855.01 | J18: =IF(ISERROR((I18-H18)/H18),"--",(I18-H18)/H18) -> -- | L18: =#REF! ->  | M18: =IF(ISERROR((L18-K18)/K18),"--",(L18-K18)/K18) -> -- | O18: ='[11]Jobs by Category'!$E$17 -> 332015.1406 | P18: =IF(ISERROR((O18-N18)/N18),"--",(O18-N18)/N18) -> -- | Q18: ='[12]Jobs by Category'!$E$16 -> 206205.8489 | R18: ='[13]Jobs by Category'!$E$14 -> 124968.6433 | S18: ='[14]Jobs by Category'!$E$13 -> 165671.7677 | T18: 0 | U18: ='[16]Jobs by Category'!$E$13 -> 33133.6623
A19: System Service | C19: ='[8]Jobs by Category'!$E$28 -> 320328.94 | D19: -- | E19: 723492 | F19: ='[9]Jobs by Category'!$E$32 -> 557324.02 | G19: -0.2296749377 | I19: ='[10]Jobs by Category'!$E$42 -> 1251665.81 | J19: -- | L19: =#REF! ->  | M19: -- | O19: ='[11]Jobs by Category'!$E$25 -> 627498.9296 | P19: -- | Q19: ='[12]Jobs by Category'!$E$22 -> 757884.2716 | R19: ='[13]Jobs by Category'!$E$19 -> 468617.8965 | S19: ='[14]Jobs by Category'!$E$20 -> 545154.7461 | T19: ='[15]Jobs by Category'!$E$13 -> 751011.7202 | U19: ='[16]Jobs by Category'!$E$17 -> 708659.0348
A20: General Plant | C20: ='[8]Jobs by Category'!$E$38 -> 376949.76 | D20: -- | E20: 319580 | F20: ='[9]Jobs by Category'!$E$42 -> 342144.3 | G20: 0.07060610802 | I20: ='[10]Jobs by Category'!$E$52 -> 192108.84 | J20: -- | L20: =#REF! ->  | M20: -- | O20: ='[11]Jobs by Category'!$E$36 -> 389800 | P20: -- | Q20: ='[12]Jobs by Category'!$E$33 -> 218500 | R20: ='[13]Jobs by Category'!$E$27 -> 377000 | S20: ='[14]Jobs by Category'!$E$30 -> 234500 | T20: ='[15]Jobs by Category'!$E$20 -> 86000 | U20: ='[16]Jobs by Category'!$E$26 -> 152500
A21: TOTAL EXPENDITURE | B21: =SUM(B17:B20) -> 0 | C21: =SUM(C17:C20) -> 1529643.72 | D21: -- | E21: 2255709.271 | F21: 1605284.65 | G21: -0.2883459449 | H21: 0 | I21: 1746763.19 | J21: -- | K21: 0 | L21: =SUM(L17:L20) ->  | M21: -- | N21: 0 | O21: 2119668.95 | P21: -- | Q21: 1593696.29 | R21: 1427892.709 | S21: 1402632.683 | T21: 1294317.89 | U21: =SUM(U17:U20) -> 1351598.867
A22: System O&M | C22: =SUM([17]Sheet2!$D$137:$D$161) -> 760276.27 | D22: -- | E22: ='App.2-JA_OM&A_Summary_Analys'!$B$17 -> 871368.6548 | F22: ='App.2-JA_OM&A_Summary_Analys'!$C$17 -> 817794.53 | G22: -0.06148273125 | I22: ='App.2-JA_OM&A_Summary_Analys'!$D$17 -> 968436.5 | J22: -- | L22: ='App.2-JA_OM&A_Summary_Analys'!E17 -> 923926.17 | M22: -- | O22: ='App.2-JA_OM&A_Summary_Analys'!F17 -> 1017923.03 | P22: -- | Q22: ='App.2-JA_OM&A_Summary_Analys'!G17 -> 1124248 | R22: =Q22*1.015 -> 1141111.72 | S22: =R22*1.015 -> 1158228.396 | T22: 1175601.822 | U22: 1193235.849
A24: Notes to the Table:
A25: 1. Historical “previous plan” data is not required unless a plan has previously been filed
A26: 2. Indicate the number of months of 'actual' data included in the last year of the Historical Period (normally a 'bridge' year):
A28: Explanatory Notes on Variances (complete only if applicable)
A29: Notes on shifts in forecast vs. histrical budgets by category
A32: Notes on year over year Plan vs. Actual variances for Total Expenditures
A35: Notes on Plan vs. Actual variance trends for individual expenditure categories

Sheet App.2-BA1_Fix Asset Cont.CGAAP
L1: File Number: | M1: =EBNUMBER -> EB-2013-0160
L2: Exhibit: | M2: 2
L3: Tab: | M3: 2
L4: Schedule: | M4: 3
L5: Page: | M5: 1
L7: Date: | M7: 2014-02-13
A9: Appendix 2-BA
A10: Fixed Asset Continuity Schedule - CGAAP/ASPE/USGAAP
E11: Year | F11: 2010
D13: Cost | J13: Accumulated Depreciation
A14: CCA Class | B14: OEB | C14: Description | D14: Opening Balance | E14: Additions | F14: Disposals | G14: Closing Balance | I14: Opening Balance | J14: Additions | K14: Disposals | L14: Closing Balance | M14: Net Book Value
A15: 12 | B15: 1611 | C15: Computer Software (Formally known as Account 1925) | D15: ='[18]FA Continuity 2010'!$D$31 -> 443518.52 | E15: ='[18]FA Continuity 2010'!$E$31 -> 134774.06 | F15: =-'[18]FA Continuity 2010'!$F$31 -> -3146.87 | G15: =D15+E15+F15 -> 575145.71 | I15: ='[18]FA Continuity 2010'!$I$31 -> 256961.88 | J15: ='[18]FA Continuity 2010'!$J$31 -> 65989.75 | K15: =-'[18]FA Continuity 2010'!$K$31 -> -2964.47 | L15: =I15+J15+K15 -> 319987.16 | M15: =G15-L15 -> 255158.55
A16: CEC | B16: 1612 | C16: Land Rights (Formally known as Account 1906) | D16: ='[18]FA Continuity 2010'!$D$11+'[18]FA Continuity 2010'!$D$26 -> 46392.47 | E16: ='[18]FA Continuity 2010'!$E$11+'[18]FA Continuity 2010'!$E$26 -> 9667.78 | G16: =D16+E16+F16 -> 56060.25 | I16: ='[18]FA Continuity 2010'!$I$11+'[18]FA Continuity 2010'!$I$26 -> 15047.76 | J16: ='[18]FA Continuity 2010'!$J$11+'[18]FA Continuity 2010'!$J$26 -> 1857.9 | K16: ='[18]FA Continuity 2010'!$K$11+'[18]FA Continuity 2010'!$K$26 -> 0 | L16: =I16+J16+K16 -> 16905.66 | M16: =G16-L16 -> 39154.59
A17: N/A | B17: 1805 | C17: Land | D17: ='[18]FA Continuity 2010'!$D$10 -> 29126.11 | E17: ='[18]FA Continuity 2010'!$E$10 -> 9430 | G17: =D17+E17+F17 -> 38556.11 | I17: ='[18]FA Continuity 2010'!$I$10 -> 0 | J17: ='[18]FA Continuity 2010'!$J$10 -> 0 | K17: ='[18]FA Continuity 2010'!$K$10 -> 0 | L17: =I17+J17+K17 -> 0 | M17: 38556.11
A18: 47 | B18: 1808 | C18: Buildings | D18: ='[18]FA Continuity 2010'!D12 -> 15296.37 | E18: ='[18]FA Continuity 2010'!E12 -> 0 | G18: =D18+E18+F18 -> 15296.37 | I18: ='[18]FA Continuity 2010'!I12 -> 15296.37 | J18: ='[18]FA Continuity 2010'!J12 -> 0 | K18: ='[18]FA Continuity 2010'!K12 -> 0 | L18: =I18+J18+K18 -> 15296.37 | M18: 0
A19: 13 | B19: 1810 | C19: Leasehold Improvements | D19: ='[18]FA Continuity 2010'!D14 -> 0 | E19: ='[18]FA Continuity 2010'!E14 -> 0 | G19: 0 | I19: ='[18]FA Continuity 2010'!I14 -> 0 | J19: ='[18]FA Continuity 2010'!J14 -> 0 | K19: ='[18]FA Continuity 2010'!K14 -> 0 | L19: 0 | M19: 0
A20: 47 | B20: 1815 | C20: Transformer Station Equipment >50 kV | D20: 0 | E20: 0 | G20: 0 | I20: 0 | J20: 0 | K20: 0 | L20: 0 | M20: 0
A21: 47 | B21: 1820 | C21: Distribution Station Equipment <50 kV | D21: ='[18]FA Continuity 2010'!D15 -> 895907.76 | E21: ='[18]FA Continuity 2010'!E15 -> 122653.06 | F21: =-'[18]FA Continuity 2010'!$F$15 -> -118652.47 | G21: 899908.35 | I21: ='[18]FA Continuity 2010'!I15 -> 565407.39 | J21: ='[18]FA Continuity 2010'!J15 -> 22670.89 | K21: =-'[18]FA Continuity 2010'!K15 -> -112930.73 | L21: 475147.55 | M21: 424760.8
A22: 47 | B22: 1825 | C22: Storage Battery Equipment | D22: ='[18]FA Continuity 2010'!D16 -> 0 | E22: ='[18]FA Continuity 2010'!E16 -> 0 | G22: 0 | I22: ='[18]FA Continuity 2010'!I16 -> 0 | J22: ='[18]FA Continuity 2010'!J16 -> 0 | K22: ='[18]FA Continuity 2010'!K16 -> 0 | L22: 0 | M22: 0
A23: 47 | B23: 1830 | C23: Poles, Towers & Fixtures | D23: ='[18]FA Continuity 2010'!D17 -> 4017889.28 | E23: ='[18]FA Continuity 2010'!E17 -> 115474.08 | G23: 4133363.36 | I23: ='[18]FA Continuity 2010'!I17 -> 2584909.34 | J23: ='[18]FA Continuity 2010'!J17 -> 1728.62 | K23: ='[18]FA Continuity 2010'!K17 -> 0 | L23: 2586637.96 | M23: 1546725.4
A24: 47 | B24: 1835 | C24: Overhead Conductors & Devices | D24: ='[18]FA Continuity 2010'!D18 -> 3542845.81 | E24: ='[18]FA Continuity 2010'!E18 -> 122348.06 | G24: 3665193.87 | I24: ='[18]FA Continuity 2010'!I18 -> 1806815.31 | J24: ='[18]FA Continuity 2010'!J18 -> 234551.27 | K24: ='[18]FA Continuity 2010'!K18 -> 0 | L24: 2041366.58 | M24: 1623827.29
A25: 47 | B25: 1840 | C25: Underground Conduit | D25: ='[18]FA Continuity 2010'!D19 -> 3591079.53 | E25: ='[18]FA Continuity 2010'!E19 -> 346676.49 | G25: 3937756.02 | I25: ='[18]FA Continuity 2010'!I19 -> 1665605.29 | J25: ='[18]FA Continuity 2010'!J19 -> 214349.54 | K25: ='[18]FA Continuity 2010'!K19 -> 0 | L25: 1879954.83 | M25: 2057801.19
A26: 47 | B26: 1845 | C26: Underground Conductors & Devices | D26: ='[18]FA Continuity 2010'!D20 -> 3804054.91 | E26: ='[18]FA Continuity 2010'!E20 -> 1196948.38 | G26: 5001003.29 | I26: ='[18]FA Continuity 2010'!I20 -> 1737469.75 | J26: ='[18]FA Continuity 2010'!J20 -> 526134.52 | K26: ='[18]FA Continuity 2010'!K20 -> 0 | L26: 2263604.27 | M26: 2737399.02
A27: 47 | B27: 1850 | C27: Line Transformers | D27: ='[18]FA Continuity 2010'!D21 -> 7897763.37 | E27: ='[18]FA Continuity 2010'!E21 -> -719667.14 | G27: 7178096.23 | I27: ='[18]FA Continuity 2010'!I21 -> 3590261.35 | J27: ='[18]FA Continuity 2010'!J21 -> -4427.59 | K27: ='[18]FA Continuity 2010'!K21 -> 0 | L27: 3585833.76 | M27: 3592262.47
A28: 47 | B28: 1855 | C28: Services (Overhead & Underground) | D28: ='[18]FA Continuity 2010'!D22 -> 2265656.85 | E28: ='[18]FA Continuity 2010'!E22 -> 23079.73 | G28: 2288736.58 | I28: ='[18]FA Continuity 2010'!I22 -> 1403716.7 | J28: ='[18]FA Continuity 2010'!J22 -> -12102.55 | K28: ='[18]FA Continuity 2010'!K22 -> 0 | L28: 1391614.15 | M28: 897122.43
A29: 47 | B29: 1860 | C29: Meters | D29: ='[18]FA Continuity 2010'!D23 -> 1777391.32 | E29: ='[18]FA Continuity 2010'!E23 -> 36529.91 | G29: 1813921.23 | I29: ='[18]FA Continuity 2010'!I23 -> 1002315.67 | J29: ='[18]FA Continuity 2010'!J23 -> 63271.01 | K29: ='[18]FA Continuity 2010'!K23 -> 0 | L29: 1065586.68 | M29: 748334.55
A30: 47 | B30: 1860 | C30: Meters (Smart Meters) | D30: 0 | E30: 0 | G30: 0 | I30: 0 | J30: 0 | K30: 0 | L30: 0 | M30: 0
A31: N/A | B31: 1905 | C31: Land | D31: ='[18]FA Continuity 2010'!$D$25 -> 144400.35 | E31: ='[18]FA Continuity 2010'!$E$25 -> 0 | G31: 144400.35 | I31: ='[18]FA Continuity 2010'!$I$25 -> 0 | J31: ='[18]FA Continuity 2010'!$J$25 -> 0 | K31: ='[18]FA Continuity 2010'!$K$25 -> 0 | L31: 0 | M31: 144400.35
A32: 47 | B32: 1908 | C32: Buildings & Fixtures | D32: ='[18]FA Continuity 2010'!D27 -> 2754334.77 | E32: ='[18]FA Continuity 2010'!E27 -> 26279.67 | F32: =-'[18]FA Continuity 2010'!$F$27 -> -11400.3 | G32: 2769214.14 | I32: ='[18]FA Continuity 2010'!I27 -> 803775.28 | J32: ='[18]FA Continuity 2010'!J27 -> 47669.47 | K32: =-'[18]FA Continuity 2010'!K27 -> -1301.53 | L32: 850143.22 | M32: 1919070.92
A33: 13 | B33: 1910 | C33: Leasehold Improvements | D33: ='[18]FA Continuity 2010'!D28 -> 0 | E33: ='[18]FA Continuity 2010'!E28 -> 0 | G33: 0 | I33: ='[18]FA Continuity 2010'!I28 -> 0 | J33: ='[18]FA Continuity 2010'!J28 -> 0 | K33: ='[18]FA Continuity 2010'!K28 -> 0 | L33: 0 | M33: 0
A34: 8 | B34: 1915 | C34: Office Furniture & Equipment (10 years) | D34: ='[18]FA Continuity 2010'!D29 -> 163636.99 | E34: ='[18]FA Continuity 2010'!E29 -> 57587.43 | F34: =-'[18]FA Continuity 2010'!F29 -> -37619.53 | G34: 183604.89 | I34: ='[18]FA Continuity 2010'!I29 -> 123872.37 | J34: ='[18]FA Continuity 2010'!J29 -> 9817.12 | K34: =-'[18]FA Continuity 2010'!K29 -> -35400.57 | L34: 98288.92 | M34: 85315.97
A35: 8 | B35: 1915 | C35: Office Furniture & Equipment (5 years) | D35: 0 | E35: 0 | G35: 0 | I35: 0 | J35: 0 | K35: 0 | L35: 0 | M35: 0
A36: 10 | B36: 1920 | C36: Computer Equipment - Hardware | D36: 0 | E36: 0 | F36: =-'[18]FA Continuity 2010'!F30 -> -38883.57 | G36: -38883.57 | I36: 0 | J36: 0 | K36: 0 | L36: 0 | M36: -38883.57
A37: 45 | B37: 1920 | C37: Computer Equip.-Hardware(Post Mar. 22/04) | D37: 0 | E37: 0 | G37: 0 | I37: 0 | J37: 0 | K37: 0 | L37: 0 | M37: 0
A38: 45.1 | B38: 1920 | C38: Computer Equip.-Hardware(Post Mar. 19/07) | D38: ='[18]FA Continuity 2010'!D30 -> 141253.85 | E38: ='[18]FA Continuity 2010'!E30 -> 47117.76 | G38: 188371.61 | I38: ='[18]FA Continuity 2010'!I30 -> 108099.12 | J38: ='[18]FA Continuity 2010'!J30 -> 16132 | K38: =-'[18]FA Continuity 2010'!K30 -> -35522.97 | L38: 88708.15 | M38: 99663.46
A39: 10 | B39: 1930 | C39: Transportation Equipment | D39: ='[18]FA Continuity 2010'!D32 -> 937846.34 | E39: ='[18]FA Continuity 2010'!E32 -> 73582.38 | F39: =-'[18]FA Continuity 2010'!F32 -> -31960.15 | G39: 979468.57 | I39: ='[18]FA Continuity 2010'!I32 -> 645754.74 | J39: ='[18]FA Continuity 2010'!J32 -> 69442.7 | K39: =-'[18]FA Continuity 2010'!K32 -> -31960.15 | L39: 683237.29 | M39: 296231.28
A40: 8 | B40: 1935 | C40: Stores Equipment | D40: ='[18]FA Continuity 2010'!D33 -> 32212.21 | E40: ='[18]FA Continuity 2010'!E33 -> 0 | F40: ='[18]FA Continuity 2010'!F33 -> 0 | G40: 32212.21 | I40: ='[18]FA Continuity 2010'!I33 -> 23967.15 | J40: ='[18]FA Continuity 2010'!J33 -> 1255.56 | K40: =-'[18]FA Continuity 2010'!K33 -> 0 | L40: 25222.71 | M40: 6989.5
A41: 8 | B41: 1940 | C41: Tools, Shop & Garage Equipment | D41: ='[18]FA Continuity 2010'!D34 -> 149011.03 | E41: ='[18]FA Continuity 2010'!E34 -> 1404 | F41: =-'[18]FA Continuity 2010'!F34 -> -12624.3 | G41: 137790.73 | I41: ='[18]FA Continuity 2010'!I34 -> 129522.45 | J41: ='[18]FA Continuity 2010'!J34 -> 2708.71 | K41: =-'[18]FA Continuity 2010'!K34 -> -12624.3 | L41: 119606.86 | M41: 18183.87
A42: 8 | B42: 1945 | C42: Measurement & Testing Equipment | D42: ='[18]FA Continuity 2010'!D35 -> 15318.87 | E42: ='[18]FA Continuity 2010'!E35 -> 0 | F42: ='[18]FA Continuity 2010'!F35 -> 0 | G42: 15318.87 | I42: ='[18]FA Continuity 2010'!I35 -> 13437.46 | J42: ='[18]FA Continuity 2010'!J35 -> 765.28 | K42: ='[18]FA Continuity 2010'!K35 -> 0 | L42: 14202.74 | M42: 1116.13
A43: 8 | B43: 1950 | C43: Power Operated Equipment | D43: ='[18]FA Continuity 2010'!D36 -> 0 | E43: ='[18]FA Continuity 2010'!E36 -> 0 | F43: ='[18]FA Continuity 2010'!F36 -> 0 | G43: 0 | I43: ='[18]FA Continuity 2010'!I36 -> 0 | J43: ='[18]FA Continuity 2010'!J36 -> 0 | K43: ='[18]FA Continuity 2010'!K36 -> 0 | L43: 0 | M43: 0
A44: 8 | B44: 1955 | C44: Communications Equipment | D44: ='[18]FA Continuity 2010'!D37 -> 19323.28 | E44: ='[18]FA Continuity 2010'!E37 -> 0 | F44: =-'[18]FA Continuity 2010'!F37 -> -622.71 | G44: 18700.57 | I44: ='[18]FA Continuity 2010'!I37 -> 15817.57 | J44: ='[18]FA Continuity 2010'!J37 -> 1007.4 | K44: =-'[18]FA Continuity 2010'!K37 -> -373.59 | L44: 16451.38 | M44: 2249.19
A45: 8 | B45: 1955 | C45: Communication Equipment (Smart Meters) | D45: 0 | E45: 0 | G45: 0 | I45: 0 | J45: 0 | K45: 0 | L45: 0 | M45: 0
A46: 8 | B46: 1960 | C46: Miscellaneous Equipment | D46: ='[18]FA Continuity 2010'!D38 -> 34627.79 | E46: ='[18]FA Continuity 2010'!E38 -> 1399 | G46: 36026.79 | I46: ='[18]FA Continuity 2010'!I38 -> 4925.98 | J46: ='[18]FA Continuity 2010'!J38 -> 3083.79 | K46: ='[18]FA Continuity 2010'!K38 -> 0 | L46: 8009.77 | M46: 28017.02
A47: 47 | B47: 1970 | C47: Load Management Controls Customer Premises | G47: 0 | L47: 0 | M47: 0
A48: 47 | B48: 1975 | C48: Load Management Controls Utility Premises | G48: 0 | L48: 0 | M48: 0
A49: 47 | B49: 1980 | C49: System Supervisor Equipment | G49: 0 | L49: 0 | M49: 0
A50: 47 | B50: 1985 | C50: Miscellaneous Fixed Assets | G50: 0 | L50: 0 | M50: 0
A51: 47 | B51: 1990 | C51: Other Tangible Property | G51: 0 | L51: 0 | M51: 0
A52: 47 | B52: 1995 | C52: Contributions & Grants | D52: ='[18]FA Continuity 2010'!D44 -> -3340092.09 | E52: ='[18]FA Continuity 2010'!E44 -> -267740.49 | G52: -3607832.58 | I52: ='[18]FA Continuity 2010'!I44 -> -821385.83 | J52: ='[18]FA Continuity 2010'!J44 -> -139381.74 | K52: ='[18]FA Continuity 2010'!K44 -> 0 | L52: -960767.57 | M52: -2647065.01
B53: etc. | G53: 0 | L53: 0 | M53: 0
G54: 0 | L54: 0 | M54: 0
C55: Sub-Total | D55: =SUM(D15:D54) -> 29378795.69 | E55: =SUM(E15:E54) -> 1337544.16 | F55: -254909.9 | G55: 30461429.95 | I55: =SUM(I15:I54) -> 15691593.1 | J55: =SUM(J15:J54) -> 1126523.65 | K55: -233078.31 | L55: 16585038.44 | M55: =SUM(M15:M54) -> 13876391.51
C56: Less Socialized Renewable Energy Generation Investments (input as negative) | G56: =D56+E56+F56 -> 0 | L56: =I56+J56+K56 -> 0 | M56: =G56+L56 -> 0
C57: Less Other Non Rate-Regulated Utility Assets (input as negative) | G57: 0 | L57: 0 | M57: 0
C58: Total PP&E | D58: =SUM(D55:D57) -> 29378795.69 | E58: =SUM(E55:E57) -> 1337544.16 | F58: -254909.9 | G58: 30461429.95 | I58: =SUM(I55:I57) -> 15691593.1 | J58: 1126523.65 | K58: -233078.31 | L58: 16585038.44 | M58: 13876391.51
D59: ='[18]FA Continuity 2010'!$D$49-D58 -> 0 | M59: ='[18]FA Continuity 2010'!$M$46 -> 13876391.51
I60: Less: Fully Allocated Depreciation
A61: 10 | C61: Transportation | I61: Transportation | K61: =J39 -> 69442.7
A62: 8 | C62: Stores Equipment | I62: Stores Equipment | K62: =J40 -> 1255.56
A63: 8 | C63: Tools, Shop | I63: Tools, Shop | K63: 2708.71
A64: 8 | C64: Meas/Testing | I64: Meas/Testing | K64: 765.28
A65: 8 | C65: Communication | I65: Communication | K65: =J44 -> 1007.4
I66: Net Depreciation | K66: =J58-K61-K65-K62-K63-K64 -> 1051344
E69: Year | F69: 2011
D71: Cost | J71: Accumulated Depreciation
A72: CCA Class | B72: OEB | C72: Description | D72: Opening Balance | E72: Additions | F72: Disposals | G72: Closing Balance | I72: Opening Balance | J72: Additions | K72: Disposals | L72: Closing Balance | M72: Net Book Value
A73: 12 | B73: 1611 | C73: Computer Software (Formally known as Account 1925) | D73: =G15 -> 575145.71 | E73: ='[18]FA Continuity 2011'!$E$31 -> 62467.4 | F73: =-'[18]FA Continuity 2011'!$F$31 -> -9222.98 | G73: =D73+E73+F73 -> 628390.13 | I73: =L15 -> 319987.16 | J73: ='[18]FA Continuity 2011'!$J$31 -> 73466.71 | K73: =-'[18]FA Continuity 2011'!K31 -> -4189.6 | L73: =I73+J73+K73 -> 389264.27 | M73: =G73-L73 -> 239125.86
A74: CEC | B74: 1612 | C74: Land Rights (Formally known as Account 1906) | D74: =G16 -> 56060.25 | G74: =D74+E74+F74 -> 56060.25 | I74: =L16 -> 16905.66 | J74: ='[18]FA Continuity 2011'!$J$11 -> 2101.86 | L74: =I74+J74+K74 -> 19007.52 | M74: =G74-L74 -> 37052.73
A75: N/A | B75: 1805 | C75: Land | D75: 38556.11 | E75: ='[18]FA Continuity 2011'!$E$10 -> 228820 | G75: =D75+E75+F75 -> 267376.11 | I75: 0 | J75: ='[18]FA Continuity 2011'!$J$10 -> 0 | L75: =I75+J75+K75 -> 0 | M75: 267376.11
A76: 47 | B76: 1808 | C76: Buildings | D76: 15296.37 | E76: 0 | G76: =D76+E76+F76 -> 15296.37 | I76: 15296.37 | L76: =I76+J76+K76 -> 15296.37 | M76: 0
A77: 13 | B77: 1810 | C77: Leasehold Improvements | D77: 0 | E77: 0 | G77: 0 | I77: 0 | L77: 0 | M77: 0
A78: 47 | B78: 1815 | C78: Transformer Station Equipment >50 kV | D78: 0 | E78: 0 | G78: 0 | I78: 0 | L78: 0 | M78: 0
A79: 47 | B79: 1820 | C79: Distribution Station Equipment <50 kV | D79: 899908.35 | E79: ='[18]FA Continuity 2011'!E15 -> 4788.01 | G79: 904696.36 | I79: 475147.55 | J79: ='[18]FA Continuity 2011'!$J$15 -> 25108.99 | L79: 500256.54 | M79: 404439.82
A80: 47 | B80: 1825 | C80: Storage Battery Equipment | D80: 0 | E80: ='[18]FA Continuity 2011'!E16 -> 0 | G80: 0 | I80: 0 | L80: 0 | M80: 0
A81: 47 | B81: 1830 | C81: Poles, Towers & Fixtures | D81: 4133363.36 | E81: ='[18]FA Continuity 2011'!E17 -> 44043.74 | G81: 4177407.1 | I81: 2586637.96 | J81: ='[18]FA Continuity 2011'!J17 -> 137632.06 | L81: 2724270.02 | M81: 1453137.08
A82: 47 | B82: 1835 | C82: Overhead Conductors & Devices | D82: 3665193.87 | E82: ='[18]FA Continuity 2011'!E18 -> 123336.89 | G82: 3788530.76 | I82: 2041366.58 | J82: ='[18]FA Continuity 2011'!J18 -> 127883.36 | L82: 2169249.94 | M82: 1619280.82
A83: 47 | B83: 1840 | C83: Underground Conduit | D83: 3937756.02 | E83: ='[18]FA Continuity 2011'!E19 -> 441373.88 | G83: 4379129.9 | I83: 1879954.83 | J83: ='[18]FA Continuity 2011'!J19 -> 152123.78 | L83: 2032078.61 | M83: 2347051.29
A84: 47 | B84: 1845 | C84: Underground Conductors & Devices | D84: 5001003.29 | E84: ='[18]FA Continuity 2011'!E20 -> 332919.19 | G84: 5333922.48 | I84: 2263604.27 | J84: ='[18]FA Continuity 2011'!J20 -> 198623.44 | L84: 2462227.71 | M84: 2871694.77
A85: 47 | B85: 1850 | C85: Line Transformers | D85: 7178096.23 | E85: ='[18]FA Continuity 2011'!E21 -> 302229.7 | G85: 7480325.93 | I85: 3585833.76 | J85: ='[18]FA Continuity 2011'!J21 -> 273005 | L85: 3858838.76 | M85: 3621487.17
A86: 47 | B86: 1855 | C86: Services (Overhead & Underground) | D86: 2288736.58 | E86: ='[18]FA Continuity 2011'!E22 -> 38964.95 | G86: 2327701.53 | I86: 1391614.15 | J86: ='[18]FA Continuity 2011'!J22 -> 81637.43 | L86: 1473251.58 | M86: 854449.95
A87: 47 | B87: 1860 | C87: Meters | D87: 1813921.23 | E87: ='[18]FA Continuity 2011'!E23 -> 38177.85 | G87: 1852099.08 | I87: 1065586.68 | J87: ='[18]FA Continuity 2011'!J23 -> 86307.77 | L87: 1151894.45 | M87: 700204.63
A88: 47 | B88: 1860 | C88: Meters (Smart Meters) | D88: 0 | G88: 0 | I88: 0 | L88: 0 | M88: 0
A89: N/A | B89: 1905 | C89: Land | D89: 144400.35 | G89: 144400.35 | I89: 0 | L89: 0 | M89: 144400.35
A90: 47 | B90: 1908 | C90: Buildings & Fixtures | D90: 2769214.14 | E90: ='[18]FA Continuity 2011'!E27 -> 36436.06 | F90: =-'[18]FA Continuity 2011'!$F$27 -> -2800 | G90: 2802850.2 | I90: 850143.22 | J90: ='[18]FA Continuity 2011'!J27 -> 48040.63 | K90: =-'[18]FA Continuity 2011'!K27 -> -56 | L90: 898127.85 | M90: 1904722.35
A91: 13 | B91: 1910 | C91: Leasehold Improvements | D91: 0 | E91: ='[18]FA Continuity 2011'!E28 -> 0 | G91: 0 | I91: 0 | J91: ='[18]FA Continuity 2011'!J28 -> 0 | K91: ='[18]FA Continuity 2011'!K28 -> 0 | L91: 0 | M91: 0
A92: 8 | B92: 1915 | C92: Office Furniture & Equipment (10 years) | D92: 183604.89 | E92: ='[18]FA Continuity 2011'!E29 -> 6022.2 | G92: 189627.09 | I92: 98288.92 | J92: ='[18]FA Continuity 2011'!J29 -> 12234.35 | K92: ='[18]FA Continuity 2011'!K29 -> 0 | L92: 110523.27 | M92: 79103.82
A93: 8 | B93: 1915 | C93: Office Furniture & Equipment (5 years) | D93: 0 | E93: 0 | G93: 0 | I93: 0 | J93: 0 | K93: 0 | L93: 0 | M93: 0
A94: 10 | B94: 1920 | C94: Computer Equipment - Hardware | D94: -38883.57 | E94: 0 | G94: -38883.57 | I94: 0 | J94: 0 | K94: 0 | L94: 0 | M94: -38883.57
A95: 45 | B95: 1920 | C95: Computer Equip.-Hardware(Post Mar. 22/04) | D95: 0 | G95: 0 | I95: 0 | K95: 0 | L95: 0 | M95: 0
A96: 45.1 | B96: 1920 | C96: Computer Equip.-Hardware(Post Mar. 19/07) | D96: 188371.61 | E96: ='[18]FA Continuity 2011'!E30 -> 12844.15 | F96: =-'[18]FA Continuity 2011'!$F$30 -> -3471.12 | G96: 197744.64 | I96: 88708.15 | J96: ='[18]FA Continuity 2011'!J30 -> 18110.23 | K96: =-'[18]FA Continuity 2011'!K30 -> -3272.42 | L96: 103545.96 | M96: 94198.68
A97: 10 | B97: 1930 | C97: Transportation Equipment | D97: 979468.57 | E97: ='[18]FA Continuity 2011'!E32 -> 48473.98 | F97: =-'[18]FA Continuity 2011'!$F$32 -> -17924 | G97: 1010018.55 | I97: 683237.29 | J97: ='[18]FA Continuity 2011'!J32 -> 81567.33 | K97: =-'[18]FA Continuity 2011'!K32 -> -17924 | L97: 746880.62 | M97: 263137.93
A98: 8 | B98: 1935 | C98: Stores Equipment | D98: 32212.21 | E98: ='[18]FA Continuity 2011'!E33 -> 0 | G98: 32212.21 | I98: 25222.71 | J98: ='[18]FA Continuity 2011'!J33 -> 1255.56 | L98: 26478.27 | M98: 5733.94
A99: 8 | B99: 1940 | C99: Tools, Shop & Garage Equipment | D99: 137790.73 | E99: ='[18]FA Continuity 2011'!E34 -> 9230.5 | G99: 147021.23 | I99: 119606.86 | J99: ='[18]FA Continuity 2011'!J34 -> 3240.45 | L99: 122847.31 | M99: 24173.92
A100: 8 | B100: 1945 | C100: Measurement & Testing Equipment | D100: 15318.87 | E100: ='[18]FA Continuity 2011'!E35 -> 5972.42 | G100: 21291.29 | I100: 14202.74 | J100: ='[18]FA Continuity 2011'!J35 -> 575.36 | L100: 14778.1 | M100: 6513.19
A101: 8 | B101: 1950 | C101: Power Operated Equipment | D101: 0 | E101: ='[18]FA Continuity 2011'!E36 -> 0 | G101: 0 | I101: 0 | J101: ='[18]FA Continuity 2011'!J36 -> 0 | L101: 0 | M101: 0
A102: 8 | B102: 1955 | C102: Communications Equipment | D102: 18700.57 | E102: ='[18]FA Continuity 2011'!E37 -> 0 | G102: 18700.57 | I102: 16451.38 | J102: ='[18]FA Continuity 2011'!J37 -> 945.12 | L102: 17396.5 | M102: 1304.07
A103: 8 | B103: 1955 | C103: Communication Equipment (Smart Meters) | D103: 0 | E103: 0 | G103: 0 | I103: 0 | J103: 0 | L103: 0 | M103: 0
A104: 8 | B104: 1960 | C104: Miscellaneous Equipment | D104: 36026.79 | E104: ='[18]FA Continuity 2011'!E38 -> 10662.13 | G104: 46688.92 | I104: 8009.77 | J104: ='[18]FA Continuity 2011'!J38 -> 3686.87 | L104: 11696.64 | M104: 34992.28
A105: 47 | B105: 1970 | C105: Load Management Controls Customer Premises | D105: 0 | G105: 0 | I105: 0 | L105: 0 | M105: 0
A106: 47 | B106: 1975 | C106: Load Management Controls Utility Premises | D106: 0 | G106: 0 | I106: 0 | L106: 0 | M106: 0
A107: 47 | B107: 1980 | C107: System Supervisor Equipment | D107: 0 | G107: 0 | I107: 0 | L107: 0 | M107: 0
A108: 47 | B108: 1985 | C108: Miscellaneous Fixed Assets | D108: 0 | G108: 0 | I108: 0 | L108: 0 | M108: 0
A109: 47 | B109: 1990 | C109: Other Tangible Property | D109: 0 | G109: 0 | I109: 0 | L109: 0 | M109: 0
A110: 47 | B110: 1995 | C110: Contributions & Grants | D110: -3607832.58 | E110: ='[18]FA Continuity 2011'!$E$44 -> -185167.42 | G110: -3793000 | I110: -960767.57 | J110: ='[18]FA Continuity 2011'!$J$44 -> -148016.66 | L110: -1108784.23 | M110: -2684215.77
B111: etc. | G111: 0 | L111: 0 | M111: 0
G112: 0 | L112: 0 | M112: 0
C113: Sub-Total | D113: =SUM(D73:D112) -> 30461429.95 | E113: =SUM(E73:E112) -> 1561595.63 | F113: -33418.1 | G113: 31989607.48 | I113: =SUM(I73:I112) -> 16585038.44 | J113: =SUM(J73:J112) -> 1179529.64 | K113: -25442.02 | L113: 17739126.06 | M113: 14250481.42
C114: Less Socialized Renewable Energy Generation Investments (input as negative) | G114: =D114+E114+F114 -> 0 | L114: =I114+J114+K114 -> 0 | M114: =G114+L114 -> 0
C115: Less Other Non Rate-Regulated Utility Assets (input as negative) | G115: 0 | L115: 0 | M115: 0
C116: Total PP&E | D116: =SUM(D113:D115) -> 30461429.95 | E116: =SUM(E113:E115) -> 1561595.63 | F116: -33418.1 | G116: 31989607.48 | I116: =SUM(I113:I115) -> 16585038.44 | J116: 1179529.64 | K116: -25442.02 | L116: 17739126.06 | M116: 14250481.42
G117: ='[18]FA Continuity 2011'!$G$46-G116 -> 0 | L117: ='[18]FA Continuity 2011'!$L$49-L116 -> 0 | M117: ='[18]FA Continuity 2011'!$M$46 -> 14250481.42
I118: Less: Fully Allocated Depreciation
A119: 10 | C119: Transportation | I119: Transportation | K119: =J97 -> 81567.33
A120: 8 | C120: Stores Equipment | I120: Stores Equipment | K120: =J98 -> 1255.56
A121: 8 | C121: Tools, Shop | I121: Tools, Shop | K121: 3240.45
A122: 8 | C122: Meas/Testing | I122: Meas/Testing | K122: =J100 -> 575.36
A123: 8 | C123: Communication | I123: Communication | K123: =J102 -> 945.12
I124: Net Depreciation | K124: =J116-K119-K123-K120-K121-K122 -> 1091945.82
D126: Old | E126: Year | F126: Old CGAAP2012
D128: Cost | J128: Accumulated Depreciation
A129: CCA Class | B129: OEB | C129: Description | D129: Opening Balance | E129: Additions | F129: Disposals | G129: Closing Balance | I129: Opening Balance | J129: Additions | K129: Disposals | L129: Closing Balance | M129: Net Book Value
A130: 12 | B130: 1611 | C130: Computer Software (Formally known as Account 1925) | D130: ='[18]FA Continuity 2012'!$D$32 -> 628390.13 | E130: ='[18]FA Continuity 2012'!$E$32 -> 160843.04 | F130: 0 | G130: =D130+E130+F130 -> 789233.17 | I130: ='[18]FA Continuity 2012'!$I$32 -> 389264.27 | J130: ='[18]FA Continuity 2012'!$J$32 -> 101905.61 | K130: ='[18]FA Continuity 2012'!$K$10 -> 0 | L130: =I130+J130+K130 -> 491169.88 | M130: =G130-L130 -> 298063.29
A131: CEC | B131: 1612 | C131: Land Rights (Formally known as Account 1906) | D131: ='[18]FA Continuity 2012'!$D$11+'[18]FA Continuity 2012'!$D$27 -> 56060.25 | G131: =D131+E131+F131 -> 56060.25 | I131: ='[18]FA Continuity 2012'!$I$11+'[18]FA Continuity 2012'!$I$27 -> 19007.52 | J131: ='[18]FA Continuity 2012'!J11 -> 2044.9 | L131: =I131+J131+K131 -> 21052.42 | M131: =G131-L131 -> 35007.83
A132: N/A | B132: 1805 | C132: Land | D132: ='[18]FA Continuity 2012'!D10 -> 267376.11 | E132: ='[18]FA Continuity 2012'!E10 -> 125868.16 | F132: =-'[18]FA Continuity 2012'!$F$10 -> -270589.04 | G132: =D132+E132+F132 -> 122655.23 | I132: ='[18]FA Continuity 2012'!I10 -> 0 | J132: ='[18]FA Continuity 2012'!J10 -> 0 | L132: =I132+J132+K132 -> 0 | M132: 122655.23
A133: 47 | B133: 1808 | C133: Buildings | D133: ='[18]FA Continuity 2012'!D12 -> 15296.37 | E133: ='[18]FA Continuity 2012'!E11 -> 0 | F133: =-'[18]FA Continuity 2012'!$F$12 -> -15296.37 | G133: =D133+E133+F133 -> 0 | I133: ='[18]FA Continuity 2012'!I12 -> 15296.37 | J133: 0 | K133: =-'[18]FA Continuity 2012'!$K$12 -> -15296 | L133: =I133+J133+K133 -> 0.37 | M133: -0.37
A134: 13 | B134: 1810 | C134: Leasehold Improvements | D134: 0 | E134: ='[18]FA Continuity 2012'!E12 -> 0 | G134: 0 | I134: 0 | J134: ='[18]FA Continuity 2012'!J12 -> 0 | L134: 0 | M134: 0
A135: 47 | B135: 1815 | C135: Transformer Station Equipment >50 kV | D135: ='[18]FA Continuity 2012'!D13 -> 0 | E135: ='[18]FA Continuity 2012'!E13 -> 0 | G135: 0 | I135: ='[18]FA Continuity 2012'!I13 -> 0 | J135: ='[18]FA Continuity 2012'!J13 -> 0 | L135: 0 | M135: 0
A136: 47 | B136: 1820 | C136: Distribution Station Equipment <50 kV | D136: ='[18]FA Continuity 2012'!D15 -> 904696.36 | E136: ='[18]FA Continuity 2012'!E14 -> 0 | G136: 904696.36 | I136: ='[18]FA Continuity 2012'!I15 -> 500256.54 | J136: ='[18]FA Continuity 2012'!J15 -> 24964.21 | L136: 525220.75 | M136: 379475.61
A137: 47 | B137: 1825 | C137: Storage Battery Equipment | D137: 0 | E137: ='[18]FA Continuity 2012'!E15 -> 0 | G137: 0 | I137: 0 | J137: 0 | L137: 0 | M137: 0
A138: 47 | B138: 1830 | C138: Poles, Towers & Fixtures | D138: ='[18]FA Continuity 2012'!D17 -> 4177407.1 | E138: ='[18]FA Continuity 2012'!E17 -> 90427.42 | G138: 4267834.52 | I138: ='[18]FA Continuity 2012'!I17 -> 2724270.02 | J138: ='[18]FA Continuity 2012'!J17 -> 134972.65 | L138: 2859242.67 | M138: 1408591.85
A139: 47 | B139: 1835 | C139: Overhead Conductors & Devices | D139: ='[18]FA Continuity 2012'!D18 -> 3788530.76 | E139: ='[18]FA Continuity 2012'!E18 -> 68027.19 | G139: 3856557.95 | I139: ='[18]FA Continuity 2012'!I18 -> 2169249.94 | J139: ='[18]FA Continuity 2012'!J18 -> 127566.86 | L139: 2296816.8 | M139: 1559741.15
A140: 47 | B140: 1840 | C140: Underground Conduit | D140: ='[18]FA Continuity 2012'!D19 -> 4379129.9 | E140: ='[18]FA Continuity 2012'!E19 -> 190738.43 | G140: 4569868.33 | I140: ='[18]FA Continuity 2012'!I19 -> 2032078.61 | J140: ='[18]FA Continuity 2012'!J19 -> 158211.4 | L140: 2190290.01 | M140: 2379578.32
A141: 47 | B141: 1845 | C141: Underground Conductors & Devices | D141: ='[18]FA Continuity 2012'!D20 -> 5333922.48 | E141: ='[18]FA Continuity 2012'!E20 -> 251996.6 | G141: 5585919.08 | I141: ='[18]FA Continuity 2012'!I20 -> 2462227.71 | J141: ='[18]FA Continuity 2012'!J20 -> 201533.57 | L141: 2663761.28 | M141: 2922157.8
A142: 47 | B142: 1850 | C142: Line Transformers | D142: ='[18]FA Continuity 2012'!D21 -> 7480325.93 | E142: ='[18]FA Continuity 2012'!E21 -> 396529.75 | G142: 7876855.68 | I142: ='[18]FA Continuity 2012'!I21 -> 3858838.76 | J142: ='[18]FA Continuity 2012'!J21 -> 255980.15 | L142: 4114818.91 | M142: 3762036.77
A143: 47 | B143: 1855 | C143: Services (Overhead & Underground) | D143: ='[18]FA Continuity 2012'!D22 -> 2327701.53 | E143: ='[18]FA Continuity 2012'!E22 -> 135721.76 | G143: 2463423.29 | I143: ='[18]FA Continuity 2012'!I22 -> 1473251.58 | J143: ='[18]FA Continuity 2012'!J22 -> 79925.96 | L143: 1553177.54 | M143: 910245.75
A144: 47 | B144: 1860 | C144: Meters | D144: ='[18]FA Continuity 2012'!D23 -> 1852099.08 | E144: ='[18]FA Continuity 2012'!E23 -> 22198 | F144: =-'[18]FA Continuity 2012'!$F$23 -> -1577489.04 | G144: 296808.04 | I144: ='[18]FA Continuity 2012'!I23 -> 1151894.45 | J144: ='[18]FA Continuity 2012'!J23 -> 12359.3 | K144: =-'[18]FA Continuity 2012'!$K$23 -> -1085460.929 | L144: 78792.82146 | M144: 218015.2185 | O144: =E144+E145+F144 -> 222907.99 | P144: =J144+J145+K144 -> -788910.4489 | Q144: =SUM(O144:P144) -> -566002.4589
A145: 47 | B145: 1860 | C145: Meters (Smart Meters) | D145: ='[18]FA Continuity 2012'!D24 -> 0 | E145: ='[18]FA Continuity 2012'!E24 -> 1778199.03 | G145: 1778199.03 | I145: ='[18]FA Continuity 2012'!I24 -> 0 | J145: ='[18]FA Continuity 2012'!J24 -> 284191.1797 | L145: 284191.1797 | M145: 1494007.85
A146: N/A | B146: 1905 | C146: Land | D146: ='[18]FA Continuity 2012'!D26 -> 144400.35 | G146: 144400.35 | I146: ='[18]FA Continuity 2012'!I26 -> 0 | L146: 0 | M146: 144400.35
A147: 47 | B147: 1908 | C147: Buildings & Fixtures | D147: ='[18]FA Continuity 2012'!D28 -> 2802850.2 | E147: ='[18]FA Continuity 2012'!$E$28 -> 23667.82 | G147: 2826518.02 | I147: ='[18]FA Continuity 2012'!I28 -> 898127.85 | J147: ='[18]FA Continuity 2012'!$J$28 -> 48613.65 | L147: 946741.5 | M147: 1879776.52
A148: 13 | B148: 1910 | C148: Leasehold Improvements | D148: 0 | E148: ='[18]FA Continuity 2012'!E27 -> 0 | G148: 0 | I148: 0 | J148: ='[18]FA Continuity 2012'!J27 -> 0 | L148: 0 | M148: 0
A149: 8 | B149: 1915 | C149: Office Furniture & Equipment (10 years) | D149: ='[18]FA Continuity 2012'!$D$30 -> 189627.09 | E149: ='[18]FA Continuity 2012'!$E$30 -> 23138.12 | F149: =-'[18]FA Continuity 2012'!$F$30 -> -2856.59 | G149: 209908.62 | I149: ='[18]FA Continuity 2012'!$I$30 -> 110523.27 | J149: ='[18]FA Continuity 2012'!$J$30 -> 13504.77 | K149: =-'[18]FA Continuity 2012'!$K$30 -> -2856.59 | L149: 121171.45 | M149: 88737.17
A150: 8 | B150: 1915 | C150: Office Furniture & Equipment (5 years) | D150: ='[18]FA Continuity 2012'!D29 -> 0 | E150: ='[18]FA Continuity 2012'!E29 -> 0 | G150: 0 | I150: ='[18]FA Continuity 2012'!I29 -> 0 | J150: ='[18]FA Continuity 2012'!J29 -> 0 | L150: 0 | M150: 0
A151: 10 | B151: 1920 | C151: Computer Equipment - Hardware | G151: 0 | L151: 0 | M151: 0
A152: 45 | B152: 1920 | C152: Computer Equip.-Hardware(Post Mar. 22/04) | D152: 0 | E152: 0 | G152: 0 | I152: 0 | J152: 0 | L152: 0 | M152: 0
A153: 45.1 | B153: 1920 | C153: Computer Equip.-Hardware(Post Mar. 19/07) | D153: ='[18]FA Continuity 2012'!$D$31 -> 158861.07 | E153: ='[18]FA Continuity 2012'!$E$31 -> 22016.14 | F153: =-'[18]FA Continuity 2012'!$F$31 -> -5069.25 | G153: 175807.96 | I153: ='[18]FA Continuity 2012'!$I$31 -> 103545.96 | J153: ='[18]FA Continuity 2012'!$J$31 -> 19666.03 | K153: =-'[18]FA Continuity 2012'!$K$31 -> -4311.08 | L153: 118900.91 | M153: 56907.05
A154: 10 | B154: 1930 | C154: Transportation Equipment | D154: ='[18]FA Continuity 2012'!D33 -> 1010018.55 | E154: ='[18]FA Continuity 2012'!E33 -> 36069 | F154: =-'[18]FA Continuity 2012'!F33 -> -34789.05 | G154: 1011298.5 | I154: ='[18]FA Continuity 2012'!I33 -> 746880.62 | J154: ='[18]FA Continuity 2012'!J33 -> 83773.72 | K154: =-'[18]FA Continuity 2012'!K33 -> -34789.05 | L154: 795865.29 | M154: 215433.21
A155: 8 | B155: 1935 | C155: Stores Equipment | D155: ='[18]FA Continuity 2012'!D34 -> 32212.21 | E155: ='[18]FA Continuity 2012'!E34 -> 1605.92 | F155: =-'[18]FA Continuity 2012'!F34 -> -523.8 | G155: 33294.33 | I155: ='[18]FA Continuity 2012'!I34 -> 26478.27 | J155: ='[18]FA Continuity 2012'!J34 -> 1255.21 | K155: =-'[18]FA Continuity 2012'!K34 -> -523.8 | L155: 27209.68 | M155: 6084.65
A156: 8 | B156: 1940 | C156: Tools, Shop & Garage Equipment | D156: ='[18]FA Continuity 2012'!D35 -> 147021.23 | E156: ='[18]FA Continuity 2012'!E35 -> 1133.13 | G156: 148154.36 | I156: ='[18]FA Continuity 2012'!I35 -> 122847.31 | J156: ='[18]FA Continuity 2012'!J35 -> 3758.64 | L156: 126605.95 | M156: 21548.41
A157: 8 | B157: 1945 | C157: Measurement & Testing Equipment | D157: ='[18]FA Continuity 2012'!D36 -> 21291.29 | E157: ='[18]FA Continuity 2012'!E36 -> 499.18 | G157: 21790.47 | I157: ='[18]FA Continuity 2012'!I36 -> 14778.1 | J157: ='[18]FA Continuity 2012'!J36 -> 762.1 | L157: 15540.2 | M157: 6250.27
A158: 8 | B158: 1950 | C158: Power Operated Equipment | D158: ='[18]FA Continuity 2012'!D37 -> 0 | E158: ='[18]FA Continuity 2012'!E37 -> 0 | G158: 0 | I158: ='[18]FA Continuity 2012'!I37 -> 0 | J158: ='[18]FA Continuity 2012'!J37 -> 0 | L158: 0 | M158: 0
A159: 8 | B159: 1955 | C159: Communications Equipment | D159: ='[18]FA Continuity 2012'!D38 -> 18700.57 | E159: 0 | G159: 18700.57 | I159: ='[18]FA Continuity 2012'!I38 -> 17396.5 | J159: ='[18]FA Continuity 2012'!J38 -> 945.12 | L159: 18341.62 | M159: 358.95
A160: 8 | B160: 1955 | C160: Communication Equipment (Smart Meters) | D160: 0 | E160: ='[18]FA Continuity 2012'!E38 -> 0 | G160: 0 | I160: 0 | J160: 0 | L160: 0 | M160: 0
A161: 8 | B161: 1960 | C161: Miscellaneous Equipment | D161: ='[18]FA Continuity 2012'!D39 -> 46688.92 | E161: ='[18]FA Continuity 2012'!E39 -> 112979.46 | G161: 159668.38 | I161: ='[18]FA Continuity 2012'!I39 -> 11696.64 | J161: ='[18]FA Continuity 2012'!J39 -> 15335.51 | L161: 27032.15 | M161: 132636.23
A162: 47 | B162: 1970 | C162: Load Management Controls Customer Premises | G162: 0 | L162: 0 | M162: 0
A163: 47 | B163: 1975 | C163: Load Management Controls Utility Premises | G163: 0 | L163: 0 | M163: 0
A164: 47 | B164: 1980 | C164: System Supervisor Equipment | G164: 0 | L164: 0 | M164: 0
A165: 47 | B165: 1985 | C165: Miscellaneous Fixed Assets | G165: 0 | L165: 0 | M165: 0
A166: 47 | B166: 1990 | C166: Other Tangible Property | G166: 0 | L166: 0 | M166: 0
A167: 47 | B167: 1995 | C167: Contributions & Grants | D167: ='[18]FA Continuity 2012'!$D$45 -> -3793000 | E167: ='[18]FA Continuity 2012'!$E$45 -> -297008.45 | G167: -4090008.45 | I167: ='[18]FA Continuity 2012'!$I$45 -> -1108784.23 | J167: ='[18]FA Continuity 2012'!$J$45 -> -157941.93 | L167: -1266726.16 | M167: -2823282.29
B168: etc. | G168: 0 | L168: 0 | M168: 0
G169: 0 | L169: 0 | M169: 0
C170: Sub-Total | D170: =SUM(D130:D169) -> 31989607.48 | E170: =SUM(E130:E169) -> 3144649.7 | F170: -1906613.14 | G170: 33227644.04 | I170: =SUM(I130:I169) -> 17739126.06 | J170: =SUM(J130:J169) -> 1413328.61 | K170: -1143237.449 | L170: 18009217.22 | M170: 15218426.82
C171: Less Socialized Renewable Energy Generation Investments (input as negative) | G171: =D171+E171+F171 -> 0 | L171: =I171+J171+K171 -> 0 | M171: =G171+L171 -> 0
C172: Less Other Non Rate-Regulated Utility Assets (input as negative) | G172: 0 | L172: =I172+J172+K172 -> 0 | M172: =G172+L172 -> 0
C173: Total PP&E | D173: =SUM(D170:D172) -> 31989607.48 | E173: =SUM(E170:E172) -> 3144649.7 | F173: -1906613.14 | G173: 33227644.04 | I173: =SUM(I170:I172) -> 17739126.06 | J173: =SUM(J170:J172) -> 1413328.61 | K173: =SUM(K170:K172) -> -1143237.449 | L173: =SUM(L170:L172) -> 18009217.22 | M173: =SUM(M170:M172) -> 15218426.82
M174: ='[18]FA Continuity 2012'!$M$47 -> 15218426.82
I175: Less: Fully Allocated Depreciation
A176: 10 | C176: Transportation | I176: Transportation | K176: =J154 -> 83773.72
A177: 8 | C177: Stores Equipment | I177: Stores Equipment | K177: =J155 -> 1255.21
A178: 8 | C178: Tools, Shop | I178: Tools, Shop | K178: 3758.64
A179: 8 | C179: Meas/Testing | I179: Meas/Testing | K179: 762.1
A180: 8 | C180: Communication | I180: Communication | K180: =J159 -> 945.12
I181: Net Depreciation | K181: =J173-K176-K180-K177-K178-K179 -> 1322833.82
D183: New | E183: Year | F183: New CGAAP2012
D185: Cost | J185: Accumulated Depreciation
A186: CCA Class | B186: OEB | C186: Description | D186: Opening Balance | E186: Additions | F186: Disposals | G186: Closing Balance | I186: Opening Balance | J186: Additions | K186: Disposals | L186: Closing Balance | M186: Net Book Value
A187: 12 | B187: 1611 | C187: Computer Software (Formally known as Account 1925) | D187: =D130 -> 628390.13 | E187: =E130 -> 160843.04 | G187: =D187+E187+F187 -> 789233.17 | I187: =I130 -> 389264.27 | J187: ='[18]FA Continuity 2012'!$J$97 -> 123527.82 | K187: =-'[18]FA Continuity 2012'!$K$10 -> 0 | L187: =I187+J187+K187 -> 512792.09 | M187: =G187-L187 -> 276441.08
A188: CEC | B188: 1612 | C188: Land Rights (Formally known as Account 1906) | D188: =D131 -> 56060.25 | E188: 0 | G188: =D188+E188+F188 -> 56060.25 | I188: =I131 -> 19007.52 | J188: ='[18]FA Continuity 2012'!J76 -> 2044.9 | L188: =I188+J188+K188 -> 21052.42 | M188: =G188-L188 -> 35007.83
A189: N/A | B189: 1805 | C189: Land | D189: 267376.11 | E189: 125868.16 | F189: =-'[18]FA Continuity 2012'!$F$10 -> -270589.04 | G189: =D189+E189+F189 -> 122655.23 | I189: 0 | J189: ='[18]FA Continuity 2012'!J77 -> 0 | L189: =I189+J189+K189 -> 0 | M189: 122655.23
A190: 47 | B190: 1808 | C190: Buildings | D190: 15296.37 | E190: 0 | F190: =-'[18]FA Continuity 2012'!$F$12 -> -15296.37 | G190: =D190+E190+F190 -> 0 | I190: 15296.37 | J190: ='[18]FA Continuity 2012'!J78 -> 0 | K190: =-'[18]FA Continuity 2012'!$K$12 -> -15296 | L190: =I190+J190+K190 -> 0.37 | M190: -0.37
A191: 13 | B191: 1810 | C191: Leasehold Improvements | D191: 0 | E191: 0 | G191: 0 | I191: 0 | J191: ='[18]FA Continuity 2012'!J79 -> 0 | L191: 0 | M191: 0
A192: 47 | B192: 1815 | C192: Transformer Station Equipment >50 kV | D192: 0 | E192: 0 | G192: 0 | I192: 0 | J192: 0 | L192: 0 | M192: 0
A193: 47 | B193: 1820 | C193: Distribution Station Equipment <50 kV | D193: 904696.36 | E193: 0 | G193: 904696.36 | I193: 500256.54 | J193: ='[18]FA Continuity 2012'!J80 -> 38624.29 | L193: 538880.83 | M193: 365815.53
A194: 47 | B194: 1825 | C194: Storage Battery Equipment | D194: 0 | E194: 0 | G194: 0 | I194: 0 | L194: 0 | M194: 0
A195: 47 | B195: 1830 | C195: Poles, Towers & Fixtures | D195: 4177407.1 | E195: 90427.42 | F195: =-'[18]FA Continuity 2012'!F82 -> -28899 | G195: 4238935.52 | I195: 2724270.02 | J195: ='[18]FA Continuity 2012'!J82 -> 51586.64 | K195: =-'[18]FA Continuity 2012'!K82 -> -23923.98 | L195: 2751932.68 | M195: 1487002.84
A196: 47 | B196: 1835 | C196: Overhead Conductors & Devices | D196: 3788530.76 | E196: 68027.19 | F196: =-'[18]FA Continuity 2012'!F83 -> -2017.19 | G196: 3854540.76 | I196: 2169249.94 | J196: ='[18]FA Continuity 2012'!J83 -> 35860.08 | K196: =-'[18]FA Continuity 2012'!K83 -> -1445.48 | L196: 2203664.54 | M196: 1650876.22
A197: 47 | B197: 1840 | C197: Underground Conduit | D197: 4379129.9 | E197: 190738.43 | F197: =-'[18]FA Continuity 2012'!F84 -> 0 | G197: 4569868.33 | I197: 2032078.61 | J197: ='[18]FA Continuity 2012'!J84 -> 59084.96 | K197: =-'[18]FA Continuity 2012'!K84 -> 0 | L197: 2091163.57 | M197: 2478704.76
A198: 47 | B198: 1845 | C198: Underground Conductors & Devices | D198: 5333922.48 | E198: 251996.6 | F198: =-'[18]FA Continuity 2012'!F85 -> -8079.09 | G198: 5577839.99 | I198: 2462227.71 | J198: ='[18]FA Continuity 2012'!J85 -> 140746.74 | K198: =-'[18]FA Continuity 2012'!K85 -> -13947.39 | L198: 2589027.06 | M198: 2988812.93
A199: 47 | B199: 1850 | C199: Line Transformers | D199: 7480325.93 | E199: 396529.75 | F199: =-'[18]FA Continuity 2012'!F86 -> -57969.29 | G199: 7818886.39 | I199: 3858838.76 | J199: ='[18]FA Continuity 2012'!J86 -> 124612.22 | K199: =-'[18]FA Continuity 2012'!K86 -> -60776.31 | L199: 3922674.67 | M199: 3896211.72
A200: 47 | B200: 1855 | C200: Services (Overhead & Underground) | D200: 2327701.53 | E200: 135721.76 | F200: =-'[18]FA Continuity 2012'!F87 -> -2934.72 | G200: 2460488.57 | I200: 1473251.58 | J200: ='[18]FA Continuity 2012'!J87 -> 36060.72 | K200: =-'[18]FA Continuity 2012'!K87 -> -1920.76 | L200: 1507391.54 | M200: 953097.03
A201: 47 | B201: 1860 | C201: Meters | D201: 1852099.08 | E201: 22198 | F201: =-'[18]FA Continuity 2012'!F88 -> -1610292 | G201: 264005.08 | I201: 1151894.45 | J201: ='[18]FA Continuity 2012'!J88 -> 12359.3 | K201: =-'[18]FA Continuity 2012'!K88 -> -1098439.859 | L201: 65813.89146 | M201: 198191.1885
A202: 47 | B202: 1860 | C202: Meters (Smart Meters) | D202: 0 | E202: 1778199.03 | F202: =-'[18]FA Continuity 2012'!F89 -> -2796.74 | G202: 1775402.29 | I202: 0 | J202: ='[18]FA Continuity 2012'!J89 -> 284191.1797 | K202: =-'[18]FA Continuity 2012'!K89 -> 0 | L202: 284191.1797 | M202: 1491211.11
A203: N/A | B203: 1905 | C203: Land | D203: 144400.35 | E203: 0 | G203: 144400.35 | I203: 0 | J203: 0 | L203: 0 | M203: 144400.35
A204: 47 | B204: 1908 | C204: Buildings & Fixtures | D204: 2802850.2 | E204: 23667.82 | G204: 2826518.02 | I204: 898127.85 | J204: ='[18]FA Continuity 2012'!$J$93 -> 75935.69 | L204: 974063.54 | M204: 1852454.48
A205: 13 | B205: 1910 | C205: Leasehold Improvements | D205: 0 | E205: 0 | G205: 0 | I205: 0 | J205: 0 | L205: 0 | M205: 0
A206: 8 | B206: 1915 | C206: Office Furniture & Equipment (10 years) | D206: 189627.09 | E206: 23138.12 | F206: =-'[18]FA Continuity 2012'!$F$30 -> -2856.59 | G206: 209908.62 | I206: 110523.27 | J206: ='[18]FA Continuity 2012'!$J$95 -> 13465.68 | K206: =-'[18]FA Continuity 2012'!$K$30 -> -2856.59 | L206: 121132.36 | M206: 88776.26
A207: 8 | B207: 1915 | C207: Office Furniture & Equipment (5 years) | D207: 0 | E207: 0 | G207: 0 | I207: 0 | J207: 0 | L207: 0 | M207: 0
A208: 10 | B208: 1920 | C208: Computer Equipment - Hardware | D208: 0 | E208: 0 | G208: 0 | I208: 0 | J208: 0 | L208: 0 | M208: 0
A209: 45 | B209: 1920 | C209: Computer Equip.-Hardware(Post Mar. 22/04) | D209: 0 | E209: 0 | G209: 0 | I209: 0 | J209: 0 | L209: 0 | M209: 0
A210: 45.1 | B210: 1920 | C210: Computer Equip.-Hardware(Post Mar. 19/07) | D210: 158861.07 | E210: 22016.14 | F210: =-'[18]FA Continuity 2012'!$F$96 -> -5069.25 | G210: 175807.96 | I210: 103545.96 | J210: ='[18]FA Continuity 2012'!$J$96 -> 22244.52 | K210: =-'[18]FA Continuity 2012'!$K$96 -> -4311.08 | L210: 121479.4 | M210: 54328.56
... 198 more rows

Sheet App.2-BA2_Fix Asset Cont.MIFRS (hidden)
L1: File Number: | M1: =EBNUMBER -> EB-2013-0160
L2: Exhibit:
L3: Tab:
L4: Schedule:
L5: Page:
L7: Date:
A9: Appendix 2-BA
A10: Fixed Asset Continuity Schedule - MIFRS
E12: Year
D14: Cost | J14: Accumulated Depreciation
A15: CCA Class | B15: OEB | C15: Description | D15: Opening Balance | E15: Additions | F15: Disposals | G15: Closing Balance | I15: Opening Balance | J15: Additions | K15: Disposals | L15: Closing Balance | M15: Net Book Value
A16: 12 | B16: 1611 | C16: Computer Software (Formally known as Account 1925) | G16: =D16+E16+F16 -> 0 | L16: =I16+J16+K16 -> 0 | M16: =G16+L16 -> 0
A17: CEC | B17: 1612 | C17: Land Rights (Formally known as Account 1906) | G17: =D17+E17+F17 -> 0 | L17: =I17+J17+K17 -> 0 | M17: =G17+L17 -> 0
A18: N/A | B18: 1805 | C18: Land | G18: =D18+E18+F18 -> 0 | L18: =I18+J18+K18 -> 0 | M18: =G18+L18 -> 0
A19: 47 | B19: 1808 | C19: Buildings | G19: =D19+E19+F19 -> 0 | L19: =I19+J19+K19 -> 0 | M19: =G19+L19 -> 0
A20: 13 | B20: 1810 | C20: Leasehold Improvements | G20: 0 | L20: 0 | M20: 0
A21: 47 | B21: 1815 | C21: Transformer Station Equipment >50 kV | G21: 0 | L21: 0 | M21: 0
A22: 47 | B22: 1820 | C22: Distribution Station Equipment <50 kV | G22: 0 | L22: 0 | M22: 0
A23: 47 | B23: 1825 | C23: Storage Battery Equipment | G23: 0 | L23: 0 | M23: 0
A24: 47 | B24: 1830 | C24: Poles, Towers & Fixtures | G24: 0 | L24: 0 | M24: 0
A25: 47 | B25: 1835 | C25: Overhead Conductors & Devices | G25: 0 | L25: 0 | M25: 0
A26: 47 | B26: 1840 | C26: Underground Conduit | G26: 0 | L26: 0 | M26: 0
A27: 47 | B27: 1845 | C27: Underground Conductors & Devices | G27: 0 | L27: 0 | M27: 0
A28: 47 | B28: 1850 | C28: Line Transformers | G28: 0 | L28: 0 | M28: 0
A29: 47 | B29: 1855 | C29: Services (Overhead & Underground) | G29: 0 | L29: 0 | M29: 0
A30: 47 | B30: 1860 | C30: Meters | G30: 0 | L30: 0 | M30: 0
A31: 47 | B31: 1860 | C31: Meters (Smart Meters) | G31: 0 | L31: 0 | M31: 0
A32: N/A | B32: 1905 | C32: Land | G32: 0 | L32: 0 | M32: 0
A33: 47 | B33: 1908 | C33: Buildings & Fixtures | G33: 0 | L33: 0 | M33: 0
A34: 13 | B34: 1910 | C34: Leasehold Improvements | G34: 0 | L34: 0 | M34: 0
A35: 8 | B35: 1915 | C35: Office Furniture & Equipment (10 years) | G35: 0 | L35: 0 | M35: 0
A36: 8 | B36: 1915 | C36: Office Furniture & Equipment (5 years) | G36: 0 | L36: 0 | M36: 0
A37: 10 | B37: 1920 | C37: Computer Equipment - Hardware | G37: 0 | L37: 0 | M37: 0
A38: 45 | B38: 1920 | C38: Computer Equip.-Hardware(Post Mar. 22/04) | G38: 0 | L38: 0 | M38: 0
A39: 45.1 | B39: 1920 | C39: Computer Equip.-Hardware(Post Mar. 19/07) | G39: 0 | L39: 0 | M39: 0
A40: 10 | B40: 1930 | C40: Transportation Equipment | G40: 0 | L40: 0 | M40: 0
A41: 8 | B41: 1935 | C41: Stores Equipment | G41: 0 | L41: 0 | M41: 0
A42: 8 | B42: 1940 | C42: Tools, Shop & Garage Equipment | G42: 0 | L42: 0 | M42: 0
A43: 8 | B43: 1945 | C43: Measurement & Testing Equipment | G43: 0 | L43: 0 | M43: 0
A44: 8 | B44: 1950 | C44: Power Operated Equipment | G44: 0 | L44: 0 | M44: 0
A45: 8 | B45: 1955 | C45: Communications Equipment | G45: 0 | L45: 0 | M45: 0
A46: 8 | B46: 1955 | C46: Communication Equipment (Smart Meters) | G46: 0 | L46: 0 | M46: 0
A47: 8 | B47: 1960 | C47: Miscellaneous Equipment | G47: 0 | L47: 0 | M47: 0
A48: 47 | B48: 1970 | C48: Load Management Controls Customer Premises | G48: 0 | L48: 0 | M48: 0
A49: 47 | B49: 1975 | C49: Load Management Controls Utility Premises | G49: 0 | L49: 0 | M49: 0
A50: 47 | B50: 1980 | C50: System Supervisor Equipment | G50: 0 | L50: 0 | M50: 0
A51: 47 | B51: 1985 | C51: Miscellaneous Fixed Assets | G51: 0 | L51: 0 | M51: 0
A52: 47 | B52: 1990 | C52: Other Tangible Property | G52: 0 | L52: 0 | M52: 0
A53: 47 | B53: 1995 | C53: Contributions & Grants | G53: 0 | L53: 0 | M53: 0
B54: etc. | G54: 0 | L54: 0 | M54: 0
G55: 0 | L55: 0 | M55: 0
C56: Sub-Total | D56: =SUM(D16:D55) -> 0 | E56: =SUM(E16:E55) -> 0 | F56: 0 | G56: 0 | I56: =SUM(I16:I55) -> 0 | J56: =SUM(J16:J55) -> 0 | K56: 0 | L56: 0 | M56: 0
C57: Less Socialized Renewable Energy Generation Investments (input as negative) | G57: =D57+E57+F57 -> 0 | L57: =I57+J57+K57 -> 0 | M57: =G57+L57 -> 0
C58: Less Other Non Rate-Regulated Utility Assets (input as negative) | G58: 0 | L58: 0 | M58: 0
C59: Total PP&E | D59: =SUM(D56:D58) -> 0 | E59: =SUM(E56:E58) -> 0 | F59: 0 | G59: 0 | I59: =SUM(I56:I58) -> 0 | J59: 0 | K59: 0 | L59: 0 | M59: 0
C60: Depreciation Expense adj. from gain or loss on the retirement of assets (pool of like assets)
C61: Total | J61: =J59+J60 -> 0
I63: Less: Fully Allocated Depreciation
A64: 10 | C64: Transportation | I64: Transportation
A65: 8 | C65: Stores Equipment | I65: Stores Equipment
I66: Net Depreciation | K66: =J61-K64-K65 -> 0
A68: Notes:
A70: 1 | B70: Tables in the format outlined above covering all fixed asset accounts should be submitted for the Test Year, Bridge Year and all relevant historical years. At a minimum , the applicant must provide data for the earlier of: 1) all historical years back to its last rebasing; or 2) at least three years of historical actuals, in addition to Bridge Year and Test Year forecasts.
A73: 2 | B73: The "CCA Class" for fixed assets should agree with the CCA Class used for tax purposes in Tax Returns. Fixed Assets sub-components may be used where the underlying asset components are classified under multiple CCA Classes for tax purposes. If an applicant uses any different classes from those shown in the table, an explanation should be provided. (also see note 3 below).
A76: 3 | B76: The table may need to be customized for a utility's asset categories or for any new asset accounts announced or authorized by the Board.
A78: 4 | B78: The additions column (F) must not include construction work in progress (CWIP).

Sheet Appendix 2-BB Service Life Comp
M1: File Number: | O1: =EBNUMBER -> EB-2013-0160
M2: Exhibit: | O2: 2
M3: Tab: | O3: 2
M4: Schedule: | O4: 4
M5: Page: | O5: 2
M7: Date: | O7: 2014-02-13
A9: Appendix 2-BB
A10: Service Life Comparison
A11: Table F-1 from Kinetrics Report1
C15: Asset Details | F15: Useful Life | J15: USoA Account Number | K15: USoA Account Description | L15: Current | N15: Proposed
A16: Parent* | B16: # | C16: Category| Component | Type | F16: MIN UL | G16: TUL | H16: MAX UL | L16: Years | M16: Rate | N16: Years | O16: Rate
A17: OH | B17: 1 | C17: Fully Dressed Wood Poles | D17: Overall | F17: 35 | G17: 45 | H17: 75 | J17: 1830 | K17: Poles, Towers & Fixtures | L17: 25 | M17: =IF(ISERROR(1/L17), "", 1/L17) -> 0.04 | N17: 45 | O17: =IF(ISERROR(1/N17), "", 1/N17) -> 0.02222222222
D18: Cross Arm | E18: Wood | F18: 20 | G18: 40 | H18: 55 | M18: =IF(ISERROR(1/L18), "", 1/L18) ->  | O18: =IF(ISERROR(1/N18), "", 1/N18) -> 
E19: Steel | F19: 30 | G19: 70 | H19: 95
B20: 2 | C20: Fully Dressed Concrete Poles | D20: Overall | F20: 50 | G20: 60 | H20: 80 | J20: 1830 | K20: Poles, Towers & Fixtures | L20: 25 | M20: 0.04 | N20: 60 | O20: 0.01666666667
D21: Cross Arm | E21: Wood | F21: 20 | G21: 40 | H21: 55
E22: Steel | F22: 30 | G22: 70 | H22: 95
B23: 3 | C23: Fully Dressed Steel Poles | D23: Overall | F23: 60 | G23: 60 | H23: 80
D24: Cross Arm | E24: Wood | F24: 20 | G24: 40 | H24: 55
E25: Steel | F25: 30 | G25: 70 | H25: 95
B26: 4 | C26: OH Line Switch | F26: 30 | G26: 45 | H26: 55 | J26: 1835 | K26: Overhead Conductors & Devices | L26: 25 | M26: 0.04 | N26: 45 | O26: 0.02222222222
B27: 5 | C27: OH Line Switch Motor | F27: 15 | G27: 25 | H27: 25
B28: 6 | C28: OH Line Switch RTU | F28: 15 | G28: 20 | H28: 20
B29: 7 | C29: OH Integral Switches | F29: 35 | G29: 45 | H29: 60
B30: 8 | C30: OH Conductors | F30: 50 | G30: 60 | H30: 75 | J30: 1835 | K30: Overhead Conductors & Devices | L30: 25 | M30: 0.04 | N30: 60 | O30: 0.01666666667
B31: 9 | C31: OH Transformers & Voltage Regulators | F31: 30 | G31: 40 | H31: 60
B32: 10 | C32: OH Shunt Capacitor Banks | F32: 25 | G32: 30 | H32: 40
B33: 11 | C33: Reclosers | F33: 25 | G33: 40 | H33: 55
A34: TS & MS | B34: 12 | C34: Power Transformers | D34: Overall | F34: 30 | G34: 45 | H34: 60 | J34: 1820 | K34: Distribution Station Equipment - Below 50 kV | L34: 30 | M34: 0.03333333333 | N34: 45 | O34: 0.02222222222
D35: Bushing | F35: 10 | G35: 20 | H35: 30
D36: Tap Changer | F36: 20 | G36: 30 | H36: 60
B37: 13 | C37: Station Service Transformer | F37: 30 | G37: 45 | H37: 55
B38: 14 | C38: Station Grounding Transformer | F38: 30 | G38: 40 | H38: 40
B39: 15 | C39: Station DC System | D39: Overall | F39: 10 | G39: 20 | H39: 30
D40: Battery Bank | F40: 10 | G40: 15 | H40: 15
D41: Charger | F41: 20 | G41: 20 | H41: 30
B42: 16 | C42: Station Metal Clad Switchgear | D42: Overall | F42: 30 | G42: 40 | H42: 60
D43: Removable Breaker | F43: 25 | G43: 40 | H43: 60
B44: 17 | C44: Station Independent Breakers | F44: 35 | G44: 45 | H44: 65
B45: 18 | C45: Station Switch | F45: 30 | G45: 50 | H45: 60 | J45: 1820 | K45: Distribution Station Equipment - Below 50 kV | L45: 30 | M45: 0.03333333333 | N45: 40 | O45: 0.025
B46: 19 | C46: Electromechanical Relays | F46: 25 | G46: 35 | H46: 50
B47: 20 | C47: Solid State Relays | F47: 10 | G47: 30 | H47: 45
B48: 21 | C48: Digital & Numeric Relays | F48: 15 | G48: 20 | H48: 20
B49: 22 | C49: Rigid Busbars | F49: 30 | G49: 55 | H49: 60
B50: 23 | C50: Steel Structure | F50: 35 | G50: 50 | H50: 90 | J50: 1820 | K50: Distribution Station Equipment - Below 50 kV | L50: 30 | M50: 0.03333333333 | N50: 50 | O50: 0.02
A51: UG | B51: 24 | C51: Primary Paper Insulated Lead Covered (PILC) Cables | F51: 60 | G51: 65 | H51: 75
B52: 25 | C52: Primary Ethylene-Propylene Rubber (EPR) Cables | F52: 20 | G52: 25 | H52: 25
B53: 26 | C53: Primary Non-Tree Retardant (TR) Cross Linked Polyethylene (XLPE) Cables Direct Buried | F53: 20 | G53: 25 | H53: 30
B54: 27 | C54: Primary Non-TR XLPE Cables in Duct | F54: 20 | G54: 25 | H54: 30
B55: 28 | C55: Primary TR XLPE Cables Direct Buried | F55: 25 | G55: 30 | H55: 35 | J55: 1845 | K55: Underground Conductors & Devices | L55: 25 | M55: 0.04 | N55: 30 | O55: 0.03333333333
B56: 29 | C56: Primary TR XLPE Cables in Duct | F56: 35 | G56: 40 | H56: 55 | J56: 1845 | K56: Underground Conductors & Devices | L56: 25 | M56: 0.04 | N56: 40 | O56: 0.025
B57: 30 | C57: Secondary PILC Cables | F57: 70 | G57: 75 | H57: 80
B58: 31 | C58: Secondary Cables Direct Buried | F58: 25 | G58: 35 | H58: 40 | J58: 1855 | K58: Services | L58: 25 | M58: 0.04 | N58: 35 | O58: 0.02857142857
B59: 32 | C59: Secondary Cables in Duct | F59: 35 | G59: 40 | H59: 60 | J59: 1855 | K59: Services | L59: 25 | M59: 0.04 | N59: 40 | O59: 0.025
B60: 33 | C60: Network Tranformers | D60: Overall | F60: 20 | G60: 35 | H60: 50
D61: Protector | F61: 20 | G61: 35 | H61: 40
B62: 34 | C62: Pad-Mounted Transformers | F62: 25 | G62: 40 | H62: 45 | J62: 1851 | K62: U/G Line Transformers | L62: 25 | M62: 0.04 | N62: 40 | O62: 0.025
B63: 35 | C63: Submersible/Vault Transformers | F63: 25 | G63: 35 | H63: 45
B64: 36 | C64: UG Foundation | F64: 35 | G64: 55 | H64: 70 | J64: 1845 | K64: Underground Conductors & Devices | L64: 25 | M64: 0.04 | N64: 55 | O64: 0.01818181818
B65: 37 | C65: UG Vaults | D65: Overall | F65: 40 | G65: 60 | H65: 80 | J65: 1851 | K65: U/G Line Transformers | L65: 25 | M65: 0.04 | N65: 55 | O65: 0.01818181818
D66: Roof | F66: 20 | G66: 30 | H66: 45
B67: 38 | C67: UG Vault Switches | F67: 20 | G67: 35 | H67: 50
B68: 39 | C68: Pad-Mounted Switchgear | F68: 20 | G68: 30 | H68: 45 | J68: 1845 | K68: Underground Conductors & Devices | L68: 25 | M68: 0.04 | N68: 30 | O68: 0.03333333333
B69: 40 | C69: Ducts | F69: 30 | G69: 50 | H69: 85 | J69: 1840 | K69: Underground Conduit | L69: 25 | M69: 0.04 | N69: 50 | O69: 0.02
B70: 41 | C70: Concrete Encased Duct Banks | F70: 35 | G70: 55 | H70: 80 | J70: 1840 | K70: Underground Conduit | L70: 25 | M70: 0.04 | N70: 55 | O70: 0.01818181818
B71: 42 | C71: Cable Chambers | F71: 50 | G71: 60 | H71: 80
A72: S | B72: 43 | C72: Remote SCADA | F72: 15 | G72: 20 | H72: 30
A75: Table F-2 from Kinetrics Report1
C77: Asset Details | F77: Useful Life Range | J77: USoA Account Number | K77: USoA Account Description | L77: Current | N77: Proposed
B78: # | C78: Category| Component | Type | L78: Years | M78: Rate | N78: Years | O78: Rate
B79: 1 | C79: Office Equipment | F79: 5-15 | J79: 1915 | K79: Office Furniture & Equipment | L79: 10 | M79: =IF(ISERROR(1/L79), "", 1/L79) -> 0.1 | N79: 10 | O79: =IF(ISERROR(1/N79), "", 1/N79) -> 0.1
B80: 2 | C80: Vehicles | D80: Trucks & Buckets | F80: 5-15 | J80: 1933 | K80: Transportation Equipment - Trucks over 3 ton | L80: 8 | M80: =IF(ISERROR(1/L80), "", 1/L80) -> 0.125 | N80: 12 | O80: =IF(ISERROR(1/N80), "", 1/N80) -> 0.08333333333
D81: Trailers | F81: 5-20
D82: Vans | F82: 5-10 | J82: 1932 | K82: Transportation Equipment - Trucks under 3 ton | L82: 5 | M82: 0.2 | N82: 8 | O82: 0.125
B83: 3 | C83: Administrative Buildings | F83: 50-75 | J83: 1908 | K83: Building & Fixtures - General Plant | L83: 50 | M83: 0.02 | N83: 50 | O83: 0.02
B84: 4 | C84: Leasehold Improvements | F84: Lease dependent
B85: 5 | C85: Station Buildings | D85: Station Buildings | F85: 50-75 | J85: 1908 | K85: Building & Fixtures - General Plant | L85: 50 | N85: 50 | O85: 0.02
D86: Parking | F86: 25-30 | J86: 1908 | K86: Building & Fixtures - General Plant | L86: 50 | M86: 0.02 | N86: 25 | O86: 0.04
D87: Fence | F87: 25-60
D88: Roof | F88: 20-30 | J88: 1908 | K88: Building & Fixtures - General Plant | L88: 50 | M88: 0.02 | N88: 20 | O88: 0.05
B89: 6 | C89: Computer Equipment | D89: Hardware | F89: 3-5 | J89: 1920 | K89: Computer Equipment - Hardware | L89: 5 | M89: 0.2 | N89: 5 | O89: 0.2
D90: Software | F90: 2-5 | J90: 1925 | K90: Computer Equipment - Software | L90: 5 | M90: 0.2 | N90: 5 | O90: 0.2
B91: 7 | C91: Equipment | D91: Power Operated | F91: 5-10
D92: Stores | F92: 5-10 | J92: 1935 | K92: Stores Equipment | L92: 10 | M92: 0.1 | N92: 10 | O92: 0.1
D93: Tools, Shop, Garage Equipment | F93: 5-10 | J93: 1940 | K93: Tools, Shop & Garage Equipment | L93: 10 | M93: 0.1 | N93: 10 | O93: 0.1
D94: Measurement & Testing Equipment | F94: 5-10 | J94: 1945 | K94: Measurement & Testing Equipment | L94: 10 | M94: 0.1 | N94: 10 | O94: 0.1
B95: 8 | C95: Communication | D95: Towers | F95: 60-70 | J95: 1955 | K95: Communication Equipment | L95: 10 | M95: 0.1 | N95: 60 | O95: 0.01666666667
D96: Wireless | F96: 2-10 | J96: 1955 | K96: Communication Equipment | L96: 10 | M96: 0.1 | N96: 10 | O96: 0.1
B97: 9 | C97: Residential Energy Meters | F97: 25-35
B98: 10 | C98: Industrial/Commercial Energy Meters | F98: 25-35 | J98: 18615 | K98: Commercial Meter Distribution | L98: 25 | M98: 0.04 | N98: 25 | O98: 0.04
B99: 11 | C99: Wholesale Energy Meters | F99: 15-30
B100: 12 | C100: Current & Potential Transformer (CT & PT) | F100: 35-50 | J100: 1862 | K100: CT's & PT's | L100: 25 | M100: 0.04 | N100: 50 | O100: 0.02
B101: 13 | C101: Smart Meters | F101: 5-15 | J101: 1861 | K101: Residential Meter Distribution | L101: 15 | M101: 0.06666666667 | N101: 15 | O101: 0.06666666667
B102: 14 | C102: Repeaters - Smart Metering | F102: 10-15
B103: 15 | C103: Data Collectors - Smart Metering | F103: 15-20
A106: * TS & MS = Transformer and Municipal Stations UG = Underground Systems S = Monitoring and Control Systems
A108: Note 1: | B108: Tables F-1 and F-2 above are to be used as a reference in order to complete columns J, K, L and N.
B109: See pages 17-19 of Kinetrics Report

Sheet Instruction for App. 2-C MIFRS (hidden)
A1: General Instructions to MIFRS Appendices
A2: Types of Schedules to File
A4: The purpose of this tab is to provide general instructions. The specific instructions to each appendix are listed in footnotes to each appendix.
A6: Applicants filing a MIFRS application should provide the following information regarding Appendix 2-B and Appendix 2-C:
A8: · If an applicant chooses to adopt IFRS for financial reporting in 2012, in its 2014 cost of service application it must file information for the historic year (2012),modified IFRS and also provide forecasts for the bridge year (2013) and test year (2014) information in modified IFRS format. The years required to be filed prior to the historic year 2012 may be provided in CGAAP only, except for the year 2011 which must also be presented in modified IFRS format.
A11: · If an applicant chooses to adopt IFRS for financial reporting in 2013, in its 2014 cost of service application it must file information for the year prior (i.e. 2012 – the historic year) in both CGAAP and modified IFRS format, and present modified IFRS based forecasts for the bridge (2013) and test years (2014). The years required to be filed prior to the historic year 2012 may be provided in CGAAP only.
A14: · If an applicant chooses to adopt IFRS for financial reporting in 2014, in its 2014 cost of service application it must provide the required actual years (2012) and the bridge year (2013) in CGAAP based format. An applicant must present modified IFRS based forecasts for the bridge (2013) and test years (2014).
E18: Date of Adoption of IFRS
E19: for Financial Reporting Purposes:
E20: January 1, 2012 | F20: January 1, 2013 | G20: January 1, 2014
A21: Information | C21: 2010 H & Prior | E21: CGAAP | F21: CGAAP | G21: CGAAP
A22: Required to be | C22: 2011 H | E22: MIFRS & CGAAP | F22: CGAAP | G22: CGAAP
A23: Filed in 2014 | C23: 2012 H | E23: MIFRS | F23: MIFRS & CGAAP | G23: CGAAP
A24: CoS Application: | C24: 2013 B | E24: MIFRS | F24: MIFRS | G24: MIFRS & CGAAP
C25: 2014 T | E25: MIFRS | F25: MIFRS | G25: MIFRS
A27: Date of Transition to IFRS | E27: January 1, 2011 | F27: January 1, 2012 | G27: January 1, 2013
A29: H - historic year regulatory financial information
A30: B - bridge year regulatory financial information
A31: T - test year regulatory financial information
B32: Year in which both CGAAP and MIFRS information required
A34: For those applicants that adopted IFRS on January 1, 2012 for financial reporting purposes, the date of transition is January 1, 2011. For those applicants that adopted IFRS on January 1, 2013 for financial reporting purposes, the date of transition is January 1, 2012. For those applicants that adopted IFRS on January 1, 2014 for financial reporting purposes, the date of transition is January 1, 2013.
A39: Summary of Impacts to Revenue Requirement from Transition to MIFRS - Appendix 2-YA
A40: For modified IFRS applications, the applicants must provide a summary of the dollar impacts of modified IFRS to each component of the revenue requirement (e.g. rate base, operating costs, etc), including the overall impact on the proposed revenue requirement. Accordingly, the applicants must identify financial differences and resulting revenue requirement impacts arising from the adoption of modified IFRS accounting.
A45: Depreciation and Amortization - Appendix 2-C
A46: If an applicant chooses to adopt IFRS for financial reporting in 2012, the applicant must complete Appendix 2-CA to Appendix 2-CE (inclusive).
A47: If an applicant chooses to adopt IFRS for financial reporting in 2013, the applicant must complete Appendix 2-CF to Appendix 2-CI (inclusive).
A48: If an applicant chooses to adopt IFRS for financial reporting in 2014, the applicant must complete Appendix 2-CJ to Appendix 2-CM (inclusive).
A51: Continuity of Historic Cost under MIFRS - Appendix 2-BA2
A53: Regulatory Gross Assets of Property, Plant and Equipment
A54: For an applicant that adopted IFRS on January 1, 2012 for financial reporting purposes, the applicant must establish the continuity of historic cost by using the December 31, 2010 regulatory gross assets of property, plant and equipment as the opening January 1, 2011 regulatory gross assets. The applicant must provide schedules (including Appendix 2-BA2, Fixed Asset Continuity Schedule) which must identify the following details to substantiate the continuity of historic cost for regulatory purposes:
A58: · December 31, 2010 regulatory gross assets of property, plant and equipment, by asset class; and
A59: · January 1, 2011 regulatory gross assets of property, plant and equipment, by asset class.
A61: For an applicant that adopts IFRS on January 1, 2013 for financial reporting purposes, the applicant must establish the continuity of historic cost by using the December 31, 2011 regulatory gross assets of property, plant and equipment as the opening January 1, 2012 regulatory gross assets. The applicant must provide schedules (including Appendix 2-BA2, Fixed Asset Continuity Schedule) which must identify the following details to substantiate the continuity of historic cost for regulatory purposes:
A65: · December 31, 2011 regulatory gross assets of property, plant and equipment, by asset class; and
A66: · January 1, 2012 regulatory gross assets of property, plant and equipment, by asset class.
A68: For an applicant that adopts IFRS on January 1, 2014 for financial reporting purposes, the applicant must establish the continuity of historic cost by using the December 31, 2012 regulatory gross assets of property, plant and equipment as the opening January 1, 2013 regulatory gross assets. The applicant must provide schedules (including Appendix 2-BA2, Fixed Asset Continuity Schedule) which must identify the following details to substantiate the continuity of historic cost for regulatory purposes:
A72: · December 31, 2012 regulatory gross assets of property, plant and equipment, by asset class; and
A73: · January 1, 2013 regulatory gross assets of property, plant and equipment, by asset class.
A75: Accumulated Depreciation
A76: For an applicant that adopted IFRS on January 1, 2012 for financial reporting purposes, the applicant must establish the continuity of historic cost by using the December 31, 2010 regulatory accumulated depreciation as the opening January 1, 2011 regulatory accumulated depreciation. The applicant must provide schedules (including Appendix 2-BA2, Fixed Asset Continuity Schedule) which must identify the following details to substantiate the continuity of historic cost for regulatory purposes:
A79: · December 31, 2010 regulatory accumulated depreciation, by asset class; and
A80: · January 1, 2011 regulatory accumulated depreciation, by asset class.
A82: For an applicant that adopted IFRS on January 1, 2013 for financial reporting purposes, the applicant must establish the continuity of historic cost by using the December 31, 2011 regulatory accumulated depreciation as the opening January 1, 2012 regulatory accumulated depreciation. The applicant must provide schedules (including Appendix 2-BA2, Fixed Asset Continuity Schedule) which must identify the following details to substantiate the continuity of historic cost for regulatory purposes:
A85: · December 31, 2011 regulatory accumulated depreciation, by asset class; and
A86: · January 1, 2012 regulatory accumulated depreciation, by asset class.
A88: For an applicant that adopted IFRS on January 1, 2014 for financial reporting purposes, the applicant must establish the continuity of historic cost by using the December 31, 2012 regulatory accumulated depreciation as the opening January 1, 2013 regulatory accumulated depreciation. The applicant must provide schedules (including Appendix 2-BA2, Fixed Asset Continuity Schedule) which must identify the following details to substantiate the continuity of historic cost for regulatory purposes:
A91: · December 31, 2012 regulatory accumulated depreciation, by asset class; and
A92: · January 1, 2013 regulatory accumulated depreciation, by asset class.
A94: Account 1575, IFRS-CGAAP Transitional PP&E Amounts - Appendix 2-EA, Appendix 2-EB, Appendix 2-EC
A95: Please refer to section 2.12.4 of the Filing Requirements.
A97: Account 1576, Accounting Changes Under CGAAP - Appendix 2-ED, Appendix 2-EE
A98: Please refer to section 2.12.5 of the Filing Requirements.

Sheet App.2-CA_CGAAP_DepExp_2011 (hidden)
K1: File Number: | L1: =EBNUMBER -> EB-2013-0160
K2: Exhibit:
K3: Tab:
K4: Schedule:
K5: Page:
K7: Date:
A9: Appendix 2-CA
A10: Depreciation and Amortization Expense
A11: Assumes the applicant adopted IFRS for financial reporting purposes January 1, 2012
C12: Year | D12: 2011 | E12: CGAAP
A14: Account | B14: Description | C14: Opening Regulatory Gross PP&E as at Jan 1, 2011 | D14: Less Fully Depreciated | E14: Net for Depreciation | F14: Additions | G14: Total for Depreciation | H14: Years | I14: Depreciation Rate | J14: Depreciation Expense | K14: 2011 Depreciation Expense per Appendix 2-B Fixed Assets, Column K (l) | L14: Variance 2
C15: (a) | D15: (b) | E15: (c) | F15: (d) | G15: (e) = (c) + ½ x (d) 1 | H15: (f) | I15: (g) = 1 / (f) | J15: (h) = (e) / (f) | L15: (m) = (h) - (l)
A16: 1611 | B16: Computer Software (Formally known as Account 1925) | E16: =C16-D16 -> 0 | G16: =E16+0.5*F16 -> 0 | I16: =IF(H16=0,0,1/H16) -> 0 | J16: =IF(H16=0,0,G16/H16) -> 0 | L16: =IF(ISERROR(+J16-K16), 0, +J16-K16) -> 0
A17: 1612 | B17: Land Rights (Formally known as Account 1906) | E17: =C17-D17 -> 0 | G17: =E17+0.5*F17 -> 0 | I17: 0 | J17: 0 | L17: 0
A18: 1805 | B18: Land | E18: 0 | G18: 0 | I18: 0 | J18: 0 | L18: 0
A19: 1808 | B19: Buildings | E19: 0 | G19: 0 | I19: 0 | J19: 0 | L19: 0
A20: 1810 | B20: Leasehold Improvements | E20: 0 | G20: 0 | I20: 0 | J20: 0 | L20: 0
A21: 1815 | B21: Transformer Station Equipment >50 kV | E21: 0 | G21: 0 | I21: 0 | J21: 0 | L21: 0
A22: 1820 | B22: Distribution Station Equipment <50 kV | E22: 0 | G22: 0 | I22: 0 | J22: 0 | L22: 0
A23: 1825 | B23: Storage Battery Equipment | E23: 0 | G23: 0 | I23: 0 | J23: 0 | L23: 0
A24: 1830 | B24: Poles, Towers & Fixtures | E24: 0 | G24: 0 | I24: 0 | J24: 0 | L24: 0
A25: 1835 | B25: Overhead Conductors & Devices | E25: 0 | G25: 0 | I25: 0 | J25: 0 | L25: 0
A26: 1840 | B26: Underground Conduit | E26: 0 | G26: 0 | I26: 0 | J26: 0 | L26: 0
A27: 1845 | B27: Underground Conductors & Devices | E27: 0 | G27: 0 | I27: 0 | J27: 0 | L27: 0
A28: 1850 | B28: Line Transformers | E28: 0 | G28: 0 | I28: 0 | J28: 0 | L28: 0
A29: 1855 | B29: Services (Overhead & Underground) | E29: 0 | G29: 0 | I29: 0 | J29: 0 | L29: 0
A30: 1860 | B30: Meters | E30: 0 | G30: 0 | I30: 0 | J30: 0 | L30: 0
A31: 1860 | B31: Meters (Smart Meters) | E31: 0 | G31: 0 | I31: 0 | J31: 0 | L31: 0
A32: 1905 | B32: Land | E32: 0 | G32: 0 | I32: 0 | J32: 0 | L32: 0
A33: 1908 | B33: Buildings & Fixtures | E33: 0 | G33: 0 | I33: 0 | J33: 0 | L33: 0
A34: 1910 | B34: Leasehold Improvements | E34: 0 | G34: 0 | I34: 0 | J34: 0 | L34: 0
A35: 1915 | B35: Office Furniture & Equipment (10 years) | E35: 0 | G35: 0 | I35: 0 | J35: 0 | L35: 0
A36: 1915 | B36: Office Furniture & Equipment (5 years) | E36: 0 | G36: 0 | I36: 0 | J36: 0 | L36: 0
A37: 1920 | B37: Computer Equipment - Hardware | E37: 0 | G37: 0 | I37: 0 | J37: 0 | L37: 0
A38: 1920 | B38: Computer Equip.-Hardware(Post Mar. 22/04) | E38: 0 | G38: 0 | I38: 0 | J38: 0 | L38: 0
A39: 1920 | B39: Computer Equip.-Hardware(Post Mar. 19/07) | E39: 0 | G39: 0 | I39: 0 | J39: 0 | L39: 0
A40: 1930 | B40: Transportation Equipment | E40: 0 | G40: 0 | I40: 0 | J40: 0 | L40: 0
A41: 1935 | B41: Stores Equipment | E41: 0 | G41: 0 | I41: 0 | J41: 0 | L41: 0
A42: 1940 | B42: Tools, Shop & Garage Equipment | E42: 0 | G42: 0 | I42: 0 | J42: 0 | L42: 0
A43: 1945 | B43: Measurement & Testing Equipment | E43: 0 | G43: 0 | I43: 0 | J43: 0 | L43: 0
A44: 1950 | B44: Power Operated Equipment | E44: 0 | G44: 0 | I44: 0 | J44: 0 | L44: 0
A45: 1955 | B45: Communications Equipment | E45: 0 | G45: 0 | I45: 0 | J45: 0 | L45: 0
A46: 1955 | B46: Communication Equipment (Smart Meters) | E46: 0 | G46: 0 | I46: 0 | J46: 0 | L46: 0
A47: 1960 | B47: Miscellaneous Equipment | E47: 0 | G47: 0 | I47: 0 | J47: 0 | L47: 0
A48: 1970 | B48: Load Management Controls Customer Premises | E48: 0 | G48: 0 | I48: 0 | J48: 0 | L48: 0
A49: 1975 | B49: Load Management Controls Utility Premises | E49: 0 | G49: 0 | I49: 0 | J49: 0 | L49: 0
A50: 1980 | B50: System Supervisor Equipment | E50: 0 | G50: 0 | I50: 0 | J50: 0 | L50: 0
A51: 1985 | B51: Miscellaneous Fixed Assets | E51: 0 | G51: 0 | I51: 0 | J51: 0 | L51: 0
A52: 1990 | B52: Other Tangible Property | E52: 0 | G52: 0 | I52: 0 | J52: 0 | L52: 0
A53: 1995 | B53: Contributions & Grants | E53: 0 | G53: 0 | I53: 0 | J53: 0 | L53: 0
A54: etc. | E54: 0 | G54: 0 | I54: 0 | J54: 0 | L54: 0
E55: 0 | G55: 0 | I55: 0 | J55: 0 | L55: 0
B56: Total | C56: =SUM(C16:C55) -> 0 | D56: =SUM(D16:D55) -> 0 | E56: =SUM(E16:E55) -> 0 | F56: =SUM(F16:F55) -> 0 | G56: =SUM(G16:G55) -> 0 | J56: =SUM(J16:J55) -> 0 | K56: =SUM(K16:K55) -> 0 | L56: =SUM(L16:L55) -> 0
A58: Notes:
A60: 1 | B60: Board policy of the "half-year" rule - the applicant must ensure that additions in the year attract a half-year depreciation expense in the first year. Deviations from this standard practice must be supported in the application.
A61: 2 | B61: The applicant must provide an explanation of material variances in evidence.
A63: General | B63: Applicants must provide a breakdown of depreciation and amortization expense in the above format for all relevant accounts. Asset Retirement Obligations (AROs), depreciation and accretion expense should be disclosed separately consistent with the Notes of historical Audited Financial Statements.

Sheet App.2-CB_MIFRS_DepExp_2011 (hidden)
N1: File Number: | O1: =EBNUMBER -> EB-2013-0160
N2: Exhibit:
N3: Tab:
N4: Schedule:
N5: Page:
N7: Date:
A9: Appendix 2-CB
A10: Depreciation and Amortization Expense
A11: Assumes the applicant adopted IFRS for financial reporting purposes January 1, 2012
C12: Year | D12: 2011 | E12: MIFRS
A14: Account | B14: Description | C14: Opening NBV as at Jan 1, 2011 5 | D14: Additions | E14: Average Remaining Life of Opening NBV 4 | F14: Years (new additions only) 3 | G14: Depreciation Rate on New Additions | H14: Depreciation Expense on Opening NBV | I14: Depreciation Expense on Additions 1 | J14: 2011 Depreciation Expense | K14: 2011 Depreciation Expense per Appendix 2-B Fixed Assets, Column K (l) | L14: Variance 2 | M14: Depreciation Expense on 2011 Full Year Additions | N14: Less Depreciation Expense on Assets Fully Depreciated during the year (o) | O14: 2011 Full Year Depreciation 6
C15: (a) | D15: (d) | E15: (i) | F15: (f) | G15: (g) = 1 / (f) | H15: (j) = (a) / (i) | I15: (h)=((d)*0.5)/(f) | J15: (k) = (j) + (h) | L15: (m) = (k) - (l) | M15: (n) = (d)/(f) | O15: (p) = (j) + (n) - (o)
A16: 1611 | B16: Computer Software (Formally known as Account 1925) | G16: =IF(F16=0,0,1/F16) -> 0 | H16: =IF(E16=0,0,+C16/E16) -> 0 | I16: =IF(F16=0,0,+(D16*0.5)/F16) -> 0 | J16: =IF(ISERROR(+H16+I16), 0, +H16+I16) -> 0 | L16: =IF(ISERROR(+J16-K16), 0, +J16-K16) -> 0 | M16: =IF(F16=0,0,+(D16)/F16) -> 0 | O16: =IF(ISERROR(+M16+H16-N16), 0, +M16+H16-N16) -> 0
A17: 1612 | B17: Land Rights (Formally known as Account 1906) | G17: 0 | H17: 0 | I17: 0 | J17: 0 | L17: 0 | M17: 0 | O17: =IF(ISERROR(+M17+H17-N17), 0, +M17+H17-N17) -> 0
A18: 1805 | B18: Land | G18: 0 | H18: 0 | I18: 0 | J18: 0 | L18: 0 | M18: 0 | O18: 0
A19: 1808 | B19: Buildings | G19: 0 | H19: 0 | I19: 0 | J19: 0 | L19: 0 | M19: 0 | O19: 0
A20: 1810 | B20: Leasehold Improvements | G20: 0 | H20: 0 | I20: 0 | J20: 0 | L20: 0 | M20: 0 | O20: 0
A21: 1815 | B21: Transformer Station Equipment >50 kV | G21: 0 | H21: 0 | I21: 0 | J21: 0 | L21: 0 | M21: 0 | O21: 0
A22: 1820 | B22: Distribution Station Equipment <50 kV | G22: 0 | H22: 0 | I22: 0 | J22: 0 | L22: 0 | M22: 0 | O22: 0
A23: 1825 | B23: Storage Battery Equipment | G23: 0 | H23: 0 | I23: 0 | J23: 0 | L23: 0 | M23: 0 | O23: 0
A24: 1830 | B24: Poles, Towers & Fixtures | G24: 0 | H24: 0 | I24: 0 | J24: 0 | L24: 0 | M24: 0 | O24: 0
A25: 1835 | B25: Overhead Conductors & Devices | G25: 0 | H25: 0 | I25: 0 | J25: 0 | L25: 0 | M25: 0 | O25: 0
A26: 1840 | B26: Underground Conduit | G26: 0 | H26: 0 | I26: 0 | J26: 0 | L26: 0 | M26: 0 | O26: 0
A27: 1845 | B27: Underground Conductors & Devices | G27: 0 | H27: 0 | I27: 0 | J27: 0 | L27: 0 | M27: 0 | O27: 0
A28: 1850 | B28: Line Transformers | G28: 0 | H28: 0 | I28: 0 | J28: 0 | L28: 0 | M28: 0 | O28: 0
A29: 1855 | B29: Services (Overhead & Underground) | G29: 0 | H29: 0 | I29: 0 | J29: 0 | L29: 0 | M29: 0 | O29: 0
A30: 1860 | B30: Meters | G30: 0 | H30: 0 | I30: 0 | J30: 0 | L30: 0 | M30: 0 | O30: 0
A31: 1860 | B31: Meters (Smart Meters) | G31: 0 | H31: 0 | I31: 0 | J31: 0 | L31: 0 | M31: 0 | O31: 0
A32: 1905 | B32: Land | G32: 0 | H32: 0 | I32: 0 | J32: 0 | L32: 0 | M32: 0 | O32: 0
A33: 1908 | B33: Buildings & Fixtures | G33: 0 | H33: 0 | I33: 0 | J33: 0 | L33: 0 | M33: 0 | O33: 0
A34: 1910 | B34: Leasehold Improvements | G34: 0 | H34: 0 | I34: 0 | J34: 0 | L34: 0 | M34: 0 | O34: 0
A35: 1915 | B35: Office Furniture & Equipment (10 years) | G35: 0 | H35: 0 | I35: 0 | J35: 0 | L35: 0 | M35: 0 | O35: 0
A36: 1915 | B36: Office Furniture & Equipment (5 years) | G36: 0 | H36: 0 | I36: 0 | J36: 0 | L36: 0 | M36: 0 | O36: 0
A37: 1920 | B37: Computer Equipment - Hardware | G37: 0 | H37: 0 | I37: 0 | J37: 0 | L37: 0 | M37: 0 | O37: 0
A38: 1920 | B38: Computer Equip.-Hardware(Post Mar. 22/04) | G38: 0 | H38: 0 | I38: 0 | J38: 0 | L38: 0 | M38: 0 | O38: 0
A39: 1920 | B39: Computer Equip.-Hardware(Post Mar. 19/07) | G39: 0 | H39: 0 | I39: 0 | J39: 0 | L39: 0 | M39: 0 | O39: 0
A40: 1930 | B40: Transportation Equipment | G40: 0 | H40: 0 | I40: 0 | J40: 0 | L40: 0 | M40: 0 | O40: 0
A41: 1935 | B41: Stores Equipment | G41: 0 | H41: 0 | I41: 0 | J41: 0 | L41: 0 | M41: 0 | O41: 0
A42: 1940 | B42: Tools, Shop & Garage Equipment | G42: 0 | H42: 0 | I42: 0 | J42: 0 | L42: 0 | M42: 0 | O42: 0
A43: 1945 | B43: Measurement & Testing Equipment | G43: 0 | H43: 0 | I43: 0 | J43: 0 | L43: 0 | M43: 0 | O43: 0
A44: 1950 | B44: Power Operated Equipment | G44: 0 | H44: 0 | I44: 0 | J44: 0 | L44: 0 | M44: 0 | O44: 0
A45: 1955 | B45: Communications Equipment | G45: 0 | H45: 0 | I45: 0 | J45: 0 | L45: 0 | M45: 0 | O45: 0
A46: 1955 | B46: Communication Equipment (Smart Meters) | G46: 0 | H46: 0 | I46: 0 | J46: 0 | L46: 0 | M46: 0 | O46: 0
A47: 1960 | B47: Miscellaneous Equipment | G47: 0 | H47: 0 | I47: 0 | J47: 0 | L47: 0 | M47: 0 | O47: 0
A48: 1970 | B48: Load Management Controls Customer Premises | G48: 0 | H48: 0 | I48: 0 | J48: 0 | L48: 0 | M48: 0 | O48: 0
A49: 1975 | B49: Load Management Controls Utility Premises | G49: 0 | H49: 0 | I49: 0 | J49: 0 | L49: 0 | M49: 0 | O49: 0
A50: 1980 | B50: System Supervisor Equipment | G50: 0 | H50: 0 | I50: 0 | J50: 0 | L50: 0 | M50: 0 | O50: 0
A51: 1985 | B51: Miscellaneous Fixed Assets | G51: 0 | H51: 0 | I51: 0 | J51: 0 | L51: 0 | M51: 0 | O51: 0
A52: 1990 | B52: Other Tangible Property | G52: 0 | H52: 0 | I52: 0 | J52: 0 | L52: 0 | M52: 0 | O52: 0
A53: 1995 | B53: Contributions & Grants | G53: 0 | H53: 0 | I53: 0 | J53: 0 | L53: 0 | M53: 0 | O53: 0
A54: etc. | G54: 0 | H54: 0 | I54: 0 | J54: 0 | L54: 0 | M54: 0 | O54: 0
G55: 0 | H55: 0 | I55: 0 | J55: 0 | L55: 0 | M55: 0 | O55: 0
B56: Total | C56: =SUM(C16:C55) -> 0 | D56: =SUM(D16:D55) -> 0 | H56: =SUM(H16:H55) -> 0 | I56: 0 | J56: 0 | K56: 0 | L56: 0 | M56: 0 | N56: =SUM(N16:N55) -> 0 | O56: 0
B57: Depreciation exp. adj. from gain or loss on the retirement of assets (pool of like assets) | J57: 0
B58: Total | J58: =+J57+J56 -> 0
A59: Notes:
A61: 1 | B61: Board policy of the "half-year" rule - the applicant must ensure that additions in the year attract a half-year depreciation expense in the first year. Deviations from this standard practice must be supported in the application.
A62: 2 | B62: The applicant must provide an explanation of material variances in evidence.
A63: 3 | B63: The applicant should ensure that the years for new additions of assets are the asset useful lives determined by management in accordance with IFRS.
A64: 4 | B64: A recalculation should be performed to determine the average remaining life of opening balance of assets (i.e. excluding 2011 additions) under IFRS. For example, Asset A had a useful life of 20 years under CGAAP. On January 1, 2011, the date of transition, Asset A was 3 years depreciated. As a result, Asset A would have a remaining service life of 17 years (20 years less 3 years) under CGAAP as of January 1, 2011. Due to the transition to IFRS, management re-assessed the asset useful lives under IFRS principles and concluded that the revised useful life of Asset A is now 30 years. Therefore, the average remaining useful life of opening balance of Asset A is determined to be 27 years (30 years less 3 years) under IFRS as of January 1, 2011.
A65: 5 | B65: NBV must exclude assets still on the books but which have been fully amortized or depreciated.
A66: 6 | B66: This column refers to the calculated full year depreciation but excludes the depreciation expense on assets fully depreciated during the year. This column is used for the purpose of calculating depreciation expense in the following year on the next worksheet.
A68: General: | B68: Applicants must provide a breakdown of depreciation and amortization expense in the above format for all relevant accounts. Asset Retirement Obligations (AROs), depreciation and accretion expense should be disclosed separately consistent with the Notes of historical Audited Financial Statements.

Sheet App.2-CC_MIFRS_DepExp_2012 (hidden)
J1: File Number: | K1: =EBNUMBER -> EB-2013-0160
J2: Exhibit:
J3: Tab:
J4: Schedule:
J5: Page:
J7: Date:
A9: Appendix 2-CC
A10: Depreciation and Amortization Expense
A11: Assumes the applicant adopted IFRS for financial reporting purposes January 1, 2012
C12: 2012 | D12: MIFRS
A14: Account | B14: Description | C14: Additions | D14: Years (new additions only) | E14: Depreciation Rate on New Additions | F14: 2012 Depreciation Expense 1 | G14: 2012 Depreciation Expense per Apppendix 2-B Fixed Assets, Column K (l) | H14: Variance 2 | I14: Depreciation Expense on 2012 Full Year Additions | J14: Less Depreciation Expense on Assets Fully Depreciated during the year (o) | K14: 2012 Full Year Depreciation 3
C15: (d) | D15: (f) | E15: (g) = 1 / (f) | F15: (h)=2011 Full Year Deprecation + ((d)*0.5)/(f) | H15: (m) = (h) - (l) | I15: (n)=((d))/(f) | K15: (p) = 2011 Full Year Depreciation + (n) - (o)
A16: 1611 | B16: Computer Software (Formally known as Account 1925) | E16: =IF(D16=0,0,1/D16) -> 0 | F16: =IF(D16=0,+'App.2-CB_MIFRS_DepExp_2011'!O16,+'App.2-CB_MIFRS_DepExp_2011'!O16+((C16*0.5)/D16)) -> 0 | H16: =IF(ISERROR(+F16-G16), 0, +F16-G16) -> 0 | I16: =IF(D16=0,0,+(C16)/D16) -> 0 | K16: =IF(ISERROR(+I16+'App.2-CB_MIFRS_DepExp_2011'!O16-J16), 0, +I16+'App.2-CB_MIFRS_DepExp_2011'!O16-J16) -> 0
A17: 1612 | B17: Land Rights (Formally known as Account 1906) | E17: 0 | F17: =IF(D17=0,+'App.2-CB_MIFRS_DepExp_2011'!O17,+'App.2-CB_MIFRS_DepExp_2011'!O17+((C17*0.5)/D17)) -> 0 | H17: 0 | I17: 0 | K17: =IF(ISERROR(+I17+'App.2-CB_MIFRS_DepExp_2011'!O17-J17), 0, +I17+'App.2-CB_MIFRS_DepExp_2011'!O17-J17) -> 0
A18: 1805 | B18: Land | E18: 0 | F18: =IF(D18=0,+'App.2-CB_MIFRS_DepExp_2011'!O18,+'App.2-CB_MIFRS_DepExp_2011'!O18+((C18*0.5)/D18)) -> 0 | H18: 0 | I18: 0 | K18: =IF(ISERROR(+I18+'App.2-CB_MIFRS_DepExp_2011'!O18-J18), 0, +I18+'App.2-CB_MIFRS_DepExp_2011'!O18-J18) -> 0
A19: 1808 | B19: Buildings | E19: 0 | F19: =IF(D19=0,+'App.2-CB_MIFRS_DepExp_2011'!O19,+'App.2-CB_MIFRS_DepExp_2011'!O19+((C19*0.5)/D19)) -> 0 | H19: 0 | I19: 0 | K19: =IF(ISERROR(+I19+'App.2-CB_MIFRS_DepExp_2011'!O19-J19), 0, +I19+'App.2-CB_MIFRS_DepExp_2011'!O19-J19) -> 0
A20: 1810 | B20: Leasehold Improvements | E20: 0 | F20: =IF(D20=0,+'App.2-CB_MIFRS_DepExp_2011'!O20,+'App.2-CB_MIFRS_DepExp_2011'!O20+((C20*0.5)/D20)) -> 0 | H20: 0 | I20: 0 | K20: =IF(ISERROR(+I20+'App.2-CB_MIFRS_DepExp_2011'!O20-J20), 0, +I20+'App.2-CB_MIFRS_DepExp_2011'!O20-J20) -> 0
A21: 1815 | B21: Transformer Station Equipment >50 kV | E21: 0 | F21: =IF(D21=0,+'App.2-CB_MIFRS_DepExp_2011'!O21,+'App.2-CB_MIFRS_DepExp_2011'!O21+((C21*0.5)/D21)) -> 0 | H21: 0 | I21: 0 | K21: =IF(ISERROR(+I21+'App.2-CB_MIFRS_DepExp_2011'!O21-J21), 0, +I21+'App.2-CB_MIFRS_DepExp_2011'!O21-J21) -> 0
A22: 1820 | B22: Distribution Station Equipment <50 kV | E22: 0 | F22: =IF(D22=0,+'App.2-CB_MIFRS_DepExp_2011'!O22,+'App.2-CB_MIFRS_DepExp_2011'!O22+((C22*0.5)/D22)) -> 0 | H22: 0 | I22: 0 | K22: =IF(ISERROR(+I22+'App.2-CB_MIFRS_DepExp_2011'!O22-J22), 0, +I22+'App.2-CB_MIFRS_DepExp_2011'!O22-J22) -> 0
A23: 1825 | B23: Storage Battery Equipment | E23: 0 | F23: =IF(D23=0,+'App.2-CB_MIFRS_DepExp_2011'!O23,+'App.2-CB_MIFRS_DepExp_2011'!O23+((C23*0.5)/D23)) -> 0 | H23: 0 | I23: 0 | K23: =IF(ISERROR(+I23+'App.2-CB_MIFRS_DepExp_2011'!O23-J23), 0, +I23+'App.2-CB_MIFRS_DepExp_2011'!O23-J23) -> 0
A24: 1830 | B24: Poles, Towers & Fixtures | E24: 0 | F24: =IF(D24=0,+'App.2-CB_MIFRS_DepExp_2011'!O24,+'App.2-CB_MIFRS_DepExp_2011'!O24+((C24*0.5)/D24)) -> 0 | H24: 0 | I24: 0 | K24: =IF(ISERROR(+I24+'App.2-CB_MIFRS_DepExp_2011'!O24-J24), 0, +I24+'App.2-CB_MIFRS_DepExp_2011'!O24-J24) -> 0
A25: 1835 | B25: Overhead Conductors & Devices | E25: 0 | F25: =IF(D25=0,+'App.2-CB_MIFRS_DepExp_2011'!O25,+'App.2-CB_MIFRS_DepExp_2011'!O25+((C25*0.5)/D25)) -> 0 | H25: 0 | I25: 0 | K25: =IF(ISERROR(+I25+'App.2-CB_MIFRS_DepExp_2011'!O25-J25), 0, +I25+'App.2-CB_MIFRS_DepExp_2011'!O25-J25) -> 0
A26: 1840 | B26: Underground Conduit | E26: 0 | F26: =IF(D26=0,+'App.2-CB_MIFRS_DepExp_2011'!O26,+'App.2-CB_MIFRS_DepExp_2011'!O26+((C26*0.5)/D26)) -> 0 | H26: 0 | I26: 0 | K26: =IF(ISERROR(+I26+'App.2-CB_MIFRS_DepExp_2011'!O26-J26), 0, +I26+'App.2-CB_MIFRS_DepExp_2011'!O26-J26) -> 0
A27: 1845 | B27: Underground Conductors & Devices | E27: 0 | F27: =IF(D27=0,+'App.2-CB_MIFRS_DepExp_2011'!O27,+'App.2-CB_MIFRS_DepExp_2011'!O27+((C27*0.5)/D27)) -> 0 | H27: 0 | I27: 0 | K27: =IF(ISERROR(+I27+'App.2-CB_MIFRS_DepExp_2011'!O27-J27), 0, +I27+'App.2-CB_MIFRS_DepExp_2011'!O27-J27) -> 0
A28: 1850 | B28: Line Transformers | E28: 0 | F28: =IF(D28=0,+'App.2-CB_MIFRS_DepExp_2011'!O28,+'App.2-CB_MIFRS_DepExp_2011'!O28+((C28*0.5)/D28)) -> 0 | H28: 0 | I28: 0 | K28: =IF(ISERROR(+I28+'App.2-CB_MIFRS_DepExp_2011'!O28-J28), 0, +I28+'App.2-CB_MIFRS_DepExp_2011'!O28-J28) -> 0
A29: 1855 | B29: Services (Overhead & Underground) | E29: 0 | F29: =IF(D29=0,+'App.2-CB_MIFRS_DepExp_2011'!O29,+'App.2-CB_MIFRS_DepExp_2011'!O29+((C29*0.5)/D29)) -> 0 | H29: 0 | I29: 0 | K29: =IF(ISERROR(+I29+'App.2-CB_MIFRS_DepExp_2011'!O29-J29), 0, +I29+'App.2-CB_MIFRS_DepExp_2011'!O29-J29) -> 0
A30: 1860 | B30: Meters | E30: 0 | F30: =IF(D30=0,+'App.2-CB_MIFRS_DepExp_2011'!O30,+'App.2-CB_MIFRS_DepExp_2011'!O30+((C30*0.5)/D30)) -> 0 | H30: 0 | I30: 0 | K30: =IF(ISERROR(+I30+'App.2-CB_MIFRS_DepExp_2011'!O30-J30), 0, +I30+'App.2-CB_MIFRS_DepExp_2011'!O30-J30) -> 0
A31: 1860 | B31: Meters (Smart Meters) | E31: 0 | F31: =IF(D31=0,+'App.2-CB_MIFRS_DepExp_2011'!O31,+'App.2-CB_MIFRS_DepExp_2011'!O31+((C31*0.5)/D31)) -> 0 | H31: 0 | I31: 0 | K31: =IF(ISERROR(+I31+'App.2-CB_MIFRS_DepExp_2011'!O31-J31), 0, +I31+'App.2-CB_MIFRS_DepExp_2011'!O31-J31) -> 0
A32: 1905 | B32: Land | E32: 0 | F32: =IF(D32=0,+'App.2-CB_MIFRS_DepExp_2011'!O32,+'App.2-CB_MIFRS_DepExp_2011'!O32+((C32*0.5)/D32)) -> 0 | H32: 0 | I32: 0 | K32: =IF(ISERROR(+I32+'App.2-CB_MIFRS_DepExp_2011'!O32-J32), 0, +I32+'App.2-CB_MIFRS_DepExp_2011'!O32-J32) -> 0
A33: 1908 | B33: Buildings & Fixtures | E33: 0 | F33: =IF(D33=0,+'App.2-CB_MIFRS_DepExp_2011'!O33,+'App.2-CB_MIFRS_DepExp_2011'!O33+((C33*0.5)/D33)) -> 0 | H33: 0 | I33: 0 | K33: =IF(ISERROR(+I33+'App.2-CB_MIFRS_DepExp_2011'!O33-J33), 0, +I33+'App.2-CB_MIFRS_DepExp_2011'!O33-J33) -> 0
A34: 1910 | B34: Leasehold Improvements | E34: 0 | F34: =IF(D34=0,+'App.2-CB_MIFRS_DepExp_2011'!O34,+'App.2-CB_MIFRS_DepExp_2011'!O34+((C34*0.5)/D34)) -> 0 | H34: 0 | I34: 0 | K34: =IF(ISERROR(+I34+'App.2-CB_MIFRS_DepExp_2011'!O34-J34), 0, +I34+'App.2-CB_MIFRS_DepExp_2011'!O34-J34) -> 0
A35: 1915 | B35: Office Furniture & Equipment (10 years) | E35: 0 | F35: =IF(D35=0,+'App.2-CB_MIFRS_DepExp_2011'!O35,+'App.2-CB_MIFRS_DepExp_2011'!O35+((C35*0.5)/D35)) -> 0 | H35: 0 | I35: 0 | K35: =IF(ISERROR(+I35+'App.2-CB_MIFRS_DepExp_2011'!O35-J35), 0, +I35+'App.2-CB_MIFRS_DepExp_2011'!O35-J35) -> 0
A36: 1915 | B36: Office Furniture & Equipment (5 years) | E36: 0 | F36: =IF(D36=0,+'App.2-CB_MIFRS_DepExp_2011'!O36,+'App.2-CB_MIFRS_DepExp_2011'!O36+((C36*0.5)/D36)) -> 0 | H36: 0 | I36: 0 | K36: =IF(ISERROR(+I36+'App.2-CB_MIFRS_DepExp_2011'!O36-J36), 0, +I36+'App.2-CB_MIFRS_DepExp_2011'!O36-J36) -> 0
A37: 1920 | B37: Computer Equipment - Hardware | E37: 0 | F37: =IF(D37=0,+'App.2-CB_MIFRS_DepExp_2011'!O37,+'App.2-CB_MIFRS_DepExp_2011'!O37+((C37*0.5)/D37)) -> 0 | H37: 0 | I37: 0 | K37: =IF(ISERROR(+I37+'App.2-CB_MIFRS_DepExp_2011'!O37-J37), 0, +I37+'App.2-CB_MIFRS_DepExp_2011'!O37-J37) -> 0
A38: 1920 | B38: Computer Equip.-Hardware(Post Mar. 22/04) | E38: 0 | F38: =IF(D38=0,+'App.2-CB_MIFRS_DepExp_2011'!O38,+'App.2-CB_MIFRS_DepExp_2011'!O38+((C38*0.5)/D38)) -> 0 | H38: 0 | I38: 0 | K38: =IF(ISERROR(+I38+'App.2-CB_MIFRS_DepExp_2011'!O38-J38), 0, +I38+'App.2-CB_MIFRS_DepExp_2011'!O38-J38) -> 0
A39: 1920 | B39: Computer Equip.-Hardware(Post Mar. 19/07) | E39: 0 | F39: =IF(D39=0,+'App.2-CB_MIFRS_DepExp_2011'!O39,+'App.2-CB_MIFRS_DepExp_2011'!O39+((C39*0.5)/D39)) -> 0 | H39: 0 | I39: 0 | K39: =IF(ISERROR(+I39+'App.2-CB_MIFRS_DepExp_2011'!O39-J39), 0, +I39+'App.2-CB_MIFRS_DepExp_2011'!O39-J39) -> 0
A40: 1930 | B40: Transportation Equipment | E40: 0 | F40: =IF(D40=0,+'App.2-CB_MIFRS_DepExp_2011'!O40,+'App.2-CB_MIFRS_DepExp_2011'!O40+((C40*0.5)/D40)) -> 0 | H40: 0 | I40: 0 | K40: =IF(ISERROR(+I40+'App.2-CB_MIFRS_DepExp_2011'!O40-J40), 0, +I40+'App.2-CB_MIFRS_DepExp_2011'!O40-J40) -> 0
A41: 1935 | B41: Stores Equipment | E41: 0 | F41: =IF(D41=0,+'App.2-CB_MIFRS_DepExp_2011'!O41,+'App.2-CB_MIFRS_DepExp_2011'!O41+((C41*0.5)/D41)) -> 0 | H41: 0 | I41: 0 | K41: =IF(ISERROR(+I41+'App.2-CB_MIFRS_DepExp_2011'!O41-J41), 0, +I41+'App.2-CB_MIFRS_DepExp_2011'!O41-J41) -> 0
A42: 1940 | B42: Tools, Shop & Garage Equipment | E42: 0 | F42: =IF(D42=0,+'App.2-CB_MIFRS_DepExp_2011'!O42,+'App.2-CB_MIFRS_DepExp_2011'!O42+((C42*0.5)/D42)) -> 0 | H42: 0 | I42: 0 | K42: =IF(ISERROR(+I42+'App.2-CB_MIFRS_DepExp_2011'!O42-J42), 0, +I42+'App.2-CB_MIFRS_DepExp_2011'!O42-J42) -> 0
A43: 1945 | B43: Measurement & Testing Equipment | E43: 0 | F43: =IF(D43=0,+'App.2-CB_MIFRS_DepExp_2011'!O43,+'App.2-CB_MIFRS_DepExp_2011'!O43+((C43*0.5)/D43)) -> 0 | H43: 0 | I43: 0 | K43: =IF(ISERROR(+I43+'App.2-CB_MIFRS_DepExp_2011'!O43-J43), 0, +I43+'App.2-CB_MIFRS_DepExp_2011'!O43-J43) -> 0
A44: 1950 | B44: Power Operated Equipment | E44: 0 | F44: =IF(D44=0,+'App.2-CB_MIFRS_DepExp_2011'!O44,+'App.2-CB_MIFRS_DepExp_2011'!O44+((C44*0.5)/D44)) -> 0 | H44: 0 | I44: 0 | K44: =IF(ISERROR(+I44+'App.2-CB_MIFRS_DepExp_2011'!O44-J44), 0, +I44+'App.2-CB_MIFRS_DepExp_2011'!O44-J44) -> 0
A45: 1955 | B45: Communications Equipment | E45: 0 | F45: =IF(D45=0,+'App.2-CB_MIFRS_DepExp_2011'!O45,+'App.2-CB_MIFRS_DepExp_2011'!O45+((C45*0.5)/D45)) -> 0 | H45: 0 | I45: 0 | K45: =IF(ISERROR(+I45+'App.2-CB_MIFRS_DepExp_2011'!O45-J45), 0, +I45+'App.2-CB_MIFRS_DepExp_2011'!O45-J45) -> 0
A46: 1955 | B46: Communication Equipment (Smart Meters) | E46: 0 | F46: =IF(D46=0,+'App.2-CB_MIFRS_DepExp_2011'!O46,+'App.2-CB_MIFRS_DepExp_2011'!O46+((C46*0.5)/D46)) -> 0 | H46: 0 | I46: 0 | K46: =IF(ISERROR(+I46+'App.2-CB_MIFRS_DepExp_2011'!O46-J46), 0, +I46+'App.2-CB_MIFRS_DepExp_2011'!O46-J46) -> 0
A47: 1960 | B47: Miscellaneous Equipment | E47: 0 | F47: =IF(D47=0,+'App.2-CB_MIFRS_DepExp_2011'!O47,+'App.2-CB_MIFRS_DepExp_2011'!O47+((C47*0.5)/D47)) -> 0 | H47: 0 | I47: 0 | K47: =IF(ISERROR(+I47+'App.2-CB_MIFRS_DepExp_2011'!O47-J47), 0, +I47+'App.2-CB_MIFRS_DepExp_2011'!O47-J47) -> 0
A48: 1970 | B48: Load Management Controls Customer Premises | E48: 0 | F48: =IF(D48=0,+'App.2-CB_MIFRS_DepExp_2011'!O48,+'App.2-CB_MIFRS_DepExp_2011'!O48+((C48*0.5)/D48)) -> 0 | H48: 0 | I48: 0 | K48: =IF(ISERROR(+I48+'App.2-CB_MIFRS_DepExp_2011'!O48-J48), 0, +I48+'App.2-CB_MIFRS_DepExp_2011'!O48-J48) -> 0
A49: 1975 | B49: Load Management Controls Utility Premises | E49: 0 | F49: =IF(D49=0,+'App.2-CB_MIFRS_DepExp_2011'!O49,+'App.2-CB_MIFRS_DepExp_2011'!O49+((C49*0.5)/D49)) -> 0 | H49: 0 | I49: 0 | K49: =IF(ISERROR(+I49+'App.2-CB_MIFRS_DepExp_2011'!O49-J49), 0, +I49+'App.2-CB_MIFRS_DepExp_2011'!O49-J49) -> 0
A50: 1980 | B50: System Supervisor Equipment | E50: 0 | F50: =IF(D50=0,+'App.2-CB_MIFRS_DepExp_2011'!O50,+'App.2-CB_MIFRS_DepExp_2011'!O50+((C50*0.5)/D50)) -> 0 | H50: 0 | I50: 0 | K50: =IF(ISERROR(+I50+'App.2-CB_MIFRS_DepExp_2011'!O50-J50), 0, +I50+'App.2-CB_MIFRS_DepExp_2011'!O50-J50) -> 0
A51: 1985 | B51: Miscellaneous Fixed Assets | E51: 0 | F51: =IF(D51=0,+'App.2-CB_MIFRS_DepExp_2011'!O51,+'App.2-CB_MIFRS_DepExp_2011'!O51+((C51*0.5)/D51)) -> 0 | H51: 0 | I51: 0 | K51: =IF(ISERROR(+I51+'App.2-CB_MIFRS_DepExp_2011'!O51-J51), 0, +I51+'App.2-CB_MIFRS_DepExp_2011'!O51-J51) -> 0
A52: 1990 | B52: Other Tangible Property | E52: 0 | F52: =IF(D52=0,+'App.2-CB_MIFRS_DepExp_2011'!O52,+'App.2-CB_MIFRS_DepExp_2011'!O52+((C52*0.5)/D52)) -> 0 | H52: 0 | I52: 0 | K52: =IF(ISERROR(+I52+'App.2-CB_MIFRS_DepExp_2011'!O52-J52), 0, +I52+'App.2-CB_MIFRS_DepExp_2011'!O52-J52) -> 0
A53: 1995 | B53: Contributions & Grants | E53: 0 | F53: =IF(D53=0,+'App.2-CB_MIFRS_DepExp_2011'!O53,+'App.2-CB_MIFRS_DepExp_2011'!O53+((C53*0.5)/D53)) -> 0 | H53: 0 | I53: 0 | K53: =IF(ISERROR(+I53+'App.2-CB_MIFRS_DepExp_2011'!O53-J53), 0, +I53+'App.2-CB_MIFRS_DepExp_2011'!O53-J53) -> 0
A54: etc. | E54: 0 | F54: =IF(D54=0,+'App.2-CB_MIFRS_DepExp_2011'!O54,+'App.2-CB_MIFRS_DepExp_2011'!O54+((C54*0.5)/D54)) -> 0 | H54: 0 | I54: 0 | K54: =IF(ISERROR(+I54+'App.2-CB_MIFRS_DepExp_2011'!O54-J54), 0, +I54+'App.2-CB_MIFRS_DepExp_2011'!O54-J54) -> 0
E55: 0 | F55: =IF(D55=0,+'App.2-CB_MIFRS_DepExp_2011'!O55,+'App.2-CB_MIFRS_DepExp_2011'!O55+((C55*0.5)/D55)) -> 0 | H55: 0 | I55: 0 | K55: =IF(ISERROR(+I55+'App.2-CB_MIFRS_DepExp_2011'!O55-J55), 0, +I55+'App.2-CB_MIFRS_DepExp_2011'!O55-J55) -> 0
B56: Total | C56: =SUM(C16:C55) -> 0 | F56: =SUM(F16:F55) -> 0 | G56: 0 | H56: 0 | I56: 0 | J56: 0 | K56: 0
B57: Depreciation exp. adj. from gain or loss on the retirement of assets (pool of like assets) | F57: 0
B58: Total | F58: =+F56+F57 -> 0
A59: Notes:
A60: 1 | B60: Board policy of the "half-year" rule - the applicant must ensure that additions in the year attract a half-year depreciation expense in the first year. Deviations from this standard practice must be supported in the application.
A61: 2 | B61: The applicant must provide an explanation of material variances in evidence.
A62: 3 | B62: This column refers to the calculated full year depreciation but excludes the depreciation expense on assets fully depreciated during the year. This column is used for the purpose of calculating depreciation expense in the following year on the next worksheet.
A64: General: | B64: Applicants must provide a breakdown of depreciation and amortization expense in the above format for all relevant accounts. Asset Retirement Obligations (AROs), depreciation and accretion expense should be disclosed separately consistent with the Notes of historical Audited Financial Statements.

Sheet App.2-CD_MIFRS_DepExp_2013 (hidden)
J1: File Number: | K1: =EBNUMBER -> EB-2013-0160
J2: Exhibit:
J3: Tab:
J4: Schedule:
J5: Page:
J7: Date:
A9: Appendix 2-CD
A10: Depreciation and Amortization Expense
A11: Assumes the applicant adopted IFRS for financial reporting purposes January 1, 2012
C12: 2013 | D12: MIFRS
A14: Account | B14: Description | C14: Additions | D14: Years (new additions only) | E14: Depreciation Rate on New Additions | F14: 2013 Depreciation Expense 1 | G14: 2013 Depreciation Expense per Apppendix 2-B Fixed Assets, Column K (l) | H14: Variance 2 | I14: Depreciation Expense on 2013 Full Year Additions | J14: Less Depreciation Expense on Assets Fully Depreciated during the year (o) | K14: 2013 Full Year Depreciation 3
C15: (d) | D15: (f) | E15: (g) = 1 / (f) | F15: (h)=2012 Full Year Deprecation + ((d)*0.5)/(f) | H15: (m) = (h) - (l) | I15: (n)=((d))/(f) | K15: (p) = 2012 Full Year Depreciation + (n) - (o)
A16: 1611 | B16: Computer Software (Formally known as Account 1925) | E16: =IF(D16=0,0,1/D16) -> 0 | F16: =IF(D16=0,+'App.2-CC_MIFRS_DepExp_2012'!K16,+'App.2-CC_MIFRS_DepExp_2012'!K16+((C16*0.5)/D16)) -> 0 | H16: =IF(ISERROR(+F16-G16), 0, +F16-G16) -> 0 | I16: =IF(D16=0,0,+(C16)/D16) -> 0 | K16: =IF(ISERROR(+I16+'App.2-CC_MIFRS_DepExp_2012'!K16-J16), 0, +I16+'App.2-CC_MIFRS_DepExp_2012'!K16-J16) -> 0
A17: 1612 | B17: Land Rights (Formally known as Account 1906) | E17: 0 | F17: =IF(D17=0,+'App.2-CC_MIFRS_DepExp_2012'!K17,+'App.2-CC_MIFRS_DepExp_2012'!K17+((C17*0.5)/D17)) -> 0 | H17: 0 | I17: 0 | K17: =IF(ISERROR(+I17+'App.2-CC_MIFRS_DepExp_2012'!K17-J17), 0, +I17+'App.2-CC_MIFRS_DepExp_2012'!K17-J17) -> 0
A18: 1805 | B18: Land | E18: 0 | F18: =IF(D18=0,+'App.2-CC_MIFRS_DepExp_2012'!K18,+'App.2-CC_MIFRS_DepExp_2012'!K18+((C18*0.5)/D18)) -> 0 | H18: 0 | I18: 0 | K18: =IF(ISERROR(+I18+'App.2-CC_MIFRS_DepExp_2012'!K18-J18), 0, +I18+'App.2-CC_MIFRS_DepExp_2012'!K18-J18) -> 0
A19: 1808 | B19: Buildings | E19: 0 | F19: =IF(D19=0,+'App.2-CC_MIFRS_DepExp_2012'!K19,+'App.2-CC_MIFRS_DepExp_2012'!K19+((C19*0.5)/D19)) -> 0 | H19: 0 | I19: 0 | K19: =IF(ISERROR(+I19+'App.2-CC_MIFRS_DepExp_2012'!K19-J19), 0, +I19+'App.2-CC_MIFRS_DepExp_2012'!K19-J19) -> 0
A20: 1810 | B20: Leasehold Improvements | E20: 0 | F20: =IF(D20=0,+'App.2-CC_MIFRS_DepExp_2012'!K20,+'App.2-CC_MIFRS_DepExp_2012'!K20+((C20*0.5)/D20)) -> 0 | H20: 0 | I20: 0 | K20: =IF(ISERROR(+I20+'App.2-CC_MIFRS_DepExp_2012'!K20-J20), 0, +I20+'App.2-CC_MIFRS_DepExp_2012'!K20-J20) -> 0
A21: 1815 | B21: Transformer Station Equipment >50 kV | E21: 0 | F21: =IF(D21=0,+'App.2-CC_MIFRS_DepExp_2012'!K21,+'App.2-CC_MIFRS_DepExp_2012'!K21+((C21*0.5)/D21)) -> 0 | H21: 0 | I21: 0 | K21: =IF(ISERROR(+I21+'App.2-CC_MIFRS_DepExp_2012'!K21-J21), 0, +I21+'App.2-CC_MIFRS_DepExp_2012'!K21-J21) -> 0
A22: 1820 | B22: Distribution Station Equipment <50 kV | E22: 0 | F22: =IF(D22=0,+'App.2-CC_MIFRS_DepExp_2012'!K22,+'App.2-CC_MIFRS_DepExp_2012'!K22+((C22*0.5)/D22)) -> 0 | H22: 0 | I22: 0 | K22: =IF(ISERROR(+I22+'App.2-CC_MIFRS_DepExp_2012'!K22-J22), 0, +I22+'App.2-CC_MIFRS_DepExp_2012'!K22-J22) -> 0
A23: 1825 | B23: Storage Battery Equipment | E23: 0 | F23: =IF(D23=0,+'App.2-CC_MIFRS_DepExp_2012'!K23,+'App.2-CC_MIFRS_DepExp_2012'!K23+((C23*0.5)/D23)) -> 0 | H23: 0 | I23: 0 | K23: =IF(ISERROR(+I23+'App.2-CC_MIFRS_DepExp_2012'!K23-J23), 0, +I23+'App.2-CC_MIFRS_DepExp_2012'!K23-J23) -> 0
A24: 1830 | B24: Poles, Towers & Fixtures | E24: 0 | F24: =IF(D24=0,+'App.2-CC_MIFRS_DepExp_2012'!K24,+'App.2-CC_MIFRS_DepExp_2012'!K24+((C24*0.5)/D24)) -> 0 | H24: 0 | I24: 0 | K24: =IF(ISERROR(+I24+'App.2-CC_MIFRS_DepExp_2012'!K24-J24), 0, +I24+'App.2-CC_MIFRS_DepExp_2012'!K24-J24) -> 0
A25: 1835 | B25: Overhead Conductors & Devices | E25: 0 | F25: =IF(D25=0,+'App.2-CC_MIFRS_DepExp_2012'!K25,+'App.2-CC_MIFRS_DepExp_2012'!K25+((C25*0.5)/D25)) -> 0 | H25: 0 | I25: 0 | K25: =IF(ISERROR(+I25+'App.2-CC_MIFRS_DepExp_2012'!K25-J25), 0, +I25+'App.2-CC_MIFRS_DepExp_2012'!K25-J25) -> 0
A26: 1840 | B26: Underground Conduit | E26: 0 | F26: =IF(D26=0,+'App.2-CC_MIFRS_DepExp_2012'!K26,+'App.2-CC_MIFRS_DepExp_2012'!K26+((C26*0.5)/D26)) -> 0 | H26: 0 | I26: 0 | K26: =IF(ISERROR(+I26+'App.2-CC_MIFRS_DepExp_2012'!K26-J26), 0, +I26+'App.2-CC_MIFRS_DepExp_2012'!K26-J26) -> 0
A27: 1845 | B27: Underground Conductors & Devices | E27: 0 | F27: =IF(D27=0,+'App.2-CC_MIFRS_DepExp_2012'!K27,+'App.2-CC_MIFRS_DepExp_2012'!K27+((C27*0.5)/D27)) -> 0 | H27: 0 | I27: 0 | K27: =IF(ISERROR(+I27+'App.2-CC_MIFRS_DepExp_2012'!K27-J27), 0, +I27+'App.2-CC_MIFRS_DepExp_2012'!K27-J27) -> 0
A28: 1850 | B28: Line Transformers | E28: 0 | F28: =IF(D28=0,+'App.2-CC_MIFRS_DepExp_2012'!K28,+'App.2-CC_MIFRS_DepExp_2012'!K28+((C28*0.5)/D28)) -> 0 | H28: 0 | I28: 0 | K28: =IF(ISERROR(+I28+'App.2-CC_MIFRS_DepExp_2012'!K28-J28), 0, +I28+'App.2-CC_MIFRS_DepExp_2012'!K28-J28) -> 0
A29: 1855 | B29: Services (Overhead & Underground) | E29: 0 | F29: =IF(D29=0,+'App.2-CC_MIFRS_DepExp_2012'!K29,+'App.2-CC_MIFRS_DepExp_2012'!K29+((C29*0.5)/D29)) -> 0 | H29: 0 | I29: 0 | K29: =IF(ISERROR(+I29+'App.2-CC_MIFRS_DepExp_2012'!K29-J29), 0, +I29+'App.2-CC_MIFRS_DepExp_2012'!K29-J29) -> 0
A30: 1860 | B30: Meters | E30: 0 | F30: =IF(D30=0,+'App.2-CC_MIFRS_DepExp_2012'!K30,+'App.2-CC_MIFRS_DepExp_2012'!K30+((C30*0.5)/D30)) -> 0 | H30: 0 | I30: 0 | K30: =IF(ISERROR(+I30+'App.2-CC_MIFRS_DepExp_2012'!K30-J30), 0, +I30+'App.2-CC_MIFRS_DepExp_2012'!K30-J30) -> 0
A31: 1860 | B31: Meters (Smart Meters) | E31: 0 | F31: =IF(D31=0,+'App.2-CC_MIFRS_DepExp_2012'!K31,+'App.2-CC_MIFRS_DepExp_2012'!K31+((C31*0.5)/D31)) -> 0 | H31: 0 | I31: 0 | K31: =IF(ISERROR(+I31+'App.2-CC_MIFRS_DepExp_2012'!K31-J31), 0, +I31+'App.2-CC_MIFRS_DepExp_2012'!K31-J31) -> 0
A32: 1905 | B32: Land | E32: 0 | F32: =IF(D32=0,+'App.2-CC_MIFRS_DepExp_2012'!K32,+'App.2-CC_MIFRS_DepExp_2012'!K32+((C32*0.5)/D32)) -> 0 | H32: 0 | I32: 0 | K32: =IF(ISERROR(+I32+'App.2-CC_MIFRS_DepExp_2012'!K32-J32), 0, +I32+'App.2-CC_MIFRS_DepExp_2012'!K32-J32) -> 0
A33: 1908 | B33: Buildings & Fixtures | E33: 0 | F33: =IF(D33=0,+'App.2-CC_MIFRS_DepExp_2012'!K33,+'App.2-CC_MIFRS_DepExp_2012'!K33+((C33*0.5)/D33)) -> 0 | H33: 0 | I33: 0 | K33: =IF(ISERROR(+I33+'App.2-CC_MIFRS_DepExp_2012'!K33-J33), 0, +I33+'App.2-CC_MIFRS_DepExp_2012'!K33-J33) -> 0
A34: 1910 | B34: Leasehold Improvements | E34: 0 | F34: =IF(D34=0,+'App.2-CC_MIFRS_DepExp_2012'!K34,+'App.2-CC_MIFRS_DepExp_2012'!K34+((C34*0.5)/D34)) -> 0 | H34: 0 | I34: 0 | K34: =IF(ISERROR(+I34+'App.2-CC_MIFRS_DepExp_2012'!K34-J34), 0, +I34+'App.2-CC_MIFRS_DepExp_2012'!K34-J34) -> 0
A35: 1915 | B35: Office Furniture & Equipment (10 years) | E35: 0 | F35: =IF(D35=0,+'App.2-CC_MIFRS_DepExp_2012'!K35,+'App.2-CC_MIFRS_DepExp_2012'!K35+((C35*0.5)/D35)) -> 0 | H35: 0 | I35: 0 | K35: =IF(ISERROR(+I35+'App.2-CC_MIFRS_DepExp_2012'!K35-J35), 0, +I35+'App.2-CC_MIFRS_DepExp_2012'!K35-J35) -> 0
A36: 1915 | B36: Office Furniture & Equipment (5 years) | E36: 0 | F36: =IF(D36=0,+'App.2-CC_MIFRS_DepExp_2012'!K36,+'App.2-CC_MIFRS_DepExp_2012'!K36+((C36*0.5)/D36)) -> 0 | H36: 0 | I36: 0 | K36: =IF(ISERROR(+I36+'App.2-CC_MIFRS_DepExp_2012'!K36-J36), 0, +I36+'App.2-CC_MIFRS_DepExp_2012'!K36-J36) -> 0
A37: 1920 | B37: Computer Equipment - Hardware | E37: 0 | F37: =IF(D37=0,+'App.2-CC_MIFRS_DepExp_2012'!K37,+'App.2-CC_MIFRS_DepExp_2012'!K37+((C37*0.5)/D37)) -> 0 | H37: 0 | I37: 0 | K37: =IF(ISERROR(+I37+'App.2-CC_MIFRS_DepExp_2012'!K37-J37), 0, +I37+'App.2-CC_MIFRS_DepExp_2012'!K37-J37) -> 0
A38: 1920 | B38: Computer Equip.-Hardware(Post Mar. 22/04) | E38: 0 | F38: =IF(D38=0,+'App.2-CC_MIFRS_DepExp_2012'!K38,+'App.2-CC_MIFRS_DepExp_2012'!K38+((C38*0.5)/D38)) -> 0 | H38: 0 | I38: 0 | K38: =IF(ISERROR(+I38+'App.2-CC_MIFRS_DepExp_2012'!K38-J38), 0, +I38+'App.2-CC_MIFRS_DepExp_2012'!K38-J38) -> 0
A39: 1920 | B39: Computer Equip.-Hardware(Post Mar. 19/07) | E39: 0 | F39: =IF(D39=0,+'App.2-CC_MIFRS_DepExp_2012'!K39,+'App.2-CC_MIFRS_DepExp_2012'!K39+((C39*0.5)/D39)) -> 0 | H39: 0 | I39: 0 | K39: =IF(ISERROR(+I39+'App.2-CC_MIFRS_DepExp_2012'!K39-J39), 0, +I39+'App.2-CC_MIFRS_DepExp_2012'!K39-J39) -> 0
A40: 1930 | B40: Transportation Equipment | E40: 0 | F40: =IF(D40=0,+'App.2-CC_MIFRS_DepExp_2012'!K40,+'App.2-CC_MIFRS_DepExp_2012'!K40+((C40*0.5)/D40)) -> 0 | H40: 0 | I40: 0 | K40: =IF(ISERROR(+I40+'App.2-CC_MIFRS_DepExp_2012'!K40-J40), 0, +I40+'App.2-CC_MIFRS_DepExp_2012'!K40-J40) -> 0
A41: 1935 | B41: Stores Equipment | E41: 0 | F41: =IF(D41=0,+'App.2-CC_MIFRS_DepExp_2012'!K41,+'App.2-CC_MIFRS_DepExp_2012'!K41+((C41*0.5)/D41)) -> 0 | H41: 0 | I41: 0 | K41: =IF(ISERROR(+I41+'App.2-CC_MIFRS_DepExp_2012'!K41-J41), 0, +I41+'App.2-CC_MIFRS_DepExp_2012'!K41-J41) -> 0
A42: 1940 | B42: Tools, Shop & Garage Equipment | E42: 0 | F42: =IF(D42=0,+'App.2-CC_MIFRS_DepExp_2012'!K42,+'App.2-CC_MIFRS_DepExp_2012'!K42+((C42*0.5)/D42)) -> 0 | H42: 0 | I42: 0 | K42: =IF(ISERROR(+I42+'App.2-CC_MIFRS_DepExp_2012'!K42-J42), 0, +I42+'App.2-CC_MIFRS_DepExp_2012'!K42-J42) -> 0
A43: 1945 | B43: Measurement & Testing Equipment | E43: 0 | F43: =IF(D43=0,+'App.2-CC_MIFRS_DepExp_2012'!K43,+'App.2-CC_MIFRS_DepExp_2012'!K43+((C43*0.5)/D43)) -> 0 | H43: 0 | I43: 0 | K43: =IF(ISERROR(+I43+'App.2-CC_MIFRS_DepExp_2012'!K43-J43), 0, +I43+'App.2-CC_MIFRS_DepExp_2012'!K43-J43) -> 0
A44: 1950 | B44: Power Operated Equipment | E44: 0 | F44: =IF(D44=0,+'App.2-CC_MIFRS_DepExp_2012'!K44,+'App.2-CC_MIFRS_DepExp_2012'!K44+((C44*0.5)/D44)) -> 0 | H44: 0 | I44: 0 | K44: =IF(ISERROR(+I44+'App.2-CC_MIFRS_DepExp_2012'!K44-J44), 0, +I44+'App.2-CC_MIFRS_DepExp_2012'!K44-J44) -> 0
A45: 1955 | B45: Communications Equipment | E45: 0 | F45: =IF(D45=0,+'App.2-CC_MIFRS_DepExp_2012'!K45,+'App.2-CC_MIFRS_DepExp_2012'!K45+((C45*0.5)/D45)) -> 0 | H45: 0 | I45: 0 | K45: =IF(ISERROR(+I45+'App.2-CC_MIFRS_DepExp_2012'!K45-J45), 0, +I45+'App.2-CC_MIFRS_DepExp_2012'!K45-J45) -> 0
A46: 1955 | B46: Communication Equipment (Smart Meters) | E46: 0 | F46: =IF(D46=0,+'App.2-CC_MIFRS_DepExp_2012'!K46,+'App.2-CC_MIFRS_DepExp_2012'!K46+((C46*0.5)/D46)) -> 0 | H46: 0 | I46: 0 | K46: =IF(ISERROR(+I46+'App.2-CC_MIFRS_DepExp_2012'!K46-J46), 0, +I46+'App.2-CC_MIFRS_DepExp_2012'!K46-J46) -> 0
A47: 1960 | B47: Miscellaneous Equipment | E47: 0 | F47: =IF(D47=0,+'App.2-CC_MIFRS_DepExp_2012'!K47,+'App.2-CC_MIFRS_DepExp_2012'!K47+((C47*0.5)/D47)) -> 0 | H47: 0 | I47: 0 | K47: =IF(ISERROR(+I47+'App.2-CC_MIFRS_DepExp_2012'!K47-J47), 0, +I47+'App.2-CC_MIFRS_DepExp_2012'!K47-J47) -> 0
A48: 1970 | B48: Load Management Controls Customer Premises | E48: 0 | F48: =IF(D48=0,+'App.2-CC_MIFRS_DepExp_2012'!K48,+'App.2-CC_MIFRS_DepExp_2012'!K48+((C48*0.5)/D48)) -> 0 | H48: 0 | I48: 0 | K48: =IF(ISERROR(+I48+'App.2-CC_MIFRS_DepExp_2012'!K48-J48), 0, +I48+'App.2-CC_MIFRS_DepExp_2012'!K48-J48) -> 0
A49: 1975 | B49: Load Management Controls Utility Premises | E49: 0 | F49: =IF(D49=0,+'App.2-CC_MIFRS_DepExp_2012'!K49,+'App.2-CC_MIFRS_DepExp_2012'!K49+((C49*0.5)/D49)) -> 0 | H49: 0 | I49: 0 | K49: =IF(ISERROR(+I49+'App.2-CC_MIFRS_DepExp_2012'!K49-J49), 0, +I49+'App.2-CC_MIFRS_DepExp_2012'!K49-J49) -> 0
A50: 1980 | B50: System Supervisor Equipment | E50: 0 | F50: =IF(D50=0,+'App.2-CC_MIFRS_DepExp_2012'!K50,+'App.2-CC_MIFRS_DepExp_2012'!K50+((C50*0.5)/D50)) -> 0 | H50: 0 | I50: 0 | K50: =IF(ISERROR(+I50+'App.2-CC_MIFRS_DepExp_2012'!K50-J50), 0, +I50+'App.2-CC_MIFRS_DepExp_2012'!K50-J50) -> 0
A51: 1985 | B51: Miscellaneous Fixed Assets | E51: 0 | F51: =IF(D51=0,+'App.2-CC_MIFRS_DepExp_2012'!K51,+'App.2-CC_MIFRS_DepExp_2012'!K51+((C51*0.5)/D51)) -> 0 | H51: 0 | I51: 0 | K51: =IF(ISERROR(+I51+'App.2-CC_MIFRS_DepExp_2012'!K51-J51), 0, +I51+'App.2-CC_MIFRS_DepExp_2012'!K51-J51) -> 0
A52: 1990 | B52: Other Tangible Property | E52: 0 | F52: =IF(D52=0,+'App.2-CC_MIFRS_DepExp_2012'!K52,+'App.2-CC_MIFRS_DepExp_2012'!K52+((C52*0.5)/D52)) -> 0 | H52: 0 | I52: 0 | K52: =IF(ISERROR(+I52+'App.2-CC_MIFRS_DepExp_2012'!K52-J52), 0, +I52+'App.2-CC_MIFRS_DepExp_2012'!K52-J52) -> 0
A53: 1995 | B53: Contributions & Grants | E53: 0 | F53: =IF(D53=0,+'App.2-CC_MIFRS_DepExp_2012'!K53,+'App.2-CC_MIFRS_DepExp_2012'!K53+((C53*0.5)/D53)) -> 0 | H53: 0 | I53: 0 | K53: =IF(ISERROR(+I53+'App.2-CC_MIFRS_DepExp_2012'!K53-J53), 0, +I53+'App.2-CC_MIFRS_DepExp_2012'!K53-J53) -> 0
A54: etc. | E54: 0 | F54: =IF(D54=0,+'App.2-CC_MIFRS_DepExp_2012'!K54,+'App.2-CC_MIFRS_DepExp_2012'!K54+((C54*0.5)/D54)) -> 0 | H54: 0 | I54: 0 | K54: =IF(ISERROR(+I54+'App.2-CC_MIFRS_DepExp_2012'!K54-J54), 0, +I54+'App.2-CC_MIFRS_DepExp_2012'!K54-J54) -> 0
E55: 0 | F55: =IF(D55=0,+'App.2-CC_MIFRS_DepExp_2012'!K55,+'App.2-CC_MIFRS_DepExp_2012'!K55+((C55*0.5)/D55)) -> 0 | H55: 0 | I55: 0 | K55: =IF(ISERROR(+I55+'App.2-CC_MIFRS_DepExp_2012'!K55-J55), 0, +I55+'App.2-CC_MIFRS_DepExp_2012'!K55-J55) -> 0
B56: Total | C56: =SUM(C16:C55) -> 0 | F56: =SUM(F16:F55) -> 0 | G56: 0 | H56: 0 | I56: 0 | J56: 0 | K56: 0
B57: Depreciation exp. adj. from gain or loss on the retirement of assets (pool of like assets) | F57: 0
B58: Total | F58: =+F57+F56 -> 0
A59: Notes:
A60: 1 | B60: Board policy of the "half-year" rule - the applicant must ensure that additions in the year attract a half-year depreciation expense in the first year. Deviations from this standard practice must be supported in the application.
A61: 2 | B61: The applicant must provide an explanation of material variances in evidence.
A62: 3 | B62: This column refers to the calculated full year depreciation but excludes the depreciation expense on assets fully depreciated during the year. This column is used for the purpose of calculating depreciation expense in the following year on the next worksheet.
A64: General: | B64: Applicants must provide a breakdown of depreciation and amortization expense in the above format for all relevant accounts. Asset Retirement Obligations (AROs), depreciation and accretion expense should be disclosed separately consistent with the Notes of historical Audited Financial Statements.

Sheet App.2-CE_MIFRS_DepExp_2014 (hidden)
G1: File Number: | H1: =EBNUMBER -> EB-2013-0160
G2: Exhibit:
G3: Tab:
G4: Schedule:
G5: Page:
G7: Date:
A9: Appendix 2-CE
A10: Depreciation and Amortization Expense
A11: Assumes the applicant adopted IFRS for financial reporting purposes January 1, 2012
C12: 2014 | D12: MIFRS
A14: Account | B14: Description | C14: Additions | D14: Years (new additions only) | E14: Depreciation Rate on New Additions | F14: 2014 Depreciation Expense 1 | G14: 2014 Depreciation Expense per Appendix 2-B Fixed Assets, Column K (l) | H14: Variance 2
C15: (d) | D15: (f) | E15: (g) = 1 / (f) | F15: (h)=2013 Full Year Depreciation + ((d)*0.5)/(f) | H15: (m) = (h) - (l)
A16: 1611 | B16: Computer Software (Formally known as Account 1925) | E16: =IF(D16=0,0,1/D16) -> 0 | F16: =IF(D16=0,'App.2-CD_MIFRS_DepExp_2013'!K16,+'App.2-CD_MIFRS_DepExp_2013'!K16+((C16*0.5)/D16)) -> 0 | H16: =IF(ISERROR(+F16-G16), 0, +F16-G16) -> 0
A17: 1612 | B17: Land Rights (Formally known as Account 1906) | E17: 0 | F17: =IF(D17=0,'App.2-CD_MIFRS_DepExp_2013'!K17,+'App.2-CD_MIFRS_DepExp_2013'!K17+((C17*0.5)/D17)) -> 0 | H17: 0
A18: 1805 | B18: Land | E18: 0 | F18: =IF(D18=0,'App.2-CD_MIFRS_DepExp_2013'!K18,+'App.2-CD_MIFRS_DepExp_2013'!K18+((C18*0.5)/D18)) -> 0 | H18: 0
A19: 1808 | B19: Buildings | E19: 0 | F19: =IF(D19=0,'App.2-CD_MIFRS_DepExp_2013'!K19,+'App.2-CD_MIFRS_DepExp_2013'!K19+((C19*0.5)/D19)) -> 0 | H19: 0
A20: 1810 | B20: Leasehold Improvements | E20: 0 | F20: =IF(D20=0,'App.2-CD_MIFRS_DepExp_2013'!K20,+'App.2-CD_MIFRS_DepExp_2013'!K20+((C20*0.5)/D20)) -> 0 | H20: 0
A21: 1815 | B21: Transformer Station Equipment >50 kV | E21: 0 | F21: =IF(D21=0,'App.2-CD_MIFRS_DepExp_2013'!K21,+'App.2-CD_MIFRS_DepExp_2013'!K21+((C21*0.5)/D21)) -> 0 | H21: 0
A22: 1820 | B22: Distribution Station Equipment <50 kV | E22: 0 | F22: =IF(D22=0,'App.2-CD_MIFRS_DepExp_2013'!K22,+'App.2-CD_MIFRS_DepExp_2013'!K22+((C22*0.5)/D22)) -> 0 | H22: 0
A23: 1825 | B23: Storage Battery Equipment | E23: 0 | F23: =IF(D23=0,'App.2-CD_MIFRS_DepExp_2013'!K23,+'App.2-CD_MIFRS_DepExp_2013'!K23+((C23*0.5)/D23)) -> 0 | H23: 0
A24: 1830 | B24: Poles, Towers & Fixtures | E24: 0 | F24: =IF(D24=0,'App.2-CD_MIFRS_DepExp_2013'!K24,+'App.2-CD_MIFRS_DepExp_2013'!K24+((C24*0.5)/D24)) -> 0 | H24: 0
A25: 1835 | B25: Overhead Conductors & Devices | E25: 0 | F25: =IF(D25=0,'App.2-CD_MIFRS_DepExp_2013'!K25,+'App.2-CD_MIFRS_DepExp_2013'!K25+((C25*0.5)/D25)) -> 0 | H25: 0
A26: 1840 | B26: Underground Conduit | E26: 0 | F26: =IF(D26=0,'App.2-CD_MIFRS_DepExp_2013'!K26,+'App.2-CD_MIFRS_DepExp_2013'!K26+((C26*0.5)/D26)) -> 0 | H26: 0
A27: 1845 | B27: Underground Conductors & Devices | E27: 0 | F27: =IF(D27=0,'App.2-CD_MIFRS_DepExp_2013'!K27,+'App.2-CD_MIFRS_DepExp_2013'!K27+((C27*0.5)/D27)) -> 0 | H27: 0
A28: 1850 | B28: Line Transformers | E28: 0 | F28: =IF(D28=0,'App.2-CD_MIFRS_DepExp_2013'!K28,+'App.2-CD_MIFRS_DepExp_2013'!K28+((C28*0.5)/D28)) -> 0 | H28: 0
A29: 1855 | B29: Services (Overhead & Underground) | E29: 0 | F29: =IF(D29=0,'App.2-CD_MIFRS_DepExp_2013'!K29,+'App.2-CD_MIFRS_DepExp_2013'!K29+((C29*0.5)/D29)) -> 0 | H29: 0
A30: 1860 | B30: Meters | E30: 0 | F30: =IF(D30=0,'App.2-CD_MIFRS_DepExp_2013'!K30,+'App.2-CD_MIFRS_DepExp_2013'!K30+((C30*0.5)/D30)) -> 0 | H30: 0
A31: 1860 | B31: Meters (Smart Meters) | E31: 0 | F31: =IF(D31=0,'App.2-CD_MIFRS_DepExp_2013'!K31,+'App.2-CD_MIFRS_DepExp_2013'!K31+((C31*0.5)/D31)) -> 0 | H31: 0
A32: 1905 | B32: Land | E32: 0 | F32: =IF(D32=0,'App.2-CD_MIFRS_DepExp_2013'!K32,+'App.2-CD_MIFRS_DepExp_2013'!K32+((C32*0.5)/D32)) -> 0 | H32: 0
A33: 1908 | B33: Buildings & Fixtures | E33: 0 | F33: =IF(D33=0,'App.2-CD_MIFRS_DepExp_2013'!K33,+'App.2-CD_MIFRS_DepExp_2013'!K33+((C33*0.5)/D33)) -> 0 | H33: 0
A34: 1910 | B34: Leasehold Improvements | E34: 0 | F34: =IF(D34=0,'App.2-CD_MIFRS_DepExp_2013'!K34,+'App.2-CD_MIFRS_DepExp_2013'!K34+((C34*0.5)/D34)) -> 0 | H34: 0
A35: 1915 | B35: Office Furniture & Equipment (10 years) | E35: 0 | F35: =IF(D35=0,'App.2-CD_MIFRS_DepExp_2013'!K35,+'App.2-CD_MIFRS_DepExp_2013'!K35+((C35*0.5)/D35)) -> 0 | H35: 0
A36: 1915 | B36: Office Furniture & Equipment (5 years) | E36: 0 | F36: =IF(D36=0,'App.2-CD_MIFRS_DepExp_2013'!K36,+'App.2-CD_MIFRS_DepExp_2013'!K36+((C36*0.5)/D36)) -> 0 | H36: 0
A37: 1920 | B37: Computer Equipment - Hardware | E37: 0 | F37: =IF(D37=0,'App.2-CD_MIFRS_DepExp_2013'!K37,+'App.2-CD_MIFRS_DepExp_2013'!K37+((C37*0.5)/D37)) -> 0 | H37: 0
A38: 1920 | B38: Computer Equip.-Hardware(Post Mar. 22/04) | E38: 0 | F38: =IF(D38=0,'App.2-CD_MIFRS_DepExp_2013'!K38,+'App.2-CD_MIFRS_DepExp_2013'!K38+((C38*0.5)/D38)) -> 0 | H38: 0
A39: 1920 | B39: Computer Equip.-Hardware(Post Mar. 19/07) | E39: 0 | F39: =IF(D39=0,'App.2-CD_MIFRS_DepExp_2013'!K39,+'App.2-CD_MIFRS_DepExp_2013'!K39+((C39*0.5)/D39)) -> 0 | H39: 0
A40: 1930 | B40: Transportation Equipment | E40: 0 | F40: =IF(D40=0,'App.2-CD_MIFRS_DepExp_2013'!K40,+'App.2-CD_MIFRS_DepExp_2013'!K40+((C40*0.5)/D40)) -> 0 | H40: 0
A41: 1935 | B41: Stores Equipment | E41: 0 | F41: =IF(D41=0,'App.2-CD_MIFRS_DepExp_2013'!K41,+'App.2-CD_MIFRS_DepExp_2013'!K41+((C41*0.5)/D41)) -> 0 | H41: 0
A42: 1940 | B42: Tools, Shop & Garage Equipment | E42: 0 | F42: =IF(D42=0,'App.2-CD_MIFRS_DepExp_2013'!K42,+'App.2-CD_MIFRS_DepExp_2013'!K42+((C42*0.5)/D42)) -> 0 | H42: 0
A43: 1945 | B43: Measurement & Testing Equipment | E43: 0 | F43: =IF(D43=0,'App.2-CD_MIFRS_DepExp_2013'!K43,+'App.2-CD_MIFRS_DepExp_2013'!K43+((C43*0.5)/D43)) -> 0 | H43: 0
A44: 1950 | B44: Power Operated Equipment | E44: 0 | F44: =IF(D44=0,'App.2-CD_MIFRS_DepExp_2013'!K44,+'App.2-CD_MIFRS_DepExp_2013'!K44+((C44*0.5)/D44)) -> 0 | H44: 0
A45: 1955 | B45: Communications Equipment | E45: 0 | F45: =IF(D45=0,'App.2-CD_MIFRS_DepExp_2013'!K45,+'App.2-CD_MIFRS_DepExp_2013'!K45+((C45*0.5)/D45)) -> 0 | H45: 0
A46: 1955 | B46: Communication Equipment (Smart Meters) | E46: 0 | F46: =IF(D46=0,'App.2-CD_MIFRS_DepExp_2013'!K46,+'App.2-CD_MIFRS_DepExp_2013'!K46+((C46*0.5)/D46)) -> 0 | H46: 0
A47: 1960 | B47: Miscellaneous Equipment | E47: 0 | F47: =IF(D47=0,'App.2-CD_MIFRS_DepExp_2013'!K47,+'App.2-CD_MIFRS_DepExp_2013'!K47+((C47*0.5)/D47)) -> 0 | H47: 0
A48: 1970 | B48: Load Management Controls Customer Premises | E48: 0 | F48: =IF(D48=0,'App.2-CD_MIFRS_DepExp_2013'!K48,+'App.2-CD_MIFRS_DepExp_2013'!K48+((C48*0.5)/D48)) -> 0 | H48: 0
A49: 1975 | B49: Load Management Controls Utility Premises | E49: 0 | F49: =IF(D49=0,'App.2-CD_MIFRS_DepExp_2013'!K49,+'App.2-CD_MIFRS_DepExp_2013'!K49+((C49*0.5)/D49)) -> 0 | H49: 0
A50: 1980 | B50: System Supervisor Equipment | E50: 0 | F50: =IF(D50=0,'App.2-CD_MIFRS_DepExp_2013'!K50,+'App.2-CD_MIFRS_DepExp_2013'!K50+((C50*0.5)/D50)) -> 0 | H50: 0
A51: 1985 | B51: Miscellaneous Fixed Assets | E51: 0 | F51: =IF(D51=0,'App.2-CD_MIFRS_DepExp_2013'!K51,+'App.2-CD_MIFRS_DepExp_2013'!K51+((C51*0.5)/D51)) -> 0 | H51: 0
A52: 1990 | B52: Other Tangible Property | E52: 0 | F52: =IF(D52=0,'App.2-CD_MIFRS_DepExp_2013'!K52,+'App.2-CD_MIFRS_DepExp_2013'!K52+((C52*0.5)/D52)) -> 0 | H52: 0
A53: 1995 | B53: Contributions & Grants | E53: 0 | F53: =IF(D53=0,'App.2-CD_MIFRS_DepExp_2013'!K53,+'App.2-CD_MIFRS_DepExp_2013'!K53+((C53*0.5)/D53)) -> 0 | H53: 0
A54: etc. | E54: 0 | F54: =IF(D54=0,'App.2-CD_MIFRS_DepExp_2013'!K54,+'App.2-CD_MIFRS_DepExp_2013'!K54+((C54*0.5)/D54)) -> 0 | H54: 0
E55: 0 | F55: =IF(D55=0,'App.2-CD_MIFRS_DepExp_2013'!K55,+'App.2-CD_MIFRS_DepExp_2013'!K55+((C55*0.5)/D55)) -> 0 | H55: 0
B56: Total | C56: =SUM(C16:C55) -> 0 | F56: =SUM(F16:F55) -> 0 | G56: =SUM(G16:G55) -> 0 | H56: =SUM(H16:H55) -> 0
B57: Depreciation exp. adj. from gain or loss on the retirement of assets (pool of like assets)
B58: Total Depreciation expense to be included in the test year revenue requirement | F58: =SUM(F56:F57) -> 0
A59: Notes:
A60: 1 | B60: Board policy of the "half-year" rule - the applicant must ensure that additions in the year attract a half-year depreciation expense in the first year. Deviations from this standard practice must be supported in the application.
A61: 2 | B61: The applicant must provide an explanation of material variances in evidence.
A63: General: | B63: Applicants must provide a breakdown of depreciation and amortization expense in the above format for all relevant accounts. Asset Retirement Obligations (AROs), depreciation and accretion expense should be disclosed separately consistent with the Notes of historical Audited Financial Statements.

Sheet App.2-CF_CGAAP_DepExp_2012 (hidden)
K1: File Number: | L1: =EBNUMBER -> EB-2013-0160
K2: Exhibit:
K3: Tab:
K4: Schedule:
K5: Page:
K7: Date:
A9: Appendix 2-CF
A10: Depreciation and Amortization Expense
A11: Assumes the applicant adopted IFRS for financial reporting purposes January 1, 2013
C12: Year | D12: 2012 | E12: CGAAP
A14: Account | B14: Description | C14: Opening Regulatory Gross PP&E as at Jan 1, 2012 | D14: Less Fully Depreciated | E14: Net for Depreciation | F14: Additions | G14: Total for Depreciation | H14: Years | I14: Depreciation Rate | J14: Depreciation Expense | K14: 2012 Depreciation Expense per Appendix 2-B Fixed Assets, Column K (l) | L14: Variance 2
C15: (a) | D15: (b) | E15: (c) | F15: (d) | G15: (e) = (c) + ½ x (d) 1 | H15: (f) | I15: (g) = 1 / (f) | J15: (h) = (e) / (f) | L15: (m) = (h) - (l)
A16: 1611 | B16: Computer Software (Formally known as Account 1925) | E16: =C16-D16 -> 0 | G16: =E16+0.5*F16 -> 0 | I16: =IF(H16=0,0,1/H16) -> 0 | J16: =IF(H16=0,0,G16/H16) -> 0 | L16: =IF(ISERROR(+J16-K16), 0, +J16-K16) -> 0
A17: 1612 | B17: Land Rights (Formally known as Account 1906) | E17: =C17-D17 -> 0 | G17: =E17+0.5*F17 -> 0 | I17: 0 | J17: 0 | L17: 0
A18: 1805 | B18: Land | E18: 0 | G18: 0 | I18: 0 | J18: 0 | L18: 0
A19: 1808 | B19: Buildings | E19: 0 | G19: 0 | I19: 0 | J19: 0 | L19: 0
A20: 1810 | B20: Leasehold Improvements | E20: 0 | G20: 0 | I20: 0 | J20: 0 | L20: 0
A21: 1815 | B21: Transformer Station Equipment >50 kV | E21: 0 | G21: 0 | I21: 0 | J21: 0 | L21: 0
A22: 1820 | B22: Distribution Station Equipment <50 kV | E22: 0 | G22: 0 | I22: 0 | J22: 0 | L22: 0
A23: 1825 | B23: Storage Battery Equipment | E23: 0 | G23: 0 | I23: 0 | J23: 0 | L23: 0
A24: 1830 | B24: Poles, Towers & Fixtures | E24: 0 | G24: 0 | I24: 0 | J24: 0 | L24: 0
A25: 1835 | B25: Overhead Conductors & Devices | E25: 0 | G25: 0 | I25: 0 | J25: 0 | L25: 0
A26: 1840 | B26: Underground Conduit | E26: 0 | G26: 0 | I26: 0 | J26: 0 | L26: 0
A27: 1845 | B27: Underground Conductors & Devices | E27: 0 | G27: 0 | I27: 0 | J27: 0 | L27: 0
A28: 1850 | B28: Line Transformers | E28: 0 | G28: 0 | I28: 0 | J28: 0 | L28: 0
A29: 1855 | B29: Services (Overhead & Underground) | E29: 0 | G29: 0 | I29: 0 | J29: 0 | L29: 0
A30: 1860 | B30: Meters | E30: 0 | G30: 0 | I30: 0 | J30: 0 | L30: 0
A31: 1860 | B31: Meters (Smart Meters) | E31: 0 | G31: 0 | I31: 0 | J31: 0 | L31: 0
A32: 1905 | B32: Land | E32: 0 | G32: 0 | I32: 0 | J32: 0 | L32: 0
A33: 1908 | B33: Buildings & Fixtures | E33: 0 | G33: 0 | I33: 0 | J33: 0 | L33: 0
A34: 1910 | B34: Leasehold Improvements | E34: 0 | G34: 0 | I34: 0 | J34: 0 | L34: 0
A35: 1915 | B35: Office Furniture & Equipment (10 years) | E35: 0 | G35: 0 | I35: 0 | J35: 0 | L35: 0
A36: 1915 | B36: Office Furniture & Equipment (5 years) | E36: 0 | G36: 0 | I36: 0 | J36: 0 | L36: 0
A37: 1920 | B37: Computer Equipment - Hardware | E37: 0 | G37: 0 | I37: 0 | J37: 0 | L37: 0
A38: 1920 | B38: Computer Equip.-Hardware(Post Mar. 22/04) | E38: 0 | G38: 0 | I38: 0 | J38: 0 | L38: 0
A39: 1920 | B39: Computer Equip.-Hardware(Post Mar. 19/07) | E39: 0 | G39: 0 | I39: 0 | J39: 0 | L39: 0
A40: 1930 | B40: Transportation Equipment | E40: 0 | G40: 0 | I40: 0 | J40: 0 | L40: 0
A41: 1935 | B41: Stores Equipment | E41: 0 | G41: 0 | I41: 0 | J41: 0 | L41: 0
A42: 1940 | B42: Tools, Shop & Garage Equipment | E42: 0 | G42: 0 | I42: 0 | J42: 0 | L42: 0
A43: 1945 | B43: Measurement & Testing Equipment | E43: 0 | G43: 0 | I43: 0 | J43: 0 | L43: 0
A44: 1950 | B44: Power Operated Equipment | E44: 0 | G44: 0 | I44: 0 | J44: 0 | L44: 0
A45: 1955 | B45: Communications Equipment | E45: 0 | G45: 0 | I45: 0 | J45: 0 | L45: 0
A46: 1955 | B46: Communication Equipment (Smart Meters) | E46: 0 | G46: 0 | I46: 0 | J46: 0 | L46: 0
A47: 1960 | B47: Miscellaneous Equipment | E47: 0 | G47: 0 | I47: 0 | J47: 0 | L47: 0
A48: 1970 | B48: Load Management Controls Customer Premises | E48: 0 | G48: 0 | I48: 0 | J48: 0 | L48: 0
A49: 1975 | B49: Load Management Controls Utility Premises | E49: 0 | G49: 0 | I49: 0 | J49: 0 | L49: 0
A50: 1980 | B50: System Supervisor Equipment | E50: 0 | G50: 0 | I50: 0 | J50: 0 | L50: 0
A51: 1985 | B51: Miscellaneous Fixed Assets | E51: 0 | G51: 0 | I51: 0 | J51: 0 | L51: 0
A52: 1990 | B52: Other Tangible Property | E52: 0 | G52: 0 | I52: 0 | J52: 0 | L52: 0
A53: 1995 | B53: Contributions & Grants | E53: 0 | G53: 0 | I53: 0 | J53: 0 | L53: 0
A54: etc. | E54: 0 | G54: 0 | I54: 0 | J54: 0 | L54: 0
E55: 0 | G55: 0 | I55: 0 | J55: 0 | L55: 0
B56: Total | C56: =SUM(C16:C55) -> 0 | D56: =SUM(D16:D55) -> 0 | E56: =SUM(E16:E55) -> 0 | F56: =SUM(F16:F55) -> 0 | G56: =SUM(G16:G55) -> 0 | J56: =SUM(J16:J55) -> 0 | K56: =SUM(K16:K55) -> 0 | L56: =SUM(L16:L55) -> 0
A58: Notes:
A60: 1 | B60: Board policy of the "half-year" rule - the applicant must ensure that additions in the year attract a half-year depreciation expense in the first year. Deviations from this standard practice must be supported in the application.
A61: 2 | B61: The applicant must provide an explanation of material variances in evidence.
A63: General | B63: Applicants must provide a breakdown of depreciation and amortization expense in the above format for all relevant accounts. Asset Retirement Obligations (AROs), depreciation and accretion expense should be disclosed separately consistent with the Notes of historical Audited Financial Statements.

Sheet App.2-CG_MIFRS_DepExp_2012 (hidden)
N1: File Number: | O1: =EBNUMBER -> EB-2013-0160
N2: Exhibit:
N3: Tab:
N4: Schedule:
N5: Page:
N7: Date:
A9: Appendix 2-CG
A10: Depreciation and Amortization Expense
A11: Assumes the applicant adopted IFRS for financial reporting purposes January 1, 2013
C12: Year | D12: 2012 | E12: MIFRS
A14: Account | B14: Description | C14: Opening NBV as at Jan 1, 2012 5 | D14: Additions | E14: Average Remaining Life of Opening NBV 4 | F14: Years (new additions only) 3 | G14: Depreciation Rate on New Additions | H14: Depreciation Expense on Opening NBV | I14: Depreciation Expense on Additions 1 | J14: 2012 Depreciation Expense | K14: 2012 Depreciation Expense per Appendix 2-B Fixed Assets, Column K (l) | L14: Variance 2 | M14: Depreciation Expense on 2012 Full Year Additions | N14: Less Depreciation Expense on Assets Fully Depreciated during the year (o) | O14: 2012 Full Year Depreciation 6
C15: (a) | D15: (d) | E15: (i) | F15: (f) | G15: (g) = 1 / (f) | H15: (j) = (a) / (i) | I15: (h)=((d)*0.5)/(f) | J15: (k) = (j) + (h) | L15: (m) = (k) - (l) | M15: (n) = (d)/(f) | O15: (p) = (j) + (n) - (o)
A16: 1611 | B16: Computer Software (Formally known as Account 1925) | G16: =IF(F16=0,0,1/F16) -> 0 | H16: =IF(E16=0,0,+C16/E16) -> 0 | I16: =IF(F16=0,0,+(D16*0.5)/F16) -> 0 | J16: =IF(ISERROR(+H16+I16), 0, +H16+I16) -> 0 | L16: =IF(ISERROR(+J16-K16), 0, +J16-K16) -> 0 | M16: =IF(F16=0,0,+(D16)/F16) -> 0 | O16: =IF(ISERROR(+M16+H16-N16), 0, +M16+H16-N16) -> 0
A17: 1612 | B17: Land Rights (Formally known as Account 1906) | G17: 0 | H17: 0 | I17: 0 | J17: 0 | L17: 0 | M17: 0 | O17: =IF(ISERROR(+M17+H17-N17), 0, +M17+H17-N17) -> 0
A18: 1805 | B18: Land | G18: 0 | H18: 0 | I18: 0 | J18: 0 | L18: 0 | M18: 0 | O18: 0
A19: 1808 | B19: Buildings | G19: 0 | H19: 0 | I19: 0 | J19: 0 | L19: 0 | M19: 0 | O19: 0
A20: 1810 | B20: Leasehold Improvements | G20: 0 | H20: 0 | I20: 0 | J20: 0 | L20: 0 | M20: 0 | O20: 0
A21: 1815 | B21: Transformer Station Equipment >50 kV | G21: 0 | H21: 0 | I21: 0 | J21: 0 | L21: 0 | M21: 0 | O21: 0
A22: 1820 | B22: Distribution Station Equipment <50 kV | G22: 0 | H22: 0 | I22: 0 | J22: 0 | L22: 0 | M22: 0 | O22: 0
A23: 1825 | B23: Storage Battery Equipment | G23: 0 | H23: 0 | I23: 0 | J23: 0 | L23: 0 | M23: 0 | O23: 0
A24: 1830 | B24: Poles, Towers & Fixtures | G24: 0 | H24: 0 | I24: 0 | J24: 0 | L24: 0 | M24: 0 | O24: 0
A25: 1835 | B25: Overhead Conductors & Devices | G25: 0 | H25: 0 | I25: 0 | J25: 0 | L25: 0 | M25: 0 | O25: 0
A26: 1840 | B26: Underground Conduit | G26: 0 | H26: 0 | I26: 0 | J26: 0 | L26: 0 | M26: 0 | O26: 0
A27: 1845 | B27: Underground Conductors & Devices | G27: 0 | H27: 0 | I27: 0 | J27: 0 | L27: 0 | M27: 0 | O27: 0
A28: 1850 | B28: Line Transformers | G28: 0 | H28: 0 | I28: 0 | J28: 0 | L28: 0 | M28: 0 | O28: 0
A29: 1855 | B29: Services (Overhead & Underground) | G29: 0 | H29: 0 | I29: 0 | J29: 0 | L29: 0 | M29: 0 | O29: 0
A30: 1860 | B30: Meters | G30: 0 | H30: 0 | I30: 0 | J30: 0 | L30: 0 | M30: 0 | O30: 0
A31: 1860 | B31: Meters (Smart Meters) | G31: 0 | H31: 0 | I31: 0 | J31: 0 | L31: 0 | M31: 0 | O31: 0
A32: 1905 | B32: Land | G32: 0 | H32: 0 | I32: 0 | J32: 0 | L32: 0 | M32: 0 | O32: 0
A33: 1908 | B33: Buildings & Fixtures | G33: 0 | H33: 0 | I33: 0 | J33: 0 | L33: 0 | M33: 0 | O33: 0
A34: 1910 | B34: Leasehold Improvements | G34: 0 | H34: 0 | I34: 0 | J34: 0 | L34: 0 | M34: 0 | O34: 0
A35: 1915 | B35: Office Furniture & Equipment (10 years) | G35: 0 | H35: 0 | I35: 0 | J35: 0 | L35: 0 | M35: 0 | O35: 0
A36: 1915 | B36: Office Furniture & Equipment (5 years) | G36: 0 | H36: 0 | I36: 0 | J36: 0 | L36: 0 | M36: 0 | O36: 0
A37: 1920 | B37: Computer Equipment - Hardware | G37: 0 | H37: 0 | I37: 0 | J37: 0 | L37: 0 | M37: 0 | O37: 0
A38: 1920 | B38: Computer Equip.-Hardware(Post Mar. 22/04) | G38: 0 | H38: 0 | I38: 0 | J38: 0 | L38: 0 | M38: 0 | O38: 0
A39: 1920 | B39: Computer Equip.-Hardware(Post Mar. 19/07) | G39: 0 | H39: 0 | I39: 0 | J39: 0 | L39: 0 | M39: 0 | O39: 0
A40: 1930 | B40: Transportation Equipment | G40: 0 | H40: 0 | I40: 0 | J40: 0 | L40: 0 | M40: 0 | O40: 0
A41: 1935 | B41: Stores Equipment | G41: 0 | H41: 0 | I41: 0 | J41: 0 | L41: 0 | M41: 0 | O41: 0
A42: 1940 | B42: Tools, Shop & Garage Equipment | G42: 0 | H42: 0 | I42: 0 | J42: 0 | L42: 0 | M42: 0 | O42: 0
A43: 1945 | B43: Measurement & Testing Equipment | G43: 0 | H43: 0 | I43: 0 | J43: 0 | L43: 0 | M43: 0 | O43: 0
A44: 1950 | B44: Power Operated Equipment | G44: 0 | H44: 0 | I44: 0 | J44: 0 | L44: 0 | M44: 0 | O44: 0
A45: 1955 | B45: Communications Equipment | G45: 0 | H45: 0 | I45: 0 | J45: 0 | L45: 0 | M45: 0 | O45: 0
A46: 1955 | B46: Communication Equipment (Smart Meters) | G46: 0 | H46: 0 | I46: 0 | J46: 0 | L46: 0 | M46: 0 | O46: 0
A47: 1960 | B47: Miscellaneous Equipment | G47: 0 | H47: 0 | I47: 0 | J47: 0 | L47: 0 | M47: 0 | O47: 0
A48: 1970 | B48: Load Management Controls Customer Premises | G48: 0 | H48: 0 | I48: 0 | J48: 0 | L48: 0 | M48: 0 | O48: 0
A49: 1975 | B49: Load Management Controls Utility Premises | G49: 0 | H49: 0 | I49: 0 | J49: 0 | L49: 0 | M49: 0 | O49: 0
A50: 1980 | B50: System Supervisor Equipment | G50: 0 | H50: 0 | I50: 0 | J50: 0 | L50: 0 | M50: 0 | O50: 0
A51: 1985 | B51: Miscellaneous Fixed Assets | G51: 0 | H51: 0 | I51: 0 | J51: 0 | L51: 0 | M51: 0 | O51: 0
A52: 1990 | B52: Other Tangible Property | G52: 0 | H52: 0 | I52: 0 | J52: 0 | L52: 0 | M52: 0 | O52: 0
A53: 1995 | B53: Contributions & Grants | G53: 0 | H53: 0 | I53: 0 | J53: 0 | L53: 0 | M53: 0 | O53: 0
A54: etc. | G54: 0 | H54: 0 | I54: 0 | J54: 0 | L54: 0 | M54: 0 | O54: 0
G55: 0 | H55: 0 | I55: 0 | J55: 0 | L55: 0 | M55: 0 | O55: 0
B56: Total | C56: =SUM(C16:C55) -> 0 | D56: =SUM(D16:D55) -> 0 | H56: =SUM(H16:H55) -> 0 | I56: 0 | J56: 0 | K56: 0 | L56: 0 | M56: 0 | N56: =SUM(N16:N55) -> 0 | O56: 0
B57: Depreciation exp. adj. from gain or loss on the retirement of assets (pool of like assets) | J57: 0
B58: Total | J58: =+J56+J57 -> 0
A59: Notes:
A61: 1 | B61: Board policy of the "half-year" rule - the applicant must ensure that additions in the year attract a half-year depreciation expense in the first year. Deviations from this standard practice must be supported in the application.
A62: 2 | B62: The applicant must provide an explanation of material variances in evidence.
A63: 3 | B63: The applicant should ensure that the years for new additions of assets are the asset useful lives determined by management in accordance with IFRS.
A64: 4 | B64: A recalculation should be performed to determine the average remaining life of opening balance of assets (i.e. excluding 2012 additions) under IFRS. For example, Asset A had a useful life of 20 years under CGAAP. On January 1, 2012, the date of transition, Asset A was 3 years depreciated. As a result, Asset A would have a remaining service life of 17 years (20 years less 3 years) under CGAAP as of January 1, 2012. Due to the transition to IFRS, management re-assessed the asset useful lives under IFRS principles and concluded that the revised useful life of Asset A is now 30 years. Therefore, the average remaining useful life of opening balance of Asset A is determined to be 27 years (30 years less 3 years) under IFRS as of January 1, 2012.
A65: 5 | B65: NBV must exclude assets still on the books but which have been fully amortized or depreciated.
A66: 6 | B66: This column refers to the calculated full year depreciation but excludes the depreciation expense on assets fully depreciated during the year. This column is used for the purpose of calculating depreciation expense in the following year on the next worksheet.
A68: General: | B68: Applicants must provide a breakdown of depreciation and amortization expense in the above format for all relevant accounts. Asset Retirement Obligations (AROs), depreciation and accretion expense should be disclosed separately consistent with the Notes of historical Audited Financial Statements.

Sheet App.2-CH_MIFRS_DepExp_2013 (hidden)
J1: File Number: | K1: =EBNUMBER -> EB-2013-0160
J2: Exhibit:
J3: Tab:
J4: Schedule:
J5: Page:
J7: Date:
A9: Appendix 2-CH
A10: Depreciation and Amortization Expense
A11: Assumes the applicant adopted IFRS for financial reporting purposes January 1, 2013
C12: 2013 | D12: MIFRS
A14: Account | B14: Description | C14: Additions | D14: Years (new additions only) | E14: Depreciation Rate on New Additions | F14: 2013 Depreciation Expense 1 | G14: 2013 Depreciation Expense per Apppendix 2-B Fixed Assets, Column K (l) | H14: Variance 2 | I14: Depreciation Expense on 2013 Full Year Additions | J14: Less Depreciation Expense on Assets Fully Depreciated during the year (o) | K14: 2013 Full Year Depreciation 3
C15: (d) | D15: (f) | E15: (g) = 1 / (f) | F15: (h)=2012 Full Year Deprecation + ((d)*0.5)/(f) | H15: (m) = (h) - (l) | I15: (n)=((d))/(f) | K15: (p) = 2012 Full Year Depreciation + (n) - (o)
A16: 1611 | B16: Computer Software (Formally known as Account 1925) | E16: =IF(D16=0,0,1/D16) -> 0 | F16: =IF(D16=0,+'App.2-CG_MIFRS_DepExp_2012'!O16,+'App.2-CG_MIFRS_DepExp_2012'!O16+((C16*0.5)/D16)) -> 0 | H16: =IF(ISERROR(+F16-G16), 0, +F16-G16) -> 0 | I16: =IF(D16=0,0,+(C16)/D16) -> 0 | K16: =IF(ISERROR(+I16+'App.2-CG_MIFRS_DepExp_2012'!O16-J16), 0, +I16+'App.2-CG_MIFRS_DepExp_2012'!O16-J16) -> 0
A17: 1612 | B17: Land Rights (Formally known as Account 1906) | E17: 0 | F17: =IF(D17=0,+'App.2-CG_MIFRS_DepExp_2012'!O17,+'App.2-CG_MIFRS_DepExp_2012'!O17+((C17*0.5)/D17)) -> 0 | H17: 0 | I17: 0 | K17: =IF(ISERROR(+I17+'App.2-CG_MIFRS_DepExp_2012'!O17-J17), 0, +I17+'App.2-CG_MIFRS_DepExp_2012'!O17-J17) -> 0
A18: 1805 | B18: Land | E18: 0 | F18: =IF(D18=0,+'App.2-CG_MIFRS_DepExp_2012'!O18,+'App.2-CG_MIFRS_DepExp_2012'!O18+((C18*0.5)/D18)) -> 0 | H18: 0 | I18: 0 | K18: =IF(ISERROR(+I18+'App.2-CG_MIFRS_DepExp_2012'!O18-J18), 0, +I18+'App.2-CG_MIFRS_DepExp_2012'!O18-J18) -> 0
A19: 1808 | B19: Buildings | E19: 0 | F19: =IF(D19=0,+'App.2-CG_MIFRS_DepExp_2012'!O19,+'App.2-CG_MIFRS_DepExp_2012'!O19+((C19*0.5)/D19)) -> 0 | H19: 0 | I19: 0 | K19: =IF(ISERROR(+I19+'App.2-CG_MIFRS_DepExp_2012'!O19-J19), 0, +I19+'App.2-CG_MIFRS_DepExp_2012'!O19-J19) -> 0
A20: 1810 | B20: Leasehold Improvements | E20: 0 | F20: =IF(D20=0,+'App.2-CG_MIFRS_DepExp_2012'!O20,+'App.2-CG_MIFRS_DepExp_2012'!O20+((C20*0.5)/D20)) -> 0 | H20: 0 | I20: 0 | K20: =IF(ISERROR(+I20+'App.2-CG_MIFRS_DepExp_2012'!O20-J20), 0, +I20+'App.2-CG_MIFRS_DepExp_2012'!O20-J20) -> 0
A21: 1815 | B21: Transformer Station Equipment >50 kV | E21: 0 | F21: =IF(D21=0,+'App.2-CG_MIFRS_DepExp_2012'!O21,+'App.2-CG_MIFRS_DepExp_2012'!O21+((C21*0.5)/D21)) -> 0 | H21: 0 | I21: 0 | K21: =IF(ISERROR(+I21+'App.2-CG_MIFRS_DepExp_2012'!O21-J21), 0, +I21+'App.2-CG_MIFRS_DepExp_2012'!O21-J21) -> 0
A22: 1820 | B22: Distribution Station Equipment <50 kV | E22: 0 | F22: =IF(D22=0,+'App.2-CG_MIFRS_DepExp_2012'!O22,+'App.2-CG_MIFRS_DepExp_2012'!O22+((C22*0.5)/D22)) -> 0 | H22: 0 | I22: 0 | K22: =IF(ISERROR(+I22+'App.2-CG_MIFRS_DepExp_2012'!O22-J22), 0, +I22+'App.2-CG_MIFRS_DepExp_2012'!O22-J22) -> 0
A23: 1825 | B23: Storage Battery Equipment | E23: 0 | F23: =IF(D23=0,+'App.2-CG_MIFRS_DepExp_2012'!O23,+'App.2-CG_MIFRS_DepExp_2012'!O23+((C23*0.5)/D23)) -> 0 | H23: 0 | I23: 0 | K23: =IF(ISERROR(+I23+'App.2-CG_MIFRS_DepExp_2012'!O23-J23), 0, +I23+'App.2-CG_MIFRS_DepExp_2012'!O23-J23) -> 0
A24: 1830 | B24: Poles, Towers & Fixtures | E24: 0 | F24: =IF(D24=0,+'App.2-CG_MIFRS_DepExp_2012'!O24,+'App.2-CG_MIFRS_DepExp_2012'!O24+((C24*0.5)/D24)) -> 0 | H24: 0 | I24: 0 | K24: =IF(ISERROR(+I24+'App.2-CG_MIFRS_DepExp_2012'!O24-J24), 0, +I24+'App.2-CG_MIFRS_DepExp_2012'!O24-J24) -> 0
A25: 1835 | B25: Overhead Conductors & Devices | E25: 0 | F25: =IF(D25=0,+'App.2-CG_MIFRS_DepExp_2012'!O25,+'App.2-CG_MIFRS_DepExp_2012'!O25+((C25*0.5)/D25)) -> 0 | H25: 0 | I25: 0 | K25: =IF(ISERROR(+I25+'App.2-CG_MIFRS_DepExp_2012'!O25-J25), 0, +I25+'App.2-CG_MIFRS_DepExp_2012'!O25-J25) -> 0
A26: 1840 | B26: Underground Conduit | E26: 0 | F26: =IF(D26=0,+'App.2-CG_MIFRS_DepExp_2012'!O26,+'App.2-CG_MIFRS_DepExp_2012'!O26+((C26*0.5)/D26)) -> 0 | H26: 0 | I26: 0 | K26: =IF(ISERROR(+I26+'App.2-CG_MIFRS_DepExp_2012'!O26-J26), 0, +I26+'App.2-CG_MIFRS_DepExp_2012'!O26-J26) -> 0
A27: 1845 | B27: Underground Conductors & Devices | E27: 0 | F27: =IF(D27=0,+'App.2-CG_MIFRS_DepExp_2012'!O27,+'App.2-CG_MIFRS_DepExp_2012'!O27+((C27*0.5)/D27)) -> 0 | H27: 0 | I27: 0 | K27: =IF(ISERROR(+I27+'App.2-CG_MIFRS_DepExp_2012'!O27-J27), 0, +I27+'App.2-CG_MIFRS_DepExp_2012'!O27-J27) -> 0
A28: 1850 | B28: Line Transformers | E28: 0 | F28: =IF(D28=0,+'App.2-CG_MIFRS_DepExp_2012'!O28,+'App.2-CG_MIFRS_DepExp_2012'!O28+((C28*0.5)/D28)) -> 0 | H28: 0 | I28: 0 | K28: =IF(ISERROR(+I28+'App.2-CG_MIFRS_DepExp_2012'!O28-J28), 0, +I28+'App.2-CG_MIFRS_DepExp_2012'!O28-J28) -> 0
A29: 1855 | B29: Services (Overhead & Underground) | E29: 0 | F29: =IF(D29=0,+'App.2-CG_MIFRS_DepExp_2012'!O29,+'App.2-CG_MIFRS_DepExp_2012'!O29+((C29*0.5)/D29)) -> 0 | H29: 0 | I29: 0 | K29: =IF(ISERROR(+I29+'App.2-CG_MIFRS_DepExp_2012'!O29-J29), 0, +I29+'App.2-CG_MIFRS_DepExp_2012'!O29-J29) -> 0
A30: 1860 | B30: Meters | E30: 0 | F30: =IF(D30=0,+'App.2-CG_MIFRS_DepExp_2012'!O30,+'App.2-CG_MIFRS_DepExp_2012'!O30+((C30*0.5)/D30)) -> 0 | H30: 0 | I30: 0 | K30: =IF(ISERROR(+I30+'App.2-CG_MIFRS_DepExp_2012'!O30-J30), 0, +I30+'App.2-CG_MIFRS_DepExp_2012'!O30-J30) -> 0
A31: 1860 | B31: Meters (Smart Meters) | E31: 0 | F31: =IF(D31=0,+'App.2-CG_MIFRS_DepExp_2012'!O31,+'App.2-CG_MIFRS_DepExp_2012'!O31+((C31*0.5)/D31)) -> 0 | H31: 0 | I31: 0 | K31: =IF(ISERROR(+I31+'App.2-CG_MIFRS_DepExp_2012'!O31-J31), 0, +I31+'App.2-CG_MIFRS_DepExp_2012'!O31-J31) -> 0
A32: 1905 | B32: Land | E32: 0 | F32: =IF(D32=0,+'App.2-CG_MIFRS_DepExp_2012'!O32,+'App.2-CG_MIFRS_DepExp_2012'!O32+((C32*0.5)/D32)) -> 0 | H32: 0 | I32: 0 | K32: =IF(ISERROR(+I32+'App.2-CG_MIFRS_DepExp_2012'!O32-J32), 0, +I32+'App.2-CG_MIFRS_DepExp_2012'!O32-J32) -> 0
A33: 1908 | B33: Buildings & Fixtures | E33: 0 | F33: =IF(D33=0,+'App.2-CG_MIFRS_DepExp_2012'!O33,+'App.2-CG_MIFRS_DepExp_2012'!O33+((C33*0.5)/D33)) -> 0 | H33: 0 | I33: 0 | K33: =IF(ISERROR(+I33+'App.2-CG_MIFRS_DepExp_2012'!O33-J33), 0, +I33+'App.2-CG_MIFRS_DepExp_2012'!O33-J33) -> 0
A34: 1910 | B34: Leasehold Improvements | E34: 0 | F34: =IF(D34=0,+'App.2-CG_MIFRS_DepExp_2012'!O34,+'App.2-CG_MIFRS_DepExp_2012'!O34+((C34*0.5)/D34)) -> 0 | H34: 0 | I34: 0 | K34: =IF(ISERROR(+I34+'App.2-CG_MIFRS_DepExp_2012'!O34-J34), 0, +I34+'App.2-CG_MIFRS_DepExp_2012'!O34-J34) -> 0
A35: 1915 | B35: Office Furniture & Equipment (10 years) | E35: 0 | F35: =IF(D35=0,+'App.2-CG_MIFRS_DepExp_2012'!O35,+'App.2-CG_MIFRS_DepExp_2012'!O35+((C35*0.5)/D35)) -> 0 | H35: 0 | I35: 0 | K35: =IF(ISERROR(+I35+'App.2-CG_MIFRS_DepExp_2012'!O35-J35), 0, +I35+'App.2-CG_MIFRS_DepExp_2012'!O35-J35) -> 0
A36: 1915 | B36: Office Furniture & Equipment (5 years) | E36: 0 | F36: =IF(D36=0,+'App.2-CG_MIFRS_DepExp_2012'!O36,+'App.2-CG_MIFRS_DepExp_2012'!O36+((C36*0.5)/D36)) -> 0 | H36: 0 | I36: 0 | K36: =IF(ISERROR(+I36+'App.2-CG_MIFRS_DepExp_2012'!O36-J36), 0, +I36+'App.2-CG_MIFRS_DepExp_2012'!O36-J36) -> 0
A37: 1920 | B37: Computer Equipment - Hardware | E37: 0 | F37: =IF(D37=0,+'App.2-CG_MIFRS_DepExp_2012'!O37,+'App.2-CG_MIFRS_DepExp_2012'!O37+((C37*0.5)/D37)) -> 0 | H37: 0 | I37: 0 | K37: =IF(ISERROR(+I37+'App.2-CG_MIFRS_DepExp_2012'!O37-J37), 0, +I37+'App.2-CG_MIFRS_DepExp_2012'!O37-J37) -> 0
A38: 1920 | B38: Computer Equip.-Hardware(Post Mar. 22/04) | E38: 0 | F38: =IF(D38=0,+'App.2-CG_MIFRS_DepExp_2012'!O38,+'App.2-CG_MIFRS_DepExp_2012'!O38+((C38*0.5)/D38)) -> 0 | H38: 0 | I38: 0 | K38: =IF(ISERROR(+I38+'App.2-CG_MIFRS_DepExp_2012'!O38-J38), 0, +I38+'App.2-CG_MIFRS_DepExp_2012'!O38-J38) -> 0
A39: 1920 | B39: Computer Equip.-Hardware(Post Mar. 19/07) | E39: 0 | F39: =IF(D39=0,+'App.2-CG_MIFRS_DepExp_2012'!O39,+'App.2-CG_MIFRS_DepExp_2012'!O39+((C39*0.5)/D39)) -> 0 | H39: 0 | I39: 0 | K39: =IF(ISERROR(+I39+'App.2-CG_MIFRS_DepExp_2012'!O39-J39), 0, +I39+'App.2-CG_MIFRS_DepExp_2012'!O39-J39) -> 0
A40: 1930 | B40: Transportation Equipment | E40: 0 | F40: =IF(D40=0,+'App.2-CG_MIFRS_DepExp_2012'!O40,+'App.2-CG_MIFRS_DepExp_2012'!O40+((C40*0.5)/D40)) -> 0 | H40: 0 | I40: 0 | K40: =IF(ISERROR(+I40+'App.2-CG_MIFRS_DepExp_2012'!O40-J40), 0, +I40+'App.2-CG_MIFRS_DepExp_2012'!O40-J40) -> 0
A41: 1935 | B41: Stores Equipment | E41: 0 | F41: =IF(D41=0,+'App.2-CG_MIFRS_DepExp_2012'!O41,+'App.2-CG_MIFRS_DepExp_2012'!O41+((C41*0.5)/D41)) -> 0 | H41: 0 | I41: 0 | K41: =IF(ISERROR(+I41+'App.2-CG_MIFRS_DepExp_2012'!O41-J41), 0, +I41+'App.2-CG_MIFRS_DepExp_2012'!O41-J41) -> 0
A42: 1940 | B42: Tools, Shop & Garage Equipment | E42: 0 | F42: =IF(D42=0,+'App.2-CG_MIFRS_DepExp_2012'!O42,+'App.2-CG_MIFRS_DepExp_2012'!O42+((C42*0.5)/D42)) -> 0 | H42: 0 | I42: 0 | K42: =IF(ISERROR(+I42+'App.2-CG_MIFRS_DepExp_2012'!O42-J42), 0, +I42+'App.2-CG_MIFRS_DepExp_2012'!O42-J42) -> 0
A43: 1945 | B43: Measurement & Testing Equipment | E43: 0 | F43: =IF(D43=0,+'App.2-CG_MIFRS_DepExp_2012'!O43,+'App.2-CG_MIFRS_DepExp_2012'!O43+((C43*0.5)/D43)) -> 0 | H43: 0 | I43: 0 | K43: =IF(ISERROR(+I43+'App.2-CG_MIFRS_DepExp_2012'!O43-J43), 0, +I43+'App.2-CG_MIFRS_DepExp_2012'!O43-J43) -> 0
A44: 1950 | B44: Power Operated Equipment | E44: 0 | F44: =IF(D44=0,+'App.2-CG_MIFRS_DepExp_2012'!O44,+'App.2-CG_MIFRS_DepExp_2012'!O44+((C44*0.5)/D44)) -> 0 | H44: 0 | I44: 0 | K44: =IF(ISERROR(+I44+'App.2-CG_MIFRS_DepExp_2012'!O44-J44), 0, +I44+'App.2-CG_MIFRS_DepExp_2012'!O44-J44) -> 0
A45: 1955 | B45: Communications Equipment | E45: 0 | F45: =IF(D45=0,+'App.2-CG_MIFRS_DepExp_2012'!O45,+'App.2-CG_MIFRS_DepExp_2012'!O45+((C45*0.5)/D45)) -> 0 | H45: 0 | I45: 0 | K45: =IF(ISERROR(+I45+'App.2-CG_MIFRS_DepExp_2012'!O45-J45), 0, +I45+'App.2-CG_MIFRS_DepExp_2012'!O45-J45) -> 0
A46: 1955 | B46: Communication Equipment (Smart Meters) | E46: 0 | F46: =IF(D46=0,+'App.2-CG_MIFRS_DepExp_2012'!O46,+'App.2-CG_MIFRS_DepExp_2012'!O46+((C46*0.5)/D46)) -> 0 | H46: 0 | I46: 0 | K46: =IF(ISERROR(+I46+'App.2-CG_MIFRS_DepExp_2012'!O46-J46), 0, +I46+'App.2-CG_MIFRS_DepExp_2012'!O46-J46) -> 0
A47: 1960 | B47: Miscellaneous Equipment | E47: 0 | F47: =IF(D47=0,+'App.2-CG_MIFRS_DepExp_2012'!O47,+'App.2-CG_MIFRS_DepExp_2012'!O47+((C47*0.5)/D47)) -> 0 | H47: 0 | I47: 0 | K47: =IF(ISERROR(+I47+'App.2-CG_MIFRS_DepExp_2012'!O47-J47), 0, +I47+'App.2-CG_MIFRS_DepExp_2012'!O47-J47) -> 0
A48: 1970 | B48: Load Management Controls Customer Premises | E48: 0 | F48: =IF(D48=0,+'App.2-CG_MIFRS_DepExp_2012'!O48,+'App.2-CG_MIFRS_DepExp_2012'!O48+((C48*0.5)/D48)) -> 0 | H48: 0 | I48: 0 | K48: =IF(ISERROR(+I48+'App.2-CG_MIFRS_DepExp_2012'!O48-J48), 0, +I48+'App.2-CG_MIFRS_DepExp_2012'!O48-J48) -> 0
A49: 1975 | B49: Load Management Controls Utility Premises | E49: 0 | F49: =IF(D49=0,+'App.2-CG_MIFRS_DepExp_2012'!O49,+'App.2-CG_MIFRS_DepExp_2012'!O49+((C49*0.5)/D49)) -> 0 | H49: 0 | I49: 0 | K49: =IF(ISERROR(+I49+'App.2-CG_MIFRS_DepExp_2012'!O49-J49), 0, +I49+'App.2-CG_MIFRS_DepExp_2012'!O49-J49) -> 0
A50: 1980 | B50: System Supervisor Equipment | E50: 0 | F50: =IF(D50=0,+'App.2-CG_MIFRS_DepExp_2012'!O50,+'App.2-CG_MIFRS_DepExp_2012'!O50+((C50*0.5)/D50)) -> 0 | H50: 0 | I50: 0 | K50: =IF(ISERROR(+I50+'App.2-CG_MIFRS_DepExp_2012'!O50-J50), 0, +I50+'App.2-CG_MIFRS_DepExp_2012'!O50-J50) -> 0
A51: 1985 | B51: Miscellaneous Fixed Assets | E51: 0 | F51: =IF(D51=0,+'App.2-CG_MIFRS_DepExp_2012'!O51,+'App.2-CG_MIFRS_DepExp_2012'!O51+((C51*0.5)/D51)) -> 0 | H51: 0 | I51: 0 | K51: =IF(ISERROR(+I51+'App.2-CG_MIFRS_DepExp_2012'!O51-J51), 0, +I51+'App.2-CG_MIFRS_DepExp_2012'!O51-J51) -> 0
A52: 1990 | B52: Other Tangible Property | E52: 0 | F52: =IF(D52=0,+'App.2-CG_MIFRS_DepExp_2012'!O52,+'App.2-CG_MIFRS_DepExp_2012'!O52+((C52*0.5)/D52)) -> 0 | H52: 0 | I52: 0 | K52: =IF(ISERROR(+I52+'App.2-CG_MIFRS_DepExp_2012'!O52-J52), 0, +I52+'App.2-CG_MIFRS_DepExp_2012'!O52-J52) -> 0
A53: 1995 | B53: Contributions & Grants | E53: 0 | F53: =IF(D53=0,+'App.2-CG_MIFRS_DepExp_2012'!O53,+'App.2-CG_MIFRS_DepExp_2012'!O53+((C53*0.5)/D53)) -> 0 | H53: 0 | I53: 0 | K53: =IF(ISERROR(+I53+'App.2-CG_MIFRS_DepExp_2012'!O53-J53), 0, +I53+'App.2-CG_MIFRS_DepExp_2012'!O53-J53) -> 0
A54: etc. | E54: 0 | F54: =IF(D54=0,+'App.2-CG_MIFRS_DepExp_2012'!O54,+'App.2-CG_MIFRS_DepExp_2012'!O54+((C54*0.5)/D54)) -> 0 | H54: 0 | I54: 0 | K54: =IF(ISERROR(+I54+'App.2-CG_MIFRS_DepExp_2012'!O54-J54), 0, +I54+'App.2-CG_MIFRS_DepExp_2012'!O54-J54) -> 0
E55: 0 | F55: =IF(D55=0,+'App.2-CG_MIFRS_DepExp_2012'!O55,+'App.2-CG_MIFRS_DepExp_2012'!O55+((C55*0.5)/D55)) -> 0 | H55: 0 | I55: 0 | K55: =IF(ISERROR(+I55+'App.2-CG_MIFRS_DepExp_2012'!O55-J55), 0, +I55+'App.2-CG_MIFRS_DepExp_2012'!O55-J55) -> 0
B56: Total | C56: =SUM(C16:C55) -> 0 | F56: =SUM(F16:F55) -> 0 | G56: 0 | H56: 0 | I56: 0 | J56: 0 | K56: 0
B57: Depreciation exp. adj. from gain or loss on the retirement of assets (pool of like assets) | F57: 0
B58: Total | F58: =+F57+F56 -> 0
A59: Notes:
A60: 1 | B60: Board policy of the "half-year" rule - the applicant must ensure that additions in the year attract a half-year depreciation expense in the first year. Deviations from this standard practice must be supported in the application.
A61: 2 | B61: The applicant must provide an explanation of material variances in evidence.
A62: 3 | B62: This column refers to the calculated full year depreciation but excludes the depreciation expense on assets fully depreciated during the year. This column is used for the purpose of calculating depreciation expense in the following year on the next worksheet.
A64: General: | B64: Applicants must provide a breakdown of depreciation and amortization expense in the above format for all relevant accounts. Asset Retirement Obligations (AROs), depreciation and accretion expense should be disclosed separately consistent with the Notes of historical Audited Financial Statements.

Sheet App.2-CI_MIFRS_DepExp_2014 (hidden)
G1: File Number: | H1: =EBNUMBER -> EB-2013-0160
G2: Exhibit:
G3: Tab:
G4: Schedule:
G5: Page:
G7: Date:
A9: Appendix 2-CI
A10: Depreciation and Amortization Expense
A11: Assumes the applicant adopted IFRS for financial reporting purposes January 1, 2013
C12: 2014 | D12: MIFRS
A14: Account | B14: Description | C14: Additions | D14: Years (new additions only) | E14: Depreciation Rate on New Additions | F14: 2014 Depreciation Expense 1 | G14: 2014 Depreciation Expense per Appendix 2-B Fixed Assets, Column K (l) | H14: Variance 2
C15: (d) | D15: (f) | E15: (g) = 1 / (f) | F15: (h)=2013 Full Year Depreciation + ((d)*0.5)/(f) | H15: (m) = (h) - (l)
A16: 1611 | B16: Computer Software (Formally known as Account 1925) | E16: =IF(D16=0,0,1/D16) -> 0 | F16: =IF(D16=0,'App.2-CH_MIFRS_DepExp_2013'!K16,+'App.2-CH_MIFRS_DepExp_2013'!K16+((C16*0.5)/D16)) -> 0 | H16: =IF(ISERROR(+F16-G16), 0, +F16-G16) -> 0
A17: 1612 | B17: Land Rights (Formally known as Account 1906) | E17: 0 | F17: =IF(D17=0,'App.2-CH_MIFRS_DepExp_2013'!K17,+'App.2-CH_MIFRS_DepExp_2013'!K17+((C17*0.5)/D17)) -> 0 | H17: 0
A18: 1805 | B18: Land | E18: 0 | F18: =IF(D18=0,'App.2-CH_MIFRS_DepExp_2013'!K18,+'App.2-CH_MIFRS_DepExp_2013'!K18+((C18*0.5)/D18)) -> 0 | H18: 0
A19: 1808 | B19: Buildings | E19: 0 | F19: =IF(D19=0,'App.2-CH_MIFRS_DepExp_2013'!K19,+'App.2-CH_MIFRS_DepExp_2013'!K19+((C19*0.5)/D19)) -> 0 | H19: 0
A20: 1810 | B20: Leasehold Improvements | E20: 0 | F20: =IF(D20=0,'App.2-CH_MIFRS_DepExp_2013'!K20,+'App.2-CH_MIFRS_DepExp_2013'!K20+((C20*0.5)/D20)) -> 0 | H20: 0
A21: 1815 | B21: Transformer Station Equipment >50 kV | E21: 0 | F21: =IF(D21=0,'App.2-CH_MIFRS_DepExp_2013'!K21,+'App.2-CH_MIFRS_DepExp_2013'!K21+((C21*0.5)/D21)) -> 0 | H21: 0
A22: 1820 | B22: Distribution Station Equipment <50 kV | E22: 0 | F22: =IF(D22=0,'App.2-CH_MIFRS_DepExp_2013'!K22,+'App.2-CH_MIFRS_DepExp_2013'!K22+((C22*0.5)/D22)) -> 0 | H22: 0
A23: 1825 | B23: Storage Battery Equipment | E23: 0 | F23: =IF(D23=0,'App.2-CH_MIFRS_DepExp_2013'!K23,+'App.2-CH_MIFRS_DepExp_2013'!K23+((C23*0.5)/D23)) -> 0 | H23: 0
A24: 1830 | B24: Poles, Towers & Fixtures | E24: 0 | F24: =IF(D24=0,'App.2-CH_MIFRS_DepExp_2013'!K24,+'App.2-CH_MIFRS_DepExp_2013'!K24+((C24*0.5)/D24)) -> 0 | H24: 0
A25: 1835 | B25: Overhead Conductors & Devices | E25: 0 | F25: =IF(D25=0,'App.2-CH_MIFRS_DepExp_2013'!K25,+'App.2-CH_MIFRS_DepExp_2013'!K25+((C25*0.5)/D25)) -> 0 | H25: 0
A26: 1840 | B26: Underground Conduit | E26: 0 | F26: =IF(D26=0,'App.2-CH_MIFRS_DepExp_2013'!K26,+'App.2-CH_MIFRS_DepExp_2013'!K26+((C26*0.5)/D26)) -> 0 | H26: 0
A27: 1845 | B27: Underground Conductors & Devices | E27: 0 | F27: =IF(D27=0,'App.2-CH_MIFRS_DepExp_2013'!K27,+'App.2-CH_MIFRS_DepExp_2013'!K27+((C27*0.5)/D27)) -> 0 | H27: 0
A28: 1850 | B28: Line Transformers | E28: 0 | F28: =IF(D28=0,'App.2-CH_MIFRS_DepExp_2013'!K28,+'App.2-CH_MIFRS_DepExp_2013'!K28+((C28*0.5)/D28)) -> 0 | H28: 0
A29: 1855 | B29: Services (Overhead & Underground) | E29: 0 | F29: =IF(D29=0,'App.2-CH_MIFRS_DepExp_2013'!K29,+'App.2-CH_MIFRS_DepExp_2013'!K29+((C29*0.5)/D29)) -> 0 | H29: 0
A30: 1860 | B30: Meters | E30: 0 | F30: =IF(D30=0,'App.2-CH_MIFRS_DepExp_2013'!K30,+'App.2-CH_MIFRS_DepExp_2013'!K30+((C30*0.5)/D30)) -> 0 | H30: 0
A31: 1860 | B31: Meters (Smart Meters) | E31: 0 | F31: =IF(D31=0,'App.2-CH_MIFRS_DepExp_2013'!K31,+'App.2-CH_MIFRS_DepExp_2013'!K31+((C31*0.5)/D31)) -> 0 | H31: 0
A32: 1905 | B32: Land | E32: 0 | F32: =IF(D32=0,'App.2-CH_MIFRS_DepExp_2013'!K32,+'App.2-CH_MIFRS_DepExp_2013'!K32+((C32*0.5)/D32)) -> 0 | H32: 0
A33: 1908 | B33: Buildings & Fixtures | E33: 0 | F33: =IF(D33=0,'App.2-CH_MIFRS_DepExp_2013'!K33,+'App.2-CH_MIFRS_DepExp_2013'!K33+((C33*0.5)/D33)) -> 0 | H33: 0
A34: 1910 | B34: Leasehold Improvements | E34: 0 | F34: =IF(D34=0,'App.2-CH_MIFRS_DepExp_2013'!K34,+'App.2-CH_MIFRS_DepExp_2013'!K34+((C34*0.5)/D34)) -> 0 | H34: 0
A35: 1915 | B35: Office Furniture & Equipment (10 years) | E35: 0 | F35: =IF(D35=0,'App.2-CH_MIFRS_DepExp_2013'!K35,+'App.2-CH_MIFRS_DepExp_2013'!K35+((C35*0.5)/D35)) -> 0 | H35: 0
A36: 1915 | B36: Office Furniture & Equipment (5 years) | E36: 0 | F36: =IF(D36=0,'App.2-CH_MIFRS_DepExp_2013'!K36,+'App.2-CH_MIFRS_DepExp_2013'!K36+((C36*0.5)/D36)) -> 0 | H36: 0
A37: 1920 | B37: Computer Equipment - Hardware | E37: 0 | F37: =IF(D37=0,'App.2-CH_MIFRS_DepExp_2013'!K37,+'App.2-CH_MIFRS_DepExp_2013'!K37+((C37*0.5)/D37)) -> 0 | H37: 0
A38: 1920 | B38: Computer Equip.-Hardware(Post Mar. 22/04) | E38: 0 | F38: =IF(D38=0,'App.2-CH_MIFRS_DepExp_2013'!K38,+'App.2-CH_MIFRS_DepExp_2013'!K38+((C38*0.5)/D38)) -> 0 | H38: 0
A39: 1920 | B39: Computer Equip.-Hardware(Post Mar. 19/07) | E39: 0 | F39: =IF(D39=0,'App.2-CH_MIFRS_DepExp_2013'!K39,+'App.2-CH_MIFRS_DepExp_2013'!K39+((C39*0.5)/D39)) -> 0 | H39: 0
A40: 1930 | B40: Transportation Equipment | E40: 0 | F40: =IF(D40=0,'App.2-CH_MIFRS_DepExp_2013'!K40,+'App.2-CH_MIFRS_DepExp_2013'!K40+((C40*0.5)/D40)) -> 0 | H40: 0
A41: 1935 | B41: Stores Equipment | E41: 0 | F41: =IF(D41=0,'App.2-CH_MIFRS_DepExp_2013'!K41,+'App.2-CH_MIFRS_DepExp_2013'!K41+((C41*0.5)/D41)) -> 0 | H41: 0
A42: 1940 | B42: Tools, Shop & Garage Equipment | E42: 0 | F42: =IF(D42=0,'App.2-CH_MIFRS_DepExp_2013'!K42,+'App.2-CH_MIFRS_DepExp_2013'!K42+((C42*0.5)/D42)) -> 0 | H42: 0
A43: 1945 | B43: Measurement & Testing Equipment | E43: 0 | F43: =IF(D43=0,'App.2-CH_MIFRS_DepExp_2013'!K43,+'App.2-CH_MIFRS_DepExp_2013'!K43+((C43*0.5)/D43)) -> 0 | H43: 0
A44: 1950 | B44: Power Operated Equipment | E44: 0 | F44: =IF(D44=0,'App.2-CH_MIFRS_DepExp_2013'!K44,+'App.2-CH_MIFRS_DepExp_2013'!K44+((C44*0.5)/D44)) -> 0 | H44: 0
A45: 1955 | B45: Communications Equipment | E45: 0 | F45: =IF(D45=0,'App.2-CH_MIFRS_DepExp_2013'!K45,+'App.2-CH_MIFRS_DepExp_2013'!K45+((C45*0.5)/D45)) -> 0 | H45: 0
A46: 1955 | B46: Communication Equipment (Smart Meters) | E46: 0 | F46: =IF(D46=0,'App.2-CH_MIFRS_DepExp_2013'!K46,+'App.2-CH_MIFRS_DepExp_2013'!K46+((C46*0.5)/D46)) -> 0 | H46: 0
A47: 1960 | B47: Miscellaneous Equipment | E47: 0 | F47: =IF(D47=0,'App.2-CH_MIFRS_DepExp_2013'!K47,+'App.2-CH_MIFRS_DepExp_2013'!K47+((C47*0.5)/D47)) -> 0 | H47: 0
A48: 1970 | B48: Load Management Controls Customer Premises | E48: 0 | F48: =IF(D48=0,'App.2-CH_MIFRS_DepExp_2013'!K48,+'App.2-CH_MIFRS_DepExp_2013'!K48+((C48*0.5)/D48)) -> 0 | H48: 0
A49: 1975 | B49: Load Management Controls Utility Premises | E49: 0 | F49: =IF(D49=0,'App.2-CH_MIFRS_DepExp_2013'!K49,+'App.2-CH_MIFRS_DepExp_2013'!K49+((C49*0.5)/D49)) -> 0 | H49: 0
A50: 1980 | B50: System Supervisor Equipment | E50: 0 | F50: =IF(D50=0,'App.2-CH_MIFRS_DepExp_2013'!K50,+'App.2-CH_MIFRS_DepExp_2013'!K50+((C50*0.5)/D50)) -> 0 | H50: 0
A51: 1985 | B51: Miscellaneous Fixed Assets | E51: 0 | F51: =IF(D51=0,'App.2-CH_MIFRS_DepExp_2013'!K51,+'App.2-CH_MIFRS_DepExp_2013'!K51+((C51*0.5)/D51)) -> 0 | H51: 0
A52: 1990 | B52: Other Tangible Property | E52: 0 | F52: =IF(D52=0,'App.2-CH_MIFRS_DepExp_2013'!K52,+'App.2-CH_MIFRS_DepExp_2013'!K52+((C52*0.5)/D52)) -> 0 | H52: 0
A53: 1995 | B53: Contributions & Grants | E53: 0 | F53: =IF(D53=0,'App.2-CH_MIFRS_DepExp_2013'!K53,+'App.2-CH_MIFRS_DepExp_2013'!K53+((C53*0.5)/D53)) -> 0 | H53: 0
A54: etc. | E54: 0 | F54: =IF(D54=0,'App.2-CH_MIFRS_DepExp_2013'!K54,+'App.2-CH_MIFRS_DepExp_2013'!K54+((C54*0.5)/D54)) -> 0 | H54: 0
E55: 0 | F55: =IF(D55=0,'App.2-CH_MIFRS_DepExp_2013'!K55,+'App.2-CH_MIFRS_DepExp_2013'!K55+((C55*0.5)/D55)) -> 0 | H55: 0
B56: Total | C56: =SUM(C16:C55) -> 0 | F56: =SUM(F16:F55) -> 0 | G56: =SUM(G16:G55) -> 0 | H56: =SUM(H16:H55) -> 0
B57: Depreciation exp. adj. from gain or loss on the retirement of assets (pool of like assets) | F57: 0
B58: Total Depreciation expense to be included in the test year revenue requirement | F58: =SUM(F56:F57) -> 0
A59: Notes:
A60: 1 | B60: Board policy of the "half-year" rule - the applicant must ensure that additions in the year attract a half-year depreciation expense in the first year. Deviations from this standard practice must be supported in the application.
A61: 2 | B61: The applicant must provide an explanation of material variances in evidence.
A63: General: | B63: Applicants must provide a breakdown of depreciation and amortization expense in the above format for all relevant accounts. Asset Retirement Obligations (AROs), depreciation and accretion expense should be disclosed separately consistent with the Notes of historical Audited Financial Statements.

Sheet App.2-CJ_CGAAP_DepExp_2012 (hidden)
K1: File Number: | L1: =EBNUMBER -> EB-2013-0160
K2: Exhibit:
K3: Tab:
K4: Schedule:
K5: Page:
K7: Date:
A9: Appendix 2-CJ
A10: Depreciation and Amortization Expense
A11: Assumes the applicant adopted IFRS for financial reporting purposes January 1, 2014
C12: Year | D12: 2012 | E12: CGAAP
A14: Account | B14: Description | C14: Opening Regulatory Gross PP&E as at Jan 1, 2012 | D14: Less Fully Depreciated | E14: Net for Depreciation | F14: Additions | G14: Total for Depreciation | H14: Years | I14: Depreciation Rate | J14: 2012 Depreciation Expense | K14: 2012 Depreciation Expense per Appendix 2-B Fixed Assets, Column K (l) | L14: Variance 2
C15: (a) | D15: (b) | E15: (c) | F15: (d) | G15: (e) = (c) + ½ x (d) 1 | H15: (f) | I15: (g) = 1 / (f) | J15: (h) = (e) / (f) | L15: (m) = (h) - (l)
A16: 1611 | B16: Computer Software (Formally known as Account 1925) | E16: =C16-D16 -> 0 | G16: =E16+0.5*F16 -> 0 | I16: =IF(H16=0,"",1/H16) ->  | J16: =IF(H16=0,0,G16/H16) -> 0 | L16: =IF(ISERROR(+J16-K16), "", +J16-K16) -> 0
A17: 1612 | B17: Land Rights (Formally known as Account 1906) | E17: =C17-D17 -> 0 | G17: =E17+0.5*F17 -> 0 | J17: 0 | L17: =IF(ISERROR(+J17-K17), "", +J17-K17) -> 0
A18: 1805 | B18: Land | E18: 0 | G18: 0 | J18: 0 | L18: 0
A19: 1808 | B19: Buildings | E19: 0 | G19: 0 | J19: 0 | L19: 0
A20: 1810 | B20: Leasehold Improvements | E20: 0 | G20: 0 | J20: 0 | L20: 0
A21: 1815 | B21: Transformer Station Equipment >50 kV | E21: 0 | G21: 0 | J21: 0 | L21: 0
A22: 1820 | B22: Distribution Station Equipment <50 kV | E22: 0 | G22: 0 | J22: 0 | L22: 0
A23: 1825 | B23: Storage Battery Equipment | E23: 0 | G23: 0 | J23: 0 | L23: 0
A24: 1830 | B24: Poles, Towers & Fixtures | E24: 0 | G24: 0 | J24: 0 | L24: 0
A25: 1835 | B25: Overhead Conductors & Devices | E25: 0 | G25: 0 | J25: 0 | L25: 0
A26: 1840 | B26: Underground Conduit | E26: 0 | G26: 0 | J26: 0 | L26: 0
A27: 1845 | B27: Underground Conductors & Devices | E27: 0 | G27: 0 | J27: 0 | L27: 0
A28: 1850 | B28: Line Transformers | E28: 0 | G28: 0 | J28: 0 | L28: 0
A29: 1855 | B29: Services (Overhead & Underground) | E29: 0 | G29: 0 | J29: 0 | L29: 0
A30: 1860 | B30: Meters | E30: 0 | G30: 0 | J30: 0 | L30: 0
A31: 1860 | B31: Meters (Smart Meters) | E31: 0 | G31: 0 | J31: 0 | L31: 0
A32: 1905 | B32: Land | E32: 0 | G32: 0 | J32: 0 | L32: 0
A33: 1908 | B33: Buildings & Fixtures | E33: 0 | G33: 0 | J33: 0 | L33: 0
A34: 1910 | B34: Leasehold Improvements | E34: 0 | G34: 0 | J34: 0 | L34: 0
A35: 1915 | B35: Office Furniture & Equipment (10 years) | E35: 0 | G35: 0 | J35: 0 | L35: 0
A36: 1915 | B36: Office Furniture & Equipment (5 years) | E36: 0 | G36: 0 | J36: 0 | L36: 0
A37: 1920 | B37: Computer Equipment - Hardware | E37: 0 | G37: 0 | J37: 0 | L37: 0
A38: 1920 | B38: Computer Equip.-Hardware(Post Mar. 22/04) | E38: 0 | G38: 0 | J38: 0 | L38: 0
A39: 1920 | B39: Computer Equip.-Hardware(Post Mar. 19/07) | E39: 0 | G39: 0 | J39: 0 | L39: 0
A40: 1930 | B40: Transportation Equipment | E40: 0 | G40: 0 | J40: 0 | L40: 0
A41: 1935 | B41: Stores Equipment | E41: 0 | G41: 0 | J41: 0 | L41: 0
A42: 1940 | B42: Tools, Shop & Garage Equipment | E42: 0 | G42: 0 | J42: 0 | L42: 0
A43: 1945 | B43: Measurement & Testing Equipment | E43: 0 | G43: 0 | J43: 0 | L43: 0
A44: 1950 | B44: Power Operated Equipment | E44: 0 | G44: 0 | J44: 0 | L44: 0
A45: 1955 | B45: Communications Equipment | E45: 0 | G45: 0 | J45: 0 | L45: 0
A46: 1955 | B46: Communication Equipment (Smart Meters) | E46: 0 | G46: 0 | J46: 0 | L46: 0
A47: 1960 | B47: Miscellaneous Equipment | E47: 0 | G47: 0 | J47: 0 | L47: 0
A48: 1970 | B48: Load Management Controls Customer Premises | E48: 0 | G48: 0 | J48: 0 | L48: 0
A49: 1975 | B49: Load Management Controls Utility Premises | E49: 0 | G49: 0 | J49: 0 | L49: 0
A50: 1980 | B50: System Supervisor Equipment | E50: 0 | G50: 0 | J50: 0 | L50: 0
A51: 1985 | B51: Miscellaneous Fixed Assets | E51: 0 | G51: 0 | J51: 0 | L51: 0
A52: 1990 | B52: Other Tangible Property | E52: 0 | G52: 0 | J52: 0 | L52: 0
A53: 1995 | B53: Contributions & Grants | E53: 0 | G53: 0 | J53: 0 | L53: 0
A54: etc. | E54: 0 | G54: 0 | J54: 0 | L54: 0
E55: 0 | G55: 0 | J55: 0 | L55: 0
B56: Total | C56: =SUM(C16:C55) -> 0 | D56: =SUM(D16:D55) -> 0 | E56: =SUM(E16:E55) -> 0 | F56: =SUM(F16:F55) -> 0 | G56: =SUM(G16:G55) -> 0 | J56: =SUM(J16:J55) -> 0 | K56: =SUM(K16:K55) -> 0 | L56: =SUM(L16:L55) -> 0
A58: Notes:
A59: 1 | B59: Board policy of the "half-year" rule - the applicant must ensure that additions in the year attract a half-year depreciation expense in the first year. Deviations from this standard practice must be supported in the application.
A60: 2 | B60: The applicant must provide an explanation of material variances in evidence.
A61: General: | B61: Applicants must provide a breakdown of depreciation and amortization expense in the above format for all relevant accounts. Asset Retirement Obligations (AROs), depreciation and accretion expense should be disclosed separately consistent with the Notes of historical Audited Financial Statements.

Sheet App.2-CK_CGAAP_DepExp_2013 (hidden)
K1: File Number: | L1: =EBNUMBER -> EB-2013-0160
K2: Exhibit:
K3: Tab:
K4: Schedule:
K5: Page:
K7: Date:
A9: Appendix 2-CK
A10: Depreciation and Amortization Expense
A11: Assumes the applicant adopted IFRS for financial reporting purposes January 1, 2014
C12: Year | D12: 2013 | E12: CGAAP
A14: Account | B14: Description | C14: Opening Regulatory Gross PP&E as at Jan 1, 2013 | D14: Less Fully Depreciated | E14: Net for Depreciation | F14: Additions | G14: Total for Depreciation | H14: Years | I14: Depreciation Rate | J14: 2013 Depreciation Expense | K14: 2013 Depreciation Expense per Appendix 2-B Fixed Assets, Column K (l) | L14: Variance 2
C15: (a) | D15: (b) | E15: (c) | F15: (d) | G15: (e) = (c) + ½ x (d) 1 | H15: (f) | I15: (g) = 1 / (f) | J15: (h) = (e) / (f) | L15: (m) = (h) - (l)
A16: 1611 | B16: Computer Software (Formally known as Account 1925) | E16: =C16-D16 -> 0 | G16: =E16+0.5*F16 -> 0 | I16: =IF(H16=0,0,1/H16) -> 0 | J16: =IF(H16=0,0,G16/H16) -> 0 | L16: =IF(ISERROR(+J16-K16), 0, +J16-K16) -> 0
A17: 1612 | B17: Land Rights (Formally known as Account 1906) | E17: =C17-D17 -> 0 | G17: =E17+0.5*F17 -> 0 | I17: 0 | J17: 0 | L17: 0
A18: 1805 | B18: Land | E18: 0 | G18: 0 | I18: 0 | J18: 0 | L18: 0
A19: 1808 | B19: Buildings | E19: 0 | G19: 0 | I19: 0 | J19: 0 | L19: 0
A20: 1810 | B20: Leasehold Improvements | E20: 0 | G20: 0 | I20: 0 | J20: 0 | L20: 0
A21: 1815 | B21: Transformer Station Equipment >50 kV | E21: 0 | G21: 0 | I21: 0 | J21: 0 | L21: 0
A22: 1820 | B22: Distribution Station Equipment <50 kV | E22: 0 | G22: 0 | I22: 0 | J22: 0 | L22: 0
A23: 1825 | B23: Storage Battery Equipment | E23: 0 | G23: 0 | I23: 0 | J23: 0 | L23: 0
A24: 1830 | B24: Poles, Towers & Fixtures | E24: 0 | G24: 0 | I24: 0 | J24: 0 | L24: 0
A25: 1835 | B25: Overhead Conductors & Devices | E25: 0 | G25: 0 | I25: 0 | J25: 0 | L25: 0
A26: 1840 | B26: Underground Conduit | E26: 0 | G26: 0 | I26: 0 | J26: 0 | L26: 0
A27: 1845 | B27: Underground Conductors & Devices | E27: 0 | G27: 0 | I27: 0 | J27: 0 | L27: 0
A28: 1850 | B28: Line Transformers | E28: 0 | G28: 0 | I28: 0 | J28: 0 | L28: 0
A29: 1855 | B29: Services (Overhead & Underground) | E29: 0 | G29: 0 | I29: 0 | J29: 0 | L29: 0
A30: 1860 | B30: Meters | E30: 0 | G30: 0 | I30: 0 | J30: 0 | L30: 0
A31: 1860 | B31: Meters (Smart Meters) | E31: 0 | G31: 0 | I31: 0 | J31: 0 | L31: 0
A32: 1905 | B32: Land | E32: 0 | G32: 0 | I32: 0 | J32: 0 | L32: 0
A33: 1908 | B33: Buildings & Fixtures | E33: 0 | G33: 0 | I33: 0 | J33: 0 | L33: 0
A34: 1910 | B34: Leasehold Improvements | E34: 0 | G34: 0 | I34: 0 | J34: 0 | L34: 0
A35: 1915 | B35: Office Furniture & Equipment (10 years) | E35: 0 | G35: 0 | I35: 0 | J35: 0 | L35: 0
A36: 1915 | B36: Office Furniture & Equipment (5 years) | E36: 0 | G36: 0 | I36: 0 | J36: 0 | L36: 0
A37: 1920 | B37: Computer Equipment - Hardware | E37: 0 | G37: 0 | I37: 0 | J37: 0 | L37: 0
A38: 1920 | B38: Computer Equip.-Hardware(Post Mar. 22/04) | E38: 0 | G38: 0 | I38: 0 | J38: 0 | L38: 0
A39: 1920 | B39: Computer Equip.-Hardware(Post Mar. 19/07) | E39: 0 | G39: 0 | I39: 0 | J39: 0 | L39: 0
A40: 1930 | B40: Transportation Equipment | E40: 0 | G40: 0 | I40: 0 | J40: 0 | L40: 0
A41: 1935 | B41: Stores Equipment | E41: 0 | G41: 0 | I41: 0 | J41: 0 | L41: 0
A42: 1940 | B42: Tools, Shop & Garage Equipment | E42: 0 | G42: 0 | I42: 0 | J42: 0 | L42: 0
A43: 1945 | B43: Measurement & Testing Equipment | E43: 0 | G43: 0 | I43: 0 | J43: 0 | L43: 0
A44: 1950 | B44: Power Operated Equipment | E44: 0 | G44: 0 | I44: 0 | J44: 0 | L44: 0
A45: 1955 | B45: Communications Equipment | E45: 0 | G45: 0 | I45: 0 | J45: 0 | L45: 0
A46: 1955 | B46: Communication Equipment (Smart Meters) | E46: 0 | G46: 0 | I46: 0 | J46: 0 | L46: 0
A47: 1960 | B47: Miscellaneous Equipment | E47: 0 | G47: 0 | I47: 0 | J47: 0 | L47: 0
A48: 1970 | B48: Load Management Controls Customer Premises | E48: 0 | G48: 0 | I48: 0 | J48: 0 | L48: 0
A49: 1975 | B49: Load Management Controls Utility Premises | E49: 0 | G49: 0 | I49: 0 | J49: 0 | L49: 0
A50: 1980 | B50: System Supervisor Equipment | E50: 0 | G50: 0 | I50: 0 | J50: 0 | L50: 0
A51: 1985 | B51: Miscellaneous Fixed Assets | E51: 0 | G51: 0 | I51: 0 | J51: 0 | L51: 0
A52: 1990 | B52: Other Tangible Property | E52: 0 | G52: 0 | I52: 0 | J52: 0 | L52: 0
A53: 1995 | B53: Contributions & Grants | E53: 0 | G53: 0 | I53: 0 | J53: 0 | L53: 0
A54: etc. | E54: 0 | G54: 0 | I54: 0 | J54: 0 | L54: 0
E55: 0 | G55: 0 | I55: 0 | J55: 0 | L55: 0
B56: Total | C56: =SUM(C16:C55) -> 0 | D56: =SUM(D16:D55) -> 0 | E56: =SUM(E16:E55) -> 0 | F56: =SUM(F16:F55) -> 0 | G56: =SUM(G16:G55) -> 0 | J56: =SUM(J16:J55) -> 0 | K56: =SUM(K16:K55) -> 0 | L56: =SUM(L16:L55) -> 0
A58: Notes:
A59: 1 | B59: Board policy of the "half-year" rule - the applicant must ensure that additions in the year attract a half-year depreciation expense in the first year. Deviations from this standard practice must be supported in the application.
A60: 2 | B60: The applicant must provide an explanation of material variances in evidence.
A62: General: | B62: Applicants must provide a breakdown of depreciation and amortization expense in the above format for all relevant accounts. Asset Retirement Obligations (AROs), depreciation and accretion expense should be disclosed separately consistent with the Notes of historical Audited Financial Statements.

Sheet App.2-CL_MIFRS_DepExp_2013 (hidden)
N1: File Number: | O1: =EBNUMBER -> EB-2013-0160
N2: Exhibit:
N3: Tab:
N4: Schedule:
N5: Page:
N7: Date:
A9: Appendix 2-CL
A10: Depreciation and Amortization Expense
A11: Assumes the applicant adopted IFRS for financial reporting purposes January 1, 2014
C12: Year | D12: 2013 | E12: MIFRS
A14: Account | B14: Description | C14: Opening NBV as at Jan 1, 2013 5 | D14: Additions | E14: Average Remaining Life of Opening NBV 4 | F14: Years (new additions only) 3 | G14: Depreciation Rate on New Additions | H14: Depreciation Expense on Opening NBV | I14: Depreciation Expense on Additions 1 | J14: 2013 Depreciation Expense | K14: 2013 Depreciation Expense per Appendix 2-B Fixed Assets, Column K (l) | L14: Variance 2 | M14: Depreciation Expense on 2013 Full Year Additions | N14: Less Depreciation Expense on Assets Fully Depreciated during the year (o) | O14: 2013 Full Year Depreciation 6
C15: (a) | D15: (d) | E15: (i) | F15: (f) | G15: (g) = 1 / (f) | H15: (j) = (a) / (i) | I15: (h)=((d)*0.5)/(f) | J15: (k) = (j) + (h) | L15: (m) = (k) - (l) | M15: (n)=((d))/(f) | O15: (p) = (j) + (n) - (o)
A16: 1611 | B16: Computer Software (Formally known as Account 1925) | G16: =IF(F16=0,0,1/F16) -> 0 | H16: =IF(E16=0,0,+C16/E16) -> 0 | I16: =IF(F16=0,0,+(D16*0.5)/F16) -> 0 | J16: =IF(ISERROR(+H16+I16), 0, +H16+I16) -> 0 | L16: =IF(ISERROR(+J16-K16), 0, +J16-K16) -> 0 | M16: =IF(F16=0,0,+(D16)/F16) -> 0 | O16: =IF(ISERROR(+M16+H16-N16), 0, +M16+H16-N16) -> 0
A17: 1612 | B17: Land Rights (Formally known as Account 1906) | G17: 0 | H17: 0 | I17: 0 | J17: 0 | L17: 0 | M17: 0 | O17: =IF(ISERROR(+M17+H17-N17), 0, +M17+H17-N17) -> 0
A18: 1805 | B18: Land | G18: 0 | H18: 0 | I18: 0 | J18: 0 | L18: 0 | M18: 0 | O18: 0
A19: 1808 | B19: Buildings | G19: 0 | H19: 0 | I19: 0 | J19: 0 | L19: 0 | M19: 0 | O19: 0
A20: 1810 | B20: Leasehold Improvements | G20: 0 | H20: 0 | I20: 0 | J20: 0 | L20: 0 | M20: 0 | O20: 0
A21: 1815 | B21: Transformer Station Equipment >50 kV | G21: 0 | H21: 0 | I21: 0 | J21: 0 | L21: 0 | M21: 0 | O21: 0
A22: 1820 | B22: Distribution Station Equipment <50 kV | G22: 0 | H22: 0 | I22: 0 | J22: 0 | L22: 0 | M22: 0 | O22: 0
A23: 1825 | B23: Storage Battery Equipment | G23: 0 | H23: 0 | I23: 0 | J23: 0 | L23: 0 | M23: 0 | O23: 0
A24: 1830 | B24: Poles, Towers & Fixtures | G24: 0 | H24: 0 | I24: 0 | J24: 0 | L24: 0 | M24: 0 | O24: 0
A25: 1835 | B25: Overhead Conductors & Devices | G25: 0 | H25: 0 | I25: 0 | J25: 0 | L25: 0 | M25: 0 | O25: 0
A26: 1840 | B26: Underground Conduit | G26: 0 | H26: 0 | I26: 0 | J26: 0 | L26: 0 | M26: 0 | O26: 0
A27: 1845 | B27: Underground Conductors & Devices | G27: 0 | H27: 0 | I27: 0 | J27: 0 | L27: 0 | M27: 0 | O27: 0
A28: 1850 | B28: Line Transformers | G28: 0 | H28: 0 | I28: 0 | J28: 0 | L28: 0 | M28: 0 | O28: 0
A29: 1855 | B29: Services (Overhead & Underground) | G29: 0 | H29: 0 | I29: 0 | J29: 0 | L29: 0 | M29: 0 | O29: 0
A30: 1860 | B30: Meters | G30: 0 | H30: 0 | I30: 0 | J30: 0 | L30: 0 | M30: 0 | O30: 0
A31: 1860 | B31: Meters (Smart Meters) | G31: 0 | H31: 0 | I31: 0 | J31: 0 | L31: 0 | M31: 0 | O31: 0
A32: 1905 | B32: Land | G32: 0 | H32: 0 | I32: 0 | J32: 0 | L32: 0 | M32: 0 | O32: 0
A33: 1908 | B33: Buildings & Fixtures | G33: 0 | H33: 0 | I33: 0 | J33: 0 | L33: 0 | M33: 0 | O33: 0
A34: 1910 | B34: Leasehold Improvements | G34: 0 | H34: 0 | I34: 0 | J34: 0 | L34: 0 | M34: 0 | O34: 0
A35: 1915 | B35: Office Furniture & Equipment (10 years) | G35: 0 | H35: 0 | I35: 0 | J35: 0 | L35: 0 | M35: 0 | O35: 0
A36: 1915 | B36: Office Furniture & Equipment (5 years) | G36: 0 | H36: 0 | I36: 0 | J36: 0 | L36: 0 | M36: 0 | O36: 0
A37: 1920 | B37: Computer Equipment - Hardware | G37: 0 | H37: 0 | I37: 0 | J37: 0 | L37: 0 | M37: 0 | O37: 0
A38: 1920 | B38: Computer Equip.-Hardware(Post Mar. 22/04) | G38: 0 | H38: 0 | I38: 0 | J38: 0 | L38: 0 | M38: 0 | O38: 0
A39: 1920 | B39: Computer Equip.-Hardware(Post Mar. 19/07) | G39: 0 | H39: 0 | I39: 0 | J39: 0 | L39: 0 | M39: 0 | O39: 0
A40: 1930 | B40: Transportation Equipment | G40: 0 | H40: 0 | I40: 0 | J40: 0 | L40: 0 | M40: 0 | O40: 0
A41: 1935 | B41: Stores Equipment | G41: 0 | H41: 0 | I41: 0 | J41: 0 | L41: 0 | M41: 0 | O41: 0
A42: 1940 | B42: Tools, Shop & Garage Equipment | G42: 0 | H42: 0 | I42: 0 | J42: 0 | L42: 0 | M42: 0 | O42: 0
A43: 1945 | B43: Measurement & Testing Equipment | G43: 0 | H43: 0 | I43: 0 | J43: 0 | L43: 0 | M43: 0 | O43: 0
A44: 1950 | B44: Power Operated Equipment | G44: 0 | H44: 0 | I44: 0 | J44: 0 | L44: 0 | M44: 0 | O44: 0
A45: 1955 | B45: Communications Equipment | G45: 0 | H45: 0 | I45: 0 | J45: 0 | L45: 0 | M45: 0 | O45: 0
A46: 1955 | B46: Communication Equipment (Smart Meters) | G46: 0 | H46: 0 | I46: 0 | J46: 0 | L46: 0 | M46: 0 | O46: 0
A47: 1960 | B47: Miscellaneous Equipment | G47: 0 | H47: 0 | I47: 0 | J47: 0 | L47: 0 | M47: 0 | O47: 0
A48: 1970 | B48: Load Management Controls Customer Premises | G48: 0 | H48: 0 | I48: 0 | J48: 0 | L48: 0 | M48: 0 | O48: 0
A49: 1975 | B49: Load Management Controls Utility Premises | G49: 0 | H49: 0 | I49: 0 | J49: 0 | L49: 0 | M49: 0 | O49: 0
A50: 1980 | B50: System Supervisor Equipment | G50: 0 | H50: 0 | I50: 0 | J50: 0 | L50: 0 | M50: 0 | O50: 0
A51: 1985 | B51: Miscellaneous Fixed Assets | G51: 0 | H51: 0 | I51: 0 | J51: 0 | L51: 0 | M51: 0 | O51: 0
A52: 1990 | B52: Other Tangible Property | G52: 0 | H52: 0 | I52: 0 | J52: 0 | L52: 0 | M52: 0 | O52: 0
A53: 1995 | B53: Contributions & Grants | G53: 0 | H53: 0 | I53: 0 | J53: 0 | L53: 0 | M53: 0 | O53: 0
A54: etc. | G54: 0 | H54: 0 | I54: 0 | J54: 0 | L54: 0 | M54: 0 | O54: 0
G55: 0 | H55: 0 | I55: 0 | J55: 0 | L55: 0 | M55: 0 | O55: 0
B56: Total | C56: =SUM(C16:C55) -> 0 | D56: =SUM(D16:D55) -> 0 | H56: =SUM(H16:H55) -> 0 | I56: 0 | J56: 0 | K56: 0 | L56: 0 | M56: 0 | N56: =SUM(N16:N55) -> 0 | O56: 0
B57: Depreciation exp. adj. from gain or loss on the retirement of assets (pool of like assets) | J57: 0
B58: Total | J58: =+J56+J57 -> 0
A59: Notes:
A61: 1 | B61: Board policy of the "half-year" rule - the applicant must ensure that additions in the year attract a half-year depreciation expense in the first year. Deviations from this standard practice must be supported in the application.
A62: 2 | B62: The applicant must provide an explanation of material variances in evidence.
A63: 3 | B63: The applicant should ensure that the years for new additions of assets are the asset useful lives determined by management in accordance with IFRS.
A64: 4 | B64: A recalculation should be performed to determine the average remaining life of opening balance of assets (i.e. excluding 2013 additions) under IFRS. For example, Asset A had a useful life of 20 years under CGAAP. On January 1, 2013, the date of transition, Asset A was 3 years depreciated. As a result, Asset A would have a remaining service life of 17 years (20 years less 3 years) under CGAAP as of January 1, 2013. Due to the transition to IFRS, management re-assessed the asset useful lives under IFRS principles and concluded that the revised useful life of Asset A is now 30 years. Therefore, the average remaining useful life of opening balance of Asset A is determined to be 27 years (30 years less 3 years) under IFRS as of January 1, 2013.
A65: 5 | B65: NBV must exclude assets still on the books but which have been fully amortized or depreciated.
A66: 6 | B66: This column refers to the calculated full year depreciation but excludes the depreciation expense on assets fully depreciated during the year. This column is used for the purpose of calculating depreciation expense in the following year on the next worksheet.
A68: General: | B68: Applicants must provide a breakdown of depreciation and amortization expense in the above format for all relevant accounts. Asset Retirement Obligations (AROs), depreciation and accretion expense should be disclosed separately consistent with the Notes of historical Audited Financial Statements.

Sheet App.2-CM_MIFRS_DepExp_2014 (hidden)
I1: File Number: | J1: =EBNUMBER -> EB-2013-0160
I2: Exhibit:
I3: Tab:
I4: Schedule:
I5: Page:
I7: Date:
A9: Appendix 2-CM
A10: Depreciation and Amortization Expense
A11: Assumes the applicant adopted IFRS for financial reporting purposes January 1, 2014
C12: Year | D12: 2014 | E12: MIFRS
A14: Account | B14: Description | C14: Additions | D14: Years (new additions only) | E14: Depreciation Rate on New Additions | F14: 2014 Depreciation Expense 1 | G14: 2014 Depreciation Expense per Appendix 2-B Fixed Assets, Column K (l) | H14: Variance 2
C15: (d) | D15: (f) | E15: (g) = 1 / (f) | F15: (h)=2013 Full Year Depreciation + ((d)*0.5)/(f) | H15: (m) = (h) - (l)
A16: 1611 | B16: Computer Software (Formally known as Account 1925) | E16: =IF(D16=0,0,1/D16) -> 0 | F16: =IF(D16=0,'App.2-CL_MIFRS_DepExp_2013'!O16,+'App.2-CL_MIFRS_DepExp_2013'!O16+((C16*0.5)/D16)) -> 0 | H16: =IF(ISERROR(+F16-G16), 0, +F16-G16) -> 0
A17: 1612 | B17: Land Rights (Formally known as Account 1906) | E17: 0 | F17: =IF(D17=0,'App.2-CL_MIFRS_DepExp_2013'!O17,+'App.2-CL_MIFRS_DepExp_2013'!O17+((C17*0.5)/D17)) -> 0 | H17: 0
A18: 1805 | B18: Land | E18: 0 | F18: =IF(D18=0,'App.2-CL_MIFRS_DepExp_2013'!O18,+'App.2-CL_MIFRS_DepExp_2013'!O18+((C18*0.5)/D18)) -> 0 | H18: 0
A19: 1808 | B19: Buildings | E19: 0 | F19: =IF(D19=0,'App.2-CL_MIFRS_DepExp_2013'!O19,+'App.2-CL_MIFRS_DepExp_2013'!O19+((C19*0.5)/D19)) -> 0 | H19: 0
A20: 1810 | B20: Leasehold Improvements | E20: 0 | F20: =IF(D20=0,'App.2-CL_MIFRS_DepExp_2013'!O20,+'App.2-CL_MIFRS_DepExp_2013'!O20+((C20*0.5)/D20)) -> 0 | H20: 0
A21: 1815 | B21: Transformer Station Equipment >50 kV | E21: 0 | F21: =IF(D21=0,'App.2-CL_MIFRS_DepExp_2013'!O21,+'App.2-CL_MIFRS_DepExp_2013'!O21+((C21*0.5)/D21)) -> 0 | H21: 0
A22: 1820 | B22: Distribution Station Equipment <50 kV | E22: 0 | F22: =IF(D22=0,'App.2-CL_MIFRS_DepExp_2013'!O22,+'App.2-CL_MIFRS_DepExp_2013'!O22+((C22*0.5)/D22)) -> 0 | H22: 0
A23: 1825 | B23: Storage Battery Equipment | E23: 0 | F23: =IF(D23=0,'App.2-CL_MIFRS_DepExp_2013'!O23,+'App.2-CL_MIFRS_DepExp_2013'!O23+((C23*0.5)/D23)) -> 0 | H23: 0
A24: 1830 | B24: Poles, Towers & Fixtures | E24: 0 | F24: =IF(D24=0,'App.2-CL_MIFRS_DepExp_2013'!O24,+'App.2-CL_MIFRS_DepExp_2013'!O24+((C24*0.5)/D24)) -> 0 | H24: 0
A25: 1835 | B25: Overhead Conductors & Devices | E25: 0 | F25: =IF(D25=0,'App.2-CL_MIFRS_DepExp_2013'!O25,+'App.2-CL_MIFRS_DepExp_2013'!O25+((C25*0.5)/D25)) -> 0 | H25: 0
A26: 1840 | B26: Underground Conduit | E26: 0 | F26: =IF(D26=0,'App.2-CL_MIFRS_DepExp_2013'!O26,+'App.2-CL_MIFRS_DepExp_2013'!O26+((C26*0.5)/D26)) -> 0 | H26: 0
A27: 1845 | B27: Underground Conductors & Devices | E27: 0 | F27: =IF(D27=0,'App.2-CL_MIFRS_DepExp_2013'!O27,+'App.2-CL_MIFRS_DepExp_2013'!O27+((C27*0.5)/D27)) -> 0 | H27: 0
A28: 1850 | B28: Line Transformers | E28: 0 | F28: =IF(D28=0,'App.2-CL_MIFRS_DepExp_2013'!O28,+'App.2-CL_MIFRS_DepExp_2013'!O28+((C28*0.5)/D28)) -> 0 | H28: 0
A29: 1855 | B29: Services (Overhead & Underground) | E29: 0 | F29: =IF(D29=0,'App.2-CL_MIFRS_DepExp_2013'!O29,+'App.2-CL_MIFRS_DepExp_2013'!O29+((C29*0.5)/D29)) -> 0 | H29: 0
A30: 1860 | B30: Meters | E30: 0 | F30: =IF(D30=0,'App.2-CL_MIFRS_DepExp_2013'!O30,+'App.2-CL_MIFRS_DepExp_2013'!O30+((C30*0.5)/D30)) -> 0 | H30: 0
A31: 1860 | B31: Meters (Smart Meters) | E31: 0 | F31: =IF(D31=0,'App.2-CL_MIFRS_DepExp_2013'!O31,+'App.2-CL_MIFRS_DepExp_2013'!O31+((C31*0.5)/D31)) -> 0 | H31: 0
A32: 1905 | B32: Land | E32: 0 | F32: =IF(D32=0,'App.2-CL_MIFRS_DepExp_2013'!O32,+'App.2-CL_MIFRS_DepExp_2013'!O32+((C32*0.5)/D32)) -> 0 | H32: 0
A33: 1908 | B33: Buildings & Fixtures | E33: 0 | F33: =IF(D33=0,'App.2-CL_MIFRS_DepExp_2013'!O33,+'App.2-CL_MIFRS_DepExp_2013'!O33+((C33*0.5)/D33)) -> 0 | H33: 0
A34: 1910 | B34: Leasehold Improvements | E34: 0 | F34: =IF(D34=0,'App.2-CL_MIFRS_DepExp_2013'!O34,+'App.2-CL_MIFRS_DepExp_2013'!O34+((C34*0.5)/D34)) -> 0 | H34: 0
A35: 1915 | B35: Office Furniture & Equipment (10 years) | E35: 0 | F35: =IF(D35=0,'App.2-CL_MIFRS_DepExp_2013'!O35,+'App.2-CL_MIFRS_DepExp_2013'!O35+((C35*0.5)/D35)) -> 0 | H35: 0
A36: 1915 | B36: Office Furniture & Equipment (5 years) | E36: 0 | F36: =IF(D36=0,'App.2-CL_MIFRS_DepExp_2013'!O36,+'App.2-CL_MIFRS_DepExp_2013'!O36+((C36*0.5)/D36)) -> 0 | H36: 0
A37: 1920 | B37: Computer Equipment - Hardware | E37: 0 | F37: =IF(D37=0,'App.2-CL_MIFRS_DepExp_2013'!O37,+'App.2-CL_MIFRS_DepExp_2013'!O37+((C37*0.5)/D37)) -> 0 | H37: 0
A38: 1920 | B38: Computer Equip.-Hardware(Post Mar. 22/04) | E38: 0 | F38: =IF(D38=0,'App.2-CL_MIFRS_DepExp_2013'!O38,+'App.2-CL_MIFRS_DepExp_2013'!O38+((C38*0.5)/D38)) -> 0 | H38: 0
A39: 1920 | B39: Computer Equip.-Hardware(Post Mar. 19/07) | E39: 0 | F39: =IF(D39=0,'App.2-CL_MIFRS_DepExp_2013'!O39,+'App.2-CL_MIFRS_DepExp_2013'!O39+((C39*0.5)/D39)) -> 0 | H39: 0
A40: 1930 | B40: Transportation Equipment | E40: 0 | F40: =IF(D40=0,'App.2-CL_MIFRS_DepExp_2013'!O40,+'App.2-CL_MIFRS_DepExp_2013'!O40+((C40*0.5)/D40)) -> 0 | H40: 0
A41: 1935 | B41: Stores Equipment | E41: 0 | F41: =IF(D41=0,'App.2-CL_MIFRS_DepExp_2013'!O41,+'App.2-CL_MIFRS_DepExp_2013'!O41+((C41*0.5)/D41)) -> 0 | H41: 0
A42: 1940 | B42: Tools, Shop & Garage Equipment | E42: 0 | F42: =IF(D42=0,'App.2-CL_MIFRS_DepExp_2013'!O42,+'App.2-CL_MIFRS_DepExp_2013'!O42+((C42*0.5)/D42)) -> 0 | H42: 0
A43: 1945 | B43: Measurement & Testing Equipment | E43: 0 | F43: =IF(D43=0,'App.2-CL_MIFRS_DepExp_2013'!O43,+'App.2-CL_MIFRS_DepExp_2013'!O43+((C43*0.5)/D43)) -> 0 | H43: 0
A44: 1950 | B44: Power Operated Equipment | E44: 0 | F44: =IF(D44=0,'App.2-CL_MIFRS_DepExp_2013'!O44,+'App.2-CL_MIFRS_DepExp_2013'!O44+((C44*0.5)/D44)) -> 0 | H44: 0
A45: 1955 | B45: Communications Equipment | E45: 0 | F45: =IF(D45=0,'App.2-CL_MIFRS_DepExp_2013'!O45,+'App.2-CL_MIFRS_DepExp_2013'!O45+((C45*0.5)/D45)) -> 0 | H45: 0
A46: 1955 | B46: Communication Equipment (Smart Meters) | E46: 0 | F46: =IF(D46=0,'App.2-CL_MIFRS_DepExp_2013'!O46,+'App.2-CL_MIFRS_DepExp_2013'!O46+((C46*0.5)/D46)) -> 0 | H46: 0
A47: 1960 | B47: Miscellaneous Equipment | E47: 0 | F47: =IF(D47=0,'App.2-CL_MIFRS_DepExp_2013'!O47,+'App.2-CL_MIFRS_DepExp_2013'!O47+((C47*0.5)/D47)) -> 0 | H47: 0
A48: 1970 | B48: Load Management Controls Customer Premises | E48: 0 | F48: =IF(D48=0,'App.2-CL_MIFRS_DepExp_2013'!O48,+'App.2-CL_MIFRS_DepExp_2013'!O48+((C48*0.5)/D48)) -> 0 | H48: 0
A49: 1975 | B49: Load Management Controls Utility Premises | E49: 0 | F49: =IF(D49=0,'App.2-CL_MIFRS_DepExp_2013'!O49,+'App.2-CL_MIFRS_DepExp_2013'!O49+((C49*0.5)/D49)) -> 0 | H49: 0
A50: 1980 | B50: System Supervisor Equipment | E50: 0 | F50: =IF(D50=0,'App.2-CL_MIFRS_DepExp_2013'!O50,+'App.2-CL_MIFRS_DepExp_2013'!O50+((C50*0.5)/D50)) -> 0 | H50: 0
A51: 1985 | B51: Miscellaneous Fixed Assets | E51: 0 | F51: =IF(D51=0,'App.2-CL_MIFRS_DepExp_2013'!O51,+'App.2-CL_MIFRS_DepExp_2013'!O51+((C51*0.5)/D51)) -> 0 | H51: 0
A52: 1990 | B52: Other Tangible Property | E52: 0 | F52: =IF(D52=0,'App.2-CL_MIFRS_DepExp_2013'!O52,+'App.2-CL_MIFRS_DepExp_2013'!O52+((C52*0.5)/D52)) -> 0 | H52: 0
A53: 1995 | B53: Contributions & Grants | E53: 0 | F53: =IF(D53=0,'App.2-CL_MIFRS_DepExp_2013'!O53,+'App.2-CL_MIFRS_DepExp_2013'!O53+((C53*0.5)/D53)) -> 0 | H53: 0
A54: etc. | E54: 0 | F54: =IF(D54=0,'App.2-CL_MIFRS_DepExp_2013'!O54,+'App.2-CL_MIFRS_DepExp_2013'!O54+((C54*0.5)/D54)) -> 0 | H54: 0
E55: 0 | F55: =IF(D55=0,'App.2-CL_MIFRS_DepExp_2013'!O55,+'App.2-CL_MIFRS_DepExp_2013'!O55+((C55*0.5)/D55)) -> 0 | H55: 0
B56: Total | C56: =SUM(C16:C55) -> 0 | F56: =SUM(F16:F55) -> 0 | G56: =SUM(G16:G55) -> 0 | H56: =SUM(H16:H55) -> 0
B57: Depreciation exp. adj. from gain or loss on the retirement of assets (pool of like assets) | F57: 0
B58: Total Depreciation expense to be included in the test year revenue requirement | F58: =SUM(F56:F57) -> 0
A60: Notes:
A61: 1 | B61: Board policy of the "half-year" rule - the applicant must ensure that additions in the year attract a half-year depreciation expense in the first year. Deviations from this standard practice must be supported in the application.
A62: 2 | B62: The applicant must provide an explanation of material variances in evidence.
A65: General: | B65: Applicants must provide a breakdown of depreciation and amortization expense in the above format for all relevant accounts. Asset Retirement Obligations (AROs), depreciation and accretion expense should be disclosed separately consistent with the Notes of historical Audited Financial Statements.

Sheet Instruction for App. 2-C CGAAP
A1: General Instructions to CGAAP - ASPE Appendices
A2: Types of Schedules to File
A5: Applicants filing a CGAAP or ASPE application should provide the following information:
A7: Depreciation and Amortization - Appendix 2-C
A8: If an applicant chooses to remain on CGAAP or adopt ASPE and make the changes to capitalization and depreciation expense policies in 2012, the applicant must complete Appendix 2-CN to Appendix 2-CQ (inclusive).
A9: If an applicant chooses to remain on CGAAP or adopt ASPE and make the changes to capitalization and depreciation expense policies in 2013, the applicant must complete Appendix 2-CR to Appendix 2-CU (inclusive).
A11: Account 1576, Accounting Changes Under CGAAP - Appendix 2-ED, Appendix 2-EE
A12: Please refer to section 2.12.5 of the Filing Requirements.

Sheet App.2-CN_OldCGAAP_DepExp_2012
K1: File Number: | L1: =EBNUMBER -> EB-2013-0160
K2: Exhibit: | L2: 4
K3: Tab: | L3: 7
K4: Schedule: | L4: 1
K5: Page:
K7: Date: | L7: 2014-02-13
A9: Appendix 2-CN
A10: Depreciation and Amortization Expense
A11: Assumes the applicant made capitalization and depreciation expense accounting policy changes under CGAAP effective January 1, 2012
C12: Year | D12: 2012 | E12: Former CGAAP - CGAAP without the changes to the policies
A14: Account | B14: Description | C14: Opening Regulatory Gross PP&E as at Jan 1, 2012 | D14: Less Fully Depreciated | E14: Net for Depreciation | F14: Additions | G14: Total for Depreciation | H14: Years | I14: Depreciation Rate | J14: Depreciation Expense | K14: 2012 Depreciation Expense per Appendix 2-B Fixed Assets, Column K (l) | L14: Variance 2
C15: (a) | D15: (b) | E15: (c) | F15: (d) | G15: (e) = (c) + ½ x (d) 1 | H15: (f) | I15: (g) = 1 / (f) | J15: (h) = (e) / (f) | L15: (m) = (h) - (l)
A16: 1611 | B16: Computer Software (Formally known as Account 1925) | C16: ='App.2-BA1_Fix Asset Cont.CGAAP'!D130 -> 628390.13 | D16: ='[19]Fully Depreciated'!E3 -> 199283.6 | E16: =C16-D16 -> 429106.53 | F16: ='App.2-BA1_Fix Asset Cont.CGAAP'!E130 -> 160843.04 | G16: =E16+0.5*F16 -> 509528.05 | H16: 5 | I16: =IF(H16=0,0,1/H16) -> 0.2 | J16: =IF(H16=0,0,G16/H16) -> 101905.61 | K16: ='App.2-BA1_Fix Asset Cont.CGAAP'!J130 -> 101905.61 | L16: =IF(ISERROR(+J16-K16), 0, +J16-K16) -> 0
A17: 1612 | B17: Land Rights (Formally known as Account 1906) | C17: ='App.2-BA1_Fix Asset Cont.CGAAP'!D131 -> 56060.25 | D17: ='[19]Fully Depreciated'!E4 -> 4937.75 | E17: =C17-D17 -> 51122.5 | F17: ='App.2-BA1_Fix Asset Cont.CGAAP'!E131 -> 0 | G17: =E17+0.5*F17 -> 51122.5 | H17: 25 | I17: 0.04 | J17: 2044.9 | K17: ='App.2-BA1_Fix Asset Cont.CGAAP'!J131 -> 2044.9 | L17: 0
A18: 1805 | B18: Land | C18: ='App.2-BA1_Fix Asset Cont.CGAAP'!D132 -> 267376.11 | D18: ='[19]Fully Depreciated'!E5 -> 330310.19 | E18: -62934.08 | F18: ='App.2-BA1_Fix Asset Cont.CGAAP'!E132 -> 125868.16 | G18: =E18+0.5*F18 -> 0 | I18: 0 | J18: 0 | K18: ='App.2-BA1_Fix Asset Cont.CGAAP'!J132 -> 0 | L18: 0
A19: 1808 | B19: Buildings | C19: ='App.2-BA1_Fix Asset Cont.CGAAP'!D133 -> 15296.37 | D19: ='[19]Fully Depreciated'!E6 -> 15296.37 | E19: 0 | F19: ='App.2-BA1_Fix Asset Cont.CGAAP'!E133 -> 0 | G19: 0 | H19: 25 | I19: 0.04 | J19: 0 | K19: ='App.2-BA1_Fix Asset Cont.CGAAP'!J133 -> 0 | L19: 0
A20: 1810 | B20: Leasehold Improvements | C20: ='App.2-BA1_Fix Asset Cont.CGAAP'!D134 -> 0 | D20: ='[19]Fully Depreciated'!E7 -> 0 | E20: 0 | F20: ='App.2-BA1_Fix Asset Cont.CGAAP'!E134 -> 0 | G20: 0 | H20: 25 | I20: 0.04 | J20: 0 | K20: ='App.2-BA1_Fix Asset Cont.CGAAP'!J134 -> 0 | L20: 0
A21: 1815 | B21: Transformer Station Equipment >50 kV | C21: ='App.2-BA1_Fix Asset Cont.CGAAP'!D135 -> 0 | D21: ='[19]Fully Depreciated'!E8 -> 0 | E21: 0 | F21: ='App.2-BA1_Fix Asset Cont.CGAAP'!E135 -> 0 | G21: 0 | H21: 25 | I21: 0.04 | J21: 0 | K21: ='App.2-BA1_Fix Asset Cont.CGAAP'!J135 -> 0 | L21: 0
A22: 1820 | B22: Distribution Station Equipment <50 kV | C22: ='App.2-BA1_Fix Asset Cont.CGAAP'!D136 -> 904696.36 | D22: ='[19]Fully Depreciated'!E9 -> 155770.06 | E22: 748926.3 | F22: ='App.2-BA1_Fix Asset Cont.CGAAP'!E136 -> 0 | G22: 748926.3 | H22: 30 | I22: 0.03333333333 | J22: 24964.21 | K22: ='App.2-BA1_Fix Asset Cont.CGAAP'!J136 -> 24964.21 | L22: 0
A23: 1825 | B23: Storage Battery Equipment | C23: ='App.2-BA1_Fix Asset Cont.CGAAP'!D137 -> 0 | D23: ='[19]Fully Depreciated'!E10 -> 0 | E23: 0 | F23: ='App.2-BA1_Fix Asset Cont.CGAAP'!E137 -> 0 | G23: 0 | I23: 0 | J23: 0 | K23: ='App.2-BA1_Fix Asset Cont.CGAAP'!J137 -> 0 | L23: 0
A24: 1830 | B24: Poles, Towers & Fixtures | C24: ='App.2-BA1_Fix Asset Cont.CGAAP'!D138 -> 4177407.1 | D24: ='[19]Fully Depreciated'!E11 -> 848304.56 | E24: 3329102.54 | F24: ='App.2-BA1_Fix Asset Cont.CGAAP'!E138 -> 90427.42 | G24: 3374316.25 | H24: 25 | I24: 0.04 | J24: 134972.65 | K24: ='App.2-BA1_Fix Asset Cont.CGAAP'!J138 -> 134972.65 | L24: 0
A25: 1835 | B25: Overhead Conductors & Devices | C25: ='App.2-BA1_Fix Asset Cont.CGAAP'!D139 -> 3788530.76 | D25: ='[19]Fully Depreciated'!E12 -> 633372.855 | E25: 3155157.905 | F25: ='App.2-BA1_Fix Asset Cont.CGAAP'!E139 -> 68027.19 | G25: 3189171.5 | H25: 25 | I25: 0.04 | J25: 127566.86 | K25: ='App.2-BA1_Fix Asset Cont.CGAAP'!J139 -> 127566.86 | L25: 0
A26: 1840 | B26: Underground Conduit | C26: ='App.2-BA1_Fix Asset Cont.CGAAP'!D140 -> 4379129.9 | D26: ='[19]Fully Depreciated'!E13 -> 519214.115 | E26: 3859915.785 | F26: ='App.2-BA1_Fix Asset Cont.CGAAP'!E140 -> 190738.43 | G26: 3955285 | H26: 25 | I26: 0.04 | J26: 158211.4 | K26: ='App.2-BA1_Fix Asset Cont.CGAAP'!J140 -> 158211.4 | L26: 0
A27: 1845 | B27: Underground Conductors & Devices | C27: ='App.2-BA1_Fix Asset Cont.CGAAP'!D141 -> 5333922.48 | D27: ='[19]Fully Depreciated'!E14 -> 421581.53 | E27: 4912340.95 | F27: ='App.2-BA1_Fix Asset Cont.CGAAP'!E141 -> 251996.6 | G27: 5038339.25 | H27: 25 | I27: 0.04 | J27: 201533.57 | K27: ='App.2-BA1_Fix Asset Cont.CGAAP'!J141 -> 201533.57 | L27: 0
A28: 1850 | B28: Line Transformers | C28: ='App.2-BA1_Fix Asset Cont.CGAAP'!D142 -> 7480325.93 | D28: ='[19]Fully Depreciated'!E15 -> 1279087.055 | E28: 6201238.875 | F28: ='App.2-BA1_Fix Asset Cont.CGAAP'!E142 -> 396529.75 | G28: 6399503.75 | H28: 25 | I28: 0.04 | J28: 255980.15 | K28: ='App.2-BA1_Fix Asset Cont.CGAAP'!J142 -> 255980.15 | L28: 0
A29: 1855 | B29: Services (Overhead & Underground) | C29: ='App.2-BA1_Fix Asset Cont.CGAAP'!D143 -> 2327701.53 | D29: ='[19]Fully Depreciated'!E16 -> 397413.41 | E29: 1930288.12 | F29: ='App.2-BA1_Fix Asset Cont.CGAAP'!E143 -> 135721.76 | G29: 1998149 | H29: 25 | I29: 0.04 | J29: 79925.96 | K29: ='App.2-BA1_Fix Asset Cont.CGAAP'!J143 -> 79925.96 | L29: 0
A30: 1860 | B30: Meters | C30: ='App.2-BA1_Fix Asset Cont.CGAAP'!D144 -> 1852099.08 | D30: ='[19]Fully Depreciated'!E17 -> 1554215.58 | E30: 297883.5 | F30: ='App.2-BA1_Fix Asset Cont.CGAAP'!E144 -> 22198 | G30: 308982.5 | H30: 25 | I30: 0.04 | J30: 12359.3 | K30: ='App.2-BA1_Fix Asset Cont.CGAAP'!J144 -> 12359.3 | L30: 0
A31: 1860 | B31: Meters (Smart Meters) | D31: ='[19]Fully Depreciated'!E18 -> -6215679.977 | E31: =C3-+D31 -> 6215679.977 | F31: ='App.2-BA1_Fix Asset Cont.CGAAP'!E145 -> 1778199.03 | G31: 7104779.492 | H31: 25 | I31: 0.04 | J31: 284191.1797 | K31: =+'App.2-BA1_Fix Asset Cont.CGAAP'!J145 -> 284191.1797 | L31: 0
A32: 1905 | B32: Land | C32: ='App.2-BA1_Fix Asset Cont.CGAAP'!D146 -> 144400.35 | D32: ='[19]Fully Depreciated'!E19 -> 144400.35 | E32: 0 | F32: ='App.2-BA1_Fix Asset Cont.CGAAP'!E146 -> 0 | G32: 0 | I32: 0 | J32: 0 | K32: ='App.2-BA1_Fix Asset Cont.CGAAP'!J146 -> 0 | L32: 0
A33: 1908 | B33: Buildings & Fixtures | C33: ='App.2-BA1_Fix Asset Cont.CGAAP'!D147 -> 2802850.2 | D33: ='[19]Fully Depreciated'!E20 -> 384001.61 | E33: 2418848.59 | F33: ='App.2-BA1_Fix Asset Cont.CGAAP'!E147 -> 23667.82 | G33: 2430682.5 | H33: 50 | I33: 0.02 | J33: 48613.65 | K33: ='App.2-BA1_Fix Asset Cont.CGAAP'!J147 -> 48613.65 | L33: -7.275957614e-12
A34: 1910 | B34: Leasehold Improvements | C34: ='App.2-BA1_Fix Asset Cont.CGAAP'!D148 -> 0 | D34: ='[19]Fully Depreciated'!E21 -> 0 | E34: 0 | F34: ='App.2-BA1_Fix Asset Cont.CGAAP'!E148 -> 0 | G34: 0 | I34: 0 | J34: 0 | K34: ='App.2-BA1_Fix Asset Cont.CGAAP'!J148 -> 0 | L34: 0
A35: 1915 | B35: Office Furniture & Equipment (10 years) | C35: ='App.2-BA1_Fix Asset Cont.CGAAP'!D149 -> 189627.09 | D35: ='[19]Fully Depreciated'!E22 -> 66148.45 | E35: 123478.64 | F35: ='App.2-BA1_Fix Asset Cont.CGAAP'!E149 -> 23138.12 | G35: 135047.7 | H35: 10 | I35: 0.1 | J35: 13504.77 | K35: ='App.2-BA1_Fix Asset Cont.CGAAP'!J149 -> 13504.77 | L35: 0
A36: 1915 | B36: Office Furniture & Equipment (5 years) | C36: ='App.2-BA1_Fix Asset Cont.CGAAP'!D150 -> 0 | D36: ='[19]Fully Depreciated'!E23 -> 0 | E36: 0 | F36: ='App.2-BA1_Fix Asset Cont.CGAAP'!E150 -> 0 | G36: 0 | I36: 0 | J36: 0 | K36: ='App.2-BA1_Fix Asset Cont.CGAAP'!J150 -> 0 | L36: 0
A37: 1920 | B37: Computer Equipment - Hardware | C37: ='App.2-BA1_Fix Asset Cont.CGAAP'!D151 -> 0 | D37: ='[19]Fully Depreciated'!E24 -> 0 | E37: 0 | F37: ='App.2-BA1_Fix Asset Cont.CGAAP'!E151 -> 0 | G37: 0 | I37: 0 | J37: 0 | K37: ='App.2-BA1_Fix Asset Cont.CGAAP'!J151 -> 0 | L37: 0
A38: 1920 | B38: Computer Equip.-Hardware(Post Mar. 22/04) | C38: ='App.2-BA1_Fix Asset Cont.CGAAP'!D152 -> 0 | D38: ='[19]Fully Depreciated'!E25 -> 0 | E38: 0 | F38: ='App.2-BA1_Fix Asset Cont.CGAAP'!E152 -> 0 | G38: 0 | I38: 0 | J38: 0 | K38: ='App.2-BA1_Fix Asset Cont.CGAAP'!J152 -> 0 | L38: 0
A39: 1920 | B39: Computer Equip.-Hardware(Post Mar. 19/07) | C39: ='App.2-BA1_Fix Asset Cont.CGAAP'!D153 -> 158861.07 | D39: ='[19]Fully Depreciated'!E26 -> 71538.99 | E39: 87322.08 | F39: ='App.2-BA1_Fix Asset Cont.CGAAP'!E153 -> 22016.14 | G39: 98330.15 | H39: 5 | I39: 0.2 | J39: 19666.03 | K39: ='App.2-BA1_Fix Asset Cont.CGAAP'!J153 -> 19666.03 | L39: 0
A40: 1930 | B40: Transportation Equipment | C40: ='App.2-BA1_Fix Asset Cont.CGAAP'!D154 -> 1010018.55 | D40: ='[19]Fully Depreciated'!E27 -> 357863.29 | E40: 652155.26 | F40: ='App.2-BA1_Fix Asset Cont.CGAAP'!E154 -> 36069 | G40: 670189.76 | H40: 8 | I40: 0.125 | J40: 83773.72 | K40: ='App.2-BA1_Fix Asset Cont.CGAAP'!J154 -> 83773.72 | L40: 0
A41: 1935 | B41: Stores Equipment | C41: ='App.2-BA1_Fix Asset Cont.CGAAP'!D155 -> 32212.21 | D41: ='[19]Fully Depreciated'!E28 -> 20463.07 | E41: 11749.14 | F41: ='App.2-BA1_Fix Asset Cont.CGAAP'!E155 -> 1605.92 | G41: 12552.1 | H41: 10 | I41: 0.1 | J41: 1255.21 | K41: ='App.2-BA1_Fix Asset Cont.CGAAP'!J155 -> 1255.21 | L41: 0
A42: 1940 | B42: Tools, Shop & Garage Equipment | C42: ='App.2-BA1_Fix Asset Cont.CGAAP'!D156 -> 147021.23 | D42: ='[19]Fully Depreciated'!E29 -> 110001.395 | E42: 37019.835 | F42: ='App.2-BA1_Fix Asset Cont.CGAAP'!E156 -> 1133.13 | G42: 37586.4 | H42: 10 | I42: 0.1 | J42: 3758.64 | K42: ='App.2-BA1_Fix Asset Cont.CGAAP'!J156 -> 3758.64 | L42: 0
A43: 1945 | B43: Measurement & Testing Equipment | C43: ='App.2-BA1_Fix Asset Cont.CGAAP'!D157 -> 21291.29 | D43: ='[19]Fully Depreciated'!E30 -> 13919.88 | E43: 7371.41 | F43: ='App.2-BA1_Fix Asset Cont.CGAAP'!E157 -> 499.18 | G43: 7621 | H43: 10 | I43: 0.1 | J43: 762.1 | K43: ='App.2-BA1_Fix Asset Cont.CGAAP'!J157 -> 762.1 | L43: 0
A44: 1950 | B44: Power Operated Equipment | C44: ='App.2-BA1_Fix Asset Cont.CGAAP'!D158 -> 0 | D44: ='[19]Fully Depreciated'!E31 -> 0 | E44: 0 | F44: ='App.2-BA1_Fix Asset Cont.CGAAP'!E158 -> 0 | G44: 0 | I44: 0 | J44: 0 | K44: ='App.2-BA1_Fix Asset Cont.CGAAP'!J158 -> 0 | L44: 0
A45: 1955 | B45: Communications Equipment | C45: ='App.2-BA1_Fix Asset Cont.CGAAP'!D159 -> 18700.57 | D45: ='[19]Fully Depreciated'!E32 -> 9249.37 | E45: 9451.2 | F45: ='App.2-BA1_Fix Asset Cont.CGAAP'!E159 -> 0 | G45: 9451.2 | H45: 10 | I45: 0.1 | J45: 945.12 | K45: ='App.2-BA1_Fix Asset Cont.CGAAP'!J159 -> 945.12 | L45: 0
A46: 1955 | B46: Communication Equipment (Smart Meters) | C46: ='App.2-BA1_Fix Asset Cont.CGAAP'!D160 -> 0 | D46: ='[19]Fully Depreciated'!E33 -> 0 | E46: 0 | F46: ='App.2-BA1_Fix Asset Cont.CGAAP'!E160 -> 0 | G46: 0 | I46: 0 | J46: 0 | K46: ='App.2-BA1_Fix Asset Cont.CGAAP'!J160 -> 0 | L46: 0
A47: 1960 | B47: Miscellaneous Equipment | C47: ='App.2-BA1_Fix Asset Cont.CGAAP'!D161 -> 46688.92 | D47: ='[19]Fully Depreciated'!E34 -> -50176.45 | E47: 96865.37 | F47: ='App.2-BA1_Fix Asset Cont.CGAAP'!E161 -> 112979.46 | G47: 153355.1 | H47: 10 | I47: 0.1 | J47: 15335.51 | K47: ='App.2-BA1_Fix Asset Cont.CGAAP'!J161 -> 15335.51 | L47: 1.818989404e-12
A48: 1970 | B48: Load Management Controls - Customer Premises | C48: ='App.2-BA1_Fix Asset Cont.CGAAP'!D162 -> 0 | D48: ='[19]Fully Depreciated'!E35 -> 0 | E48: 0 | F48: ='App.2-BA1_Fix Asset Cont.CGAAP'!E162 -> 0 | G48: 0 | I48: 0 | J48: 0 | K48: ='App.2-BA1_Fix Asset Cont.CGAAP'!J162 -> 0 | L48: 0
A49: 1975 | B49: Load Management Controls Utility Premises | C49: ='App.2-BA1_Fix Asset Cont.CGAAP'!D163 -> 0 | D49: ='[19]Fully Depreciated'!E36 -> 0 | E49: 0 | F49: ='App.2-BA1_Fix Asset Cont.CGAAP'!E163 -> 0 | G49: 0 | I49: 0 | J49: 0 | K49: ='App.2-BA1_Fix Asset Cont.CGAAP'!J163 -> 0 | L49: 0
A50: 1980 | B50: System Supervisor Equipment | C50: ='App.2-BA1_Fix Asset Cont.CGAAP'!D164 -> 0 | D50: ='[19]Fully Depreciated'!E37 -> 0 | E50: 0 | F50: ='App.2-BA1_Fix Asset Cont.CGAAP'!E164 -> 0 | G50: 0 | I50: 0 | J50: 0 | K50: ='App.2-BA1_Fix Asset Cont.CGAAP'!J164 -> 0 | L50: 0
A51: 1985 | B51: Miscellaneous Fixed Assets | C51: ='App.2-BA1_Fix Asset Cont.CGAAP'!D165 -> 0 | D51: ='[19]Fully Depreciated'!E38 -> 0 | E51: 0 | F51: ='App.2-BA1_Fix Asset Cont.CGAAP'!E165 -> 0 | G51: 0 | I51: 0 | J51: 0 | K51: ='App.2-BA1_Fix Asset Cont.CGAAP'!J165 -> 0 | L51: 0
A52: 1990 | B52: Other Tangible Property | C52: ='App.2-BA1_Fix Asset Cont.CGAAP'!D166 -> 0 | D52: ='[19]Fully Depreciated'!E39 -> 0 | E52: 0 | F52: ='App.2-BA1_Fix Asset Cont.CGAAP'!E166 -> 0 | G52: 0 | I52: 0 | J52: 0 | K52: ='App.2-BA1_Fix Asset Cont.CGAAP'!J166 -> 0 | L52: 0
A53: 1995 | B53: Contributions & Grants | C53: ='App.2-BA1_Fix Asset Cont.CGAAP'!D167 -> -3793000 | D53: ='[19]Fully Depreciated'!E40 -> 7044.025 | E53: -3800044.025 | F53: ='App.2-BA1_Fix Asset Cont.CGAAP'!E167 -> -297008.45 | G53: -3948548.25 | H53: 25 | I53: 0.04 | J53: -157941.93 | K53: ='App.2-BA1_Fix Asset Cont.CGAAP'!J167 -> -157941.93 | L53: 0
A54: etc. | C54: ='App.2-BA1_Fix Asset Cont.CGAAP'!D168 -> 0 | D54: ='[19]Fully Depreciated'!E41 -> 1277561.078 | E54: -1277561.078 | F54: ='App.2-BA1_Fix Asset Cont.CGAAP'!E168 -> 0 | G54: -1277561.078 | I54: 0 | J54: 0 | K54: ='App.2-BA1_Fix Asset Cont.CGAAP'!J168 -> 0 | L54: 0
C55: ='App.2-BA1_Fix Asset Cont.CGAAP'!D169 -> 0 | D55: ='[19]Fully Depreciated'!E42 -> 0 | E55: 0 | F55: ='App.2-BA1_Fix Asset Cont.CGAAP'!E169 -> 0 | G55: 0 | I55: 0 | J55: 0 | K55: ='App.2-BA1_Fix Asset Cont.CGAAP'!J169 -> 0 | L55: 0
B56: Total | C56: =SUM(C16:C55) -> 31989607.48 | D56: =SUM(D16:D55) -> 2555122.157 | E56: =SUM(E16:E55) -> 29434485.32 | F56: =SUM(F16:F55) -> 3144649.7 | G56: =SUM(G16:G55) -> 31006810.17 | J56: =SUM(J16:J55) -> 1413328.61 | K56: =SUM(K16:K55) -> 1413328.61 | L56: =SUM(L16:L55) -> -5.456968211e-12
A58: Notes:
A60: 1 | B60: Board policy of the "half-year" rule - the applicant must ensure that additions in the year attract a half-year depreciation expense in the first year. Deviations from this standard practice must be supported in the application.
A61: 2 | B61: The applicant must provide an explanation of material variances in evidence.
A63: General | B63: Applicants must provide a breakdown of depreciation and amortization expense in the above format for all relevant accounts. Asset Retirement Obligations (AROs), depreciation and accretion expense should be disclosed separately consistent with the Notes of historical Audited Financial Statements.

Sheet App.2-CO_NewCGAAP_DepExp_2012
N1: File Number: | O1: =EBNUMBER -> EB-2013-0160
N2: Exhibit: | O2: 4
N3: Tab: | O3: 7
N4: Schedule: | O4: 1
N5: Page:
N7: Date: | O7: 2014-02-13
A9: Appendix 2-CO
A10: Depreciation and Amortization Expense
A11: Assumes the applicant made capitalization and depreciation expense accounting policy changes under CGAAP effective January 1, 2012
C13: Year | D13: 2012 | E13: Revised CGAAP or ASPE - CGAAP or ASPE with the changes to the policies
A15: Account | B15: Description | C15: Opening NBV as at Jan 1, 2012 5 | D15: Additions | E15: Average Remaining Life of Opening NBV 4 | F15: Years (new additions only) 3 | G15: Depreciation Rate on New Additions | H15: Depreciation Expense on Opening NBV | I15: Depreciation Expense on Additions 1 | J15: 2012 Depreciation Expense | K15: 2012 Depreciation Expense per Appendix 2-B Fixed Assets, Column K (l) | L15: Variance 2 | M15: Depreciation Expense on 2012 Full Year Additions | N15: Less Depreciation Expense on Assets Fully Depreciated during the year (o) | O15: 2012 Full Year Depreciation 6
C16: (a) | D16: (d) | E16: (i) | F16: (f) | G16: (g) = 1 / (f) | H16: (j) = (a) / (i) | I16: (h)=((d)*0.5)/(f) | J16: (k) = (j) + (h) | L16: (m) = (k) - (l) | M16: (n) = (d)/(f) | O16: (p) = (j) + (n) - (o)
A17: 1611 | B17: Computer Software (Formally known as Account 1925) | C17: ='App.2-BA1_Fix Asset Cont.CGAAP'!M73 -> 239125.86 | D17: ='App.2-BA1_Fix Asset Cont.CGAAP'!E187 -> 160843.04 | E17: =C17/(K17-I17) -> 2.225596005 | F17: 5 | G17: =IF(F17=0,0,1/F17) -> 0.2 | H17: =IF(E17=0,0,+C17/E17) -> 107443.516 | I17: =IF(F17=0,0,+(D17*0.5)/F17) -> 16084.304 | J17: =IF(ISERROR(+H17+I17), 0, +H17+I17) -> 123527.82 | K17: ='App.2-BA1_Fix Asset Cont.CGAAP'!J187 -> 123527.82 | L17: =IF(ISERROR(+J17-K17), 0, +J17-K17) -> 0 | M17: =IF(F17=0,0,+(D17)/F17) -> 32168.608 | N17: =-[19]Sheet1!$N16 -> 35982.804 | O17: =IF(ISERROR(+M17+H17-N17), 0, +M17+H17-N17) -> 103629.32
A18: 1612 | B18: Land Rights (Formally known as Account 1906) | C18: ='App.2-BA1_Fix Asset Cont.CGAAP'!M74 -> 37052.73 | D18: ='App.2-BA1_Fix Asset Cont.CGAAP'!E188 -> 0 | E18: =C18/(K18-I18) -> 18.11958042 | F18: 25 | G18: 0.04 | H18: =IF(E18=0,0,+C18/E18) -> 2044.9 | I18: =IF(F18=0,0,+(D18*0.5)/F18) -> 0 | J18: =IF(ISERROR(+H18+I18), 0, +H18+I18) -> 2044.9 | K18: ='App.2-BA1_Fix Asset Cont.CGAAP'!J188 -> 2044.9 | L18: 2.273736754e-13 | M18: =IF(F18=0,0,+(D18)/F18) -> 0 | N18: =-[19]Sheet1!$N17 -> 0 | O18: =IF(ISERROR(+M18+H18-N18), 0, +M18+H18-N18) -> 2044.9
A19: 1805 | B19: Land | C19: ='App.2-BA1_Fix Asset Cont.CGAAP'!M75 -> 267376.11 | D19: ='App.2-BA1_Fix Asset Cont.CGAAP'!E189 -> 125868.16 | F19: 0 | G19: 0 | H19: 0 | I19: 0 | J19: 0 | K19: ='App.2-BA1_Fix Asset Cont.CGAAP'!J189 -> 0 | L19: 0 | M19: 0 | N19: =-[19]Sheet1!$N18 -> 0 | O19: 0
A20: 1808 | B20: Buildings | C20: ='App.2-BA1_Fix Asset Cont.CGAAP'!M76 -> 0 | D20: ='App.2-BA1_Fix Asset Cont.CGAAP'!E190 -> 0 | G20: 0 | H20: 0 | I20: 0 | J20: 0 | K20: ='App.2-BA1_Fix Asset Cont.CGAAP'!J190 -> 0 | L20: 0 | M20: 0 | N20: =-[19]Sheet1!$N19 -> 0 | O20: 0
A21: 1810 | B21: Leasehold Improvements | C21: ='App.2-BA1_Fix Asset Cont.CGAAP'!M77 -> 0 | D21: ='App.2-BA1_Fix Asset Cont.CGAAP'!E191 -> 0 | G21: 0 | H21: 0 | I21: 0 | J21: 0 | K21: ='App.2-BA1_Fix Asset Cont.CGAAP'!J191 -> 0 | L21: 0 | M21: 0 | N21: =-[19]Sheet1!$N20 -> 0 | O21: 0
A22: 1815 | B22: Transformer Station Equipment >50 kV | C22: ='App.2-BA1_Fix Asset Cont.CGAAP'!M78 -> 0 | D22: ='App.2-BA1_Fix Asset Cont.CGAAP'!E192 -> 0 | G22: 0 | H22: 0 | I22: 0 | J22: 0 | K22: ='App.2-BA1_Fix Asset Cont.CGAAP'!J192 -> 0 | L22: 0 | M22: 0 | N22: =-[19]Sheet1!$N21 -> 0 | O22: 0
A23: 1820 | B23: Distribution Station Equipment <50 kV | C23: ='App.2-BA1_Fix Asset Cont.CGAAP'!M79 -> 404439.82 | D23: ='App.2-BA1_Fix Asset Cont.CGAAP'!E193 -> 0 | E23: 10.47112633 | F23: =45 -> 45 | G23: 0.02222222222 | H23: 38624.29 | I23: 0 | J23: 38624.29 | K23: ='App.2-BA1_Fix Asset Cont.CGAAP'!J193 -> 38624.29 | L23: 0 | M23: 0 | N23: =-[19]Sheet1!$N22 -> -289.694 | O23: 38913.984
A24: 1825 | B24: Storage Battery Equipment | C24: ='App.2-BA1_Fix Asset Cont.CGAAP'!M80 -> 0 | D24: ='App.2-BA1_Fix Asset Cont.CGAAP'!E194 -> 0 | G24: 0 | H24: 0 | I24: 0 | J24: 0 | K24: ='App.2-BA1_Fix Asset Cont.CGAAP'!J194 -> 0 | L24: 0 | M24: 0 | N24: =-[19]Sheet1!$N23 -> 0 | O24: 0
A25: 1830 | B25: Poles, Towers & Fixtures | C25: ='App.2-BA1_Fix Asset Cont.CGAAP'!M81 -> 1453137.08 | D25: ='App.2-BA1_Fix Asset Cont.CGAAP'!E195 -> 90427.42 | E25: 28.72840565 | F25: 45 | G25: 0.02222222222 | H25: 50581.89089 | I25: 1004.749111 | J25: 51586.64 | K25: ='App.2-BA1_Fix Asset Cont.CGAAP'!J195 -> 51586.64 | L25: 0 | M25: 2009.498222 | N25: =-[19]Sheet1!$N24 -> 435.0491111 | O25: 52156.34
A26: 1835 | B26: Overhead Conductors & Devices | C26: ='App.2-BA1_Fix Asset Cont.CGAAP'!M82 -> 1619280.82 | D26: ='App.2-BA1_Fix Asset Cont.CGAAP'!E196 -> 68027.19 | E26: 45.98635496 | F26: =(45+60)/2 -> 52.5 | G26: 0.01904761905 | H26: 35212.202 | I26: 647.878 | J26: 35860.08 | K26: ='App.2-BA1_Fix Asset Cont.CGAAP'!J196 -> 35860.08 | L26: 0 | M26: 1295.756 | N26: =-[19]Sheet1!$N25 -> 128.9032381 | O26: 36379.05476
A27: 1840 | B27: Underground Conduit | C27: ='App.2-BA1_Fix Asset Cont.CGAAP'!M83 -> 2347051.29 | D27: ='App.2-BA1_Fix Asset Cont.CGAAP'!E197 -> 190738.43 | E27: 40.98335462 | F27: =(50+55)/2 -> 52.5 | G27: 0.01904761905 | H27: 57268.40352 | I27: 1816.556476 | J27: 59084.96 | K27: ='App.2-BA1_Fix Asset Cont.CGAAP'!J197 -> 59084.96 | L27: 0 | M27: 3633.112952 | N27: =-[19]Sheet1!$N26 -> -153.0972952 | O27: 61054.61377
A28: 1845 | B28: Underground Conductors & Devices | C28: ='App.2-BA1_Fix Asset Cont.CGAAP'!M84 -> 2871694.77 | D28: ='App.2-BA1_Fix Asset Cont.CGAAP'!E198 -> 251996.6 | E28: 20.88578639 | F28: =(30+40+30+55)/4 -> 38.75 | G28: 0.02580645161 | H28: 137495.171 | I28: 3251.569032 | J28: 140746.74 | K28: ='App.2-BA1_Fix Asset Cont.CGAAP'!J198 -> 140746.74 | L28: 0 | M28: 6503.138065 | N28: =-[19]Sheet1!$N27 -> -858.5458871 | O28: 144856.8549
A29: 1850 | B29: Line Transformers | C29: ='App.2-BA1_Fix Asset Cont.CGAAP'!M85 -> 3621487.17 | D29: ='App.2-BA1_Fix Asset Cont.CGAAP'!E199 -> 396529.75 | E29: 30.26592342 | F29: 40 | G29: 0.025 | H29: 119655.5981 | I29: 4956.621875 | J29: 124612.22 | K29: ='App.2-BA1_Fix Asset Cont.CGAAP'!J199 -> 124612.22 | L29: 0 | M29: 9913.24375 | N29: =-[19]Sheet1!$N28 -> 924.051875 | O29: 128644.79
A30: 1855 | B30: Services (Overhead & Underground) | C30: ='App.2-BA1_Fix Asset Cont.CGAAP'!M86 -> 854449.95 | D30: ='App.2-BA1_Fix Asset Cont.CGAAP'!E200 -> 135721.76 | E30: 24.72889062 | F30: =(35+40+60)/3 -> 45 | G30: 0.02222222222 | H30: 34552.70044 | I30: 1508.019556 | J30: 36060.72 | K30: ='App.2-BA1_Fix Asset Cont.CGAAP'!J200 -> 36060.72 | L30: 0 | M30: 3016.039111 | N30: =-[19]Sheet1!$N29 -> -500.1057222 | O30: 38068.84528
A31: 1860 | B31: Meters | C31: ='App.2-BA1_Fix Asset Cont.CGAAP'!M87 -> 700204.63 | D31: ='App.2-BA1_Fix Asset Cont.CGAAP'!E201 -> 22198 | E31: 58.76497272 | F31: 25 | G31: 0.04 | H31: 11915.34 | I31: 443.96 | J31: 12359.3 | K31: ='App.2-BA1_Fix Asset Cont.CGAAP'!J201 -> 12359.3 | L31: 0 | M31: 887.92 | N31: 3607 | O31: 9196.26
A32: 1860 | B32: Meters (Smart Meters) | C32: =+'App.2-BA1_Fix Asset Cont.CGAAP'!E202 -> 1778199.03 | E32: 6.257052144 | F32: 15 | G32: 0.06666666667 | H32: 284191.1797 | I32: 0 | J32: 284191.1797 | K32: =+'App.2-BA1_Fix Asset Cont.CGAAP'!J202 -> 284191.1797 | L32: 0 | M32: =IF(F32=0,0,+(D32)/F32) -> 0 | N32: 166130 | O32: 118061.1797
A33: 1905 | B33: Land | C33: ='App.2-BA1_Fix Asset Cont.CGAAP'!M89 -> 144400.35 | D33: ='App.2-BA1_Fix Asset Cont.CGAAP'!E203 -> 0 | F33: 0 | G33: 0 | H33: 0 | I33: 0 | J33: 0 | K33: ='App.2-BA1_Fix Asset Cont.CGAAP'!J203 -> 0 | L33: 0 | M33: 0 | N33: =-[19]Sheet1!$N32 -> 0 | O33: 0
A34: 1908 | B34: Buildings & Fixtures | C34: ='App.2-BA1_Fix Asset Cont.CGAAP'!M90 -> 1904722.35 | D34: ='App.2-BA1_Fix Asset Cont.CGAAP'!E204 -> 23667.82 | E34: 25.16178619 | F34: 50 | G34: 0.02 | H34: 75699.0118 | I34: 236.6782 | J34: 75935.69 | K34: ='App.2-BA1_Fix Asset Cont.CGAAP'!J204 -> 75935.69 | L34: 0 | M34: 473.3564 | N34: =-[19]Sheet1!$N33 -> 164.9382 | O34: 76007.43
A35: 1910 | B35: Leasehold Improvements | C35: ='App.2-BA1_Fix Asset Cont.CGAAP'!M91 -> 0 | D35: ='App.2-BA1_Fix Asset Cont.CGAAP'!E205 -> 0 | G35: 0 | H35: 0 | I35: 0 | J35: 0 | K35: ='App.2-BA1_Fix Asset Cont.CGAAP'!J205 -> 0 | L35: 0 | M35: 0 | N35: =-[19]Sheet1!$N34 -> 0 | O35: 0
A36: 1915 | B36: Office Furniture & Equipment (10 years) | C36: ='App.2-BA1_Fix Asset Cont.CGAAP'!M92 -> 79103.82 | D36: ='App.2-BA1_Fix Asset Cont.CGAAP'!E206 -> 23138.12 | E36: 6.426620555 | F36: 10 | G36: 0.1 | H36: 12308.774 | I36: 1156.906 | J36: 13465.68 | K36: ='App.2-BA1_Fix Asset Cont.CGAAP'!J206 -> 13465.68 | L36: 0 | M36: 2313.812 | N36: =-[19]Sheet1!$N35 -> -33.294 | O36: 14655.88
A37: 1915 | B37: Office Furniture & Equipment (5 years) | C37: ='App.2-BA1_Fix Asset Cont.CGAAP'!M93 -> 0 | D37: ='App.2-BA1_Fix Asset Cont.CGAAP'!E207 -> 0 | G37: 0 | H37: 0 | I37: 0 | J37: 0 | K37: ='App.2-BA1_Fix Asset Cont.CGAAP'!J207 -> 0 | L37: 0 | M37: 0 | N37: =-[19]Sheet1!$N36 -> 0 | O37: 0
A38: 1920 | B38: Computer Equipment - Hardware | C38: ='App.2-BA1_Fix Asset Cont.CGAAP'!M94 -> -38883.57 | D38: ='App.2-BA1_Fix Asset Cont.CGAAP'!E208 -> 0 | F38: 5 | G38: 0.2 | H38: 0 | I38: 0 | J38: 0 | K38: ='App.2-BA1_Fix Asset Cont.CGAAP'!J208 -> 0 | L38: 0 | M38: 0 | N38: =-[19]Sheet1!$N37 -> 0 | O38: 0
A39: 1920 | B39: Computer Equip.-Hardware(Post Mar. 22/04) | C39: ='App.2-BA1_Fix Asset Cont.CGAAP'!M95 -> 0 | D39: ='App.2-BA1_Fix Asset Cont.CGAAP'!E209 -> 0 | G39: 0 | H39: 0 | I39: 0 | J39: 0 | K39: ='App.2-BA1_Fix Asset Cont.CGAAP'!J209 -> 0 | L39: 0 | M39: 0 | N39: =-[19]Sheet1!$N38 -> 0 | O39: 0
A40: 1920 | B40: Computer Equip.-Hardware(Post Mar. 19/07) | C40: ='App.2-BA1_Fix Asset Cont.CGAAP'!M96 -> 94198.68 | D40: ='App.2-BA1_Fix Asset Cont.CGAAP'!E210 -> 22016.14 | E40: 4.699851409 | F40: 5 | G40: 0.2 | H40: 20042.906 | I40: 2201.614 | J40: 22244.52 | K40: ='App.2-BA1_Fix Asset Cont.CGAAP'!J210 -> 22244.52 | L40: 0 | M40: 4403.228 | N40: =-[19]Sheet1!$N39 -> 4371.314 | O40: 20074.82
A41: 1930 | B41: Transportation Equipment | C41: ='App.2-BA1_Fix Asset Cont.CGAAP'!M97 -> 263137.93 | D41: ='App.2-BA1_Fix Asset Cont.CGAAP'!E211 -> 36069 | E41: 7.349273083 | F41: =(8+12)/2 -> 10 | G41: 0.1 | H41: 35804.62 | I41: 1803.45 | J41: 37608.07 | K41: ='App.2-BA1_Fix Asset Cont.CGAAP'!J211 -> 37608.07 | L41: 0 | M41: 3606.9 | N41: =-[19]Sheet1!$N40 -> 1937.377 | O41: 37474.143
A42: 1935 | B42: Stores Equipment | C42: ='App.2-BA1_Fix Asset Cont.CGAAP'!M98 -> 5733.94 | D42: ='App.2-BA1_Fix Asset Cont.CGAAP'!E212 -> 1605.92 | E42: 4.880306133 | F42: 10 | G42: 0.1 | H42: 1174.914 | I42: 80.296 | J42: 1255.21 | K42: ='App.2-BA1_Fix Asset Cont.CGAAP'!J212 -> 1255.21 | L42: 0 | M42: 160.592 | N42: =-[19]Sheet1!$N41 -> 248.412 | O42: 1087.094
A43: 1940 | B43: Tools, Shop & Garage Equipment | C43: ='App.2-BA1_Fix Asset Cont.CGAAP'!M99 -> 24173.92 | D43: ='App.2-BA1_Fix Asset Cont.CGAAP'!E213 -> 1133.13 | E43: 6.529991287 | F43: 10 | G43: 0.1 | H43: 3701.9835 | I43: 56.6565 | J43: 3758.64 | K43: ='App.2-BA1_Fix Asset Cont.CGAAP'!J213 -> 3758.64 | L43: 0 | M43: 113.313 | N43: =-[19]Sheet1!$N42 -> 100.5465 | O43: 3714.75
A44: 1945 | B44: Measurement & Testing Equipment | C44: ='App.2-BA1_Fix Asset Cont.CGAAP'!M100 -> 6513.19 | D44: ='App.2-BA1_Fix Asset Cont.CGAAP'!E214 -> 499.18 | E44: 8.835745129 | F44: 10 | G44: 0.1 | H44: 737.141 | I44: 24.959 | J44: 762.1 | K44: ='App.2-BA1_Fix Asset Cont.CGAAP'!J214 -> 762.1 | L44: -1.136868377e-13 | M44: 49.918 | N44: =-[19]Sheet1!$N43 -> -0.001 | O44: 787.06
A45: 1950 | B45: Power Operated Equipment | C45: ='App.2-BA1_Fix Asset Cont.CGAAP'!M101 -> 0 | D45: ='App.2-BA1_Fix Asset Cont.CGAAP'!E215 -> 0 | G45: 0 | H45: 0 | I45: 0 | J45: 0 | K45: ='App.2-BA1_Fix Asset Cont.CGAAP'!J215 -> 0 | L45: 0 | M45: 0 | N45: =-[19]Sheet1!$N44 -> 0 | O45: 0
A46: 1955 | B46: Communications Equipment | C46: ='App.2-BA1_Fix Asset Cont.CGAAP'!M102 -> 1304.07 | D46: ='App.2-BA1_Fix Asset Cont.CGAAP'!E216 -> 0 | E46: 1.379793042 | F46: =(60+10)/2 -> 35 | G46: 0.02857142857 | H46: 945.12 | I46: 0 | J46: 945.12 | K46: ='App.2-BA1_Fix Asset Cont.CGAAP'!J216 -> 945.12 | L46: 0 | M46: 0 | N46: =-[19]Sheet1!$N45 -> 710.69 | O46: 234.43
A47: 1955 | B47: Communication Equipment (Smart Meters) | G47: 0 | H47: 0 | I47: 0 | J47: 0 | K47: ='App.2-BA1_Fix Asset Cont.CGAAP'!J217 -> 0 | L47: 0 | M47: 0 | N47: =-[19]Sheet1!$N46 -> 0 | O47: 0
A48: 1960 | B48: Miscellaneous Equipment | C48: ='App.2-BA1_Fix Asset Cont.CGAAP'!M104 -> 34992.28 | D48: ='App.2-BA1_Fix Asset Cont.CGAAP'!E218 -> 112979.46 | E48: 1.145239692 | F48: 10 | G48: 0.1 | H48: 30554.547 | I48: 5648.973 | J48: 36203.52 | K48: ='App.2-BA1_Fix Asset Cont.CGAAP'!J218 -> 36203.52 | L48: 0 | M48: 11297.946 | N48: =-[19]Sheet1!$N47 -> 26334.603 | O48: 15517.89
A49: 1970 | B49: Load Management Controls - Customer Premises | C49: ='App.2-BA1_Fix Asset Cont.CGAAP'!M105 -> 0 | D49: ='App.2-BA1_Fix Asset Cont.CGAAP'!E219 -> 0 | G49: 0 | H49: 0 | I49: 0 | J49: 0 | K49: ='App.2-BA1_Fix Asset Cont.CGAAP'!J219 -> 0 | L49: 0 | M49: 0 | N49: =-[19]Sheet1!$N48 -> 0 | O49: 0
A50: 1975 | B50: Load Management Controls Utility Premises | C50: ='App.2-BA1_Fix Asset Cont.CGAAP'!M106 -> 0 | D50: ='App.2-BA1_Fix Asset Cont.CGAAP'!E220 -> 0 | G50: 0 | H50: 0 | I50: 0 | J50: 0 | K50: ='App.2-BA1_Fix Asset Cont.CGAAP'!J220 -> 0 | L50: 0 | M50: 0 | N50: =-[19]Sheet1!$N49 -> 0 | O50: 0
A51: 1980 | B51: System Supervisor Equipment | C51: ='App.2-BA1_Fix Asset Cont.CGAAP'!M107 -> 0 | D51: ='App.2-BA1_Fix Asset Cont.CGAAP'!E221 -> 0 | G51: 0 | H51: 0 | I51: 0 | J51: 0 | K51: ='App.2-BA1_Fix Asset Cont.CGAAP'!J221 -> 0 | L51: 0 | M51: 0 | N51: =-[19]Sheet1!$N50 -> 0 | O51: 0
A52: 1985 | B52: Miscellaneous Fixed Assets | C52: ='App.2-BA1_Fix Asset Cont.CGAAP'!M108 -> 0 | D52: ='App.2-BA1_Fix Asset Cont.CGAAP'!E222 -> 0 | G52: 0 | H52: 0 | I52: 0 | J52: 0 | K52: ='App.2-BA1_Fix Asset Cont.CGAAP'!J222 -> 0 | L52: 0 | M52: 0 | N52: =-[19]Sheet1!$N51 -> 0 | O52: 0
A53: 1990 | B53: Other Tangible Property | C53: ='App.2-BA1_Fix Asset Cont.CGAAP'!M109 -> 0 | D53: ='App.2-BA1_Fix Asset Cont.CGAAP'!E223 -> 0 | G53: 0 | H53: 0 | I53: 0 | J53: 0 | K53: ='App.2-BA1_Fix Asset Cont.CGAAP'!J223 -> 0 | L53: 0 | M53: 0 | N53: =-[19]Sheet1!$N52 -> 0 | O53: 0
A54: 1995 | B54: Contributions & Grants | C54: ='App.2-BA1_Fix Asset Cont.CGAAP'!M110 -> -2684215.77 | D54: ='App.2-BA1_Fix Asset Cont.CGAAP'!E224 -> -297008.45 | E54: 33.96358389 | F54: 25 | G54: 0.04 | H54: -79032.171 | I54: -5940.169 | J54: -84972.34 | K54: ='App.2-BA1_Fix Asset Cont.CGAAP'!J224 -> -84972.34 | L54: 0 | M54: -11880.338 | N54: =-[19]Sheet1!$N53 -> -7600.226467 | O54: -83312.28253
A55: etc. | G55: 0 | H55: 0 | I55: 0 | J55: 0 | K55: ='App.2-BA1_Fix Asset Cont.CGAAP'!J225 -> 0 | L55: 0 | M55: 0 | O55: 0
G56: 0 | H56: 0 | I56: 0 | J56: 0 | K56: ='App.2-BA1_Fix Asset Cont.CGAAP'!J226 -> 0 | L56: 0 | M56: 0 | O56: 0
B57: Total | C57: =SUM(C17:C56) -> 16028680.45 | D57: =SUM(D17:D56) -> 1366450.67 | H57: =SUM(H17:H56) -> 980922.0379 | I57: 34983.02175 | J57: 1015905.06 | K57: 1015905.06 | L57: 1.136868377e-13 | M57: 69966.0435 | N57: =SUM(N17:N56) -> 231640.7246 | O57: 819247.3569
A59: Notes:
A61: 1 | B61: Board policy of the "half-year" rule - the applicant must ensure that additions in the year attract a half-year depreciation expense in the first year. Deviations from this standard practice must be supported in the application.
A62: 2 | B62: The applicant must provide an explanation of material variances in evidence.
A63: 3 | B63: The applicant should ensure that the years for new additions of assets are the asset useful lives determined by management in accordance with the Board's regulatory accounting policies. The capitalization and depreciation expense accounting changes should be implemented consistent with the Board’s regulatory accounting policies as set out for modified IFRS as contained in the Report of the Board, Transition to International Financial Reporting Standards, EB-2008-0408, the Kinectrics Report, and the Revised 2012 Accounting Procedures Handbook for Electricity Distributors (“APH”).
A64: 4 | B64: A recalculation should be performed to determine the average remaining life of opening balance of assets (i.e. excluding 2012 additions) under the change in policies under CGAAP. For example, Asset A had a useful life of 20 years under CGAAP without the change in policies. On January 1, 2012, the effective date of the changes in policies, Asset A was 3 years depreciated. As a result, Asset A would have a remaining service life of 17 years (20 years less 3 years) as of January 1, 2012. Due to making the change in policies under CGAAP, management re-assessed the asset useful lives and concluded that the revised useful life of Asset A is now 30 years. Therefore, the average remaining useful life of the opening balance of Asset A is determined to be 27 years (30 years less 3 years) under the revised CGAAP as of January 1, 2012.
A65: 5 | B65: NBV must exclude assets still on the books but which have been fully amortized or depreciated.
A66: 6 | B66: This column refers to the calculated full year depreciation but excludes the depreciation expense on assets fully depreciated during the year. This column is used for the purpose of calculating depreciation expense in the following year on the next worksheet.
A68: General: | B68: Applicants must provide a breakdown of depreciation and amortization expense in the above format for all relevant accounts. Asset Retirement Obligations (AROs), depreciation and accretion expense should be disclosed separately consistent with the Notes of historical Audited Financial Statements.

Sheet App.2-CP_NewCGAAP_DepExp_2013
J1: File Number: | K1: =EBNUMBER -> EB-2013-0160
J2: Exhibit: | K2: 4
J3: Tab: | K3: 7
J4: Schedule: | K4: 1
J5: Page:
J7: Date: | K7: 2014-02-13
A9: Appendix 2-CP
A10: Depreciation and Amortization Expense
A11: Assumes the applicant made capitalization and depreciation expense accounting policy changes under CGAAP effective January 1, 2012
C12: 2013 | D12: Revised CGAAP or ASPE - CGAAP or ASPE with the changes to the policies
A14: Account | B14: Description | C14: Additions | D14: Years (new additions only) | E14: Depreciation Rate on New Additions | F14: 2013 Depreciation Expense 1 | G14: 2013 Depreciation Expense per Apppendix 2-B Fixed Assets, Column K (l) | H14: Variance 2 | I14: Depreciation Expense on 2013 Full Year Additions | J14: Less Depreciation Expense on Assets Fully Depreciated during the year (o) | K14: 2013 Full Year Depreciation 3
C15: (d) | D15: (f) | E15: (g) = 1 / (f) | F15: (h)=2012 Full Year Deprecation + ((d)*0.5)/(f) | H15: (m) = (h) - (l) | I15: (n)=((d))/(f) | K15: (p) = 2012 Full Year Depreciation + (n) - (o)
A16: 1611 | B16: Computer Software (Formally known as Account 1925) | C16: ='App.2-BA1_Fix Asset Cont.CGAAP'!E301 -> 36054.36 | D16: ='App.2-CO_NewCGAAP_DepExp_2012'!F17 -> 5 | E16: =IF(D16=0,0,1/D16) -> 0.2 | F16: =IF(D16=0,+'App.2-CO_NewCGAAP_DepExp_2012'!O17,+'App.2-CO_NewCGAAP_DepExp_2012'!O17+((C16*0.5)/D16)) -> 107234.756 | G16: ='App.2-BA1_Fix Asset Cont.CGAAP'!J301 -> 110188.59 | H16: =IF(ISERROR(+F16-G16), 0, +F16-G16) -> -2953.834 | I16: =IF(D16=0,0,+(C16)/D16) -> 7210.872 | J16: =[19]Sheet2!$L$16 -> 20325.22 | K16: =IF(ISERROR(+I16+'App.2-CO_NewCGAAP_DepExp_2012'!O17-J16), 0, +I16+'App.2-CO_NewCGAAP_DepExp_2012'!O17-J16) -> 90514.972
A17: 1612 | B17: Land Rights (Formally known as Account 1906) | C17: ='App.2-BA1_Fix Asset Cont.CGAAP'!E302 -> 0 | D17: ='App.2-CO_NewCGAAP_DepExp_2012'!F18 -> 25 | E17: 0.04 | F17: =IF(D17=0,+'App.2-CO_NewCGAAP_DepExp_2012'!O18,+'App.2-CO_NewCGAAP_DepExp_2012'!O18+((C17*0.5)/D17)) -> 2044.9 | G17: ='App.2-BA1_Fix Asset Cont.CGAAP'!J302 -> 2187.96 | H17: -143.06 | I17: 0 | K17: =IF(ISERROR(+I17+'App.2-CO_NewCGAAP_DepExp_2012'!O18-J17), 0, +I17+'App.2-CO_NewCGAAP_DepExp_2012'!O18-J17) -> 2044.9
A18: 1805 | B18: Land | C18: ='App.2-BA1_Fix Asset Cont.CGAAP'!E303 -> 0 | D18: ='App.2-CO_NewCGAAP_DepExp_2012'!F19 -> 0 | E18: 0 | F18: =IF(D18=0,+'App.2-CO_NewCGAAP_DepExp_2012'!O19,+'App.2-CO_NewCGAAP_DepExp_2012'!O19+((C18*0.5)/D18)) -> 0 | G18: ='App.2-BA1_Fix Asset Cont.CGAAP'!J303 -> 0 | H18: 0 | I18: 0 | K18: =IF(ISERROR(+I18+'App.2-CO_NewCGAAP_DepExp_2012'!O19-J18), 0, +I18+'App.2-CO_NewCGAAP_DepExp_2012'!O19-J18) -> 0
A19: 1808 | B19: Buildings | C19: ='App.2-BA1_Fix Asset Cont.CGAAP'!E304 -> 0 | D19: ='App.2-CO_NewCGAAP_DepExp_2012'!F20 -> 0 | E19: 0 | F19: =IF(D19=0,+'App.2-CO_NewCGAAP_DepExp_2012'!O20,+'App.2-CO_NewCGAAP_DepExp_2012'!O20+((C19*0.5)/D19)) -> 0 | G19: ='App.2-BA1_Fix Asset Cont.CGAAP'!J304 -> 0 | H19: 0 | I19: 0 | K19: =IF(ISERROR(+I19+'App.2-CO_NewCGAAP_DepExp_2012'!O20-J19), 0, +I19+'App.2-CO_NewCGAAP_DepExp_2012'!O20-J19) -> 0
A20: 1810 | B20: Leasehold Improvements | C20: ='App.2-BA1_Fix Asset Cont.CGAAP'!E305 -> 0 | D20: ='App.2-CO_NewCGAAP_DepExp_2012'!F21 -> 0 | E20: 0 | F20: =IF(D20=0,+'App.2-CO_NewCGAAP_DepExp_2012'!O21,+'App.2-CO_NewCGAAP_DepExp_2012'!O21+((C20*0.5)/D20)) -> 0 | G20: ='App.2-BA1_Fix Asset Cont.CGAAP'!J305 -> 0 | H20: 0 | I20: 0 | K20: =IF(ISERROR(+I20+'App.2-CO_NewCGAAP_DepExp_2012'!O21-J20), 0, +I20+'App.2-CO_NewCGAAP_DepExp_2012'!O21-J20) -> 0
A21: 1815 | B21: Transformer Station Equipment >50 kV | C21: ='App.2-BA1_Fix Asset Cont.CGAAP'!E306 -> 0 | D21: ='App.2-CO_NewCGAAP_DepExp_2012'!F22 -> 0 | E21: 0 | F21: =IF(D21=0,+'App.2-CO_NewCGAAP_DepExp_2012'!O22,+'App.2-CO_NewCGAAP_DepExp_2012'!O22+((C21*0.5)/D21)) -> 0 | G21: ='App.2-BA1_Fix Asset Cont.CGAAP'!J306 -> 0 | H21: 0 | I21: 0 | K21: =IF(ISERROR(+I21+'App.2-CO_NewCGAAP_DepExp_2012'!O22-J21), 0, +I21+'App.2-CO_NewCGAAP_DepExp_2012'!O22-J21) -> 0
A22: 1820 | B22: Distribution Station Equipment <50 kV | C22: ='App.2-BA1_Fix Asset Cont.CGAAP'!E307 -> 25707.11 | D22: ='App.2-CO_NewCGAAP_DepExp_2012'!F23 -> 45 | E22: 0.02222222222 | F22: =IF(D22=0,+'App.2-CO_NewCGAAP_DepExp_2012'!O23,+'App.2-CO_NewCGAAP_DepExp_2012'!O23+((C22*0.5)/D22)) -> 39199.61856 | G22: ='App.2-BA1_Fix Asset Cont.CGAAP'!J307 -> 38892.22 | H22: 307.3985556 | I22: 571.2691111 | J22: =[19]Sheet2!L22 -> -1059.665333 | K22: =IF(ISERROR(+I22+'App.2-CO_NewCGAAP_DepExp_2012'!O23-J22), 0, +I22+'App.2-CO_NewCGAAP_DepExp_2012'!O23-J22) -> 40544.91844
A23: 1825 | B23: Storage Battery Equipment | C23: ='App.2-BA1_Fix Asset Cont.CGAAP'!E308 -> 0 | D23: ='App.2-CO_NewCGAAP_DepExp_2012'!F24 -> 0 | E23: 0 | F23: =IF(D23=0,+'App.2-CO_NewCGAAP_DepExp_2012'!O24,+'App.2-CO_NewCGAAP_DepExp_2012'!O24+((C23*0.5)/D23)) -> 0 | G23: ='App.2-BA1_Fix Asset Cont.CGAAP'!J308 -> 0 | H23: 0 | I23: 0 | J23: =[19]Sheet2!L23 -> 0 | K23: =IF(ISERROR(+I23+'App.2-CO_NewCGAAP_DepExp_2012'!O24-J23), 0, +I23+'App.2-CO_NewCGAAP_DepExp_2012'!O24-J23) -> 0
A24: 1830 | B24: Poles, Towers & Fixtures | C24: ='App.2-BA1_Fix Asset Cont.CGAAP'!E309 -> 111975.54 | D24: ='App.2-CO_NewCGAAP_DepExp_2012'!F25 -> 45 | E24: 0.02222222222 | F24: =IF(D24=0,+'App.2-CO_NewCGAAP_DepExp_2012'!O25,+'App.2-CO_NewCGAAP_DepExp_2012'!O25+((C24*0.5)/D24)) -> 53400.51267 | G24: ='App.2-BA1_Fix Asset Cont.CGAAP'!J309 -> 53369.19 | H24: 31.32266667 | I24: 2488.345333 | J24: =[19]Sheet2!L24 -> 0.03822222223 | K24: =IF(ISERROR(+I24+'App.2-CO_NewCGAAP_DepExp_2012'!O25-J24), 0, +I24+'App.2-CO_NewCGAAP_DepExp_2012'!O25-J24) -> 54644.64711
A25: 1835 | B25: Overhead Conductors & Devices | C25: ='App.2-BA1_Fix Asset Cont.CGAAP'!E310 -> 54993.68 | D25: ='App.2-CO_NewCGAAP_DepExp_2012'!F26 -> 52.5 | E25: 0.01904761905 | F25: =IF(D25=0,+'App.2-CO_NewCGAAP_DepExp_2012'!O26,+'App.2-CO_NewCGAAP_DepExp_2012'!O26+((C25*0.5)/D25)) -> 36902.8041 | G25: ='App.2-BA1_Fix Asset Cont.CGAAP'!J310 -> 36942.32 | H25: -39.51590476 | I25: 1047.498667 | J25: =[19]Sheet2!L25 -> 213.8757143 | K25: =IF(ISERROR(+I25+'App.2-CO_NewCGAAP_DepExp_2012'!O26-J25), 0, +I25+'App.2-CO_NewCGAAP_DepExp_2012'!O26-J25) -> 37212.67771
A26: 1840 | B26: Underground Conduit | C26: ='App.2-BA1_Fix Asset Cont.CGAAP'!E311 -> 295976.48 | D26: ='App.2-CO_NewCGAAP_DepExp_2012'!F27 -> 52.5 | E26: 0.01904761905 | F26: =IF(D26=0,+'App.2-CO_NewCGAAP_DepExp_2012'!O27,+'App.2-CO_NewCGAAP_DepExp_2012'!O27+((C26*0.5)/D26)) -> 63873.43739 | G26: ='App.2-BA1_Fix Asset Cont.CGAAP'!J311 -> 63776.86 | H26: 96.57739048 | I26: 5637.647238 | J26: =[19]Sheet2!L26 -> -365.2295429 | K26: =IF(ISERROR(+I26+'App.2-CO_NewCGAAP_DepExp_2012'!O27-J26), 0, +I26+'App.2-CO_NewCGAAP_DepExp_2012'!O27-J26) -> 67057.49055
A27: 1845 | B27: Underground Conductors & Devices | C27: ='App.2-BA1_Fix Asset Cont.CGAAP'!E312 -> 370121.64 | D27: ='App.2-CO_NewCGAAP_DepExp_2012'!F28 -> 38.75 | E27: 0.02580645161 | F27: =IF(D27=0,+'App.2-CO_NewCGAAP_DepExp_2012'!O28,+'App.2-CO_NewCGAAP_DepExp_2012'!O28+((C27*0.5)/D27)) -> 149632.618 | G27: ='App.2-BA1_Fix Asset Cont.CGAAP'!J312 -> 165156.76 | H27: -15524.14198 | I27: 9551.526194 | J27: =[19]Sheet2!L27 -> 250.0959516 | K27: =IF(ISERROR(+I27+'App.2-CO_NewCGAAP_DepExp_2012'!O28-J27), 0, +I27+'App.2-CO_NewCGAAP_DepExp_2012'!O28-J27) -> 154158.2852
A28: 1850 | B28: Line Transformers | C28: ='App.2-BA1_Fix Asset Cont.CGAAP'!E313 -> 182593.17 | D28: ='App.2-CO_NewCGAAP_DepExp_2012'!F29 -> 40 | E28: 0.025 | F28: =IF(D28=0,+'App.2-CO_NewCGAAP_DepExp_2012'!O29,+'App.2-CO_NewCGAAP_DepExp_2012'!O29+((C28*0.5)/D28)) -> 130927.2046 | G28: ='App.2-BA1_Fix Asset Cont.CGAAP'!J313 -> 137004.52 | H28: -6077.315375 | I28: 4564.82925 | J28: =[19]Sheet2!L28 -> -0.121 | K28: =IF(ISERROR(+I28+'App.2-CO_NewCGAAP_DepExp_2012'!O29-J28), 0, +I28+'App.2-CO_NewCGAAP_DepExp_2012'!O29-J28) -> 133209.7403
A29: 1855 | B29: Services (Overhead & Underground) | C29: ='App.2-BA1_Fix Asset Cont.CGAAP'!E314 -> 84728.75 | D29: ='App.2-CO_NewCGAAP_DepExp_2012'!F30 -> 45 | E29: 0.02222222222 | F29: =IF(D29=0,+'App.2-CO_NewCGAAP_DepExp_2012'!O30,+'App.2-CO_NewCGAAP_DepExp_2012'!O30+((C29*0.5)/D29)) -> 39010.27583 | G29: ='App.2-BA1_Fix Asset Cont.CGAAP'!J314 -> 38950.16 | H29: 60.11583333 | I29: 1882.861111 | J29: =[19]Sheet2!L29 -> -438.1506111 | K29: =IF(ISERROR(+I29+'App.2-CO_NewCGAAP_DepExp_2012'!O30-J29), 0, +I29+'App.2-CO_NewCGAAP_DepExp_2012'!O30-J29) -> 40389.857
A30: 1860 | B30: Meters | C30: ='App.2-BA1_Fix Asset Cont.CGAAP'!E315 -> 0 | D30: ='App.2-CO_NewCGAAP_DepExp_2012'!F31 -> 25 | E30: 0.04 | F30: =IF(D30=0,+'App.2-CO_NewCGAAP_DepExp_2012'!O31,+'App.2-CO_NewCGAAP_DepExp_2012'!O31+((C30*0.5)/D30)) -> 9196.26 | G30: ='App.2-BA1_Fix Asset Cont.CGAAP'!J315 -> 24715.07 | H30: -15518.81 | I30: 0 | J30: =[19]Sheet2!L30 -> -386.767588 | K30: =IF(ISERROR(+I30+'App.2-CO_NewCGAAP_DepExp_2012'!O31-J30), 0, +I30+'App.2-CO_NewCGAAP_DepExp_2012'!O31-J30) -> 9583.027588
A31: 1860 | B31: Meters (Smart Meters) | C31: ='App.2-BA1_Fix Asset Cont.CGAAP'!E316 -> 56742.47 | D31: 15 | E31: 0.06666666667 | F31: =IF(D31=0,+'App.2-CO_NewCGAAP_DepExp_2012'!O32,+'App.2-CO_NewCGAAP_DepExp_2012'!O32+((C31*0.5)/D31)) -> 119952.5953 | G31: ='App.2-BA1_Fix Asset Cont.CGAAP'!J316 -> 104050.56 | H31: 15902.03533 | I31: 3782.831333 | J31: =[19]Sheet2!L31 -> 625.4636667 | K31: =IF(ISERROR(+I31+'App.2-CO_NewCGAAP_DepExp_2012'!O32-J31), 0, +I31+'App.2-CO_NewCGAAP_DepExp_2012'!O32-J31) -> 121218.5473
A32: 1905 | B32: Land | C32: ='App.2-BA1_Fix Asset Cont.CGAAP'!E317 -> 0 | D32: ='App.2-CO_NewCGAAP_DepExp_2012'!F33 -> 0 | E32: 0 | F32: =IF(D32=0,+'App.2-CO_NewCGAAP_DepExp_2012'!O33,+'App.2-CO_NewCGAAP_DepExp_2012'!O33+((C32*0.5)/D32)) -> 0 | G32: ='App.2-BA1_Fix Asset Cont.CGAAP'!J317 -> 0 | H32: 0 | I32: 0 | J32: =[19]Sheet2!L32 -> 0 | K32: =IF(ISERROR(+I32+'App.2-CO_NewCGAAP_DepExp_2012'!O33-J32), 0, +I32+'App.2-CO_NewCGAAP_DepExp_2012'!O33-J32) -> 0
A33: 1908 | B33: Buildings & Fixtures | C33: ='App.2-BA1_Fix Asset Cont.CGAAP'!E318 -> 5166.51 | D33: ='App.2-CO_NewCGAAP_DepExp_2012'!F34 -> 50 | E33: 0.02 | F33: =IF(D33=0,+'App.2-CO_NewCGAAP_DepExp_2012'!O34,+'App.2-CO_NewCGAAP_DepExp_2012'!O34+((C33*0.5)/D33)) -> 76059.0951 | G33: ='App.2-BA1_Fix Asset Cont.CGAAP'!J318 -> 76090.01 | H33: -30.9149 | I33: 103.3302 | J33: =[19]Sheet2!L33 -> -0.009999999995 | K33: =IF(ISERROR(+I33+'App.2-CO_NewCGAAP_DepExp_2012'!O34-J33), 0, +I33+'App.2-CO_NewCGAAP_DepExp_2012'!O34-J33) -> 76110.7702
A34: 1910 | B34: Leasehold Improvements | C34: ='App.2-BA1_Fix Asset Cont.CGAAP'!E319 -> 0 | D34: ='App.2-CO_NewCGAAP_DepExp_2012'!F35 -> 0 | E34: 0 | F34: =IF(D34=0,+'App.2-CO_NewCGAAP_DepExp_2012'!O35,+'App.2-CO_NewCGAAP_DepExp_2012'!O35+((C34*0.5)/D34)) -> 0 | G34: ='App.2-BA1_Fix Asset Cont.CGAAP'!J319 -> 0 | H34: 0 | I34: 0 | J34: =[19]Sheet2!L34 -> 0 | K34: =IF(ISERROR(+I34+'App.2-CO_NewCGAAP_DepExp_2012'!O35-J34), 0, +I34+'App.2-CO_NewCGAAP_DepExp_2012'!O35-J34) -> 0
A35: 1915 | B35: Office Furniture & Equipment (10 years) | C35: ='App.2-BA1_Fix Asset Cont.CGAAP'!E320 -> 15501.31 | D35: ='App.2-CO_NewCGAAP_DepExp_2012'!F36 -> 10 | E35: 0.1 | F35: =IF(D35=0,+'App.2-CO_NewCGAAP_DepExp_2012'!O36,+'App.2-CO_NewCGAAP_DepExp_2012'!O36+((C35*0.5)/D35)) -> 15430.9455 | G35: ='App.2-BA1_Fix Asset Cont.CGAAP'!J320 -> 14412.65 | H35: 1018.2955 | I35: 1550.131 | J35: =[19]Sheet2!L35 -> 1265.64 | K35: =IF(ISERROR(+I35+'App.2-CO_NewCGAAP_DepExp_2012'!O36-J35), 0, +I35+'App.2-CO_NewCGAAP_DepExp_2012'!O36-J35) -> 14940.371
A36: 1915 | B36: Office Furniture & Equipment (5 years) | C36: ='App.2-BA1_Fix Asset Cont.CGAAP'!E321 -> 0 | D36: ='App.2-CO_NewCGAAP_DepExp_2012'!F37 -> 0 | E36: 0 | F36: =IF(D36=0,+'App.2-CO_NewCGAAP_DepExp_2012'!O37,+'App.2-CO_NewCGAAP_DepExp_2012'!O37+((C36*0.5)/D36)) -> 0 | G36: ='App.2-BA1_Fix Asset Cont.CGAAP'!J321 -> 0 | H36: 0 | I36: 0 | J36: =[19]Sheet2!L36 -> 0 | K36: =IF(ISERROR(+I36+'App.2-CO_NewCGAAP_DepExp_2012'!O37-J36), 0, +I36+'App.2-CO_NewCGAAP_DepExp_2012'!O37-J36) -> 0
A37: 1920 | B37: Computer Equipment - Hardware | C37: ='App.2-BA1_Fix Asset Cont.CGAAP'!E322 -> 0 | D37: ='App.2-CO_NewCGAAP_DepExp_2012'!F38 -> 5 | E37: 0.2 | F37: =IF(D37=0,+'App.2-CO_NewCGAAP_DepExp_2012'!O38,+'App.2-CO_NewCGAAP_DepExp_2012'!O38+((C37*0.5)/D37)) -> 0 | G37: ='App.2-BA1_Fix Asset Cont.CGAAP'!J322 -> 0 | H37: 0 | I37: 0 | J37: =[19]Sheet2!L37 -> 0 | K37: =IF(ISERROR(+I37+'App.2-CO_NewCGAAP_DepExp_2012'!O38-J37), 0, +I37+'App.2-CO_NewCGAAP_DepExp_2012'!O38-J37) -> 0
A38: 1920 | B38: Computer Equip.-Hardware(Post Mar. 22/04) | C38: ='App.2-BA1_Fix Asset Cont.CGAAP'!E323 -> 0 | D38: ='App.2-CO_NewCGAAP_DepExp_2012'!F39 -> 0 | E38: 0 | F38: =IF(D38=0,+'App.2-CO_NewCGAAP_DepExp_2012'!O39,+'App.2-CO_NewCGAAP_DepExp_2012'!O39+((C38*0.5)/D38)) -> 0 | G38: ='App.2-BA1_Fix Asset Cont.CGAAP'!J323 -> 0 | H38: 0 | I38: 0 | J38: =[19]Sheet2!L38 -> 0 | K38: =IF(ISERROR(+I38+'App.2-CO_NewCGAAP_DepExp_2012'!O39-J38), 0, +I38+'App.2-CO_NewCGAAP_DepExp_2012'!O39-J38) -> 0
A39: 1920 | B39: Computer Equip.-Hardware(Post Mar. 19/07) | C39: ='App.2-BA1_Fix Asset Cont.CGAAP'!E324 -> 12119.33 | D39: ='App.2-CO_NewCGAAP_DepExp_2012'!F40 -> 5 | E39: 0.2 | F39: =IF(D39=0,+'App.2-CO_NewCGAAP_DepExp_2012'!O40,+'App.2-CO_NewCGAAP_DepExp_2012'!O40+((C39*0.5)/D39)) -> 21286.753 | G39: ='App.2-BA1_Fix Asset Cont.CGAAP'!J324 -> 21158.45 | H39: 128.303 | I39: 2423.866 | J39: =[19]Sheet2!L39 -> 1954.44 | K39: =IF(ISERROR(+I39+'App.2-CO_NewCGAAP_DepExp_2012'!O40-J39), 0, +I39+'App.2-CO_NewCGAAP_DepExp_2012'!O40-J39) -> 20544.246
A40: 1930 | B40: Transportation Equipment | C40: ='App.2-BA1_Fix Asset Cont.CGAAP'!E325 -> 0 | D40: ='App.2-CO_NewCGAAP_DepExp_2012'!F41 -> 10 | E40: 0.1 | F40: =IF(D40=0,+'App.2-CO_NewCGAAP_DepExp_2012'!O41,+'App.2-CO_NewCGAAP_DepExp_2012'!O41+((C40*0.5)/D40)) -> 37474.143 | G40: ='App.2-BA1_Fix Asset Cont.CGAAP'!J325 -> 39765.81 | H40: -2291.667 | I40: 0 | J40: =[19]Sheet2!L40 -> 2583.344 | K40: =IF(ISERROR(+I40+'App.2-CO_NewCGAAP_DepExp_2012'!O41-J40), 0, +I40+'App.2-CO_NewCGAAP_DepExp_2012'!O41-J40) -> 34890.799
A41: 1935 | B41: Stores Equipment | C41: ='App.2-BA1_Fix Asset Cont.CGAAP'!E326 -> 1299 | D41: ='App.2-CO_NewCGAAP_DepExp_2012'!F42 -> 10 | E41: 0.1 | F41: =IF(D41=0,+'App.2-CO_NewCGAAP_DepExp_2012'!O42,+'App.2-CO_NewCGAAP_DepExp_2012'!O42+((C41*0.5)/D41)) -> 1152.044 | G41: ='App.2-BA1_Fix Asset Cont.CGAAP'!J326 -> 1171.79 | H41: -19.746 | I41: 129.9 | J41: =[19]Sheet2!L41 -> 118.85 | K41: =IF(ISERROR(+I41+'App.2-CO_NewCGAAP_DepExp_2012'!O42-J41), 0, +I41+'App.2-CO_NewCGAAP_DepExp_2012'!O42-J41) -> 1098.144
A42: 1940 | B42: Tools, Shop & Garage Equipment | C42: ='App.2-BA1_Fix Asset Cont.CGAAP'!E327 -> 1487.1 | D42: ='App.2-CO_NewCGAAP_DepExp_2012'!F43 -> 10 | E42: 0.1 | F42: =IF(D42=0,+'App.2-CO_NewCGAAP_DepExp_2012'!O43,+'App.2-CO_NewCGAAP_DepExp_2012'!O43+((C42*0.5)/D42)) -> 3789.105 | G42: ='App.2-BA1_Fix Asset Cont.CGAAP'!J327 -> 3794.01 | H42: -4.905 | I42: 148.71 | J42: =[19]Sheet2!L42 -> 409.31 | K42: =IF(ISERROR(+I42+'App.2-CO_NewCGAAP_DepExp_2012'!O43-J42), 0, +I42+'App.2-CO_NewCGAAP_DepExp_2012'!O43-J42) -> 3454.15
A43: 1945 | B43: Measurement & Testing Equipment | C43: ='App.2-BA1_Fix Asset Cont.CGAAP'!E328 -> 10070 | D43: ='App.2-CO_NewCGAAP_DepExp_2012'!F44 -> 10 | E43: 0.1 | F43: =IF(D43=0,+'App.2-CO_NewCGAAP_DepExp_2012'!O44,+'App.2-CO_NewCGAAP_DepExp_2012'!O44+((C43*0.5)/D43)) -> 1290.56 | G43: ='App.2-BA1_Fix Asset Cont.CGAAP'!J328 -> 1290.56 | H43: 0 | I43: 1007 | J43: =[19]Sheet2!L43 -> -475 | K43: =IF(ISERROR(+I43+'App.2-CO_NewCGAAP_DepExp_2012'!O44-J43), 0, +I43+'App.2-CO_NewCGAAP_DepExp_2012'!O44-J43) -> 2269.06
A44: 1950 | B44: Power Operated Equipment | C44: ='App.2-BA1_Fix Asset Cont.CGAAP'!E329 -> 0 | D44: ='App.2-CO_NewCGAAP_DepExp_2012'!F45 -> 0 | E44: 0 | F44: =IF(D44=0,+'App.2-CO_NewCGAAP_DepExp_2012'!O45,+'App.2-CO_NewCGAAP_DepExp_2012'!O45+((C44*0.5)/D44)) -> 0 | G44: ='App.2-BA1_Fix Asset Cont.CGAAP'!J329 -> 0 | H44: 0 | I44: 0 | J44: =[19]Sheet2!L44 -> 0 | K44: =IF(ISERROR(+I44+'App.2-CO_NewCGAAP_DepExp_2012'!O45-J44), 0, +I44+'App.2-CO_NewCGAAP_DepExp_2012'!O45-J44) -> 0
A45: 1955 | B45: Communications Equipment | C45: ='App.2-BA1_Fix Asset Cont.CGAAP'!E330 -> 0 | D45: ='App.2-CO_NewCGAAP_DepExp_2012'!F46 -> 35 | E45: 0.02857142857 | F45: =IF(D45=0,+'App.2-CO_NewCGAAP_DepExp_2012'!O46,+'App.2-CO_NewCGAAP_DepExp_2012'!O46+((C45*0.5)/D45)) -> 234.43 | G45: ='App.2-BA1_Fix Asset Cont.CGAAP'!J330 -> 234.43 | H45: -5.684341886e-14 | I45: 0 | J45: =[19]Sheet2!L45 -> 189.9005714 | K45: =IF(ISERROR(+I45+'App.2-CO_NewCGAAP_DepExp_2012'!O46-J45), 0, +I45+'App.2-CO_NewCGAAP_DepExp_2012'!O46-J45) -> 44.52942857
A46: 1955 | B46: Communication Equipment (Smart Meters) | C46: ='App.2-BA1_Fix Asset Cont.CGAAP'!E331 -> 0 | D46: ='App.2-CO_NewCGAAP_DepExp_2012'!F47 -> 0 | E46: 0 | F46: =IF(D46=0,+'App.2-CO_NewCGAAP_DepExp_2012'!O47,+'App.2-CO_NewCGAAP_DepExp_2012'!O47+((C46*0.5)/D46)) -> 0 | G46: ='App.2-BA1_Fix Asset Cont.CGAAP'!J331 -> 0 | H46: 0 | I46: 0 | J46: =[19]Sheet2!L46 -> 0 | K46: =IF(ISERROR(+I46+'App.2-CO_NewCGAAP_DepExp_2012'!O47-J46), 0, +I46+'App.2-CO_NewCGAAP_DepExp_2012'!O47-J46) -> 0
A47: 1960 | B47: Miscellaneous Equipment | C47: ='App.2-BA1_Fix Asset Cont.CGAAP'!E332 -> 2551.22 | D47: ='App.2-CO_NewCGAAP_DepExp_2012'!F48 -> 10 | E47: 0.1 | F47: =IF(D47=0,+'App.2-CO_NewCGAAP_DepExp_2012'!O48,+'App.2-CO_NewCGAAP_DepExp_2012'!O48+((C47*0.5)/D47)) -> 15645.451 | G47: ='App.2-BA1_Fix Asset Cont.CGAAP'!J332 -> 15645.45 | H47: 0.001000000002 | I47: 255.122 | J47: =[19]Sheet2!L47 -> -280.002 | K47: =IF(ISERROR(+I47+'App.2-CO_NewCGAAP_DepExp_2012'!O48-J47), 0, +I47+'App.2-CO_NewCGAAP_DepExp_2012'!O48-J47) -> 16053.014
A48: 1970 | B48: Load Management Controls - Customer Premises | C48: ='App.2-BA1_Fix Asset Cont.CGAAP'!E333 -> 0 | D48: ='App.2-CO_NewCGAAP_DepExp_2012'!F49 -> 0 | E48: 0 | F48: =IF(D48=0,+'App.2-CO_NewCGAAP_DepExp_2012'!O49,+'App.2-CO_NewCGAAP_DepExp_2012'!O49+((C48*0.5)/D48)) -> 0 | G48: ='App.2-BA1_Fix Asset Cont.CGAAP'!J333 -> 0 | H48: 0 | I48: 0 | J48: =[19]Sheet2!L48 -> 0 | K48: =IF(ISERROR(+I48+'App.2-CO_NewCGAAP_DepExp_2012'!O49-J48), 0, +I48+'App.2-CO_NewCGAAP_DepExp_2012'!O49-J48) -> 0
A49: 1975 | B49: Load Management Controls Utility Premises | C49: ='App.2-BA1_Fix Asset Cont.CGAAP'!E334 -> 0 | D49: ='App.2-CO_NewCGAAP_DepExp_2012'!F50 -> 0 | E49: 0 | F49: =IF(D49=0,+'App.2-CO_NewCGAAP_DepExp_2012'!O50,+'App.2-CO_NewCGAAP_DepExp_2012'!O50+((C49*0.5)/D49)) -> 0 | G49: ='App.2-BA1_Fix Asset Cont.CGAAP'!J334 -> 0 | H49: 0 | I49: 0 | J49: =[19]Sheet2!L49 -> 0 | K49: =IF(ISERROR(+I49+'App.2-CO_NewCGAAP_DepExp_2012'!O50-J49), 0, +I49+'App.2-CO_NewCGAAP_DepExp_2012'!O50-J49) -> 0
A50: 1980 | B50: System Supervisor Equipment | C50: ='App.2-BA1_Fix Asset Cont.CGAAP'!E335 -> 0 | D50: ='App.2-CO_NewCGAAP_DepExp_2012'!F51 -> 0 | E50: 0 | F50: =IF(D50=0,+'App.2-CO_NewCGAAP_DepExp_2012'!O51,+'App.2-CO_NewCGAAP_DepExp_2012'!O51+((C50*0.5)/D50)) -> 0 | G50: ='App.2-BA1_Fix Asset Cont.CGAAP'!J335 -> 0 | H50: 0 | I50: 0 | J50: =[19]Sheet2!L50 -> 0 | K50: =IF(ISERROR(+I50+'App.2-CO_NewCGAAP_DepExp_2012'!O51-J50), 0, +I50+'App.2-CO_NewCGAAP_DepExp_2012'!O51-J50) -> 0
A51: 1985 | B51: Miscellaneous Fixed Assets | C51: ='App.2-BA1_Fix Asset Cont.CGAAP'!E336 -> 0 | D51: ='App.2-CO_NewCGAAP_DepExp_2012'!F52 -> 0 | E51: 0 | F51: =IF(D51=0,+'App.2-CO_NewCGAAP_DepExp_2012'!O52,+'App.2-CO_NewCGAAP_DepExp_2012'!O52+((C51*0.5)/D51)) -> 0 | G51: ='App.2-BA1_Fix Asset Cont.CGAAP'!J336 -> 0 | H51: 0 | I51: 0 | J51: =[19]Sheet2!L51 -> 0 | K51: =IF(ISERROR(+I51+'App.2-CO_NewCGAAP_DepExp_2012'!O52-J51), 0, +I51+'App.2-CO_NewCGAAP_DepExp_2012'!O52-J51) -> 0
A52: 1990 | B52: Other Tangible Property | C52: ='App.2-BA1_Fix Asset Cont.CGAAP'!E337 -> 0 | D52: ='App.2-CO_NewCGAAP_DepExp_2012'!F53 -> 0 | E52: 0 | F52: =IF(D52=0,+'App.2-CO_NewCGAAP_DepExp_2012'!O53,+'App.2-CO_NewCGAAP_DepExp_2012'!O53+((C52*0.5)/D52)) -> 0 | G52: ='App.2-BA1_Fix Asset Cont.CGAAP'!J337 -> 0 | H52: 0 | I52: 0 | J52: =[19]Sheet2!L52 -> 0 | K52: =IF(ISERROR(+I52+'App.2-CO_NewCGAAP_DepExp_2012'!O53-J52), 0, +I52+'App.2-CO_NewCGAAP_DepExp_2012'!O53-J52) -> 0
A53: 1995 | B53: Contributions & Grants | C53: ='App.2-BA1_Fix Asset Cont.CGAAP'!E338 -> -384754.93 | D53: ='App.2-CO_NewCGAAP_DepExp_2012'!F54 -> 25 | E53: 0.04 | F53: =IF(D53=0,+'App.2-CO_NewCGAAP_DepExp_2012'!O54,+'App.2-CO_NewCGAAP_DepExp_2012'!O54+((C53*0.5)/D53)) -> -91007.38113 | G53: ='App.2-BA1_Fix Asset Cont.CGAAP'!J338 -> -92405.5 | H53: 1398.118867 | I53: -15390.1972 | J53: =[19]Sheet2!L53 -> -7609.612533 | K53: =IF(ISERROR(+I53+'App.2-CO_NewCGAAP_DepExp_2012'!O54-J53), 0, +I53+'App.2-CO_NewCGAAP_DepExp_2012'!O54-J53) -> -91092.8672
A54: etc. | E54: 0 | F54: =IF(D54=0,+'App.2-CO_NewCGAAP_DepExp_2012'!O55,+'App.2-CO_NewCGAAP_DepExp_2012'!O55+((C54*0.5)/D54)) -> 0 | G54: ='App.2-BA1_Fix Asset Cont.CGAAP'!K339 -> 0 | H54: 0 | I54: 0 | K54: =IF(ISERROR(+I54+'App.2-CO_NewCGAAP_DepExp_2012'!O55-J54), 0, +I54+'App.2-CO_NewCGAAP_DepExp_2012'!O55-J54) -> 0
E55: 0 | F55: =IF(D55=0,+'App.2-CO_NewCGAAP_DepExp_2012'!O56,+'App.2-CO_NewCGAAP_DepExp_2012'!O56+((C55*0.5)/D55)) -> 0 | G55: ='App.2-BA1_Fix Asset Cont.CGAAP'!K340 -> 0 | H55: 0 | I55: 0 | K55: =IF(ISERROR(+I55+'App.2-CO_NewCGAAP_DepExp_2012'!O56-J55), 0, +I55+'App.2-CO_NewCGAAP_DepExp_2012'!O56-J55) -> 0
B56: Total | C56: =SUM(C16:C55) -> 882332.74 | F56: =SUM(F16:F55) -> 832730.128 | G56: 856391.87 | H56: -23661.74202 | I56: 26965.54224 | J56: 17321.61952 | K56: 828891.2796
A58: Notes:
A59: 1 | B59: Board policy of the "half-year" rule - the applicant must ensure that additions in the year attract a half-year depreciation expense in the first year. Deviations from this standard practice must be supported in the application.
A60: 2 | B60: The applicant must provide an explanation of material variances in evidence.
A61: 3 | B61: This column refers to the calculated full year depreciation but excludes the depreciation expense on assets fully depreciated during the year. This column is used for the purpose of calculating depreciation expense in the following year on the next worksheet.
A63: General: | B63: Applicants must provide a breakdown of depreciation and amortization expense in the above format for all relevant accounts. Asset Retirement Obligations (AROs), depreciation and accretion expense should be disclosed separately consistent with the Notes of historical Audited Financial Statements.

Sheet App.2-CQ NewCGAAP_DepExp_2014
G1: File Number: | H1: =EBNUMBER -> EB-2013-0160
G2: Exhibit: | H2: 4
G3: Tab: | H3: 7
G4: Schedule: | H4: 1
G5: Page:
G7: Date: | H7: 2014-02-13
A9: Appendix 2-CQ
A10: Depreciation and Amortization Expense
A11: Assumes the applicant made capitalization and depreciation expense accounting policy changes under CGAAP effective January 1, 2012
B12: 2014 | C12: Revised CGAAP or ASPE - CGAAP or ASPE with the changes to the policies
A14: Account | B14: Description | C14: Additions | D14: Years (new additions only) | E14: Depreciation Rate on New Additions | F14: 2014 Depreciation Expense 1 | G14: 2014 Depreciation Expense per Appendix 2-B Fixed Assets, Column K (l) | H14: Variance 2
C15: (d) | D15: (f) | E15: (g) = 1 / (f) | F15: (h)=2013 Full Year Depreciation + ((d)*0.5)/(f) | H15: (m) = (h) - (l)
A16: 1611 | B16: Computer Software (Formally known as Account 1925) | C16: ='App.2-BA1_Fix Asset Cont.CGAAP'!E358 -> 42000 | D16: ='App.2-CP_NewCGAAP_DepExp_2013'!D16 -> 5 | E16: =IF(D16=0,0,1/D16) -> 0.2 | F16: =IF(D16=0,'App.2-CP_NewCGAAP_DepExp_2013'!K16,+'App.2-CP_NewCGAAP_DepExp_2013'!K16+((C16*0.5)/D16)) -> 94714.972 | G16: ='App.2-BA1_Fix Asset Cont.CGAAP'!J358 -> 94714.972 | H16: =IF(ISERROR(+F16-G16), 0, +F16-G16) -> 0
A17: 1612 | B17: Land Rights (Formally known as Account 1906) | C17: ='App.2-BA1_Fix Asset Cont.CGAAP'!E359 -> 0 | D17: ='App.2-CP_NewCGAAP_DepExp_2013'!D17 -> 25 | E17: 0.04 | F17: =IF(D17=0,'App.2-CP_NewCGAAP_DepExp_2013'!K17,+'App.2-CP_NewCGAAP_DepExp_2013'!K17+((C17*0.5)/D17)) -> 2044.9 | G17: ='App.2-BA1_Fix Asset Cont.CGAAP'!J359 -> 2331.0036 | H17: -286.1036
A18: 1805 | B18: Land | C18: ='App.2-BA1_Fix Asset Cont.CGAAP'!E360 -> 0 | D18: ='App.2-CP_NewCGAAP_DepExp_2013'!D18 -> 0 | E18: 0 | F18: =IF(D18=0,'App.2-CP_NewCGAAP_DepExp_2013'!K18,+'App.2-CP_NewCGAAP_DepExp_2013'!K18+((C18*0.5)/D18)) -> 0 | G18: ='App.2-BA1_Fix Asset Cont.CGAAP'!J360 -> 0 | H18: 0
A19: 1808 | B19: Buildings | C19: ='App.2-BA1_Fix Asset Cont.CGAAP'!E361 -> 0 | D19: ='App.2-CP_NewCGAAP_DepExp_2013'!D19 -> 0 | E19: 0 | F19: =IF(D19=0,'App.2-CP_NewCGAAP_DepExp_2013'!K19,+'App.2-CP_NewCGAAP_DepExp_2013'!K19+((C19*0.5)/D19)) -> 0 | G19: ='App.2-BA1_Fix Asset Cont.CGAAP'!J361 -> 0 | H19: 0
A20: 1810 | B20: Leasehold Improvements | C20: ='App.2-BA1_Fix Asset Cont.CGAAP'!E362 -> 0 | D20: ='App.2-CP_NewCGAAP_DepExp_2013'!D20 -> 0 | E20: 0 | F20: =IF(D20=0,'App.2-CP_NewCGAAP_DepExp_2013'!K20,+'App.2-CP_NewCGAAP_DepExp_2013'!K20+((C20*0.5)/D20)) -> 0 | G20: ='App.2-BA1_Fix Asset Cont.CGAAP'!J362 -> 0 | H20: 0
A21: 1815 | B21: Transformer Station Equipment >50 kV | C21: ='App.2-BA1_Fix Asset Cont.CGAAP'!E363 -> 0 | D21: ='App.2-CP_NewCGAAP_DepExp_2013'!D21 -> 0 | E21: 0 | F21: =IF(D21=0,'App.2-CP_NewCGAAP_DepExp_2013'!K21,+'App.2-CP_NewCGAAP_DepExp_2013'!K21+((C21*0.5)/D21)) -> 0 | G21: ='App.2-BA1_Fix Asset Cont.CGAAP'!J363 -> 0 | H21: 0
A22: 1820 | B22: Distribution Station Equipment <50 kV | C22: ='App.2-BA1_Fix Asset Cont.CGAAP'!E364 -> 119606.64 | D22: ='App.2-CP_NewCGAAP_DepExp_2013'!D22 -> 45 | E22: 0.02222222222 | F22: =IF(D22=0,'App.2-CP_NewCGAAP_DepExp_2013'!K22,+'App.2-CP_NewCGAAP_DepExp_2013'!K22+((C22*0.5)/D22)) -> 41873.88111 | G22: ='App.2-BA1_Fix Asset Cont.CGAAP'!J364 -> 41175.73825 | H22: 698.1428611
A23: 1825 | B23: Storage Battery Equipment | C23: ='App.2-BA1_Fix Asset Cont.CGAAP'!E365 -> 0 | D23: ='App.2-CP_NewCGAAP_DepExp_2013'!D23 -> 0 | E23: 0 | F23: =IF(D23=0,'App.2-CP_NewCGAAP_DepExp_2013'!K23,+'App.2-CP_NewCGAAP_DepExp_2013'!K23+((C23*0.5)/D23)) -> 0 | G23: ='App.2-BA1_Fix Asset Cont.CGAAP'!J365 -> 0 | H23: 0
A24: 1830 | B24: Poles, Towers & Fixtures | C24: ='App.2-BA1_Fix Asset Cont.CGAAP'!E366 -> 49922.04 | D24: ='App.2-CP_NewCGAAP_DepExp_2013'!D24 -> 45 | E24: 0.02222222222 | F24: =IF(D24=0,'App.2-CP_NewCGAAP_DepExp_2013'!K24,+'App.2-CP_NewCGAAP_DepExp_2013'!K24+((C24*0.5)/D24)) -> 55199.33644 | G24: ='App.2-BA1_Fix Asset Cont.CGAAP'!J366 -> 55173.72839 | H24: 25.60805556
A25: 1835 | B25: Overhead Conductors & Devices | C25: ='App.2-BA1_Fix Asset Cont.CGAAP'!E367 -> 107077.44 | D25: ='App.2-CP_NewCGAAP_DepExp_2013'!D25 -> 52.5 | E25: 0.01904761905 | F25: =IF(D25=0,'App.2-CP_NewCGAAP_DepExp_2013'!K25,+'App.2-CP_NewCGAAP_DepExp_2013'!K25+((C25*0.5)/D25)) -> 38232.46286 | G25: ='App.2-BA1_Fix Asset Cont.CGAAP'!J367 -> 38496.69794 | H25: -264.2350873
A26: 1840 | B26: Underground Conduit | C26: ='App.2-BA1_Fix Asset Cont.CGAAP'!E368 -> 308124.12 | D26: ='App.2-CP_NewCGAAP_DepExp_2013'!D26 -> 52.5 | E26: 0.01904761905 | F26: =IF(D26=0,'App.2-CP_NewCGAAP_DepExp_2013'!K26,+'App.2-CP_NewCGAAP_DepExp_2013'!K26+((C26*0.5)/D26)) -> 69992.00598 | G26: ='App.2-BA1_Fix Asset Cont.CGAAP'!J368 -> 69798.84444 | H26: 193.1615446
A27: 1845 | B27: Underground Conductors & Devices | C27: ='App.2-BA1_Fix Asset Cont.CGAAP'!E369 -> 226163.28 | D27: ='App.2-CP_NewCGAAP_DepExp_2013'!D27 -> 38.75 | E27: 0.02580645161 | F27: =IF(D27=0,'App.2-CP_NewCGAAP_DepExp_2013'!K27,+'App.2-CP_NewCGAAP_DepExp_2013'!K27+((C27*0.5)/D27)) -> 157076.521 | G27: ='App.2-BA1_Fix Asset Cont.CGAAP'!J369 -> 159064.7985 | H27: -1988.2775
A28: 1850 | B28: Line Transformers | C28: ='App.2-BA1_Fix Asset Cont.CGAAP'!E370 -> 385854.36 | D28: ='App.2-CP_NewCGAAP_DepExp_2013'!D28 -> 40 | E28: 0.025 | F28: =IF(D28=0,'App.2-CP_NewCGAAP_DepExp_2013'!K28,+'App.2-CP_NewCGAAP_DepExp_2013'!K28+((C28*0.5)/D28)) -> 138032.9198 | G28: ='App.2-BA1_Fix Asset Cont.CGAAP'!J370 -> 138032.9088 | H28: 0.011
A29: 1855 | B29: Services (Overhead & Underground) | C29: ='App.2-BA1_Fix Asset Cont.CGAAP'!E371 -> 132684.72 | D29: ='App.2-CP_NewCGAAP_DepExp_2013'!D29 -> 45 | E29: 0.02222222222 | F29: =IF(D29=0,'App.2-CP_NewCGAAP_DepExp_2013'!K29,+'App.2-CP_NewCGAAP_DepExp_2013'!K29+((C29*0.5)/D29)) -> 41864.13167 | G29: ='App.2-BA1_Fix Asset Cont.CGAAP'!J371 -> 41743.85168 | H29: 120.2799881
A30: 1860 | B30: Meters | C30: ='App.2-BA1_Fix Asset Cont.CGAAP'!E372 -> 0 | D30: ='App.2-CP_NewCGAAP_DepExp_2013'!D30 -> 25 | E30: 0.04 | F30: =IF(D30=0,'App.2-CP_NewCGAAP_DepExp_2013'!K30,+'App.2-CP_NewCGAAP_DepExp_2013'!K30+((C30*0.5)/D30)) -> 9583.027588 | G30: ='App.2-BA1_Fix Asset Cont.CGAAP'!J372 -> 0 | H30: 9583.027588
A31: 1860 | B31: Meters (Smart Meters) | C31: ='App.2-BA1_Fix Asset Cont.CGAAP'!E373 -> 45763.92 | D31: ='App.2-CP_NewCGAAP_DepExp_2013'!D31 -> 15 | E31: 0.06666666667 | F31: =IF(D31=0,'App.2-CP_NewCGAAP_DepExp_2013'!K31,+'App.2-CP_NewCGAAP_DepExp_2013'!K31+((C31*0.5)/D31)) -> 122744.0113 | G31: ='App.2-BA1_Fix Asset Cont.CGAAP'!J373 -> 169632.9589 | H31: -46888.94759
A32: 1905 | B32: Land | C32: ='App.2-BA1_Fix Asset Cont.CGAAP'!E374 -> 0 | D32: ='App.2-CP_NewCGAAP_DepExp_2013'!D32 -> 0 | E32: 0 | F32: =IF(D32=0,'App.2-CP_NewCGAAP_DepExp_2013'!K32,+'App.2-CP_NewCGAAP_DepExp_2013'!K32+((C32*0.5)/D32)) -> 0 | G32: ='App.2-BA1_Fix Asset Cont.CGAAP'!J374 -> 0 | H32: 0
A33: 1908 | B33: Buildings & Fixtures | C33: ='App.2-BA1_Fix Asset Cont.CGAAP'!E375 -> 29499.96 | D33: ='App.2-CP_NewCGAAP_DepExp_2013'!D33 -> 50 | E33: 0.02 | F33: =IF(D33=0,'App.2-CP_NewCGAAP_DepExp_2013'!K33,+'App.2-CP_NewCGAAP_DepExp_2013'!K33+((C33*0.5)/D33)) -> 76405.7698 | G33: ='App.2-BA1_Fix Asset Cont.CGAAP'!J375 -> 76497.8 | H33: -92.0302
A34: 1910 | B34: Leasehold Improvements | C34: ='App.2-BA1_Fix Asset Cont.CGAAP'!E376 -> 0 | D34: ='App.2-CP_NewCGAAP_DepExp_2013'!D34 -> 0 | E34: 0 | F34: =IF(D34=0,'App.2-CP_NewCGAAP_DepExp_2013'!K34,+'App.2-CP_NewCGAAP_DepExp_2013'!K34+((C34*0.5)/D34)) -> 0 | G34: ='App.2-BA1_Fix Asset Cont.CGAAP'!J376 -> 0 | H34: 0
A35: 1915 | B35: Office Furniture & Equipment (10 years) | C35: ='App.2-BA1_Fix Asset Cont.CGAAP'!E377 -> 17199.96 | D35: ='App.2-CP_NewCGAAP_DepExp_2013'!D35 -> 10 | E35: 0.1 | F35: =IF(D35=0,'App.2-CP_NewCGAAP_DepExp_2013'!K35,+'App.2-CP_NewCGAAP_DepExp_2013'!K35+((C35*0.5)/D35)) -> 15800.369 | G35: ='App.2-BA1_Fix Asset Cont.CGAAP'!J377 -> 15800.369 | H35: -1.818989404e-12
A36: 1915 | B36: Office Furniture & Equipment (5 years) | C36: ='App.2-BA1_Fix Asset Cont.CGAAP'!E378 -> 0 | D36: ='App.2-CP_NewCGAAP_DepExp_2013'!D36 -> 0 | E36: 0 | F36: =IF(D36=0,'App.2-CP_NewCGAAP_DepExp_2013'!K36,+'App.2-CP_NewCGAAP_DepExp_2013'!K36+((C36*0.5)/D36)) -> 0 | G36: ='App.2-BA1_Fix Asset Cont.CGAAP'!J378 -> 0 | H36: 0
A37: 1920 | B37: Computer Equipment - Hardware | C37: ='App.2-BA1_Fix Asset Cont.CGAAP'!E379 -> 0 | D37: ='App.2-CP_NewCGAAP_DepExp_2013'!D37 -> 5 | E37: 0.2 | F37: =IF(D37=0,'App.2-CP_NewCGAAP_DepExp_2013'!K37,+'App.2-CP_NewCGAAP_DepExp_2013'!K37+((C37*0.5)/D37)) -> 0 | G37: ='App.2-BA1_Fix Asset Cont.CGAAP'!J379 -> 0 | H37: 0
A38: 1920 | B38: Computer Equip.-Hardware(Post Mar. 22/04) | C38: ='App.2-BA1_Fix Asset Cont.CGAAP'!E380 -> 0 | D38: ='App.2-CP_NewCGAAP_DepExp_2013'!D38 -> 0 | E38: 0 | F38: =IF(D38=0,'App.2-CP_NewCGAAP_DepExp_2013'!K38,+'App.2-CP_NewCGAAP_DepExp_2013'!K38+((C38*0.5)/D38)) -> 0 | G38: ='App.2-BA1_Fix Asset Cont.CGAAP'!J380 -> 0 | H38: 0
A39: 1920 | B39: Computer Equip.-Hardware(Post Mar. 19/07) | C39: ='App.2-BA1_Fix Asset Cont.CGAAP'!E381 -> 77199.96 | D39: ='App.2-CP_NewCGAAP_DepExp_2013'!D39 -> 5 | E39: 0.2 | F39: =IF(D39=0,'App.2-CP_NewCGAAP_DepExp_2013'!K39,+'App.2-CP_NewCGAAP_DepExp_2013'!K39+((C39*0.5)/D39)) -> 28264.242 | G39: ='App.2-BA1_Fix Asset Cont.CGAAP'!J381 -> 28264.242 | H39: -3.637978807e-12
A40: 1930 | B40: Transportation Equipment | C40: ='App.2-BA1_Fix Asset Cont.CGAAP'!E382 -> 35000.04 | D40: ='App.2-CP_NewCGAAP_DepExp_2013'!D40 -> 10 | E40: 0.1 | F40: =IF(D40=0,'App.2-CP_NewCGAAP_DepExp_2013'!K40,+'App.2-CP_NewCGAAP_DepExp_2013'!K40+((C40*0.5)/D40)) -> 36640.801 | G40: ='App.2-BA1_Fix Asset Cont.CGAAP'!J382 -> 41224.135 | H40: -4583.334
A41: 1935 | B41: Stores Equipment | C41: ='App.2-BA1_Fix Asset Cont.CGAAP'!E383 -> 2000.04 | D41: ='App.2-CP_NewCGAAP_DepExp_2013'!D41 -> 10 | E41: 0.1 | F41: =IF(D41=0,'App.2-CP_NewCGAAP_DepExp_2013'!K41,+'App.2-CP_NewCGAAP_DepExp_2013'!K41+((C41*0.5)/D41)) -> 1198.146 | G41: ='App.2-BA1_Fix Asset Cont.CGAAP'!J383 -> 1238.178 | H41: -40.032
A42: 1940 | B42: Tools, Shop & Garage Equipment | C42: ='App.2-BA1_Fix Asset Cont.CGAAP'!E384 -> 5000.04 | D42: ='App.2-CP_NewCGAAP_DepExp_2013'!D42 -> 10 | E42: 0.1 | F42: =IF(D42=0,'App.2-CP_NewCGAAP_DepExp_2013'!K42,+'App.2-CP_NewCGAAP_DepExp_2013'!K42+((C42*0.5)/D42)) -> 3704.152 | G42: ='App.2-BA1_Fix Asset Cont.CGAAP'!J384 -> 3704.152 | H42: -4.547473509e-13
A43: 1945 | B43: Measurement & Testing Equipment | C43: ='App.2-BA1_Fix Asset Cont.CGAAP'!E385 -> 5000.04 | D43: ='App.2-CP_NewCGAAP_DepExp_2013'!D43 -> 10 | E43: 0.1 | F43: =IF(D43=0,'App.2-CP_NewCGAAP_DepExp_2013'!K43,+'App.2-CP_NewCGAAP_DepExp_2013'!K43+((C43*0.5)/D43)) -> 2519.062 | G43: ='App.2-BA1_Fix Asset Cont.CGAAP'!J385 -> 2519.062 | H43: 0
A44: 1950 | B44: Power Operated Equipment | C44: ='App.2-BA1_Fix Asset Cont.CGAAP'!E386 -> 0 | D44: ='App.2-CP_NewCGAAP_DepExp_2013'!D44 -> 0 | E44: 0 | F44: =IF(D44=0,'App.2-CP_NewCGAAP_DepExp_2013'!K44,+'App.2-CP_NewCGAAP_DepExp_2013'!K44+((C44*0.5)/D44)) -> 0 | G44: ='App.2-BA1_Fix Asset Cont.CGAAP'!J386 -> 0 | H44: 0
A45: 1955 | B45: Communications Equipment | C45: ='App.2-BA1_Fix Asset Cont.CGAAP'!E387 -> 5600.04 | D45: ='App.2-CP_NewCGAAP_DepExp_2013'!D45 -> 35 | E45: 0.02857142857 | F45: =IF(D45=0,'App.2-CP_NewCGAAP_DepExp_2013'!K45,+'App.2-CP_NewCGAAP_DepExp_2013'!K45+((C45*0.5)/D45)) -> 124.53 | G45: ='App.2-BA1_Fix Asset Cont.CGAAP'!J387 -> 124.53 | H45: -1.421085472e-14
A46: 1955 | B46: Communication Equipment (Smart Meters) | C46: ='App.2-BA1_Fix Asset Cont.CGAAP'!E388 -> 0 | D46: ='App.2-CP_NewCGAAP_DepExp_2013'!D46 -> 0 | E46: 0 | F46: =IF(D46=0,'App.2-CP_NewCGAAP_DepExp_2013'!K46,+'App.2-CP_NewCGAAP_DepExp_2013'!K46+((C46*0.5)/D46)) -> 0 | G46: ='App.2-BA1_Fix Asset Cont.CGAAP'!J388 -> 0 | H46: 0
A47: 1960 | B47: Miscellaneous Equipment | C47: ='App.2-BA1_Fix Asset Cont.CGAAP'!E389 -> 0 | D47: ='App.2-CP_NewCGAAP_DepExp_2013'!D47 -> 10 | E47: 0.1 | F47: =IF(D47=0,'App.2-CP_NewCGAAP_DepExp_2013'!K47,+'App.2-CP_NewCGAAP_DepExp_2013'!K47+((C47*0.5)/D47)) -> 16053.014 | G47: ='App.2-BA1_Fix Asset Cont.CGAAP'!J389 -> 16053.014 | H47: -1.818989404e-12
A48: 1970 | B48: Load Management Controls - Customer Premises | C48: ='App.2-BA1_Fix Asset Cont.CGAAP'!E390 -> 0 | D48: ='App.2-CP_NewCGAAP_DepExp_2013'!D48 -> 0 | E48: 0 | F48: =IF(D48=0,'App.2-CP_NewCGAAP_DepExp_2013'!K48,+'App.2-CP_NewCGAAP_DepExp_2013'!K48+((C48*0.5)/D48)) -> 0 | G48: ='App.2-BA1_Fix Asset Cont.CGAAP'!J390 -> 0 | H48: 0
A49: 1975 | B49: Load Management Controls Utility Premises | C49: ='App.2-BA1_Fix Asset Cont.CGAAP'!E391 -> 0 | D49: ='App.2-CP_NewCGAAP_DepExp_2013'!D49 -> 0 | E49: 0 | F49: =IF(D49=0,'App.2-CP_NewCGAAP_DepExp_2013'!K49,+'App.2-CP_NewCGAAP_DepExp_2013'!K49+((C49*0.5)/D49)) -> 0 | G49: ='App.2-BA1_Fix Asset Cont.CGAAP'!J391 -> 0 | H49: 0
A50: 1980 | B50: System Supervisor Equipment | C50: ='App.2-BA1_Fix Asset Cont.CGAAP'!E392 -> 0 | D50: ='App.2-CP_NewCGAAP_DepExp_2013'!D50 -> 0 | E50: 0 | F50: =IF(D50=0,'App.2-CP_NewCGAAP_DepExp_2013'!K50,+'App.2-CP_NewCGAAP_DepExp_2013'!K50+((C50*0.5)/D50)) -> 0 | G50: ='App.2-BA1_Fix Asset Cont.CGAAP'!J392 -> 0 | H50: 0
A51: 1985 | B51: Miscellaneous Fixed Assets | C51: ='App.2-BA1_Fix Asset Cont.CGAAP'!E393 -> 0 | D51: ='App.2-CP_NewCGAAP_DepExp_2013'!D51 -> 0 | E51: 0 | F51: =IF(D51=0,'App.2-CP_NewCGAAP_DepExp_2013'!K51,+'App.2-CP_NewCGAAP_DepExp_2013'!K51+((C51*0.5)/D51)) -> 0 | G51: ='App.2-BA1_Fix Asset Cont.CGAAP'!J393 -> 0 | H51: 0
A52: 1990 | B52: Other Tangible Property | C52: ='App.2-BA1_Fix Asset Cont.CGAAP'!E394 -> 0 | D52: ='App.2-CP_NewCGAAP_DepExp_2013'!D52 -> 0 | E52: 0 | F52: =IF(D52=0,'App.2-CP_NewCGAAP_DepExp_2013'!K52,+'App.2-CP_NewCGAAP_DepExp_2013'!K52+((C52*0.5)/D52)) -> 0 | G52: ='App.2-BA1_Fix Asset Cont.CGAAP'!J394 -> 0 | H52: 0
A53: 1995 | B53: Contributions & Grants | C53: ='App.2-BA1_Fix Asset Cont.CGAAP'!E395 -> -298474.32 | D53: ='App.2-CP_NewCGAAP_DepExp_2013'!D53 -> 25 | E53: 0.04 | F53: =IF(D53=0,'App.2-CP_NewCGAAP_DepExp_2013'!K53,+'App.2-CP_NewCGAAP_DepExp_2013'!K53+((C53*0.5)/D53)) -> -97062.3536 | G53: ='App.2-BA1_Fix Asset Cont.CGAAP'!J395 -> -101425.0924 | H53: 4362.738844
A54: etc. | C54: ='App.2-BA1_Fix Asset Cont.CGAAP'!J396 -> 0 | E54: 0 | F54: =IF(D54=0,'App.2-CP_NewCGAAP_DepExp_2013'!K54,+'App.2-CP_NewCGAAP_DepExp_2013'!K54+((C54*0.5)/D54)) -> 0 | G54: ='App.2-BA1_Fix Asset Cont.CGAAP'!K396 -> 0 | H54: 0
C55: ='App.2-BA1_Fix Asset Cont.CGAAP'!J397 -> 0 | E55: 0 | F55: =IF(D55=0,'App.2-CP_NewCGAAP_DepExp_2013'!K55,+'App.2-CP_NewCGAAP_DepExp_2013'!K55+((C55*0.5)/D55)) -> 0 | G55: ='App.2-BA1_Fix Asset Cont.CGAAP'!K397 -> 0 | H55: 0
B56: Total | C56: =SUM(C16:C55) -> 1295222.28 | F56: =SUM(F16:F55) -> 855005.902 | G56: =SUM(G16:G55) -> 894165.8921 | H56: =SUM(H16:H55) -> -39159.99009
B57: Total Depreciation expense to be included in the test year revenue requirement | F57: =+F56 -> 855005.902
A58: Notes:
A59: 1 | B59: Board policy of the "half-year" rule - the applicant must ensure that additions in the year attract a half-year depreciation expense in the first year. Deviations from this standard practice must be supported in the application.
A60: 2 | B60: The applicant must provide an explanation of material variances in evidence.
A62: General: | B62: Applicants must provide a breakdown of depreciation and amortization expense in the above format for all relevant accounts. Asset Retirement Obligations (AROs), depreciation and accretion expense should be disclosed separately consistent with the Notes of historical Audited Financial Statements.

Sheet App.2-CR_OldCGAAP_DepExp_2012 (hidden)
K1: File Number: | L1: =EBNUMBER -> EB-2013-0160
K2: Exhibit:
K3: Tab:
K4: Schedule:
K5: Page:
K7: Date:
A9: Appendix 2-CR
A10: Depreciation and Amortization Expense
A11: Assumes the applicant made capitalization and depreciation expense accounting policy changes under CGAAP effective January 1, 2013
C12: Year | D12: 2012 | E12: Former CGAAP - CGAAP without the changes to the policies
A14: Account | B14: Description | C14: Opening Regulatory Gross PP&E as at Jan 1, 2012 | D14: Less Fully Depreciated | E14: Net for Depreciation | F14: Additions | G14: Total for Depreciation | H14: Years | I14: Depreciation Rate | J14: 2012 Depreciation Expense | K14: 2012 Depreciation Expense per Appendix 2-B Fixed Assets, Column K (l) | L14: Variance 2
C15: (a) | D15: (b) | E15: (c) | F15: (d) | G15: (e) = (c) + ½ x (d) 1 | H15: (f) | I15: (g) = 1 / (f) | J15: (h) = (e) / (f) | L15: (m) = (h) - (l)
A16: 1611 | B16: Computer Software (Formally known as Account 1925) | E16: =C16-D16 -> 0 | G16: =E16+0.5*F16 -> 0 | I16: =IF(H16=0,"",1/H16) ->  | J16: =IF(H16=0,0,G16/H16) -> 0 | L16: =IF(ISERROR(+J16-K16), "", +J16-K16) -> 0
A17: 1612 | B17: Land Rights (Formally known as Account 1906) | E17: =C17-D17 -> 0 | G17: =E17+0.5*F17 -> 0 | J17: 0 | L17: =IF(ISERROR(+J17-K17), "", +J17-K17) -> 0
A18: 1805 | B18: Land | E18: 0 | G18: 0 | J18: 0 | L18: 0
A19: 1808 | B19: Buildings | E19: 0 | G19: 0 | J19: 0 | L19: 0
A20: 1810 | B20: Leasehold Improvements | E20: 0 | G20: 0 | J20: 0 | L20: 0
A21: 1815 | B21: Transformer Station Equipment >50 kV | E21: 0 | G21: 0 | J21: 0 | L21: 0
A22: 1820 | B22: Distribution Station Equipment <50 kV | E22: 0 | G22: 0 | J22: 0 | L22: 0
A23: 1825 | B23: Storage Battery Equipment | E23: 0 | G23: 0 | J23: 0 | L23: 0
A24: 1830 | B24: Poles, Towers & Fixtures | E24: 0 | G24: 0 | J24: 0 | L24: 0
A25: 1835 | B25: Overhead Conductors & Devices | E25: 0 | G25: 0 | J25: 0 | L25: 0
A26: 1840 | B26: Underground Conduit | E26: 0 | G26: 0 | J26: 0 | L26: 0
A27: 1845 | B27: Underground Conductors & Devices | E27: 0 | G27: 0 | J27: 0 | L27: 0
A28: 1850 | B28: Line Transformers | E28: 0 | G28: 0 | J28: 0 | L28: 0
A29: 1855 | B29: Services (Overhead & Underground) | E29: 0 | G29: 0 | J29: 0 | L29: 0
A30: 1860 | B30: Meters | E30: 0 | G30: 0 | J30: 0 | L30: 0
A31: 1860 | B31: Meters (Smart Meters) | E31: 0 | G31: 0 | J31: 0 | L31: 0
A32: 1905 | B32: Land | E32: 0 | G32: 0 | J32: 0 | L32: 0
A33: 1908 | B33: Buildings & Fixtures | E33: 0 | G33: 0 | J33: 0 | L33: 0
A34: 1910 | B34: Leasehold Improvements | E34: 0 | G34: 0 | J34: 0 | L34: 0
A35: 1915 | B35: Office Furniture & Equipment (10 years) | E35: 0 | G35: 0 | J35: 0 | L35: 0
A36: 1915 | B36: Office Furniture & Equipment (5 years) | E36: 0 | G36: 0 | J36: 0 | L36: 0
A37: 1920 | B37: Computer Equipment - Hardware | E37: 0 | G37: 0 | J37: 0 | L37: 0
A38: 1920 | B38: Computer Equip.-Hardware(Post Mar. 22/04) | E38: 0 | G38: 0 | J38: 0 | L38: 0
A39: 1920 | B39: Computer Equip.-Hardware(Post Mar. 19/07) | E39: 0 | G39: 0 | J39: 0 | L39: 0
A40: 1930 | B40: Transportation Equipment | E40: 0 | G40: 0 | J40: 0 | L40: 0
A41: 1935 | B41: Stores Equipment | E41: 0 | G41: 0 | J41: 0 | L41: 0
A42: 1940 | B42: Tools, Shop & Garage Equipment | E42: 0 | G42: 0 | J42: 0 | L42: 0
A43: 1945 | B43: Measurement & Testing Equipment | E43: 0 | G43: 0 | J43: 0 | L43: 0
A44: 1950 | B44: Power Operated Equipment | E44: 0 | G44: 0 | J44: 0 | L44: 0
A45: 1955 | B45: Communications Equipment | E45: 0 | G45: 0 | J45: 0 | L45: 0
A46: 1955 | B46: Communication Equipment (Smart Meters) | E46: 0 | G46: 0 | J46: 0 | L46: 0
A47: 1960 | B47: Miscellaneous Equipment | E47: 0 | G47: 0 | J47: 0 | L47: 0
A48: 1970 | B48: Load Management Controls - Customer Premises | E48: 0 | G48: 0 | J48: 0 | L48: 0
A49: 1975 | B49: Load Management Controls Utility Premises | E49: 0 | G49: 0 | J49: 0 | L49: 0
A50: 1980 | B50: System Supervisor Equipment | E50: 0 | G50: 0 | J50: 0 | L50: 0
A51: 1985 | B51: Miscellaneous Fixed Assets | E51: 0 | G51: 0 | J51: 0 | L51: 0
A52: 1990 | B52: Other Tangible Property | E52: 0 | G52: 0 | J52: 0 | L52: 0
A53: 1995 | B53: Contributions & Grants | E53: 0 | G53: 0 | J53: 0 | L53: 0
A54: etc. | E54: 0 | G54: 0 | J54: 0 | L54: 0
E55: 0 | G55: 0 | J55: 0 | L55: 0
B56: Total | C56: =SUM(C16:C55) -> 0 | D56: =SUM(D16:D55) -> 0 | E56: =SUM(E16:E55) -> 0 | F56: =SUM(F16:F55) -> 0 | G56: =SUM(G16:G55) -> 0 | J56: =SUM(J16:J55) -> 0 | K56: =SUM(K16:K55) -> 0 | L56: =SUM(L16:L55) -> 0
A58: Notes:
A59: 1 | B59: Board policy of the "half-year" rule - the applicant must ensure that additions in the year attract a half-year depreciation expense in the first year. Deviations from this standard practice must be supported in the application.
A60: 2 | B60: The applicant must provide an explanation of material variances in evidence.
A62: General: | B62: Applicants must provide a breakdown of depreciation and amortization expense in the above format for all relevant accounts. Asset Retirement Obligations (AROs), depreciation and accretion expense should be disclosed separately consistent with the Notes of historical Audited Financial Statements.

Sheet App.2-CS_OldCGAAP_DepExp_2013 (hidden)
K1: File Number: | L1: =EBNUMBER -> EB-2013-0160
K2: Exhibit:
K3: Tab:
K4: Schedule:
K5: Page:
K7: Date:
A9: Appendix 2-CS
A10: Depreciation and Amortization Expense
A11: Assumes the applicant made capitalization and depreciation expense accounting policy changes under CGAAP effective January 1, 2013
C12: Year | D12: 2013 | E12: Former CGAAP - CGAAP without the changes to the policies
A14: Account | B14: Description | C14: Opening Regulatory Gross PP&E as at Jan 1, 2013 | D14: Less Fully Depreciated | E14: Net for Depreciation | F14: Additions | G14: Total for Depreciation | H14: Years | I14: Depreciation Rate | J14: 2013 Depreciation Expense | K14: 2013 Depreciation Expense per Appendix 2-B Fixed Assets, Column K (l) | L14: Variance 2
C15: (a) | D15: (b) | E15: (c) | F15: (d) | G15: (e) = (c) + ½ x (d) 1 | H15: (f) | I15: (g) = 1 / (f) | J15: (h) = (e) / (f) | L15: (m) = (h) - (l)
A16: 1611 | B16: Computer Software (Formally known as Account 1925) | E16: =C16-D16 -> 0 | G16: =E16+0.5*F16 -> 0 | I16: =IF(H16=0,0,1/H16) -> 0 | J16: =IF(H16=0,0,G16/H16) -> 0 | L16: =IF(ISERROR(+J16-K16), 0, +J16-K16) -> 0
A17: 1612 | B17: Land Rights (Formally known as Account 1906) | E17: =C17-D17 -> 0 | G17: =E17+0.5*F17 -> 0 | I17: 0 | J17: 0 | L17: 0
A18: 1805 | B18: Land | E18: 0 | G18: 0 | I18: 0 | J18: 0 | L18: 0
A19: 1808 | B19: Buildings | E19: 0 | G19: 0 | I19: 0 | J19: 0 | L19: 0
A20: 1810 | B20: Leasehold Improvements | E20: 0 | G20: 0 | I20: 0 | J20: 0 | L20: 0
A21: 1815 | B21: Transformer Station Equipment >50 kV | E21: 0 | G21: 0 | I21: 0 | J21: 0 | L21: 0
A22: 1820 | B22: Distribution Station Equipment <50 kV | E22: 0 | G22: 0 | I22: 0 | J22: 0 | L22: 0
A23: 1825 | B23: Storage Battery Equipment | E23: 0 | G23: 0 | I23: 0 | J23: 0 | L23: 0
A24: 1830 | B24: Poles, Towers & Fixtures | E24: 0 | G24: 0 | I24: 0 | J24: 0 | L24: 0
A25: 1835 | B25: Overhead Conductors & Devices | E25: 0 | G25: 0 | I25: 0 | J25: 0 | L25: 0
A26: 1840 | B26: Underground Conduit | E26: 0 | G26: 0 | I26: 0 | J26: 0 | L26: 0
A27: 1845 | B27: Underground Conductors & Devices | E27: 0 | G27: 0 | I27: 0 | J27: 0 | L27: 0
A28: 1850 | B28: Line Transformers | E28: 0 | G28: 0 | I28: 0 | J28: 0 | L28: 0
A29: 1855 | B29: Services (Overhead & Underground) | E29: 0 | G29: 0 | I29: 0 | J29: 0 | L29: 0
A30: 1860 | B30: Meters | E30: 0 | G30: 0 | I30: 0 | J30: 0 | L30: 0
A31: 1860 | B31: Meters (Smart Meters) | E31: 0 | G31: 0 | I31: 0 | J31: 0 | L31: 0
A32: 1905 | B32: Land | E32: 0 | G32: 0 | I32: 0 | J32: 0 | L32: 0
A33: 1908 | B33: Buildings & Fixtures | E33: 0 | G33: 0 | I33: 0 | J33: 0 | L33: 0
A34: 1910 | B34: Leasehold Improvements | E34: 0 | G34: 0 | I34: 0 | J34: 0 | L34: 0
A35: 1915 | B35: Office Furniture & Equipment (10 years) | E35: 0 | G35: 0 | I35: 0 | J35: 0 | L35: 0
A36: 1915 | B36: Office Furniture & Equipment (5 years) | E36: 0 | G36: 0 | I36: 0 | J36: 0 | L36: 0
A37: 1920 | B37: Computer Equipment - Hardware | E37: 0 | G37: 0 | I37: 0 | J37: 0 | L37: 0
A38: 1920 | B38: Computer Equip.-Hardware(Post Mar. 22/04) | E38: 0 | G38: 0 | I38: 0 | J38: 0 | L38: 0
A39: 1920 | B39: Computer Equip.-Hardware(Post Mar. 19/07) | E39: 0 | G39: 0 | I39: 0 | J39: 0 | L39: 0
A40: 1930 | B40: Transportation Equipment | E40: 0 | G40: 0 | I40: 0 | J40: 0 | L40: 0
A41: 1935 | B41: Stores Equipment | E41: 0 | G41: 0 | I41: 0 | J41: 0 | L41: 0
A42: 1940 | B42: Tools, Shop & Garage Equipment | E42: 0 | G42: 0 | I42: 0 | J42: 0 | L42: 0
A43: 1945 | B43: Measurement & Testing Equipment | E43: 0 | G43: 0 | I43: 0 | J43: 0 | L43: 0
A44: 1950 | B44: Power Operated Equipment | E44: 0 | G44: 0 | I44: 0 | J44: 0 | L44: 0
A45: 1955 | B45: Communications Equipment | E45: 0 | G45: 0 | I45: 0 | J45: 0 | L45: 0
A46: 1955 | B46: Communication Equipment (Smart Meters) | E46: 0 | G46: 0 | I46: 0 | J46: 0 | L46: 0
A47: 1960 | B47: Miscellaneous Equipment | E47: 0 | G47: 0 | I47: 0 | J47: 0 | L47: 0
A48: 1970 | B48: Load Management Controls - Customer Premises | E48: 0 | G48: 0 | I48: 0 | J48: 0 | L48: 0
A49: 1975 | B49: Load Management Controls Utility Premises | E49: 0 | G49: 0 | I49: 0 | J49: 0 | L49: 0
A50: 1980 | B50: System Supervisor Equipment | E50: 0 | G50: 0 | I50: 0 | J50: 0 | L50: 0
A51: 1985 | B51: Miscellaneous Fixed Assets | E51: 0 | G51: 0 | I51: 0 | J51: 0 | L51: 0
A52: 1990 | B52: Other Tangible Property | E52: 0 | G52: 0 | I52: 0 | J52: 0 | L52: 0
A53: 1995 | B53: Contributions & Grants | E53: 0 | G53: 0 | I53: 0 | J53: 0 | L53: 0
A54: etc. | E54: 0 | G54: 0 | I54: 0 | J54: 0 | L54: 0
E55: 0 | G55: 0 | I55: 0 | J55: 0 | L55: 0
B56: Total | C56: =SUM(C16:C55) -> 0 | D56: =SUM(D16:D55) -> 0 | E56: =SUM(E16:E55) -> 0 | F56: =SUM(F16:F55) -> 0 | G56: =SUM(G16:G55) -> 0 | J56: =SUM(J16:J55) -> 0 | K56: =SUM(K16:K55) -> 0 | L56: =SUM(L16:L55) -> 0
A58: Notes:
A59: 1 | B59: Board policy of the "half-year" rule - the applicant must ensure that additions in the year attract a half-year depreciation expense in the first year. Deviations from this standard practice must be supported in the application.
A60: 2 | B60: The applicant must provide an explanation of material variances in evidence.
A62: General: | B62: Applicants must provide a breakdown of depreciation and amortization expense in the above format for all relevant accounts. Asset Retirement Obligations (AROs), depreciation and accretion expense should be disclosed separately consistent with the Notes of historical Audited Financial Statements.

Sheet App.2-CT_NewCGAAP_DepExp_2013 (hidden)
N1: File Number: | O1: =EBNUMBER -> EB-2013-0160
N2: Exhibit:
N3: Tab:
N4: Schedule:
N5: Page:
N7: Date:
A9: Appendix 2-CT
A10: Depreciation and Amortization Expense
A11: Assumes the applicant made capitalization and depreciation expense accounting policy changes under CGAAP effective January 1, 2013
C12: Year | D12: 2013 | E12: Revised CGAAP or ASPE - CGAAP or ASPE with the changes to the policies
A14: Account | B14: Description | C14: Opening NBV as at Jan 1, 2013 5 | D14: Additions | E14: Average Remaining Life of Opening NBV 4 | F14: Years (new additions only) 3 | G14: Depreciation Rate on New Additions | H14: Depreciation Expense on Opening NBV | I14: Depreciation Expense on Additions 1 | J14: 2013 Depreciation Expense | K14: 2013 Depreciation Expense per Appendix 2-B Fixed Assets, Column K (l) | L14: Variance 2 | M14: Depreciation Expense on 2013 Full Year Additions | N14: Less Depreciation Expense on Assets Fully Depreciated during the year (o) | O14: 2013 Full Year Depreciation 6
C15: (a) | D15: (d) | E15: (i) | F15: (f) | G15: (g) = 1 / (f) | H15: (j) = (a) / (i) | I15: (h)=((d)*0.5)/(f) | J15: (k) = (j) + (h) | L15: (m) = (k) - (l) | M15: (n)=((d))/(f) | O15: (p) = (j) + (n) - (o)
A16: 1611 | B16: Computer Software (Formally known as Account 1925) | G16: =IF(F16=0,0,1/F16) -> 0 | H16: =IF(E16=0,0,+C16/E16) -> 0 | I16: =IF(F16=0,0,+(D16*0.5)/F16) -> 0 | J16: =IF(ISERROR(+H16+I16), 0, +H16+I16) -> 0 | L16: =IF(ISERROR(+J16-K16), 0, +J16-K16) -> 0 | M16: =IF(F16=0,0,+(D16)/F16) -> 0 | O16: =IF(ISERROR(+M16+H16-N16), 0, +M16+H16-N16) -> 0
A17: 1612 | B17: Land Rights (Formally known as Account 1906) | G17: 0 | H17: 0 | I17: 0 | J17: 0 | L17: 0 | M17: 0 | O17: =IF(ISERROR(+M17+H17-N17), 0, +M17+H17-N17) -> 0
A18: 1805 | B18: Land | G18: 0 | H18: 0 | I18: 0 | J18: 0 | L18: 0 | M18: 0 | O18: 0
A19: 1808 | B19: Buildings | G19: 0 | H19: 0 | I19: 0 | J19: 0 | L19: 0 | M19: 0 | O19: 0
A20: 1810 | B20: Leasehold Improvements | G20: 0 | H20: 0 | I20: 0 | J20: 0 | L20: 0 | M20: 0 | O20: 0
A21: 1815 | B21: Transformer Station Equipment >50 kV | G21: 0 | H21: 0 | I21: 0 | J21: 0 | L21: 0 | M21: 0 | O21: 0
A22: 1820 | B22: Distribution Station Equipment <50 kV | G22: 0 | H22: 0 | I22: 0 | J22: 0 | L22: 0 | M22: 0 | O22: 0
A23: 1825 | B23: Storage Battery Equipment | G23: 0 | H23: 0 | I23: 0 | J23: 0 | L23: 0 | M23: 0 | O23: 0
A24: 1830 | B24: Poles, Towers & Fixtures | G24: 0 | H24: 0 | I24: 0 | J24: 0 | L24: 0 | M24: 0 | O24: 0
A25: 1835 | B25: Overhead Conductors & Devices | G25: 0 | H25: 0 | I25: 0 | J25: 0 | L25: 0 | M25: 0 | O25: 0
A26: 1840 | B26: Underground Conduit | G26: 0 | H26: 0 | I26: 0 | J26: 0 | L26: 0 | M26: 0 | O26: 0
A27: 1845 | B27: Underground Conductors & Devices | G27: 0 | H27: 0 | I27: 0 | J27: 0 | L27: 0 | M27: 0 | O27: 0
A28: 1850 | B28: Line Transformers | G28: 0 | H28: 0 | I28: 0 | J28: 0 | L28: 0 | M28: 0 | O28: 0
A29: 1855 | B29: Services (Overhead & Underground) | G29: 0 | H29: 0 | I29: 0 | J29: 0 | L29: 0 | M29: 0 | O29: 0
A30: 1860 | B30: Meters | G30: 0 | H30: 0 | I30: 0 | J30: 0 | L30: 0 | M30: 0 | O30: 0
A31: 1860 | B31: Meters (Smart Meters) | G31: 0 | H31: 0 | I31: 0 | J31: 0 | L31: 0 | M31: 0 | O31: 0
A32: 1905 | B32: Land | G32: 0 | H32: 0 | I32: 0 | J32: 0 | L32: 0 | M32: 0 | O32: 0
A33: 1908 | B33: Buildings & Fixtures | G33: 0 | H33: 0 | I33: 0 | J33: 0 | L33: 0 | M33: 0 | O33: 0
A34: 1910 | B34: Leasehold Improvements | G34: 0 | H34: 0 | I34: 0 | J34: 0 | L34: 0 | M34: 0 | O34: 0
A35: 1915 | B35: Office Furniture & Equipment (10 years) | G35: 0 | H35: 0 | I35: 0 | J35: 0 | L35: 0 | M35: 0 | O35: 0
A36: 1915 | B36: Office Furniture & Equipment (5 years) | G36: 0 | H36: 0 | I36: 0 | J36: 0 | L36: 0 | M36: 0 | O36: 0
A37: 1920 | B37: Computer Equipment - Hardware | G37: 0 | H37: 0 | I37: 0 | J37: 0 | L37: 0 | M37: 0 | O37: 0
A38: 1920 | B38: Computer Equip.-Hardware(Post Mar. 22/04) | G38: 0 | H38: 0 | I38: 0 | J38: 0 | L38: 0 | M38: 0 | O38: 0
A39: 1920 | B39: Computer Equip.-Hardware(Post Mar. 19/07) | G39: 0 | H39: 0 | I39: 0 | J39: 0 | L39: 0 | M39: 0 | O39: 0
A40: 1930 | B40: Transportation Equipment | G40: 0 | H40: 0 | I40: 0 | J40: 0 | L40: 0 | M40: 0 | O40: 0
A41: 1935 | B41: Stores Equipment | G41: 0 | H41: 0 | I41: 0 | J41: 0 | L41: 0 | M41: 0 | O41: 0
A42: 1940 | B42: Tools, Shop & Garage Equipment | G42: 0 | H42: 0 | I42: 0 | J42: 0 | L42: 0 | M42: 0 | O42: 0
A43: 1945 | B43: Measurement & Testing Equipment | G43: 0 | H43: 0 | I43: 0 | J43: 0 | L43: 0 | M43: 0 | O43: 0
A44: 1950 | B44: Power Operated Equipment | G44: 0 | H44: 0 | I44: 0 | J44: 0 | L44: 0 | M44: 0 | O44: 0
A45: 1955 | B45: Communications Equipment | G45: 0 | H45: 0 | I45: 0 | J45: 0 | L45: 0 | M45: 0 | O45: 0
A46: 1955 | B46: Communication Equipment (Smart Meters) | G46: 0 | H46: 0 | I46: 0 | J46: 0 | L46: 0 | M46: 0 | O46: 0
A47: 1960 | B47: Miscellaneous Equipment | G47: 0 | H47: 0 | I47: 0 | J47: 0 | L47: 0 | M47: 0 | O47: 0
A48: 1970 | B48: Load Management Controls - Customer Premises | G48: 0 | H48: 0 | I48: 0 | J48: 0 | L48: 0 | M48: 0 | O48: 0
A49: 1975 | B49: Load Management Controls Utility Premises | G49: 0 | H49: 0 | I49: 0 | J49: 0 | L49: 0 | M49: 0 | O49: 0
A50: 1980 | B50: System Supervisor Equipment | G50: 0 | H50: 0 | I50: 0 | J50: 0 | L50: 0 | M50: 0 | O50: 0
A51: 1985 | B51: Miscellaneous Fixed Assets | G51: 0 | H51: 0 | I51: 0 | J51: 0 | L51: 0 | M51: 0 | O51: 0
A52: 1990 | B52: Other Tangible Property | G52: 0 | H52: 0 | I52: 0 | J52: 0 | L52: 0 | M52: 0 | O52: 0
A53: 1995 | B53: Contributions & Grants | G53: 0 | H53: 0 | I53: 0 | J53: 0 | L53: 0 | M53: 0 | O53: 0
A54: etc. | G54: 0 | H54: 0 | I54: 0 | J54: 0 | L54: 0 | M54: 0 | O54: 0
G55: 0 | H55: 0 | I55: 0 | J55: 0 | L55: 0 | M55: 0 | O55: 0
B56: Total | C56: =SUM(C16:C55) -> 0 | D56: =SUM(D16:D55) -> 0 | H56: =SUM(H16:H55) -> 0 | I56: 0 | J56: 0 | K56: 0 | L56: 0 | M56: 0 | N56: =SUM(N16:N55) -> 0 | O56: 0
A58: Notes:
A60: 1 | B60: Board policy of the "half-year" rule - the applicant must ensure that additions in the year attract a half-year depreciation expense in the first year. Deviations from this standard practice must be supported in the application.
A61: 2 | B61: The applicant must provide an explanation of material variances in evidence.
A62: 3 | B62: The applicant should ensure that the years for new additions of assets are the asset useful lives determined by management in accordance with the Board's regulatory accounting policies. The capitalization and depreciation expense accounting changes should be implemented consistent with the Board’s regulatory accounting policies as set out for modified IFRS as contained in the Report of the Board, Transition to International Financial Reporting Standards, EB-2008-0408, the Kinectrics Report, and the Revised 2012 Accounting Procedures Handbook for Electricity Distributors (“APH”).
A63: 4 | B63: A recalculation should be performed to determine the average remaining life of opening balance of assets (i.e. excluding 2013 additions) under the change in policies under CGAAP. For example, Asset A had a useful life of 20 years under CGAAP without the change in policies. On January 1, 2013, the effective date of the changes in poliices, Asset A was 3 years depreciated. As a result, Asset A would have a remaining service life of 17 years (20 years less 3 years) as of January 1, 2013. Due to making the change in policies under CGAAP, management re-assessed the asset useful lives and concluded that the revised useful life of Asset A is now 30 years. Therefore, the average remaining useful life of the opening balance of Asset A is determined to be 27 years (30 years less 3 years) under the revised CGAAP as of January 1, 2013.
A64: 5 | B64: NBV must exclude assets still on the books but which have been fully amortized or depreciated.
A65: 6 | B65: This column refers to the calculated full year depreciation but excludes the depreciation expense on assets fully depreciated during the year. This column is used for the purpose of calculating depreciation expense in the following year on the next worksheet.
A67: General: | B67: Applicants must provide a breakdown of depreciation and amortization expense in the above format for all relevant accounts. Asset Retirement Obligations (AROs), depreciation and accretion expense should be disclosed separately consistent with the Notes of historical Audited Financial Statements.

Sheet App.2-CU_NewCGAAP_DepExp_2014 (hidden)
I1: File Number: | J1: =EBNUMBER -> EB-2013-0160
I2: Exhibit:
I3: Tab:
I4: Schedule:
I5: Page:
I7: Date:
A9: Appendix 2-CU
A10: Depreciation and Amortization Expense
A11: Assumes the applicant made capitalization and depreciation expense accounting policy changes under CGAAP effective January 1, 2013
C12: Year | D12: 2014 | E12: Revised CGAAP or ASPE - CGAAP or ASPE with the changes to the policies
A14: Account | B14: Description | C14: Additions | D14: Years (new additions only) | E14: Depreciation Rate on New Additions | F14: 2014 Depreciation Expense 1 | G14: 2014 Depreciation Expense per Appendix 2-B Fixed Assets, Column K (l) | H14: Variance 2
C15: (d) | D15: (f) | E15: (g) = 1 / (f) | F15: (h)=2013 Full Year Depreciation + ((d)*0.5)/(f) | H15: (m) = (h) - (l)
A16: 1611 | B16: Computer Software (Formally known as Account 1925) | E16: =IF(D16=0,0,1/D16) -> 0 | F16: =IF(D16=0,'App.2-CT_NewCGAAP_DepExp_2013'!O16,+'App.2-CT_NewCGAAP_DepExp_2013'!O16+((C16*0.5)/D16)) -> 0 | H16: =IF(ISERROR(+F16-G16), 0, +F16-G16) -> 0
A17: 1612 | B17: Land Rights (Formally known as Account 1906) | E17: 0 | F17: =IF(D17=0,'App.2-CT_NewCGAAP_DepExp_2013'!O17,+'App.2-CT_NewCGAAP_DepExp_2013'!O17+((C17*0.5)/D17)) -> 0 | H17: 0
A18: 1805 | B18: Land | E18: 0 | F18: =IF(D18=0,'App.2-CT_NewCGAAP_DepExp_2013'!O18,+'App.2-CT_NewCGAAP_DepExp_2013'!O18+((C18*0.5)/D18)) -> 0 | H18: 0
A19: 1808 | B19: Buildings | E19: 0 | F19: =IF(D19=0,'App.2-CT_NewCGAAP_DepExp_2013'!O19,+'App.2-CT_NewCGAAP_DepExp_2013'!O19+((C19*0.5)/D19)) -> 0 | H19: 0
A20: 1810 | B20: Leasehold Improvements | E20: 0 | F20: =IF(D20=0,'App.2-CT_NewCGAAP_DepExp_2013'!O20,+'App.2-CT_NewCGAAP_DepExp_2013'!O20+((C20*0.5)/D20)) -> 0 | H20: 0
A21: 1815 | B21: Transformer Station Equipment >50 kV | E21: 0 | F21: =IF(D21=0,'App.2-CT_NewCGAAP_DepExp_2013'!O21,+'App.2-CT_NewCGAAP_DepExp_2013'!O21+((C21*0.5)/D21)) -> 0 | H21: 0
A22: 1820 | B22: Distribution Station Equipment <50 kV | E22: 0 | F22: =IF(D22=0,'App.2-CT_NewCGAAP_DepExp_2013'!O22,+'App.2-CT_NewCGAAP_DepExp_2013'!O22+((C22*0.5)/D22)) -> 0 | H22: 0
A23: 1825 | B23: Storage Battery Equipment | E23: 0 | F23: =IF(D23=0,'App.2-CT_NewCGAAP_DepExp_2013'!O23,+'App.2-CT_NewCGAAP_DepExp_2013'!O23+((C23*0.5)/D23)) -> 0 | H23: 0
A24: 1830 | B24: Poles, Towers & Fixtures | E24: 0 | F24: =IF(D24=0,'App.2-CT_NewCGAAP_DepExp_2013'!O24,+'App.2-CT_NewCGAAP_DepExp_2013'!O24+((C24*0.5)/D24)) -> 0 | H24: 0
A25: 1835 | B25: Overhead Conductors & Devices | E25: 0 | F25: =IF(D25=0,'App.2-CT_NewCGAAP_DepExp_2013'!O25,+'App.2-CT_NewCGAAP_DepExp_2013'!O25+((C25*0.5)/D25)) -> 0 | H25: 0
A26: 1840 | B26: Underground Conduit | E26: 0 | F26: =IF(D26=0,'App.2-CT_NewCGAAP_DepExp_2013'!O26,+'App.2-CT_NewCGAAP_DepExp_2013'!O26+((C26*0.5)/D26)) -> 0 | H26: 0
A27: 1845 | B27: Underground Conductors & Devices | E27: 0 | F27: =IF(D27=0,'App.2-CT_NewCGAAP_DepExp_2013'!O27,+'App.2-CT_NewCGAAP_DepExp_2013'!O27+((C27*0.5)/D27)) -> 0 | H27: 0
A28: 1850 | B28: Line Transformers | E28: 0 | F28: =IF(D28=0,'App.2-CT_NewCGAAP_DepExp_2013'!O28,+'App.2-CT_NewCGAAP_DepExp_2013'!O28+((C28*0.5)/D28)) -> 0 | H28: 0
A29: 1855 | B29: Services (Overhead & Underground) | E29: 0 | F29: =IF(D29=0,'App.2-CT_NewCGAAP_DepExp_2013'!O29,+'App.2-CT_NewCGAAP_DepExp_2013'!O29+((C29*0.5)/D29)) -> 0 | H29: 0
A30: 1860 | B30: Meters | E30: 0 | F30: =IF(D30=0,'App.2-CT_NewCGAAP_DepExp_2013'!O30,+'App.2-CT_NewCGAAP_DepExp_2013'!O30+((C30*0.5)/D30)) -> 0 | H30: 0
A31: 1860 | B31: Meters (Smart Meters) | E31: 0 | F31: =IF(D31=0,'App.2-CT_NewCGAAP_DepExp_2013'!O31,+'App.2-CT_NewCGAAP_DepExp_2013'!O31+((C31*0.5)/D31)) -> 0 | H31: 0
A32: 1905 | B32: Land | E32: 0 | F32: =IF(D32=0,'App.2-CT_NewCGAAP_DepExp_2013'!O32,+'App.2-CT_NewCGAAP_DepExp_2013'!O32+((C32*0.5)/D32)) -> 0 | H32: 0
A33: 1908 | B33: Buildings & Fixtures | E33: 0 | F33: =IF(D33=0,'App.2-CT_NewCGAAP_DepExp_2013'!O33,+'App.2-CT_NewCGAAP_DepExp_2013'!O33+((C33*0.5)/D33)) -> 0 | H33: 0
A34: 1910 | B34: Leasehold Improvements | E34: 0 | F34: =IF(D34=0,'App.2-CT_NewCGAAP_DepExp_2013'!O34,+'App.2-CT_NewCGAAP_DepExp_2013'!O34+((C34*0.5)/D34)) -> 0 | H34: 0
A35: 1915 | B35: Office Furniture & Equipment (10 years) | E35: 0 | F35: =IF(D35=0,'App.2-CT_NewCGAAP_DepExp_2013'!O35,+'App.2-CT_NewCGAAP_DepExp_2013'!O35+((C35*0.5)/D35)) -> 0 | H35: 0
A36: 1915 | B36: Office Furniture & Equipment (5 years) | E36: 0 | F36: =IF(D36=0,'App.2-CT_NewCGAAP_DepExp_2013'!O36,+'App.2-CT_NewCGAAP_DepExp_2013'!O36+((C36*0.5)/D36)) -> 0 | H36: 0
A37: 1920 | B37: Computer Equipment - Hardware | E37: 0 | F37: =IF(D37=0,'App.2-CT_NewCGAAP_DepExp_2013'!O37,+'App.2-CT_NewCGAAP_DepExp_2013'!O37+((C37*0.5)/D37)) -> 0 | H37: 0
A38: 1920 | B38: Computer Equip.-Hardware(Post Mar. 22/04) | E38: 0 | F38: =IF(D38=0,'App.2-CT_NewCGAAP_DepExp_2013'!O38,+'App.2-CT_NewCGAAP_DepExp_2013'!O38+((C38*0.5)/D38)) -> 0 | H38: 0
